Workbook

Sheet Data Input Instructions (hidden)
A3: Worksheet ID | B3: Worksheet | C3: Input Data Notes
A4: 1 | B4: Data Current Rates | C4: R2 Service Charge should already be net of RRRP credit
A5: 1 | B5: Data Current Rates | C5: Demand billed RTSR should already be loss adjusted
A6: 2 | B6: Data Proposed Rates | C6: Mapped from Draft Rates file prepared for Claude
A7: 2 | B7: Data Proposed Rates | C7: Row 5 with header name TEXT is precedent to templates; changes to TEXT need to reflected in templates
A8: 2 | B8: Data Proposed Rates | C8: Templates are set up with 2-dimension vlookups so it will accommodate inserted/deleted rows and/or columns
A9: 3 | B9: Data Billing Quantities | C9: Row 4 with header name TEXT is precedent to templates; changes to TEXT need to reflected in templates
A10: 3 | B10: Data Billing Quantities | C10: Templates are set up with 2-dimension vlookups so it will accommodate inserted/deleted rows and/or columns
A11: 4 | B11: Data Pass Through | C11: Changes to Pass Through rates can be manually input on this sheet, which is precedent to the templates
A12: 4 | B12: Data Pass Through | C12: Links to templates from Column A TEXT; any changes in the TEXT of the charge names must be reflected in the templates
A13: 5 | B13: Data BI List | C13: Instruction Sheet for macro to create individual bill impact worksheets
A14: 5 | B14: Data BI List | C14: Need to MANUALLY update Test Year to appear as header on all bill impact worksheets
A15: 6 | B15: Data BI Summary | C15: This replaces the need for cell references in summary sheet, and displays value for totals so rows can be added to templates and worksheets without having to update the summary sheet
B16: Bill Impact Summary | C16: This file has 2 hidden columns needed to link to worksheets; see Col E and F

Sheet Data Current Rates (hidden)
A1: 2021 Rates (July 1 2021)
A3: 1 | B3: 2 | C3: 3 | D3: 4 | E3: 5 | J3: 6 | K3: 7 | L3: 8 | M3: 9 | N3: 10 | Q3: 11 | R3: 12
A4: Rate Description | B4: Fixed Charge ($/month) | C4: Current Variable Charge ($/kWh or $/kW) | D4: Current Foregone Revenue Riders Fixed ($/month) | E4: Current Volumetric Foregone Revenue Rider | F4: Fixed Charge + Fixed Foregone | G4: Volumetric Charge + Volumetric Foregone | H4: Fixed DTA ($/month) | I4: Vol DTA ($/kWh or $/kW) | J4: Current Def/VA rate rider Fixed ($/month) | K4: Current Def/VA rate rider Volumetric ($/kWh or $/kW) | L4: Vol VA Rider ($/kWh or $/kW) Non WMP | M4: Current Rate Rider for CBR (Non-WMP Class B) ($/kWh or $/kW) | N4: Current Rate Rider for Disposition of Global Adjustment (Non WMP, Non-RPP, Non-LDC, and Class B) ($/kWh) | Q4: Current RTSR-NW ($/kWh or $/kW) | R4: Current RTSR-CONN ($/kWh or $/kW)
A5: Rate as shown on Bill Impact Sheet | B5: Service Charge | C5: Distribution Volumetric Charge | D5: Fixed Foregone Revenue Charge | E5: Volumetric Foregone Revenue Charge | F5: Fixed Service Charge | G5: Dx Volumetric Charge | H5: Base Rate Adjustment to Recover Past Tax Amounts FIXED | I5: Base Rate Adjustment to Recover Past Tax Amounts VOL | J5: Fixed Deferral/Variance Account Rider (General) | K5: Volumetric Deferral/Variance Account Rider (General) | L5: Volumetric Deferral/Variance Account Rider (Sub-Account RSVA Wholesale Market Service Charge & RSVA Power) - ST only | M5: Volumetric Deferral/Variance Account Rider (Sub Account CBR) | N5: Volumetric Deferral/Variance Account Rider (Sub-Account Global Adjustment) | O5: Fixed ESM Rider | P5: Volumetric ESM Rider | Q5: Retail Transmission Rate – Network Service Rate | R5: Retail Transmission Rate – Line and Transformation Connection Service Rate
A6: UR | B6: =VLOOKUP($A6,'[1]Data Proposed Rates'!$A:$AX,MATCH(B$5,[1]!ProposedHeader,0),FALSE) -> 35.92 | C6: =VLOOKUP($A6,'[1]Data Proposed Rates'!$A:$AX,MATCH(C$5,[1]!ProposedHeader,0),FALSE) -> 0 | D6: =VLOOKUP($A6,'[1]Data Proposed Rates'!$A:$AX,MATCH(D$5,[1]!ProposedHeader,0),FALSE) -> 0 | E6: =VLOOKUP($A6,'[1]Data Proposed Rates'!$A:$AX,MATCH(E$5,[1]!ProposedHeader,0),FALSE) -> 0 | F6: =ROUND(SUM(B6,D6),2) -> 35.92 | G6: =ROUND(SUM(C6,E6),4) -> 0 | H6: =VLOOKUP($A6,'[1]Data Proposed Rates'!$A:$AX,MATCH(H$5,[1]!ProposedHeader,0),FALSE) -> 0.83 | I6: =VLOOKUP($A6,'[1]Data Proposed Rates'!$A:$AX,MATCH(I$5,[1]!ProposedHeader,0),FALSE) -> 0 | J6: =VLOOKUP($A6,'[1]Data Proposed Rates'!$A:$AX,MATCH(J$5,[1]!ProposedHeader,0),FALSE) -> -0.14 | K6: =VLOOKUP($A6,'[1]Data Proposed Rates'!$A:$AX,MATCH(K$5,[1]!ProposedHeader,0),FALSE) -> -0.0007 | L6: =VLOOKUP($A6,'[1]Data Proposed Rates'!$A:$AX,MATCH(L$5,[1]!ProposedHeader,0),FALSE) -> 0 | M6: =VLOOKUP($A6,'[1]Data Proposed Rates'!$A:$AX,MATCH(M$5,[1]!ProposedHeader,0),FALSE) ->  | N6: =VLOOKUP($A6,'[1]Data Proposed Rates'!$A:$AX,MATCH(N$5,[1]!ProposedHeader,0),FALSE) -> -0.0039 | O6: =VLOOKUP($A6,'[1]Data Proposed Rates'!$A:$AX,MATCH(O$5,[1]!ProposedHeader,0),FALSE) -> -0.5 | P6: =VLOOKUP($A6,'[1]Data Proposed Rates'!$A:$AX,MATCH(P$5,[1]!ProposedHeader,0),FALSE) -> 0 | Q6: =VLOOKUP($A6,'[1]Data Proposed Rates'!$A:$AX,MATCH(Q$5,[1]!ProposedHeader,0),FALSE) -> 0.0089 | R6: =VLOOKUP($A6,'[1]Data Proposed Rates'!$A:$AX,MATCH(R$5,[1]!ProposedHeader,0),FALSE) -> 0.0077
A7: R1 | B7: =VLOOKUP($A7,'[1]Data Proposed Rates'!$A:$AX,MATCH(B$5,[1]!ProposedHeader,0),FALSE) -> 49.04 | C7: =VLOOKUP($A7,'[1]Data Proposed Rates'!$A:$AX,MATCH(C$5,[1]!ProposedHeader,0),FALSE) -> 0.0141 | D7: =VLOOKUP($A7,'[1]Data Proposed Rates'!$A:$AX,MATCH(D$5,[1]!ProposedHeader,0),FALSE) -> 0 | E7: =VLOOKUP($A7,'[1]Data Proposed Rates'!$A:$AX,MATCH(E$5,[1]!ProposedHeader,0),FALSE) -> 0 | F7: =ROUND(SUM(B7,D7),2) -> 49.04 | G7: =ROUND(SUM(C7,E7),4) -> 0.0141 | H7: =VLOOKUP($A7,'[1]Data Proposed Rates'!$A:$AX,MATCH(H$5,[1]!ProposedHeader,0),FALSE) -> 1.56 | I7: =VLOOKUP($A7,'[1]Data Proposed Rates'!$A:$AX,MATCH(I$5,[1]!ProposedHeader,0),FALSE) -> 0 | J7: =VLOOKUP($A7,'[1]Data Proposed Rates'!$A:$AX,MATCH(J$5,[1]!ProposedHeader,0),FALSE) -> -0.14 | K7: =VLOOKUP($A7,'[1]Data Proposed Rates'!$A:$AX,MATCH(K$5,[1]!ProposedHeader,0),FALSE) -> -0.0008 | L7: =VLOOKUP($A7,'[1]Data Proposed Rates'!$A:$AX,MATCH(L$5,[1]!ProposedHeader,0),FALSE) -> 0 | M7: =VLOOKUP($A7,'[1]Data Proposed Rates'!$A:$AX,MATCH(M$5,[1]!ProposedHeader,0),FALSE) ->  | N7: =VLOOKUP($A7,'[1]Data Proposed Rates'!$A:$AX,MATCH(N$5,[1]!ProposedHeader,0),FALSE) -> -0.0039 | O7: =VLOOKUP($A7,'[1]Data Proposed Rates'!$A:$AX,MATCH(O$5,[1]!ProposedHeader,0),FALSE) -> -0.85 | P7: =VLOOKUP($A7,'[1]Data Proposed Rates'!$A:$AX,MATCH(P$5,[1]!ProposedHeader,0),FALSE) -> 0 | Q7: =VLOOKUP($A7,'[1]Data Proposed Rates'!$A:$AX,MATCH(Q$5,[1]!ProposedHeader,0),FALSE) -> 0.0082 | R7: =VLOOKUP($A7,'[1]Data Proposed Rates'!$A:$AX,MATCH(R$5,[1]!ProposedHeader,0),FALSE) -> 0.0073
A8: R2 | B8: =VLOOKUP($A8,'[1]Data Proposed Rates'!$A:$AX,MATCH(B$5,[1]!ProposedHeader,0),FALSE) -> 53.14 | C8: =VLOOKUP($A8,'[1]Data Proposed Rates'!$A:$AX,MATCH(C$5,[1]!ProposedHeader,0),FALSE) -> 0.0227 | D8: =VLOOKUP($A8,'[1]Data Proposed Rates'!$A:$AX,MATCH(D$5,[1]!ProposedHeader,0),FALSE) -> 0 | E8: =VLOOKUP($A8,'[1]Data Proposed Rates'!$A:$AX,MATCH(E$5,[1]!ProposedHeader,0),FALSE) -> 0 | F8: 53.14 | G8: 0.0227 | H8: =VLOOKUP($A8,'[1]Data Proposed Rates'!$A:$AX,MATCH(H$5,[1]!ProposedHeader,0),FALSE) -> 4.42 | I8: =VLOOKUP($A8,'[1]Data Proposed Rates'!$A:$AX,MATCH(I$5,[1]!ProposedHeader,0),FALSE) -> 0 | J8: =VLOOKUP($A8,'[1]Data Proposed Rates'!$A:$AX,MATCH(J$5,[1]!ProposedHeader,0),FALSE) -> -0.14 | K8: =VLOOKUP($A8,'[1]Data Proposed Rates'!$A:$AX,MATCH(K$5,[1]!ProposedHeader,0),FALSE) -> -0.0011 | L8: =VLOOKUP($A8,'[1]Data Proposed Rates'!$A:$AX,MATCH(L$5,[1]!ProposedHeader,0),FALSE) -> 0 | M8: =VLOOKUP($A8,'[1]Data Proposed Rates'!$A:$AX,MATCH(M$5,[1]!ProposedHeader,0),FALSE) ->  | N8: =VLOOKUP($A8,'[1]Data Proposed Rates'!$A:$AX,MATCH(N$5,[1]!ProposedHeader,0),FALSE) -> -0.0039 | O8: =VLOOKUP($A8,'[1]Data Proposed Rates'!$A:$AX,MATCH(O$5,[1]!ProposedHeader,0),FALSE) -> -1.92 | P8: =VLOOKUP($A8,'[1]Data Proposed Rates'!$A:$AX,MATCH(P$5,[1]!ProposedHeader,0),FALSE) -> 0 | Q8: =VLOOKUP($A8,'[1]Data Proposed Rates'!$A:$AX,MATCH(Q$5,[1]!ProposedHeader,0),FALSE) -> 0.0077 | R8: =VLOOKUP($A8,'[1]Data Proposed Rates'!$A:$AX,MATCH(R$5,[1]!ProposedHeader,0),FALSE) -> 0.0068
A9: Seasonal | B9: =VLOOKUP($A9,'[1]Data Proposed Rates'!$A:$AX,MATCH(B$5,[1]!ProposedHeader,0),FALSE) -> 50.72 | C9: =VLOOKUP($A9,'[1]Data Proposed Rates'!$A:$AX,MATCH(C$5,[1]!ProposedHeader,0),FALSE) -> 0.0441 | D9: =VLOOKUP($A9,'[1]Data Proposed Rates'!$A:$AX,MATCH(D$5,[1]!ProposedHeader,0),FALSE) -> 0 | E9: =VLOOKUP($A9,'[1]Data Proposed Rates'!$A:$AX,MATCH(E$5,[1]!ProposedHeader,0),FALSE) -> 0 | F9: 50.72 | G9: 0.0441 | H9: =VLOOKUP($A9,'[1]Data Proposed Rates'!$A:$AX,MATCH(H$5,[1]!ProposedHeader,0),FALSE) -> 1.79 | I9: =VLOOKUP($A9,'[1]Data Proposed Rates'!$A:$AX,MATCH(I$5,[1]!ProposedHeader,0),FALSE) -> 0 | J9: =VLOOKUP($A9,'[1]Data Proposed Rates'!$A:$AX,MATCH(J$5,[1]!ProposedHeader,0),FALSE) -> -0.14 | K9: =VLOOKUP($A9,'[1]Data Proposed Rates'!$A:$AX,MATCH(K$5,[1]!ProposedHeader,0),FALSE) -> -0.0023 | L9: =VLOOKUP($A9,'[1]Data Proposed Rates'!$A:$AX,MATCH(L$5,[1]!ProposedHeader,0),FALSE) -> 0 | M9: =VLOOKUP($A9,'[1]Data Proposed Rates'!$A:$AX,MATCH(M$5,[1]!ProposedHeader,0),FALSE) ->  | N9: =VLOOKUP($A9,'[1]Data Proposed Rates'!$A:$AX,MATCH(N$5,[1]!ProposedHeader,0),FALSE) -> -0.0039 | O9: =VLOOKUP($A9,'[1]Data Proposed Rates'!$A:$AX,MATCH(O$5,[1]!ProposedHeader,0),FALSE) -> -0.9 | P9: =VLOOKUP($A9,'[1]Data Proposed Rates'!$A:$AX,MATCH(P$5,[1]!ProposedHeader,0),FALSE) -> 0 | Q9: =VLOOKUP($A9,'[1]Data Proposed Rates'!$A:$AX,MATCH(Q$5,[1]!ProposedHeader,0),FALSE) -> 0.0064 | R9: =VLOOKUP($A9,'[1]Data Proposed Rates'!$A:$AX,MATCH(R$5,[1]!ProposedHeader,0),FALSE) -> 0.0061
A10: GSe | B10: =VLOOKUP($A10,'[1]Data Proposed Rates'!$A:$AX,MATCH(B$5,[1]!ProposedHeader,0),FALSE) -> 32.48 | C10: =VLOOKUP($A10,'[1]Data Proposed Rates'!$A:$AX,MATCH(C$5,[1]!ProposedHeader,0),FALSE) -> 0.0642 | D10: =VLOOKUP($A10,'[1]Data Proposed Rates'!$A:$AX,MATCH(D$5,[1]!ProposedHeader,0),FALSE) -> 0 | E10: =VLOOKUP($A10,'[1]Data Proposed Rates'!$A:$AX,MATCH(E$5,[1]!ProposedHeader,0),FALSE) -> 0 | F10: 32.48 | G10: 0.0642 | H10: =VLOOKUP($A10,'[1]Data Proposed Rates'!$A:$AX,MATCH(H$5,[1]!ProposedHeader,0),FALSE) -> 1.11 | I10: =VLOOKUP($A10,'[1]Data Proposed Rates'!$A:$AX,MATCH(I$5,[1]!ProposedHeader,0),FALSE) -> 0.0022 | J10: =VLOOKUP($A10,'[1]Data Proposed Rates'!$A:$AX,MATCH(J$5,[1]!ProposedHeader,0),FALSE) -> -0.14 | K10: =VLOOKUP($A10,'[1]Data Proposed Rates'!$A:$AX,MATCH(K$5,[1]!ProposedHeader,0),FALSE) -> -0.0007 | L10: =VLOOKUP($A10,'[1]Data Proposed Rates'!$A:$AX,MATCH(L$5,[1]!ProposedHeader,0),FALSE) -> 0 | M10: =VLOOKUP($A10,'[1]Data Proposed Rates'!$A:$AX,MATCH(M$5,[1]!ProposedHeader,0),FALSE) ->  | N10: =VLOOKUP($A10,'[1]Data Proposed Rates'!$A:$AX,MATCH(N$5,[1]!ProposedHeader,0),FALSE) -> -0.0039 | O10: =VLOOKUP($A10,'[1]Data Proposed Rates'!$A:$AX,MATCH(O$5,[1]!ProposedHeader,0),FALSE) -> -0.45 | P10: =VLOOKUP($A10,'[1]Data Proposed Rates'!$A:$AX,MATCH(P$5,[1]!ProposedHeader,0),FALSE) -> -0.0009 | Q10: =VLOOKUP($A10,'[1]Data Proposed Rates'!$A:$AX,MATCH(Q$5,[1]!ProposedHeader,0),FALSE) -> 0.0065 | R10: =VLOOKUP($A10,'[1]Data Proposed Rates'!$A:$AX,MATCH(R$5,[1]!ProposedHeader,0),FALSE) -> 0.0056
A11: UGe | B11: =VLOOKUP($A11,'[1]Data Proposed Rates'!$A:$AX,MATCH(B$5,[1]!ProposedHeader,0),FALSE) -> 25.59 | C11: =VLOOKUP($A11,'[1]Data Proposed Rates'!$A:$AX,MATCH(C$5,[1]!ProposedHeader,0),FALSE) -> 0.0306 | D11: =VLOOKUP($A11,'[1]Data Proposed Rates'!$A:$AX,MATCH(D$5,[1]!ProposedHeader,0),FALSE) -> 0 | E11: =VLOOKUP($A11,'[1]Data Proposed Rates'!$A:$AX,MATCH(E$5,[1]!ProposedHeader,0),FALSE) -> 0 | F11: 25.59 | G11: 0.0306 | H11: =VLOOKUP($A11,'[1]Data Proposed Rates'!$A:$AX,MATCH(H$5,[1]!ProposedHeader,0),FALSE) -> 0.81 | I11: =VLOOKUP($A11,'[1]Data Proposed Rates'!$A:$AX,MATCH(I$5,[1]!ProposedHeader,0),FALSE) -> 0.001 | J11: =VLOOKUP($A11,'[1]Data Proposed Rates'!$A:$AX,MATCH(J$5,[1]!ProposedHeader,0),FALSE) -> -0.14 | K11: =VLOOKUP($A11,'[1]Data Proposed Rates'!$A:$AX,MATCH(K$5,[1]!ProposedHeader,0),FALSE) -> -0.0003 | L11: =VLOOKUP($A11,'[1]Data Proposed Rates'!$A:$AX,MATCH(L$5,[1]!ProposedHeader,0),FALSE) -> 0 | M11: =VLOOKUP($A11,'[1]Data Proposed Rates'!$A:$AX,MATCH(M$5,[1]!ProposedHeader,0),FALSE) ->  | N11: =VLOOKUP($A11,'[1]Data Proposed Rates'!$A:$AX,MATCH(N$5,[1]!ProposedHeader,0),FALSE) -> -0.0039 | O11: =VLOOKUP($A11,'[1]Data Proposed Rates'!$A:$AX,MATCH(O$5,[1]!ProposedHeader,0),FALSE) -> -0.36 | P11: =VLOOKUP($A11,'[1]Data Proposed Rates'!$A:$AX,MATCH(P$5,[1]!ProposedHeader,0),FALSE) -> -0.0004 | Q11: =VLOOKUP($A11,'[1]Data Proposed Rates'!$A:$AX,MATCH(Q$5,[1]!ProposedHeader,0),FALSE) -> 0.007 | R11: =VLOOKUP($A11,'[1]Data Proposed Rates'!$A:$AX,MATCH(R$5,[1]!ProposedHeader,0),FALSE) -> 0.0057
A12: St Lgt | B12: =VLOOKUP($A12,'[1]Data Proposed Rates'!$A:$AX,MATCH(B$5,[1]!ProposedHeader,0),FALSE) -> 3.5 | C12: =VLOOKUP($A12,'[1]Data Proposed Rates'!$A:$AX,MATCH(C$5,[1]!ProposedHeader,0),FALSE) -> 0.1071 | D12: =VLOOKUP($A12,'[1]Data Proposed Rates'!$A:$AX,MATCH(D$5,[1]!ProposedHeader,0),FALSE) -> 0 | E12: =VLOOKUP($A12,'[1]Data Proposed Rates'!$A:$AX,MATCH(E$5,[1]!ProposedHeader,0),FALSE) -> 0 | F12: 3.5 | G12: 0.1071 | H12: =VLOOKUP($A12,'[1]Data Proposed Rates'!$A:$AX,MATCH(H$5,[1]!ProposedHeader,0),FALSE) -> 0.11 | I12: =VLOOKUP($A12,'[1]Data Proposed Rates'!$A:$AX,MATCH(I$5,[1]!ProposedHeader,0),FALSE) -> 0.0034 | J12: =VLOOKUP($A12,'[1]Data Proposed Rates'!$A:$AX,MATCH(J$5,[1]!ProposedHeader,0),FALSE) -> 0 | K12: =VLOOKUP($A12,'[1]Data Proposed Rates'!$A:$AX,MATCH(K$5,[1]!ProposedHeader,0),FALSE) -> -0.0009 | L12: =VLOOKUP($A12,'[1]Data Proposed Rates'!$A:$AX,MATCH(L$5,[1]!ProposedHeader,0),FALSE) -> 0 | M12: =VLOOKUP($A12,'[1]Data Proposed Rates'!$A:$AX,MATCH(M$5,[1]!ProposedHeader,0),FALSE) ->  | N12: =VLOOKUP($A12,'[1]Data Proposed Rates'!$A:$AX,MATCH(N$5,[1]!ProposedHeader,0),FALSE) -> -0.0039 | O12: =VLOOKUP($A12,'[1]Data Proposed Rates'!$A:$AX,MATCH(O$5,[1]!ProposedHeader,0),FALSE) -> -0.05 | P12: =VLOOKUP($A12,'[1]Data Proposed Rates'!$A:$AX,MATCH(P$5,[1]!ProposedHeader,0),FALSE) -> -0.0015 | Q12: =VLOOKUP($A12,'[1]Data Proposed Rates'!$A:$AX,MATCH(Q$5,[1]!ProposedHeader,0),FALSE) -> 0.0054 | R12: =VLOOKUP($A12,'[1]Data Proposed Rates'!$A:$AX,MATCH(R$5,[1]!ProposedHeader,0),FALSE) -> 0.0036
A13: Sen Lgt | B13: =VLOOKUP($A13,'[1]Data Proposed Rates'!$A:$AX,MATCH(B$5,[1]!ProposedHeader,0),FALSE) -> 2.86 | C13: =VLOOKUP($A13,'[1]Data Proposed Rates'!$A:$AX,MATCH(C$5,[1]!ProposedHeader,0),FALSE) -> 0.1556 | D13: =VLOOKUP($A13,'[1]Data Proposed Rates'!$A:$AX,MATCH(D$5,[1]!ProposedHeader,0),FALSE) -> 0 | E13: =VLOOKUP($A13,'[1]Data Proposed Rates'!$A:$AX,MATCH(E$5,[1]!ProposedHeader,0),FALSE) -> 0 | F13: 2.86 | G13: 0.1556 | H13: =VLOOKUP($A13,'[1]Data Proposed Rates'!$A:$AX,MATCH(H$5,[1]!ProposedHeader,0),FALSE) -> 0.14 | I13: =VLOOKUP($A13,'[1]Data Proposed Rates'!$A:$AX,MATCH(I$5,[1]!ProposedHeader,0),FALSE) -> 0.0078 | J13: =VLOOKUP($A13,'[1]Data Proposed Rates'!$A:$AX,MATCH(J$5,[1]!ProposedHeader,0),FALSE) -> 0 | K13: =VLOOKUP($A13,'[1]Data Proposed Rates'!$A:$AX,MATCH(K$5,[1]!ProposedHeader,0),FALSE) -> -0.0021 | L13: =VLOOKUP($A13,'[1]Data Proposed Rates'!$A:$AX,MATCH(L$5,[1]!ProposedHeader,0),FALSE) -> 0 | M13: =VLOOKUP($A13,'[1]Data Proposed Rates'!$A:$AX,MATCH(M$5,[1]!ProposedHeader,0),FALSE) ->  | N13: =VLOOKUP($A13,'[1]Data Proposed Rates'!$A:$AX,MATCH(N$5,[1]!ProposedHeader,0),FALSE) -> -0.0039 | O13: =VLOOKUP($A13,'[1]Data Proposed Rates'!$A:$AX,MATCH(O$5,[1]!ProposedHeader,0),FALSE) -> -0.04 | P13: =VLOOKUP($A13,'[1]Data Proposed Rates'!$A:$AX,MATCH(P$5,[1]!ProposedHeader,0),FALSE) -> -0.0022 | Q13: =VLOOKUP($A13,'[1]Data Proposed Rates'!$A:$AX,MATCH(Q$5,[1]!ProposedHeader,0),FALSE) -> 0.0054 | R13: =VLOOKUP($A13,'[1]Data Proposed Rates'!$A:$AX,MATCH(R$5,[1]!ProposedHeader,0),FALSE) -> 0.0037
A14: USL | B14: =VLOOKUP($A14,'[1]Data Proposed Rates'!$A:$AX,MATCH(B$5,[1]!ProposedHeader,0),FALSE) -> 37.58 | C14: =VLOOKUP($A14,'[1]Data Proposed Rates'!$A:$AX,MATCH(C$5,[1]!ProposedHeader,0),FALSE) -> 0.0251 | D14: =VLOOKUP($A14,'[1]Data Proposed Rates'!$A:$AX,MATCH(D$5,[1]!ProposedHeader,0),FALSE) -> 0 | E14: =VLOOKUP($A14,'[1]Data Proposed Rates'!$A:$AX,MATCH(E$5,[1]!ProposedHeader,0),FALSE) -> 0 | F14: 37.58 | G14: 0.0251 | H14: =VLOOKUP($A14,'[1]Data Proposed Rates'!$A:$AX,MATCH(H$5,[1]!ProposedHeader,0),FALSE) -> 0.89 | I14: =VLOOKUP($A14,'[1]Data Proposed Rates'!$A:$AX,MATCH(I$5,[1]!ProposedHeader,0),FALSE) -> 0.0006 | J14: =VLOOKUP($A14,'[1]Data Proposed Rates'!$A:$AX,MATCH(J$5,[1]!ProposedHeader,0),FALSE) -> 0 | K14: =VLOOKUP($A14,'[1]Data Proposed Rates'!$A:$AX,MATCH(K$5,[1]!ProposedHeader,0),FALSE) -> 0.0001 | L14: =VLOOKUP($A14,'[1]Data Proposed Rates'!$A:$AX,MATCH(L$5,[1]!ProposedHeader,0),FALSE) -> 0 | M14: =VLOOKUP($A14,'[1]Data Proposed Rates'!$A:$AX,MATCH(M$5,[1]!ProposedHeader,0),FALSE) ->  | N14: =VLOOKUP($A14,'[1]Data Proposed Rates'!$A:$AX,MATCH(N$5,[1]!ProposedHeader,0),FALSE) -> -0.0039 | O14: =VLOOKUP($A14,'[1]Data Proposed Rates'!$A:$AX,MATCH(O$5,[1]!ProposedHeader,0),FALSE) -> -0.53 | P14: =VLOOKUP($A14,'[1]Data Proposed Rates'!$A:$AX,MATCH(P$5,[1]!ProposedHeader,0),FALSE) -> -0.0004 | Q14: =VLOOKUP($A14,'[1]Data Proposed Rates'!$A:$AX,MATCH(Q$5,[1]!ProposedHeader,0),FALSE) -> 0.0054 | R14: =VLOOKUP($A14,'[1]Data Proposed Rates'!$A:$AX,MATCH(R$5,[1]!ProposedHeader,0),FALSE) -> 0.0046
A15: GSd | B15: =VLOOKUP($A15,'[1]Data Proposed Rates'!$A:$AX,MATCH(B$5,[1]!ProposedHeader,0),FALSE) -> 108.28 | C15: =VLOOKUP($A15,'[1]Data Proposed Rates'!$A:$AX,MATCH(C$5,[1]!ProposedHeader,0),FALSE) -> 18.3296 | D15: =VLOOKUP($A15,'[1]Data Proposed Rates'!$A:$AX,MATCH(D$5,[1]!ProposedHeader,0),FALSE) -> 0 | E15: =VLOOKUP($A15,'[1]Data Proposed Rates'!$A:$AX,MATCH(E$5,[1]!ProposedHeader,0),FALSE) -> 0 | F15: 108.28 | G15: 18.3296 | H15: =VLOOKUP($A15,'[1]Data Proposed Rates'!$A:$AX,MATCH(H$5,[1]!ProposedHeader,0),FALSE) -> 4.34 | I15: =VLOOKUP($A15,'[1]Data Proposed Rates'!$A:$AX,MATCH(I$5,[1]!ProposedHeader,0),FALSE) -> 0.7338 | J15: =VLOOKUP($A15,'[1]Data Proposed Rates'!$A:$AX,MATCH(J$5,[1]!ProposedHeader,0),FALSE) -> 0 | K15: =VLOOKUP($A15,'[1]Data Proposed Rates'!$A:$AX,MATCH(K$5,[1]!ProposedHeader,0),FALSE) -> 0.0117 | L15: =VLOOKUP($A15,'[1]Data Proposed Rates'!$A:$AX,MATCH(L$5,[1]!ProposedHeader,0),FALSE) -> 0 | M15: =VLOOKUP($A15,'[1]Data Proposed Rates'!$A:$AX,MATCH(M$5,[1]!ProposedHeader,0),FALSE) ->  | N15: =VLOOKUP($A15,'[1]Data Proposed Rates'!$A:$AX,MATCH(N$5,[1]!ProposedHeader,0),FALSE) -> -0.0039 | O15: =VLOOKUP($A15,'[1]Data Proposed Rates'!$A:$AX,MATCH(O$5,[1]!ProposedHeader,0),FALSE) -> -1.52 | P15: =VLOOKUP($A15,'[1]Data Proposed Rates'!$A:$AX,MATCH(P$5,[1]!ProposedHeader,0),FALSE) -> -0.2555 | Q15: =VLOOKUP($A15,'[1]Data Proposed Rates'!$A:$AX,MATCH(Q$5,[1]!ProposedHeader,0),FALSE) -> 2.0421 | R15: =VLOOKUP($A15,'[1]Data Proposed Rates'!$A:$AX,MATCH(R$5,[1]!ProposedHeader,0),FALSE) -> 1.7006
A16: UGd | B16: =VLOOKUP($A16,'[1]Data Proposed Rates'!$A:$AX,MATCH(B$5,[1]!ProposedHeader,0),FALSE) -> 100.19 | C16: =VLOOKUP($A16,'[1]Data Proposed Rates'!$A:$AX,MATCH(C$5,[1]!ProposedHeader,0),FALSE) -> 10.5601 | D16: =VLOOKUP($A16,'[1]Data Proposed Rates'!$A:$AX,MATCH(D$5,[1]!ProposedHeader,0),FALSE) -> 0 | E16: =VLOOKUP($A16,'[1]Data Proposed Rates'!$A:$AX,MATCH(E$5,[1]!ProposedHeader,0),FALSE) -> 0 | F16: 100.19 | G16: 10.5601 | H16: =VLOOKUP($A16,'[1]Data Proposed Rates'!$A:$AX,MATCH(H$5,[1]!ProposedHeader,0),FALSE) -> 3.92 | I16: =VLOOKUP($A16,'[1]Data Proposed Rates'!$A:$AX,MATCH(I$5,[1]!ProposedHeader,0),FALSE) -> 0.4134 | J16: =VLOOKUP($A16,'[1]Data Proposed Rates'!$A:$AX,MATCH(J$5,[1]!ProposedHeader,0),FALSE) -> 0 | K16: =VLOOKUP($A16,'[1]Data Proposed Rates'!$A:$AX,MATCH(K$5,[1]!ProposedHeader,0),FALSE) -> 0.1062 | L16: =VLOOKUP($A16,'[1]Data Proposed Rates'!$A:$AX,MATCH(L$5,[1]!ProposedHeader,0),FALSE) -> 0 | M16: =VLOOKUP($A16,'[1]Data Proposed Rates'!$A:$AX,MATCH(M$5,[1]!ProposedHeader,0),FALSE) ->  | N16: =VLOOKUP($A16,'[1]Data Proposed Rates'!$A:$AX,MATCH(N$5,[1]!ProposedHeader,0),FALSE) -> -0.0039 | O16: =VLOOKUP($A16,'[1]Data Proposed Rates'!$A:$AX,MATCH(O$5,[1]!ProposedHeader,0),FALSE) -> -1.4 | P16: =VLOOKUP($A16,'[1]Data Proposed Rates'!$A:$AX,MATCH(P$5,[1]!ProposedHeader,0),FALSE) -> -0.0004 | Q16: =VLOOKUP($A16,'[1]Data Proposed Rates'!$A:$AX,MATCH(Q$5,[1]!ProposedHeader,0),FALSE) -> 2.6172 | R16: =VLOOKUP($A16,'[1]Data Proposed Rates'!$A:$AX,MATCH(R$5,[1]!ProposedHeader,0),FALSE) -> 2.1608
A17: Dgen | B17: =VLOOKUP($A17,'[1]Data Proposed Rates'!$A:$AX,MATCH(B$5,[1]!ProposedHeader,0),FALSE) -> 195.54 | C17: =VLOOKUP($A17,'[1]Data Proposed Rates'!$A:$AX,MATCH(C$5,[1]!ProposedHeader,0),FALSE) -> 9.8163 | D17: =VLOOKUP($A17,'[1]Data Proposed Rates'!$A:$AX,MATCH(D$5,[1]!ProposedHeader,0),FALSE) -> 0 | E17: =VLOOKUP($A17,'[1]Data Proposed Rates'!$A:$AX,MATCH(E$5,[1]!ProposedHeader,0),FALSE) -> 0 | F17: 195.54 | G17: 9.8163 | H17: =VLOOKUP($A17,'[1]Data Proposed Rates'!$A:$AX,MATCH(H$5,[1]!ProposedHeader,0),FALSE) -> 1.74 | I17: =VLOOKUP($A17,'[1]Data Proposed Rates'!$A:$AX,MATCH(I$5,[1]!ProposedHeader,0),FALSE) -> 0.0883 | J17: =VLOOKUP($A17,'[1]Data Proposed Rates'!$A:$AX,MATCH(J$5,[1]!ProposedHeader,0),FALSE) -> 0 | K17: =VLOOKUP($A17,'[1]Data Proposed Rates'!$A:$AX,MATCH(K$5,[1]!ProposedHeader,0),FALSE) -> -0.1359 | L17: =VLOOKUP($A17,'[1]Data Proposed Rates'!$A:$AX,MATCH(L$5,[1]!ProposedHeader,0),FALSE) -> 0 | M17: =VLOOKUP($A17,'[1]Data Proposed Rates'!$A:$AX,MATCH(M$5,[1]!ProposedHeader,0),FALSE) ->  | N17: =VLOOKUP($A17,'[1]Data Proposed Rates'!$A:$AX,MATCH(N$5,[1]!ProposedHeader,0),FALSE) -> -0.0039 | O17: =VLOOKUP($A17,'[1]Data Proposed Rates'!$A:$AX,MATCH(O$5,[1]!ProposedHeader,0),FALSE) -> -2.74 | P17: =VLOOKUP($A17,'[1]Data Proposed Rates'!$A:$AX,MATCH(P$5,[1]!ProposedHeader,0),FALSE) -> -0.1365 | Q17: =VLOOKUP($A17,'[1]Data Proposed Rates'!$A:$AX,MATCH(Q$5,[1]!ProposedHeader,0),FALSE) -> 0.9927 | R17: =VLOOKUP($A17,'[1]Data Proposed Rates'!$A:$AX,MATCH(R$5,[1]!ProposedHeader,0),FALSE) -> 0.8284
A18: ST | B18: =VLOOKUP($A18,'[1]Data Proposed Rates'!$A:$AX,MATCH(B$5,[1]!ProposedHeader,0),FALSE) -> 1312.3 | C18: =VLOOKUP($A18,'[1]Data Proposed Rates'!$A:$AX,MATCH(C$5,[1]!ProposedHeader,0),FALSE) -> 1.5335 | D18: =VLOOKUP($A18,'[1]Data Proposed Rates'!$A:$AX,MATCH(D$5,[1]!ProposedHeader,0),FALSE) -> 0 | E18: =VLOOKUP($A18,'[1]Data Proposed Rates'!$A:$AX,MATCH(E$5,[1]!ProposedHeader,0),FALSE) -> 0 | F18: 1312.3 | G18: 1.5335 | H18: =VLOOKUP($A18,'[1]Data Proposed Rates'!$A:$AX,MATCH(H$5,[1]!ProposedHeader,0),FALSE) -> 36.18 | I18: =VLOOKUP($A18,'[1]Data Proposed Rates'!$A:$AX,MATCH(I$5,[1]!ProposedHeader,0),FALSE) -> 0.054 | J18: =VLOOKUP($A18,'[1]Data Proposed Rates'!$A:$AX,MATCH(J$5,[1]!ProposedHeader,0),FALSE) -> 0 | K18: =VLOOKUP($A18,'[1]Data Proposed Rates'!$A:$AX,MATCH(K$5,[1]!ProposedHeader,0),FALSE) -> 0.9444 | L18: =VLOOKUP($A18,'[1]Data Proposed Rates'!$A:$AX,MATCH(L$5,[1]!ProposedHeader,0),FALSE) -> 0 | M18: =VLOOKUP($A18,'[1]Data Proposed Rates'!$A:$AX,MATCH(M$5,[1]!ProposedHeader,0),FALSE) ->  | N18: =VLOOKUP($A18,'[1]Data Proposed Rates'!$A:$AX,MATCH(N$5,[1]!ProposedHeader,0),FALSE) -> 0 | O18: =VLOOKUP($A18,'[1]Data Proposed Rates'!$A:$AX,MATCH(O$5,[1]!ProposedHeader,0),FALSE) -> -15.7 | P18: =VLOOKUP($A18,'[1]Data Proposed Rates'!$A:$AX,MATCH(P$5,[1]!ProposedHeader,0),FALSE) -> -0.0219 | Q18: =VLOOKUP($A18,'[1]Data Proposed Rates'!$A:$AX,MATCH(Q$5,[1]!ProposedHeader,0),FALSE) -> 3.596 | R18: =VLOOKUP($A18,'[1]Data Proposed Rates'!$A:$AX,MATCH(R$5,[1]!ProposedHeader,0),FALSE) -> 2.9558
A19: ST (NonWMP, NonRPP, NonLDC, ClassB) | B19: =VLOOKUP($A19,'[1]Data Proposed Rates'!$A:$AX,MATCH(B$5,[1]!ProposedHeader,0),FALSE) -> 1312.3 | C19: =VLOOKUP($A19,'[1]Data Proposed Rates'!$A:$AX,MATCH(C$5,[1]!ProposedHeader,0),FALSE) -> 1.5335 | D19: =VLOOKUP($A19,'[1]Data Proposed Rates'!$A:$AX,MATCH(D$5,[1]!ProposedHeader,0),FALSE) -> 0 | E19: =VLOOKUP($A19,'[1]Data Proposed Rates'!$A:$AX,MATCH(E$5,[1]!ProposedHeader,0),FALSE) -> 0 | F19: 1312.3 | G19: 1.5335 | H19: =VLOOKUP($A19,'[1]Data Proposed Rates'!$A:$AX,MATCH(H$5,[1]!ProposedHeader,0),FALSE) -> 36.18 | I19: =VLOOKUP($A19,'[1]Data Proposed Rates'!$A:$AX,MATCH(I$5,[1]!ProposedHeader,0),FALSE) -> 0.054 | J19: =VLOOKUP($A19,'[1]Data Proposed Rates'!$A:$AX,MATCH(J$5,[1]!ProposedHeader,0),FALSE) -> 0 | K19: =VLOOKUP($A19,'[1]Data Proposed Rates'!$A:$AX,MATCH(K$5,[1]!ProposedHeader,0),FALSE) -> 0.9444 | L19: =VLOOKUP($A19,'[1]Data Proposed Rates'!$A:$AX,MATCH(L$5,[1]!ProposedHeader,0),FALSE) -> -1.1389 | M19: =VLOOKUP($A19,'[1]Data Proposed Rates'!$A:$AX,MATCH(M$5,[1]!ProposedHeader,0),FALSE) ->  | N19: =VLOOKUP($A19,'[1]Data Proposed Rates'!$A:$AX,MATCH(N$5,[1]!ProposedHeader,0),FALSE) -> -0.0039 | O19: =VLOOKUP($A19,'[1]Data Proposed Rates'!$A:$AX,MATCH(O$5,[1]!ProposedHeader,0),FALSE) -> -15.7 | P19: =VLOOKUP($A19,'[1]Data Proposed Rates'!$A:$AX,MATCH(P$5,[1]!ProposedHeader,0),FALSE) -> -0.0219 | Q19: =VLOOKUP($A19,'[1]Data Proposed Rates'!$A:$AX,MATCH(Q$5,[1]!ProposedHeader,0),FALSE) -> 3.596 | R19: =VLOOKUP($A19,'[1]Data Proposed Rates'!$A:$AX,MATCH(R$5,[1]!ProposedHeader,0),FALSE) -> 2.9558
A20: ST (NonWMP, NonRPP, NonLDC, ClassB) Exclude GA Rider | B20: =VLOOKUP($A20,'[1]Data Proposed Rates'!$A:$AX,MATCH(B$5,[1]!ProposedHeader,0),FALSE) -> 1312.3 | C20: =VLOOKUP($A20,'[1]Data Proposed Rates'!$A:$AX,MATCH(C$5,[1]!ProposedHeader,0),FALSE) -> 1.5335 | D20: =VLOOKUP($A20,'[1]Data Proposed Rates'!$A:$AX,MATCH(D$5,[1]!ProposedHeader,0),FALSE) -> 0 | E20: =VLOOKUP($A20,'[1]Data Proposed Rates'!$A:$AX,MATCH(E$5,[1]!ProposedHeader,0),FALSE) -> 0 | F20: 1312.3 | G20: 1.5335 | H20: =VLOOKUP($A20,'[1]Data Proposed Rates'!$A:$AX,MATCH(H$5,[1]!ProposedHeader,0),FALSE) -> 36.18 | I20: =VLOOKUP($A20,'[1]Data Proposed Rates'!$A:$AX,MATCH(I$5,[1]!ProposedHeader,0),FALSE) -> 0.054 | J20: =VLOOKUP($A20,'[1]Data Proposed Rates'!$A:$AX,MATCH(J$5,[1]!ProposedHeader,0),FALSE) -> 0 | K20: =VLOOKUP($A20,'[1]Data Proposed Rates'!$A:$AX,MATCH(K$5,[1]!ProposedHeader,0),FALSE) -> 0.9444 | L20: =VLOOKUP($A20,'[1]Data Proposed Rates'!$A:$AX,MATCH(L$5,[1]!ProposedHeader,0),FALSE) -> -1.1389 | M20: =VLOOKUP($A20,'[1]Data Proposed Rates'!$A:$AX,MATCH(M$5,[1]!ProposedHeader,0),FALSE) ->  | N20: =VLOOKUP($A20,'[1]Data Proposed Rates'!$A:$AX,MATCH(N$5,[1]!ProposedHeader,0),FALSE) -> 0 | O20: =VLOOKUP($A20,'[1]Data Proposed Rates'!$A:$AX,MATCH(O$5,[1]!ProposedHeader,0),FALSE) -> -15.7 | P20: =VLOOKUP($A20,'[1]Data Proposed Rates'!$A:$AX,MATCH(P$5,[1]!ProposedHeader,0),FALSE) -> -0.0219 | Q20: =VLOOKUP($A20,'[1]Data Proposed Rates'!$A:$AX,MATCH(Q$5,[1]!ProposedHeader,0),FALSE) -> 3.596 | R20: =VLOOKUP($A20,'[1]Data Proposed Rates'!$A:$AX,MATCH(R$5,[1]!ProposedHeader,0),FALSE) -> 2.9558

Sheet Data Proposed Rates (hidden)
A1: 2022 Rates (Rounded)
A3: 1 | B3: 2 | C3: 3 | D3: 4 | E3: 5 | J3: 6 | K3: 7 | L3: 8 | M3: 9 | N3: 10 | Q3: 11 | R3: 12
A4: Rate Class | B4: Fixed Base Charge ($/month) | C4: Proposed Variable Charge ($/kWh or $/kW) | D4: Proposed Foregone Revenue Charge Fixed ($/month) | E4: Proposed Volumetric Foregone Revenue Charge | F4: Fixed Charge + Fixed Foregone | G4: Volumetric Charge + Volumetric Foregone | H4: Fixed DTA ($/month) | I4: Vol DTA ($/kWh or $/kW) | J4: Proposed Def/VA rate rider Fixed ($/month) | K4: Proposed Def/VA rate rider Volumetric($/kWh or $/kW) | L4: Vol VA Rider ($/kWh or $/kW) Non WMP | M4: Proposed Rate Rider for CBR (Non-WMP Class B) ($/kWh or $/kW) | N4: Proposed Rate Rider for Disposition of Global Adjustment (Non WMP, Non-RPP, Non-LDC, and Class B) ($/kWh) | Q4: Proposed RTSR-NW ($/kWh or $/kW) | R4: Proposed RTSR-CONN ($/kWh or $/kW)
A5: Rate as shown on Bill Impact Sheet | B5: Service Charge | C5: Distribution Volumetric Charge | D5: Fixed Foregone Revenue Charge | E5: Volumetric Foregone Revenue Charge | F5: Fixed Service Charge | G5: Dx Volumetric Charge | H5: Base Rate Adjustment to Recover Past Tax Amounts FIXED | I5: Base Rate Adjustment to Recover Past Tax Amounts VOL | J5: Fixed Deferral/Variance Account Rider (General) | K5: Volumetric Deferral/Variance Account Rider (General) | L5: Volumetric Deferral/Variance Account Rider (Sub-Account RSVA Wholesale Market Service Charge & RSVA Power) - ST only | M5: Volumetric Deferral/Variance Account Rider (Sub Account CBR-B) | N5: Volumetric Deferral/Variance Account Rider (Sub-Account Global Adjustment) | O5: Fixed ESM Rider | P5: Volumetric ESM Rider | Q5: Retail Transmission Rate – Network Service Rate | R5: Retail Transmission Rate – Line and Transformation Connection Service Rate
A6: Rounding Factor | B6: 2 | C6: 4 | D6: 2 | E6: 4 | H6: 2 | I6: 4 | J6: 2 | K6: 4 | L6: 4 | M6: 4 | N6: 4 | O6: 2 | P6: 4 | Q6: 4 | R6: 4
A7: UR | B7: =ROUND(VLOOKUP($A7,'[2]Proposed Rates'!$A:$AI,MATCH(B$5,'[2]Proposed Rates'!$4:$4,0),FALSE),B$6) -> 38.03 | C7: =ROUND(VLOOKUP($A7,'[2]Proposed Rates'!$A:$AI,MATCH(C$5,'[2]Proposed Rates'!$4:$4,0),FALSE),C$6) -> 0 | D7: =ROUND(VLOOKUP($A7,'[2]Proposed Rates'!$A:$AI,MATCH(D$5,'[2]Proposed Rates'!$4:$4,0),FALSE),D$6) -> 0 | E7: =ROUND(VLOOKUP($A7,'[2]Proposed Rates'!$A:$AI,MATCH(E$5,'[2]Proposed Rates'!$4:$4,0),FALSE),E$6) -> 0 | F7: =ROUND(SUM(B7,D7),2) -> 38.03 | G7: =ROUND(SUM(C7,E7),4) -> 0 | H7: =ROUND(VLOOKUP($A7,'[2]Proposed Rates'!$A:$AI,MATCH(H$4,'[2]Proposed Rates'!$1:$1,0),FALSE),H$6) -> 0.83 | I7: =ROUND(VLOOKUP($A7,'[2]Proposed Rates'!$A:$AI,MATCH(I$4,'[2]Proposed Rates'!$1:$1,0),FALSE),I$6) -> 0 | J7: =ROUND(VLOOKUP($A7,'[2]Proposed Rates'!$A:$AI,MATCH(J$5,'[2]Proposed Rates'!$4:$4,0),FALSE),J$6) -> 0 | K7: =ROUND(VLOOKUP($A7,'[2]Proposed Rates'!$A:$AI,MATCH(K$5,'[2]Proposed Rates'!$4:$4,0),FALSE),K$6) -> 0 | M7: =ROUND(VLOOKUP($A7,'[2]Proposed Rates'!$A:$AI,MATCH(M$5,'[2]Proposed Rates'!$4:$4,0),FALSE),5) -> 0 | N7: =ROUND(VLOOKUP($A7,'[2]Proposed Rates'!$A:$AI,MATCH(N$5,'[2]Proposed Rates'!$4:$4,0),FALSE),N$6) -> 0 | O7: =ROUND(VLOOKUP($A7,'[2]Proposed Rates'!$A:$AI,MATCH(O$5,'[2]Proposed Rates'!$4:$4,0),FALSE),O$6) -> 0 | P7: =ROUND(VLOOKUP($A7,'[2]Proposed Rates'!$A:$AI,MATCH(P$5,'[2]Proposed Rates'!$4:$4,0),FALSE),P$6) -> 0 | Q7: =ROUND(VLOOKUP($A7,'[2]Proposed Rates'!$A:$AI,MATCH(Q$5,'[2]Proposed Rates'!$4:$4,0),FALSE),Q$6) -> 0.0112 | R7: =ROUND(VLOOKUP($A7,'[2]Proposed Rates'!$A:$AI,MATCH(R$5,'[2]Proposed Rates'!$4:$4,0),FALSE),R$6) -> 0.0081
A8: R1 | B8: =ROUND(VLOOKUP($A8,'[2]Proposed Rates'!$A:$AI,MATCH(B$5,'[2]Proposed Rates'!$4:$4,0),FALSE),B$6) -> 56.06 | C8: =ROUND(VLOOKUP($A8,'[2]Proposed Rates'!$A:$AI,MATCH(C$5,'[2]Proposed Rates'!$4:$4,0),FALSE),C$6) -> 0.01 | D8: =ROUND(VLOOKUP($A8,'[2]Proposed Rates'!$A:$AI,MATCH(D$5,'[2]Proposed Rates'!$4:$4,0),FALSE),D$6) -> 0 | E8: =ROUND(VLOOKUP($A8,'[2]Proposed Rates'!$A:$AI,MATCH(E$5,'[2]Proposed Rates'!$4:$4,0),FALSE),E$6) -> 0 | F8: =ROUND(SUM(B8,D8),2) -> 56.06 | G8: =ROUND(SUM(C8,E8),4) -> 0.01 | H8: =ROUND(VLOOKUP($A8,'[2]Proposed Rates'!$A:$AI,MATCH(H$4,'[2]Proposed Rates'!$1:$1,0),FALSE),H$6) -> 1.56 | I8: =ROUND(VLOOKUP($A8,'[2]Proposed Rates'!$A:$AI,MATCH(I$4,'[2]Proposed Rates'!$1:$1,0),FALSE),I$6) -> 0 | J8: =ROUND(VLOOKUP($A8,'[2]Proposed Rates'!$A:$AI,MATCH(J$5,'[2]Proposed Rates'!$4:$4,0),FALSE),J$6) -> 0 | K8: =ROUND(VLOOKUP($A8,'[2]Proposed Rates'!$A:$AI,MATCH(K$5,'[2]Proposed Rates'!$4:$4,0),FALSE),K$6) -> 0 | M8: =ROUND(VLOOKUP($A8,'[2]Proposed Rates'!$A:$AI,MATCH(M$5,'[2]Proposed Rates'!$4:$4,0),FALSE),5) -> 0 | N8: =ROUND(VLOOKUP($A8,'[2]Proposed Rates'!$A:$AI,MATCH(N$5,'[2]Proposed Rates'!$4:$4,0),FALSE),N$6) -> 0 | O8: =ROUND(VLOOKUP($A8,'[2]Proposed Rates'!$A:$AI,MATCH(O$5,'[2]Proposed Rates'!$4:$4,0),FALSE),O$6) -> 0 | P8: =ROUND(VLOOKUP($A8,'[2]Proposed Rates'!$A:$AI,MATCH(P$5,'[2]Proposed Rates'!$4:$4,0),FALSE),P$6) -> 0 | Q8: =ROUND(VLOOKUP($A8,'[2]Proposed Rates'!$A:$AI,MATCH(Q$5,'[2]Proposed Rates'!$4:$4,0),FALSE),Q$6) -> 0.0103 | R8: =ROUND(VLOOKUP($A8,'[2]Proposed Rates'!$A:$AI,MATCH(R$5,'[2]Proposed Rates'!$4:$4,0),FALSE),R$6) -> 0.0076
A9: R2 | B9: =ROUND(VLOOKUP($A9,'[2]Proposed Rates'!$A:$AI,MATCH(B$5,'[2]Proposed Rates'!$4:$4,0),FALSE),B$6)-'Data Pass Through'!C4 -> 68.03 | C9: =ROUND(VLOOKUP($A9,'[2]Proposed Rates'!$A:$AI,MATCH(C$5,'[2]Proposed Rates'!$4:$4,0),FALSE),C$6) -> 0.016 | D9: =ROUND(VLOOKUP($A9,'[2]Proposed Rates'!$A:$AI,MATCH(D$5,'[2]Proposed Rates'!$4:$4,0),FALSE),D$6) -> 0 | E9: =ROUND(VLOOKUP($A9,'[2]Proposed Rates'!$A:$AI,MATCH(E$5,'[2]Proposed Rates'!$4:$4,0),FALSE),E$6) -> 0 | F9: 68.03 | G9: 0.016 | H9: =ROUND(VLOOKUP($A9,'[2]Proposed Rates'!$A:$AI,MATCH(H$4,'[2]Proposed Rates'!$1:$1,0),FALSE),H$6) -> 4.42 | I9: =ROUND(VLOOKUP($A9,'[2]Proposed Rates'!$A:$AI,MATCH(I$4,'[2]Proposed Rates'!$1:$1,0),FALSE),I$6) -> 0 | J9: =ROUND(VLOOKUP($A9,'[2]Proposed Rates'!$A:$AI,MATCH(J$5,'[2]Proposed Rates'!$4:$4,0),FALSE),J$6) -> 0 | K9: =ROUND(VLOOKUP($A9,'[2]Proposed Rates'!$A:$AI,MATCH(K$5,'[2]Proposed Rates'!$4:$4,0),FALSE),K$6) -> 0 | M9: =ROUND(VLOOKUP($A9,'[2]Proposed Rates'!$A:$AI,MATCH(M$5,'[2]Proposed Rates'!$4:$4,0),FALSE),5) -> 0 | N9: =ROUND(VLOOKUP($A9,'[2]Proposed Rates'!$A:$AI,MATCH(N$5,'[2]Proposed Rates'!$4:$4,0),FALSE),N$6) -> 0 | O9: =ROUND(VLOOKUP($A9,'[2]Proposed Rates'!$A:$AI,MATCH(O$5,'[2]Proposed Rates'!$4:$4,0),FALSE),O$6) -> 0 | P9: =ROUND(VLOOKUP($A9,'[2]Proposed Rates'!$A:$AI,MATCH(P$5,'[2]Proposed Rates'!$4:$4,0),FALSE),P$6) -> 0 | Q9: =ROUND(VLOOKUP($A9,'[2]Proposed Rates'!$A:$AI,MATCH(Q$5,'[2]Proposed Rates'!$4:$4,0),FALSE),Q$6) -> 0.0096 | R9: =ROUND(VLOOKUP($A9,'[2]Proposed Rates'!$A:$AI,MATCH(R$5,'[2]Proposed Rates'!$4:$4,0),FALSE),R$6) -> 0.0072
A10: Seasonal | B10: =ROUND(VLOOKUP($A10,'[2]Proposed Rates'!$A:$AI,MATCH(B$5,'[2]Proposed Rates'!$4:$4,0),FALSE),B$6) -> 58.43 | C10: =ROUND(VLOOKUP($A10,'[2]Proposed Rates'!$A:$AI,MATCH(C$5,'[2]Proposed Rates'!$4:$4,0),FALSE),C$6) -> 0.0311 | D10: =ROUND(VLOOKUP($A10,'[2]Proposed Rates'!$A:$AI,MATCH(D$5,'[2]Proposed Rates'!$4:$4,0),FALSE),D$6) -> 0 | E10: =ROUND(VLOOKUP($A10,'[2]Proposed Rates'!$A:$AI,MATCH(E$5,'[2]Proposed Rates'!$4:$4,0),FALSE),E$6) -> 0 | F10: 58.43 | G10: 0.0311 | H10: =ROUND(VLOOKUP($A10,'[2]Proposed Rates'!$A:$AI,MATCH(H$4,'[2]Proposed Rates'!$1:$1,0),FALSE),H$6) -> 1.79 | I10: =ROUND(VLOOKUP($A10,'[2]Proposed Rates'!$A:$AI,MATCH(I$4,'[2]Proposed Rates'!$1:$1,0),FALSE),I$6) -> 0 | J10: =ROUND(VLOOKUP($A10,'[2]Proposed Rates'!$A:$AI,MATCH(J$5,'[2]Proposed Rates'!$4:$4,0),FALSE),J$6) -> 0 | K10: =ROUND(VLOOKUP($A10,'[2]Proposed Rates'!$A:$AI,MATCH(K$5,'[2]Proposed Rates'!$4:$4,0),FALSE),K$6) -> 0 | M10: =ROUND(VLOOKUP($A10,'[2]Proposed Rates'!$A:$AI,MATCH(M$5,'[2]Proposed Rates'!$4:$4,0),FALSE),5) -> 0 | N10: =ROUND(VLOOKUP($A10,'[2]Proposed Rates'!$A:$AI,MATCH(N$5,'[2]Proposed Rates'!$4:$4,0),FALSE),N$6) -> 0 | O10: =ROUND(VLOOKUP($A10,'[2]Proposed Rates'!$A:$AI,MATCH(O$5,'[2]Proposed Rates'!$4:$4,0),FALSE),O$6) -> 0 | P10: =ROUND(VLOOKUP($A10,'[2]Proposed Rates'!$A:$AI,MATCH(P$5,'[2]Proposed Rates'!$4:$4,0),FALSE),P$6) -> 0 | Q10: =ROUND(VLOOKUP($A10,'[2]Proposed Rates'!$A:$AI,MATCH(Q$5,'[2]Proposed Rates'!$4:$4,0),FALSE),Q$6) -> 0.0081 | R10: =ROUND(VLOOKUP($A10,'[2]Proposed Rates'!$A:$AI,MATCH(R$5,'[2]Proposed Rates'!$4:$4,0),FALSE),R$6) -> 0.0064
A11: GSe | B11: =ROUND(VLOOKUP($A11,'[2]Proposed Rates'!$A:$AI,MATCH(B$5,'[2]Proposed Rates'!$4:$4,0),FALSE),B$6) -> 34.13 | C11: =ROUND(VLOOKUP($A11,'[2]Proposed Rates'!$A:$AI,MATCH(C$5,'[2]Proposed Rates'!$4:$4,0),FALSE),C$6) -> 0.068 | D11: =ROUND(VLOOKUP($A11,'[2]Proposed Rates'!$A:$AI,MATCH(D$5,'[2]Proposed Rates'!$4:$4,0),FALSE),D$6) -> 0 | E11: =ROUND(VLOOKUP($A11,'[2]Proposed Rates'!$A:$AI,MATCH(E$5,'[2]Proposed Rates'!$4:$4,0),FALSE),E$6) -> 0 | F11: 34.13 | G11: 0.068 | H11: =ROUND(VLOOKUP($A11,'[2]Proposed Rates'!$A:$AI,MATCH(H$4,'[2]Proposed Rates'!$1:$1,0),FALSE),H$6) -> 1.11 | I11: =ROUND(VLOOKUP($A11,'[2]Proposed Rates'!$A:$AI,MATCH(I$4,'[2]Proposed Rates'!$1:$1,0),FALSE),I$6) -> 0.0022 | J11: =ROUND(VLOOKUP($A11,'[2]Proposed Rates'!$A:$AI,MATCH(J$5,'[2]Proposed Rates'!$4:$4,0),FALSE),J$6) -> 0 | K11: =ROUND(VLOOKUP($A11,'[2]Proposed Rates'!$A:$AI,MATCH(K$5,'[2]Proposed Rates'!$4:$4,0),FALSE),K$6) -> 0 | M11: =ROUND(VLOOKUP($A11,'[2]Proposed Rates'!$A:$AI,MATCH(M$5,'[2]Proposed Rates'!$4:$4,0),FALSE),5) -> 0 | N11: =ROUND(VLOOKUP($A11,'[2]Proposed Rates'!$A:$AI,MATCH(N$5,'[2]Proposed Rates'!$4:$4,0),FALSE),N$6) -> 0 | O11: =ROUND(VLOOKUP($A11,'[2]Proposed Rates'!$A:$AI,MATCH(O$5,'[2]Proposed Rates'!$4:$4,0),FALSE),O$6) -> 0 | P11: =ROUND(VLOOKUP($A11,'[2]Proposed Rates'!$A:$AI,MATCH(P$5,'[2]Proposed Rates'!$4:$4,0),FALSE),P$6) -> 0 | Q11: =ROUND(VLOOKUP($A11,'[2]Proposed Rates'!$A:$AI,MATCH(Q$5,'[2]Proposed Rates'!$4:$4,0),FALSE),Q$6) -> 0.0081 | R11: =ROUND(VLOOKUP($A11,'[2]Proposed Rates'!$A:$AI,MATCH(R$5,'[2]Proposed Rates'!$4:$4,0),FALSE),R$6) -> 0.0059
A12: UGe | B12: =ROUND(VLOOKUP($A12,'[2]Proposed Rates'!$A:$AI,MATCH(B$5,'[2]Proposed Rates'!$4:$4,0),FALSE),B$6) -> 26.95 | C12: =ROUND(VLOOKUP($A12,'[2]Proposed Rates'!$A:$AI,MATCH(C$5,'[2]Proposed Rates'!$4:$4,0),FALSE),C$6) -> 0.0324 | D12: =ROUND(VLOOKUP($A12,'[2]Proposed Rates'!$A:$AI,MATCH(D$5,'[2]Proposed Rates'!$4:$4,0),FALSE),D$6) -> 0 | E12: =ROUND(VLOOKUP($A12,'[2]Proposed Rates'!$A:$AI,MATCH(E$5,'[2]Proposed Rates'!$4:$4,0),FALSE),E$6) -> 0 | F12: 26.95 | G12: 0.0324 | H12: =ROUND(VLOOKUP($A12,'[2]Proposed Rates'!$A:$AI,MATCH(H$4,'[2]Proposed Rates'!$1:$1,0),FALSE),H$6) -> 0.81 | I12: =ROUND(VLOOKUP($A12,'[2]Proposed Rates'!$A:$AI,MATCH(I$4,'[2]Proposed Rates'!$1:$1,0),FALSE),I$6) -> 0.001 | J12: =ROUND(VLOOKUP($A12,'[2]Proposed Rates'!$A:$AI,MATCH(J$5,'[2]Proposed Rates'!$4:$4,0),FALSE),J$6) -> 0 | K12: =ROUND(VLOOKUP($A12,'[2]Proposed Rates'!$A:$AI,MATCH(K$5,'[2]Proposed Rates'!$4:$4,0),FALSE),K$6) -> 0 | M12: =ROUND(VLOOKUP($A12,'[2]Proposed Rates'!$A:$AI,MATCH(M$5,'[2]Proposed Rates'!$4:$4,0),FALSE),5) -> 0 | N12: =ROUND(VLOOKUP($A12,'[2]Proposed Rates'!$A:$AI,MATCH(N$5,'[2]Proposed Rates'!$4:$4,0),FALSE),N$6) -> 0 | O12: =ROUND(VLOOKUP($A12,'[2]Proposed Rates'!$A:$AI,MATCH(O$5,'[2]Proposed Rates'!$4:$4,0),FALSE),O$6) -> 0 | P12: =ROUND(VLOOKUP($A12,'[2]Proposed Rates'!$A:$AI,MATCH(P$5,'[2]Proposed Rates'!$4:$4,0),FALSE),P$6) -> 0 | Q12: =ROUND(VLOOKUP($A12,'[2]Proposed Rates'!$A:$AI,MATCH(Q$5,'[2]Proposed Rates'!$4:$4,0),FALSE),Q$6) -> 0.0087 | R12: =ROUND(VLOOKUP($A12,'[2]Proposed Rates'!$A:$AI,MATCH(R$5,'[2]Proposed Rates'!$4:$4,0),FALSE),R$6) -> 0.006
A13: St Lgt | B13: =ROUND(VLOOKUP($A13,'[2]Proposed Rates'!$A:$AI,MATCH(B$5,'[2]Proposed Rates'!$4:$4,0),FALSE),B$6) -> 3.71 | C13: =ROUND(VLOOKUP($A13,'[2]Proposed Rates'!$A:$AI,MATCH(C$5,'[2]Proposed Rates'!$4:$4,0),FALSE),C$6) -> 0.1134 | D13: =ROUND(VLOOKUP($A13,'[2]Proposed Rates'!$A:$AI,MATCH(D$5,'[2]Proposed Rates'!$4:$4,0),FALSE),D$6) -> 0 | E13: =ROUND(VLOOKUP($A13,'[2]Proposed Rates'!$A:$AI,MATCH(E$5,'[2]Proposed Rates'!$4:$4,0),FALSE),E$6) -> 0 | F13: 3.71 | G13: 0.1134 | H13: =ROUND(VLOOKUP($A13,'[2]Proposed Rates'!$A:$AI,MATCH(H$4,'[2]Proposed Rates'!$1:$1,0),FALSE),H$6) -> 0.11 | I13: =ROUND(VLOOKUP($A13,'[2]Proposed Rates'!$A:$AI,MATCH(I$4,'[2]Proposed Rates'!$1:$1,0),FALSE),I$6) -> 0.0034 | J13: =ROUND(VLOOKUP($A13,'[2]Proposed Rates'!$A:$AI,MATCH(J$5,'[2]Proposed Rates'!$4:$4,0),FALSE),J$6) -> 0 | K13: =ROUND(VLOOKUP($A13,'[2]Proposed Rates'!$A:$AI,MATCH(K$5,'[2]Proposed Rates'!$4:$4,0),FALSE),K$6) -> 0 | M13: =ROUND(VLOOKUP($A13,'[2]Proposed Rates'!$A:$AI,MATCH(M$5,'[2]Proposed Rates'!$4:$4,0),FALSE),5) -> 0 | N13: =ROUND(VLOOKUP($A13,'[2]Proposed Rates'!$A:$AI,MATCH(N$5,'[2]Proposed Rates'!$4:$4,0),FALSE),N$6) -> 0 | O13: =ROUND(VLOOKUP($A13,'[2]Proposed Rates'!$A:$AI,MATCH(O$5,'[2]Proposed Rates'!$4:$4,0),FALSE),O$6) -> 0 | P13: =ROUND(VLOOKUP($A13,'[2]Proposed Rates'!$A:$AI,MATCH(P$5,'[2]Proposed Rates'!$4:$4,0),FALSE),P$6) -> 0 | Q13: =ROUND(VLOOKUP($A13,'[2]Proposed Rates'!$A:$AI,MATCH(Q$5,'[2]Proposed Rates'!$4:$4,0),FALSE),Q$6) -> 0.0067 | R13: =ROUND(VLOOKUP($A13,'[2]Proposed Rates'!$A:$AI,MATCH(R$5,'[2]Proposed Rates'!$4:$4,0),FALSE),R$6) -> 0.0038
A14: Sen Lgt | B14: =ROUND(VLOOKUP($A14,'[2]Proposed Rates'!$A:$AI,MATCH(B$5,'[2]Proposed Rates'!$4:$4,0),FALSE),B$6) -> 3.2 | C14: =ROUND(VLOOKUP($A14,'[2]Proposed Rates'!$A:$AI,MATCH(C$5,'[2]Proposed Rates'!$4:$4,0),FALSE),C$6) -> 0.1737 | D14: =ROUND(VLOOKUP($A14,'[2]Proposed Rates'!$A:$AI,MATCH(D$5,'[2]Proposed Rates'!$4:$4,0),FALSE),D$6) -> 0 | E14: =ROUND(VLOOKUP($A14,'[2]Proposed Rates'!$A:$AI,MATCH(E$5,'[2]Proposed Rates'!$4:$4,0),FALSE),E$6) -> 0 | F14: 3.2 | G14: 0.1737 | H14: =ROUND(VLOOKUP($A14,'[2]Proposed Rates'!$A:$AI,MATCH(H$4,'[2]Proposed Rates'!$1:$1,0),FALSE),H$6) -> 0.14 | I14: =ROUND(VLOOKUP($A14,'[2]Proposed Rates'!$A:$AI,MATCH(I$4,'[2]Proposed Rates'!$1:$1,0),FALSE),I$6) -> 0.0078 | J14: =ROUND(VLOOKUP($A14,'[2]Proposed Rates'!$A:$AI,MATCH(J$5,'[2]Proposed Rates'!$4:$4,0),FALSE),J$6) -> 0 | K14: =ROUND(VLOOKUP($A14,'[2]Proposed Rates'!$A:$AI,MATCH(K$5,'[2]Proposed Rates'!$4:$4,0),FALSE),K$6) -> 0 | M14: =ROUND(VLOOKUP($A14,'[2]Proposed Rates'!$A:$AI,MATCH(M$5,'[2]Proposed Rates'!$4:$4,0),FALSE),5) -> 0 | N14: =ROUND(VLOOKUP($A14,'[2]Proposed Rates'!$A:$AI,MATCH(N$5,'[2]Proposed Rates'!$4:$4,0),FALSE),N$6) -> 0 | O14: =ROUND(VLOOKUP($A14,'[2]Proposed Rates'!$A:$AI,MATCH(O$5,'[2]Proposed Rates'!$4:$4,0),FALSE),O$6) -> 0 | P14: =ROUND(VLOOKUP($A14,'[2]Proposed Rates'!$A:$AI,MATCH(P$5,'[2]Proposed Rates'!$4:$4,0),FALSE),P$6) -> 0 | Q14: =ROUND(VLOOKUP($A14,'[2]Proposed Rates'!$A:$AI,MATCH(Q$5,'[2]Proposed Rates'!$4:$4,0),FALSE),Q$6) -> 0.0068 | R14: =ROUND(VLOOKUP($A14,'[2]Proposed Rates'!$A:$AI,MATCH(R$5,'[2]Proposed Rates'!$4:$4,0),FALSE),R$6) -> 0.0039
A15: USL | B15: =ROUND(VLOOKUP($A15,'[2]Proposed Rates'!$A:$AI,MATCH(B$5,'[2]Proposed Rates'!$4:$4,0),FALSE),B$6) -> 39.8 | C15: =ROUND(VLOOKUP($A15,'[2]Proposed Rates'!$A:$AI,MATCH(C$5,'[2]Proposed Rates'!$4:$4,0),FALSE),C$6) -> 0.0265 | D15: =ROUND(VLOOKUP($A15,'[2]Proposed Rates'!$A:$AI,MATCH(D$5,'[2]Proposed Rates'!$4:$4,0),FALSE),D$6) -> 0 | E15: =ROUND(VLOOKUP($A15,'[2]Proposed Rates'!$A:$AI,MATCH(E$5,'[2]Proposed Rates'!$4:$4,0),FALSE),E$6) -> 0 | F15: 39.8 | G15: 0.0265 | H15: =ROUND(VLOOKUP($A15,'[2]Proposed Rates'!$A:$AI,MATCH(H$4,'[2]Proposed Rates'!$1:$1,0),FALSE),H$6) -> 0.89 | I15: =ROUND(VLOOKUP($A15,'[2]Proposed Rates'!$A:$AI,MATCH(I$4,'[2]Proposed Rates'!$1:$1,0),FALSE),I$6) -> 0.0006 | J15: =ROUND(VLOOKUP($A15,'[2]Proposed Rates'!$A:$AI,MATCH(J$5,'[2]Proposed Rates'!$4:$4,0),FALSE),J$6) -> 0 | K15: =ROUND(VLOOKUP($A15,'[2]Proposed Rates'!$A:$AI,MATCH(K$5,'[2]Proposed Rates'!$4:$4,0),FALSE),K$6) -> 0 | M15: =ROUND(VLOOKUP($A15,'[2]Proposed Rates'!$A:$AI,MATCH(M$5,'[2]Proposed Rates'!$4:$4,0),FALSE),5) -> 0 | N15: =ROUND(VLOOKUP($A15,'[2]Proposed Rates'!$A:$AI,MATCH(N$5,'[2]Proposed Rates'!$4:$4,0),FALSE),N$6) -> 0 | O15: =ROUND(VLOOKUP($A15,'[2]Proposed Rates'!$A:$AI,MATCH(O$5,'[2]Proposed Rates'!$4:$4,0),FALSE),O$6) -> 0 | P15: =ROUND(VLOOKUP($A15,'[2]Proposed Rates'!$A:$AI,MATCH(P$5,'[2]Proposed Rates'!$4:$4,0),FALSE),P$6) -> 0 | Q15: =ROUND(VLOOKUP($A15,'[2]Proposed Rates'!$A:$AI,MATCH(Q$5,'[2]Proposed Rates'!$4:$4,0),FALSE),Q$6) -> 0.0068 | R15: =ROUND(VLOOKUP($A15,'[2]Proposed Rates'!$A:$AI,MATCH(R$5,'[2]Proposed Rates'!$4:$4,0),FALSE),R$6) -> 0.0049
A16: GSd | B16: =ROUND(VLOOKUP($A16,'[2]Proposed Rates'!$A:$AI,MATCH(B$5,'[2]Proposed Rates'!$4:$4,0),FALSE),B$6) -> 113.67 | C16: =ROUND(VLOOKUP($A16,'[2]Proposed Rates'!$A:$AI,MATCH(C$5,'[2]Proposed Rates'!$4:$4,0),FALSE),C$6) -> 19.3834 | D16: =ROUND(VLOOKUP($A16,'[2]Proposed Rates'!$A:$AI,MATCH(D$5,'[2]Proposed Rates'!$4:$4,0),FALSE),D$6) -> 0 | E16: =ROUND(VLOOKUP($A16,'[2]Proposed Rates'!$A:$AI,MATCH(E$5,'[2]Proposed Rates'!$4:$4,0),FALSE),E$6) -> 0 | F16: 113.67 | G16: 19.3834 | H16: =ROUND(VLOOKUP($A16,'[2]Proposed Rates'!$A:$AI,MATCH(H$4,'[2]Proposed Rates'!$1:$1,0),FALSE),H$6) -> 4.34 | I16: =ROUND(VLOOKUP($A16,'[2]Proposed Rates'!$A:$AI,MATCH(I$4,'[2]Proposed Rates'!$1:$1,0),FALSE),I$6) -> 0.7338 | J16: =ROUND(VLOOKUP($A16,'[2]Proposed Rates'!$A:$AI,MATCH(J$5,'[2]Proposed Rates'!$4:$4,0),FALSE),J$6) -> 0 | K16: =ROUND(VLOOKUP($A16,'[2]Proposed Rates'!$A:$AI,MATCH(K$5,'[2]Proposed Rates'!$4:$4,0),FALSE),K$6) -> 0 | M16: =ROUND(VLOOKUP($A16,'[2]Proposed Rates'!$A:$AI,MATCH(M$5,'[2]Proposed Rates'!$4:$4,0),FALSE),M$6) -> 0 | N16: =ROUND(VLOOKUP($A16,'[2]Proposed Rates'!$A:$AI,MATCH(N$5,'[2]Proposed Rates'!$4:$4,0),FALSE),N$6) -> 0 | O16: =ROUND(VLOOKUP($A16,'[2]Proposed Rates'!$A:$AI,MATCH(O$5,'[2]Proposed Rates'!$4:$4,0),FALSE),O$6) -> 0 | P16: =ROUND(VLOOKUP($A16,'[2]Proposed Rates'!$A:$AI,MATCH(P$5,'[2]Proposed Rates'!$4:$4,0),FALSE),P$6) -> 0 | Q16: =ROUND(VLOOKUP($A16,'[2]Proposed Rates'!$A:$AI,MATCH(Q$5,'[2]Proposed Rates'!$4:$4,0),FALSE)*VLOOKUP($A16,'Data Billing Quantities'!$A:$B,2,FALSE),Q$6) -> 2.5526 | R16: =ROUND(VLOOKUP($A16,'[2]Proposed Rates'!$A:$AI,MATCH(R$5,'[2]Proposed Rates'!$4:$4,0),FALSE)*VLOOKUP($A16,'Data Billing Quantities'!$A:$B,2,FALSE),R$6) -> 1.7916
A17: UGd | B17: =ROUND(VLOOKUP($A17,'[2]Proposed Rates'!$A:$AI,MATCH(B$5,'[2]Proposed Rates'!$4:$4,0),FALSE),B$6) -> 104.78 | C17: =ROUND(VLOOKUP($A17,'[2]Proposed Rates'!$A:$AI,MATCH(C$5,'[2]Proposed Rates'!$4:$4,0),FALSE),C$6) -> 11.1722 | D17: =ROUND(VLOOKUP($A17,'[2]Proposed Rates'!$A:$AI,MATCH(D$5,'[2]Proposed Rates'!$4:$4,0),FALSE),D$6) -> 0 | E17: =ROUND(VLOOKUP($A17,'[2]Proposed Rates'!$A:$AI,MATCH(E$5,'[2]Proposed Rates'!$4:$4,0),FALSE),E$6) -> 0 | F17: 104.78 | G17: 11.1722 | H17: =ROUND(VLOOKUP($A17,'[2]Proposed Rates'!$A:$AI,MATCH(H$4,'[2]Proposed Rates'!$1:$1,0),FALSE),H$6) -> 3.92 | I17: =ROUND(VLOOKUP($A17,'[2]Proposed Rates'!$A:$AI,MATCH(I$4,'[2]Proposed Rates'!$1:$1,0),FALSE),I$6) -> 0.4134 | J17: =ROUND(VLOOKUP($A17,'[2]Proposed Rates'!$A:$AI,MATCH(J$5,'[2]Proposed Rates'!$4:$4,0),FALSE),J$6) -> 0 | K17: =ROUND(VLOOKUP($A17,'[2]Proposed Rates'!$A:$AI,MATCH(K$5,'[2]Proposed Rates'!$4:$4,0),FALSE),K$6) -> 0 | M17: =ROUND(VLOOKUP($A17,'[2]Proposed Rates'!$A:$AI,MATCH(M$5,'[2]Proposed Rates'!$4:$4,0),FALSE),M$6) -> 0 | N17: =ROUND(VLOOKUP($A17,'[2]Proposed Rates'!$A:$AI,MATCH(N$5,'[2]Proposed Rates'!$4:$4,0),FALSE),N$6) -> 0 | O17: =ROUND(VLOOKUP($A17,'[2]Proposed Rates'!$A:$AI,MATCH(O$5,'[2]Proposed Rates'!$4:$4,0),FALSE),O$6) -> 0 | P17: =ROUND(VLOOKUP($A17,'[2]Proposed Rates'!$A:$AI,MATCH(P$5,'[2]Proposed Rates'!$4:$4,0),FALSE),P$6) -> 0 | Q17: =ROUND(VLOOKUP($A17,'[2]Proposed Rates'!$A:$AI,MATCH(Q$5,'[2]Proposed Rates'!$4:$4,0),FALSE)*VLOOKUP($A17,'Data Billing Quantities'!$A:$B,2,FALSE),Q$6) -> 3.2715 | R17: =ROUND(VLOOKUP($A17,'[2]Proposed Rates'!$A:$AI,MATCH(R$5,'[2]Proposed Rates'!$4:$4,0),FALSE)*VLOOKUP($A17,'Data Billing Quantities'!$A:$B,2,FALSE),R$6) -> 2.2766
A18: Dgen | B18: =ROUND(VLOOKUP($A18,'[2]Proposed Rates'!$A:$AI,MATCH(B$5,'[2]Proposed Rates'!$4:$4,0),FALSE),B$6) -> 199.36 | C18: =ROUND(VLOOKUP($A18,'[2]Proposed Rates'!$A:$AI,MATCH(C$5,'[2]Proposed Rates'!$4:$4,0),FALSE),C$6) -> 11.0093 | D18: =ROUND(VLOOKUP($A18,'[2]Proposed Rates'!$A:$AI,MATCH(D$5,'[2]Proposed Rates'!$4:$4,0),FALSE),D$6) -> 0 | E18: =ROUND(VLOOKUP($A18,'[2]Proposed Rates'!$A:$AI,MATCH(E$5,'[2]Proposed Rates'!$4:$4,0),FALSE),E$6) -> 0 | F18: 199.36 | G18: 11.0093 | H18: =ROUND(VLOOKUP($A18,'[2]Proposed Rates'!$A:$AI,MATCH(H$4,'[2]Proposed Rates'!$1:$1,0),FALSE),H$6) -> 1.74 | I18: =ROUND(VLOOKUP($A18,'[2]Proposed Rates'!$A:$AI,MATCH(I$4,'[2]Proposed Rates'!$1:$1,0),FALSE),I$6) -> 0.0883 | J18: =ROUND(VLOOKUP($A18,'[2]Proposed Rates'!$A:$AI,MATCH(J$5,'[2]Proposed Rates'!$4:$4,0),FALSE),J$6) -> 0 | K18: =ROUND(VLOOKUP($A18,'[2]Proposed Rates'!$A:$AI,MATCH(K$5,'[2]Proposed Rates'!$4:$4,0),FALSE),K$6) -> 0 | M18: =ROUND(VLOOKUP($A18,'[2]Proposed Rates'!$A:$AI,MATCH(M$5,'[2]Proposed Rates'!$4:$4,0),FALSE),M$6) -> 0 | N18: =ROUND(VLOOKUP($A18,'[2]Proposed Rates'!$A:$AI,MATCH(N$5,'[2]Proposed Rates'!$4:$4,0),FALSE),N$6) -> 0 | O18: =ROUND(VLOOKUP($A18,'[2]Proposed Rates'!$A:$AI,MATCH(O$5,'[2]Proposed Rates'!$4:$4,0),FALSE),O$6) -> 0 | P18: =ROUND(VLOOKUP($A18,'[2]Proposed Rates'!$A:$AI,MATCH(P$5,'[2]Proposed Rates'!$4:$4,0),FALSE),P$6) -> 0 | Q18: =ROUND(VLOOKUP($A18,'[2]Proposed Rates'!$A:$AI,MATCH(Q$5,'[2]Proposed Rates'!$4:$4,0),FALSE)*VLOOKUP($A18,'Data Billing Quantities'!$A:$B,2,FALSE),Q$6) -> 1.2408 | R18: =ROUND(VLOOKUP($A18,'[2]Proposed Rates'!$A:$AI,MATCH(R$5,'[2]Proposed Rates'!$4:$4,0),FALSE)*VLOOKUP($A18,'Data Billing Quantities'!$A:$B,2,FALSE),R$6) -> 0.8728
A19: ST | B19: =ROUND(SUM('[2]Proposed Rates'!$B$17:$B$19),B$6) -> 1383.03 | C19: =ROUND(VLOOKUP("Common Line",'[2]Proposed Rates'!$A:$H,8,FALSE),C$6) -> 1.6208 | D19: =SUM('[2]Proposed Rates'!$I$17:$I$18) -> 0 | E19: ='[2]Proposed Rates'!$J$19 -> 0 | F19: 1383.03 | G19: 1.6208 | H19: =ROUND(VLOOKUP($A19,'[2]Proposed Rates'!$A:$AI,MATCH(H$4,'[2]Proposed Rates'!$1:$1,0),FALSE),H$6) -> 36.18 | I19: =ROUND(VLOOKUP($A19,'[2]Proposed Rates'!$A:$AI,MATCH(I$4,'[2]Proposed Rates'!$1:$1,0),FALSE),I$6) -> 0.054 | J19: =ROUND(VLOOKUP($A19,'[2]Proposed Rates'!$A:$AI,MATCH(J$5,'[2]Proposed Rates'!$4:$4,0),FALSE),J$6) -> 0 | K19: =ROUND(VLOOKUP($A19,'[2]Proposed Rates'!$A:$AI,MATCH(K$5,'[2]Proposed Rates'!$4:$4,0),FALSE),K$6) -> 0 | O19: =ROUND(VLOOKUP($A19,'[2]Proposed Rates'!$A:$AI,MATCH(O$5,'[2]Proposed Rates'!$4:$4,0),FALSE),O$6) -> 0 | P19: =ROUND(VLOOKUP($A19,'[2]Proposed Rates'!$A:$AI,MATCH(P$5,'[2]Proposed Rates'!$4:$4,0),FALSE),P$6) -> 0 | Q19: =ROUND(VLOOKUP($A19,'[2]Proposed Rates'!$A:$AI,MATCH(Q$5,'[2]Proposed Rates'!$4:$4,0),FALSE)*VLOOKUP($A19,'Data Billing Quantities'!$A:$B,2,FALSE),Q$6) -> 4.4951 | R19: =ROUND(VLOOKUP($A19,'[2]Proposed Rates'!$A:$AI,MATCH(R$5,'[2]Proposed Rates'!$4:$4,0),FALSE)*VLOOKUP($A19,'Data Billing Quantities'!$A:$B,2,FALSE),R$6) -> 3.1077
A20: ST (NonWMP, NonRPP, NonLDC, ClassB) | B20: =B$19 -> 1383.03 | C20: =C$19 -> 1.6208 | D20: 0 | E20: 0 | F20: 1383.03 | G20: 1.6208 | H20: =H19 -> 36.18 | I20: =I19 -> 0.054 | J20: =ROUND(VLOOKUP("ST",'[2]Proposed Rates'!$A:$AI,MATCH(J$5,'[2]Proposed Rates'!$4:$4,0),FALSE),J$6) -> 0 | K20: =ROUND(VLOOKUP("ST",'[2]Proposed Rates'!$A:$AI,MATCH(K$5,'[2]Proposed Rates'!$4:$4,0),FALSE),K$6) -> 0 | L20: =ROUND(VLOOKUP("ST",'[2]Proposed Rates'!$A:$AI,MATCH(L$5,'[2]Proposed Rates'!$4:$4,0),FALSE),L$6) -> 0 | M20: =ROUND(VLOOKUP("ST",'[2]Proposed Rates'!$A:$AI,MATCH(M$5,'[2]Proposed Rates'!$4:$4,0),FALSE),M$6) -> 0 | N20: =ROUND(VLOOKUP("ST",'[2]Proposed Rates'!$A:$AI,MATCH(N$5,'[2]Proposed Rates'!$4:$4,0),FALSE),N$6) -> 0 | O20: =ROUND(VLOOKUP("ST",'[2]Proposed Rates'!$A:$AI,MATCH(O$5,'[2]Proposed Rates'!$4:$4,0),FALSE),O$6) -> 0 | P20: =ROUND(VLOOKUP("ST",'[2]Proposed Rates'!$A:$AI,MATCH(P$5,'[2]Proposed Rates'!$4:$4,0),FALSE),P$6) -> 0 | Q20: =ROUND(VLOOKUP("ST",'[2]Proposed Rates'!$A:$AI,MATCH(Q$5,'[2]Proposed Rates'!$4:$4,0),FALSE)*VLOOKUP($A20,'Data Billing Quantities'!$A:$B,2,FALSE),Q$6) -> 4.4951 | R20: =ROUND(VLOOKUP("ST",'[2]Proposed Rates'!$A:$AI,MATCH(R$5,'[2]Proposed Rates'!$4:$4,0),FALSE)*VLOOKUP($A20,'Data Billing Quantities'!$A:$B,2,FALSE),R$6) -> 3.1077
A21: ST (NonWMP, NonRPP, NonLDC, ClassB) Exclude GA Rider | B21: =B$19 -> 1383.03 | C21: 1.6208 | D21: 0 | E21: 0 | F21: 1383.03 | G21: 1.6208 | H21: =H19 -> 36.18 | I21: =I19 -> 0.054 | J21: =ROUND(VLOOKUP("ST",'[2]Proposed Rates'!$A:$AI,MATCH(J$5,'[2]Proposed Rates'!$4:$4,0),FALSE),J$6) -> 0 | K21: =ROUND(VLOOKUP("ST",'[2]Proposed Rates'!$A:$AI,MATCH(K$5,'[2]Proposed Rates'!$4:$4,0),FALSE),K$6) -> 0 | L21: =ROUND(VLOOKUP("ST",'[2]Proposed Rates'!$A:$AI,MATCH(L$5,'[2]Proposed Rates'!$4:$4,0),FALSE),L$6) -> 0 | M21: =ROUND(VLOOKUP("ST",'[2]Proposed Rates'!$A:$AI,MATCH(M$5,'[2]Proposed Rates'!$4:$4,0),FALSE),M$6) -> 0 | O21: =ROUND(VLOOKUP("ST",'[2]Proposed Rates'!$A:$AI,MATCH(O$5,'[2]Proposed Rates'!$4:$4,0),FALSE),O$6) -> 0 | P21: =ROUND(VLOOKUP("ST",'[2]Proposed Rates'!$A:$AI,MATCH(P$5,'[2]Proposed Rates'!$4:$4,0),FALSE),P$6) -> 0 | Q21: =ROUND(VLOOKUP("ST",'[2]Proposed Rates'!$A:$AI,MATCH(Q$5,'[2]Proposed Rates'!$4:$4,0),FALSE)*VLOOKUP($A21,'Data Billing Quantities'!$A:$B,2,FALSE),Q$6) -> 4.4951 | R21: =ROUND(VLOOKUP("ST",'[2]Proposed Rates'!$A:$AI,MATCH(R$5,'[2]Proposed Rates'!$4:$4,0),FALSE)*VLOOKUP($A21,'Data Billing Quantities'!$A:$B,2,FALSE),R$6) -> 3.1077

Sheet Data Billing Quantities (hidden)
A1: Rate Class-Specific Billing Quantities (Applied to Current and Proposed Bill)
E3: Consumption (kWh) | I3: Peak (kW) | M3: TOU Split
A4: Rate Class | B4: Loss Factor | C4: Charge Determinant | D4: Commodity Threshold | E4: Low kWh | F4: Typical kWh | G4: Average kWh | H4: High kWh | I4: Low kW | J4: Typical kW | K4: Average kW | L4: High kW | M4: TOU-Off Peak | N4: TOU-Mid Peak | O4: TOU-On Peak
A5: UR | B5: 1.057 | C5: kWh | D5: 600 | E5: 350 | F5: 750 | G5: =VLOOKUP(A5,[3]Sheet1!$A$9:$I$22,8,FALSE) -> 755 | H5: 1400 | M5: 0.64 | N5: 0.18 | O5: 0.18
A6: R1 | B6: 1.076 | C6: kWh | D6: 600 | E6: 400 | F6: 750 | G6: =VLOOKUP(A6,[3]Sheet1!$A$10:$I$22,8,FALSE) -> 920 | H6: 1800 | M6: 0.64 | N6: 0.18 | O6: 0.18
A7: R2 | B7: 1.105 | C7: kWh | D7: 600 | E7: 450 | F7: 750 | G7: =VLOOKUP(A7,[3]Sheet1!$A$10:$I$22,8,FALSE) -> 1152 | H7: 2300 | M7: 0.64 | N7: 0.18 | O7: 0.18
A8: Seasonal | B8: 1.104 | C8: kWh | D8: 600 | E8: 50 | G8: =VLOOKUP(A8,[3]Sheet1!$A$10:$I$22,8,FALSE) -> 352 | H8: 1000 | M8: 0.64 | N8: 0.18 | O8: 0.18
A9: GSe | B9: 1.096 | C9: kWh | D9: 750 | E9: 1000 | F9: 2000 | G9: =VLOOKUP(A9,[3]Sheet1!$A$10:$I$22,8,FALSE) -> 1982 | H9: 15000 | M9: 0.64 | N9: 0.18 | O9: 0.18
A10: UGe | B10: 1.067 | C10: kWh | D10: 750 | E10: 1000 | F10: 2000 | G10: =VLOOKUP(A10,[3]Sheet1!$A$10:$I$22,8,FALSE) -> 2759 | H10: 15000 | M10: 0.64 | N10: 0.18 | O10: 0.18
A11: St Lgt | B11: 1.092 | C11: kWh | D11: 750 | E11: 100 | G11: =VLOOKUP(A11,[3]Sheet1!$A$10:$I$22,8,FALSE) -> 517 | H11: 2000
A12: Sen Lgt | B12: 1.092 | C12: kWh | D12: 750 | E12: 20 | G12: =VLOOKUP(A12,[3]Sheet1!$A$10:$I$22,8,FALSE) -> 71 | H12: 200
A13: USL | B13: 1.092 | C13: kWh | D13: 750 | E13: 100 | G13: =VLOOKUP(A13,[3]Sheet1!$A$10:$I$22,8,FALSE) -> 364 | H13: 1000
A14: GSd | B14: 1.061 | C14: kW | D14: 0 | E14: 15000 | G14: =VLOOKUP(A14,[3]Sheet1!$A$10:$I$22,8,FALSE) -> 36104 | H14: 175000 | I14: 60 | J14: 117 | K14: =VLOOKUP(A14,[3]Sheet1!$A$10:$I$22,9,FALSE) -> 124 | L14: 500
A15: UGd | B15: 1.05 | C15: kW | D15: 0 | E15: 15000 | G15: =VLOOKUP(A15,[3]Sheet1!$A$10:$I$22,8,FALSE) -> 50525 | H15: 175000 | I15: 60 | J15: 117 | K15: =VLOOKUP(A15,[3]Sheet1!$A$10:$I$22,9,FALSE) -> 135 | L15: 500
A16: Dgen | B16: 1.061 | C16: kW | D16: 0 | E16: 300 | G16: =VLOOKUP(A16,[3]Sheet1!$A$10:$I$22,8,FALSE) -> 1328 | H16: 5000 | I16: 10 | J16: 15 | K16: =VLOOKUP(A16,[3]Sheet1!$A$10:$I$22,9,FALSE) -> 13 | L16: 100
A17: ST | B17: 1.034 | C17: kW | D17: 0 | E17: 200000 | G17: =VLOOKUP(A17,[3]Sheet1!$A$10:$I$22,8,FALSE) -> 1601036 | H17: 4000000 | I17: 500 | J17: 117 | K17: =VLOOKUP(A17,[3]Sheet1!$A$10:$I$22,9,FALSE) -> 3091 | L17: 10000
A18: ST (NonWMP, NonRPP, NonLDC, ClassB) | B18: =B$17 -> 1.034 | C18: =C$17 -> kW | D18: 0 | G18: 1601036 | K18: 3091
A19: ST (NonWMP, NonRPP, NonLDC, ClassB) Exclude GA Rider | B19: =B$17 -> 1.034 | C19: kW | D19: 0 | G19: 1601036 | K19: 3091

Sheet Data Pass Through (hidden)
A1: 3. Pass Through Charges (maintain pass through charges effective during application period for 2021 annual update august 2020)
B2: Current Bill | C2: Proposed Bill
A3: Effective Date | B3: July 1 2021 | C3: Jan 1 2022 | D3: TOU % | E3: Notes
A4: R2 Credit | B4: 60.5 | C4: 60.5
A5: Weighted Average Hourly Spot Price | B5: 0.119 | C5: 0.119 | E5: Apr 2020-May 2021
A6: Energy First Tier | B6: 0.098 | C6: 0.098 | E6: May 1 2021
A7: Energy Second Tier | B7: 0.115 | C7: 0.115 | E7: May 1 2021
A8: TOU-Off Peak | B8: 0.082 | C8: 0.082 | D8: 0.64 | E8: May 1 2021
A9: TOU-Mid Peak | B9: 0.113 | C9: 0.113 | D9: 0.18 | E9: May 1 2021
A10: TOU-On Peak | B10: 0.17 | C10: 0.17 | D10: 0.18 | E10: May 1 2021
A11: Wholesale Market Service Rate (WMS) - not including CBR | B11: 0.003 | C11: 0.003 | E11: Effective May 1 2017, 0.0036 WMSC broken up between WMSC and CBR
A12: Capacity Based Recovery (CBR) - Applicable for Class B Customers | B12: 0.0004 | C12: 0.0004 | E12: Effective May 1 2017, 0.0036 WMSC broken up between WMSC and CBR
A13: Rural Rate Protection Charge | B13: 0.0005 | C13: 0.0005 | E13: RRRP charge reduced from $0.0021/kWh to $0.0003/kWh effective July 1, 2017; reduced to 0.0005 effective jan 1 2019
A14: Ontario Electricity Support Program Charge | B14: 0 | C14: 0 | E14: OESP charge removed for all rate classes effective May 1, 2017. ROW HIDDEN IN BILL IMPACT FILE
A15: Standard Supply Service – Administration Charge (if applicable) | B15: 0.25 | C15: 0.25
A16: Fair Hydro Plan - Distribution Rate Protection Savings* | B16: 36.86 | C16: 36.86 | E16: Highlighted cells are FORMULAS; do not overwrite with hard-entered values. Input DRP limit values in row 17 below
A17: DRP limit (applied when selected from Bill Impact Summary) | B17: 36.86 | C17: 36.86 | E17: Make change to FHP DRP limit here, but to apply DRP, must do in Bill Impact Summary sheet cell L6
A18: Smart Metering Entity Charge | B18: 0.57 | C18: 0.57 | E18: Change from 0.79 to 0.57 effective March 1 2018; only for metered energy-billed (UR, R1, R2, SEA, GSE, UGE)
A19: Debt Retirement Charge (DRC) | B19: 0 | C19: 0 | E19: DRC removed from all rate classes Apr 1 2018 ROW HIDDEN IN BILL IMPACT FILE
A20: Ontario Electricity Rebate (OER) | B20: -0.189 | C20: =B20 -> -0.189 | E20: Effective Jan 1 2021
A21: Customer Attributes - Assumptions
A22: ST customers are assumed to be WMP Class B; exclude NonWMP rider and Standard Supply Service

Sheet Data BI List (hidden)
A1: Template Name | B1: Bill Impact Worksheet Name | C1: Bill Impact Header
A2: BI Template_Energy | B2: BI_UR_Low | C2: 2022 Bill Impacts (Low Consumption Level) - UR
A3: BI Template_Energy | B3: BI_UR_Typical | C3: 2022 Bill Impacts (Typical Consumption Level) - UR
A4: BI Template_Energy | B4: BI_UR_Avg | C4: 2022 Bill Impacts (Average Consumption Level) - UR
A5: BI Template_Energy | B5: BI_UR_High | C5: 2022 Bill Impacts (High Consumption Level) - UR
A6: BI Template_Energy | B6: BI_R1_Low (with DRP) | C6: 2022 Bill Impacts (Low Consumption Level) - R1
A7: BI Template_Energy | B7: BI_R1_Typical (with DRP) | C7: 2022 Bill Impacts (Typical Consumption Level) - R1
A8: BI Template_Energy | B8: BI_R1_Avg (with DRP) | C8: 2022 Bill Impacts (Average Consumption Level) - R1
A9: BI Template_Energy | B9: BI_R1_High (with DRP) | C9: 2022 Bill Impacts (High Consumption Level) - R1
A10: BI Template_Energy | B10: BI_R2_Low (with DRP) | C10: 2022 Bill Impacts (Low Consumption Level) - R2
A11: BI Template_Energy | B11: BI_R2_Typical (with DRP) | C11: 2022 Bill Impacts (Typical Consumption Level) - R2
A12: BI Template_Energy | B12: BI_R2_Avg (with DRP) | C12: 2022 Bill Impacts (Average Consumption Level) - R2
A13: BI Template_Energy | B13: BI_R2_High (with DRP) | C13: 2022 Bill Impacts (High Consumption Level) - R2
A14: BI Template_Energy | B14: BI_R1_Low (without DRP) | C14: 2022 Bill Impacts without DRP (Low Consumption Level) - R1
A15: BI Template_Energy | B15: BI_R1_Typical (without DRP) | C15: 2022 Bill Impacts without DRP (Typical Consumption Level) - R1
A16: BI Template_Energy | B16: BI_R1_Avg (without DRP) | C16: 2022 Bill Impacts without DRP (Average Consumption Level) - R1
A17: BI Template_Energy | B17: BI_R1_High (without DRP) | C17: 2022 Bill Impacts without DRP (High Consumption Level) - R1
A18: BI Template_Energy | B18: BI_R2_Low (without DRP) | C18: 2022 Bill Impacts without DRP (Low Consumption Level) - R2
A19: BI Template_Energy | B19: BI_R2_Typical (without DRP) | C19: 2022 Bill Impacts without DRP (Typical Consumption Level) - R2
A20: BI Template_Energy | B20: BI_R2_Avg (without DRP) | C20: 2022 Bill Impacts without DRP (Average Consumption Level) - R2
A21: BI Template_Energy | B21: BI_R2_High (without DRP) | C21: 2022 Bill Impacts without DRP (High Consumption Level) - R2
A22: BI Template_Energy | B22: BI_Seas_Low | C22: 2022 Bill Impacts (Low Consumption Level) - Seasonal
A23: BI Template_Energy | B23: BI_Seas_Avg | C23: 2022 Bill Impacts (Average Consumption Level) - Seasonal
A24: BI Template_Energy | B24: BI_Seas_High | C24: 2022 Bill Impacts (High Consumption Level) - Seasonal
A25: BI Template_Energy | B25: BI_GSe_Low | C25: 2022 Bill Impacts (Low Consumption Level) - GSe
A26: BI Template_Energy | B26: BI_GSe_Typical | C26: 2022 Bill Impacts (Typical Consumption Level) - GSe
A27: BI Template_Energy | B27: BI_GSe_Avg | C27: 2022 Bill Impacts (Average Consumption Level) - GSe
A28: BI Template_Energy | B28: BI_GSe_High | C28: 2022 Bill Impacts (High Consumption Level) - GSe
A29: BI Template_Energy | B29: BI_UGe_Low | C29: 2022 Bill Impacts (Low Consumption Level) - UGe
A30: BI Template_Energy | B30: BI_UGe_Typical | C30: 2022 Bill Impacts (Typical Consumption Level) - UGe
A31: BI Template_Energy | B31: BI_UGe_Avg | C31: 2022 Bill Impacts (Average Consumption Level) - UGe
A32: BI Template_Energy | B32: BI_UGe_High | C32: 2022 Bill Impacts (High Consumption Level) - UGe
A33: BI Template_Demand | B33: BI_GSd_Low | C33: 2022 Bill Impacts (Low Consumption Level) - GSd
A34: BI Template_Demand | B34: BI_GSd_Avg | C34: 2022 Bill Impacts (Average Consumption Level) - GSd
A35: BI Template_Demand | B35: BI_GSd_High | C35: 2022 Bill Impacts (High Consumption Level) - GSd
A36: BI Template_Demand | B36: BI_UGd_Low | C36: 2022 Bill Impacts (Low Consumption Level) - UGd
A37: BI Template_Demand | B37: BI_UGd_Avg | C37: 2022 Bill Impacts (Average Consumption Level) - UGd
A38: BI Template_Demand | B38: BI_UGd_High | C38: 2022 Bill Impacts (High Consumption Level) - UGd
A39: BI Template_EnergyUNM | B39: BI_StLgt_Low | C39: 2022 Bill Impacts (Low Consumption Level) - St Lgt
A40: BI Template_EnergyUNM | B40: BI_StLgt_Avg | C40: 2022 Bill Impacts (Average Consumption Level) - St Lgt
A41: BI Template_EnergyUNM | B41: BI_StLgt_High | C41: 2022 Bill Impacts (High Consumption Level) - St Lgt
A42: BI Template_EnergyUNM | B42: BI_SenLgt_Low | C42: 2022 Bill Impacts (Low Consumption Level) - Sen Lgt
A43: BI Template_EnergyUNM | B43: BI_SenLgt_Avg | C43: 2022 Bill Impacts (Average Consumption Level) - Sen Lgt
A44: BI Template_EnergyUNM | B44: BI_SenLgt_High | C44: 2022 Bill Impacts (High Consumption Level) - Sen Lgt
A45: BI Template_EnergyUNM | B45: BI_USL_Low | C45: 2022 Bill Impacts (Low Consumption Level) - USL
A46: BI Template_EnergyUNM | B46: BI_USL_Avg | C46: 2022 Bill Impacts (Average Consumption Level) - USL
A47: BI Template_EnergyUNM | B47: BI_USL_High | C47: 2022 Bill Impacts (High Consumption Level) - USL
A48: BI Template_Demand | B48: BI_Dgen_Low | C48: 2022 Bill Impacts (Low Consumption Level) - Dgen
A49: BI Template_Demand | B49: BI_Dgen_Avg | C49: 2022 Bill Impacts (Average Consumption Level) - Dgen
A50: BI Template_Demand | B50: BI_Dgen_High | C50: 2022 Bill Impacts (High Consumption Level) - Dgen
A51: BI Template_Demand | B51: BI_ST_Low | C51: 2022 Bill Impacts (Low Consumption Level) - ST
A52: BI Template_Demand | B52: BI_ST_Avg | C52: 2022 Bill Impacts (Average Consumption Level) - ST
A53: BI Template_Demand | B53: BI_ST_High | C53: 2022 Bill Impacts (High Consumption Level) - ST
A54: BI Template_Demand | B54: BI_ST_Avg_NonWMP | C54: 2022 Bill Impacts (Average Consumption Level) - ST (include GA Rider)
A55: BI Template_Demand | B55: BI_ST_Avg_NonWMP_exclGA | C55: 2022 Bill Impacts (Average Consumption Level) - ST (exclude GA Rider)

Sheet Data BI Summary (hidden)
A2: Summary Column | B2: Current Total Bill | C2: Change in DX Bill ($) | D2: Change in DX Bill (%) | E2: Change in Total Bill ($) | F2: Change in Total Bill (%) | G2: Change in RTSR
A3: BI Template_Energy | B3: Total Amount on TOU | C3: Sub-Total: Distribution (excluding pass through) | D3: Sub-Total: Distribution (excluding pass through) | E3: Total Amount on TOU | F3: Total Amount on TOU | G3: Sub-Total: Retail Transmission | H3: Fixed Deferral/Variance Account Rider (General)
A4: BI Template_EnergyUNM | B4: Total Amount on Two-Tier RPP | C4: Sub-Total: Distribution (excluding pass through) | D4: Sub-Total: Distribution (excluding pass through) | E4: Total Amount on Two-Tier RPP | F4: Total Amount on Two-Tier RPP | G4: Sub-Total: Retail Transmission | H4: Fixed Deferral/Variance Account Rider (General)
A5: BI Template_Demand | B5: Total Amount | C5: Sub-Total: Distribution | D5: Sub-Total: Distribution | E5: Total Amount | F5: Total Amount | G5: Sub-Total: Retail Transmission | H5: Fixed Deferral/Variance Account Rider (General)

Sheet BI Template_Energy (hidden)
A1: 2022 Bill Impacts (Average Consumption Level) - R1
A3: Rate Class | B3: =RIGHT(A1,LEN(A1)-FIND("- ",A1,1)-1) -> R1
A4: Monthly Consumption (kWh) | B4: =IF(COUNTIF(A1,"*Low*")>0,VLOOKUP(B3,'Data Billing Quantities'!$A:$Z,MATCH("Low kWh",'Data Billing Quantities'!4:4,0),FALSE),IF(COUNTIF(A1,"*Typical*")>0,VLOOKUP(B3,'Data Billing Quantities'!$A:$Z,MATCH("Typical kWh",'Data Billing Quantities'!4:4,0),FALSE),IF(COUNTIF(A1,"*Average*")>0,VLOOKUP(B3,'Data Billing Quantities'!$A:$Z,MATCH("Average kWh",'Data Billing Quantities'!4:4,0),FALSE),IF(COUNTIF(A1,"*High*")>0,VLOOKUP(B3,'Data Billing Quantities'!$A:$Z,MATCH("High kWh",'Data Billing Quantities'!4:4,0),FALSE),"error")))) -> 920
A5: Peak (kW) | B5: =IF(COUNTIF(A1,"*Low*")>0,VLOOKUP(B3,'Data Billing Quantities'!$A:$Z,MATCH("Low kW",'Data Billing Quantities'!4:4,0),FALSE),IF(COUNTIF(A1,"*Typical*")>0,VLOOKUP(B3,'Data Billing Quantities'!$A:$Z,MATCH("Typical kW",'Data Billing Quantities'!4:4,0),FALSE),IF(COUNTIF(A1,"*Average*")>0,VLOOKUP(B3,'Data Billing Quantities'!$A:$Z,MATCH("Average kW",'Data Billing Quantities'!4:4,0),FALSE),IF(COUNTIF(A1,"*High*")>0,VLOOKUP(B3,'Data Billing Quantities'!$A:$Z,MATCH("High kW",'Data Billing Quantities'!4:4,0),FALSE),"error")))) -> 0
A6: Loss factor | B6: =VLOOKUP(B3,'Data Billing Quantities'!A:D,MATCH(A6,'Data Billing Quantities'!4:4,0),FALSE) -> 1.076
A7: Commodity Threshold | B7: =VLOOKUP(B3,'Data Billing Quantities'!A:D,MATCH(A7,'Data Billing Quantities'!4:4,0),FALSE) -> 600
A8: Monthly Consumption (kWh) - Uplifted | B8: =B4*B6 -> 989.92
A9: Charge determinant | B9: =VLOOKUP(B3,'Data Billing Quantities'!A:D,MATCH(A9,'Data Billing Quantities'!4:4,0),FALSE) -> kWh
B11: Volume | C11: Current Rate ($) | D11: Current Charge ($) | E11: Volume | F11: Proposed Rate ($) | G11: Proposed Charge ($) | H11: Change ($) | I11: Change (%) | J11: % of Total Bill on RPP | K11: % of Total Bill on TOU
A12: Energy First Tier | B12: =IF(B4>B7,B7,B4) -> 600 | C12: =VLOOKUP($A12,'Data Pass Through'!$A:$D,2,FALSE) -> 0.098 | D12: =B12*C12 -> 58.8 | E12: =B12 -> 600 | F12: =VLOOKUP($A12,'Data Pass Through'!$A:$D,3,FALSE) -> 0.098 | G12: =E12*F12 -> 58.8 | H12: =G12-D12 -> 0 | I12: =IF(ISERROR(H12/ABS(D12)),"N/A",(H12/ABS(D12))) -> 0 | J12: =G12/$G$49 -> 0.3835869318
A13: Energy Second Tier | B13: =IF(B4>B7,(B4)-B7,0) -> 320 | C13: =VLOOKUP($A13,'Data Pass Through'!$A:$D,2,FALSE) -> 0.115 | D13: =B13*C13 -> 36.8 | E13: =B13 -> 320 | F13: =VLOOKUP($A13,'Data Pass Through'!$A:$D,3,FALSE) -> 0.115 | G13: =E13*F13 -> 36.8 | H13: 0 | I13: 0 | J13: =G13/$G$49 -> 0.2400680117
A14: Sub-Total: Energy (RPP Tiered) | D14: =SUM(D12:D13) -> 95.6 | G14: =SUM(G12:G13) -> 95.6 | H14: 0 | I14: 0 | J14: =G14/$G$49 -> 0.6236549436
A15: TOU-Off Peak | B15: =B$4*VLOOKUP($B$3,'Data Billing Quantities'!$A:$O,MATCH('BI Template_Energy'!$A15,'Data Billing Quantities'!$4:$4,0),FALSE) -> 588.8 | C15: =VLOOKUP($A15,'Data Pass Through'!$A:$D,2,FALSE) -> 0.082 | D15: =B15*C15 -> 48.2816 | E15: 588.8 | F15: =VLOOKUP($A15,'Data Pass Through'!$A:$D,3,FALSE) -> 0.082 | G15: =E15*F15 -> 48.2816 | H15: 0 | I15: 0 | K15: =G15/$G$54 -> 0.3174308608
A16: TOU-Mid Peak | B16: =B$4*VLOOKUP($B$3,'Data Billing Quantities'!$A:$O,MATCH('BI Template_Energy'!$A16,'Data Billing Quantities'!$4:$4,0),FALSE) -> 165.6 | C16: =VLOOKUP($A16,'Data Pass Through'!$A:$D,2,FALSE) -> 0.113 | D16: =B16*C16 -> 18.7128 | E16: 165.6 | F16: =VLOOKUP($A16,'Data Pass Through'!$A:$D,3,FALSE) -> 0.113 | G16: =E16*F16 -> 18.7128 | H16: 0 | I16: 0 | K16: 0.123028653
A17: TOU-On Peak | B17: =B$4*VLOOKUP($B$3,'Data Billing Quantities'!$A:$O,MATCH('BI Template_Energy'!$A17,'Data Billing Quantities'!$4:$4,0),FALSE) -> 165.6 | C17: =VLOOKUP($A17,'Data Pass Through'!$A:$D,2,FALSE) -> 0.17 | D17: =B17*C17 -> 28.152 | E17: 165.6 | F17: =VLOOKUP($A17,'Data Pass Through'!$A:$D,3,FALSE) -> 0.17 | G17: =E17*F17 -> 28.152 | H17: 0 | I17: 0 | K17: 0.185087354
A18: Sub-Total: Energy (RPP TOU) | D18: =SUM(D15:D17) -> 95.1464 | G18: =SUM(G15:G17) -> 95.1464 | H18: 0 | I18: 0 | J18: =G18/$G$49 -> 0.6206958444 | K18: 0.6255468678
A19: Service Charge | B19: 1 | C19: =IF(ISERROR(VLOOKUP($B$3,'Data Current Rates'!$A:$BE,MATCH('BI Template_Energy'!$A19,CurrentHeader,0),FALSE)),0,VLOOKUP($B$3,'Data Current Rates'!$A:$BE,MATCH('BI Template_Energy'!$A19,CurrentHeader,0),FALSE)) -> 49.04 | D19: =B19*C19 -> 49.04 | E19: 1 | F19: =VLOOKUP($B$3,'Data Proposed Rates'!$A:$BC,MATCH('BI Template_Energy'!$A19,ProposedHeader,0),FALSE) -> 56.06 | G19: =E19*F19 -> 56.06 | H19: 7.02 | I19: 0.1431484502 | J19: 0.3657123027 | K19: 0.3685705125
A20: Base Rate Adjustment to Recover Past Tax Amounts FIXED | B20: 1 | C20: =IF(ISERROR(VLOOKUP($B$3,'Data Current Rates'!$A:$BE,MATCH('BI Template_Energy'!$A20,CurrentHeader,0),FALSE)),0,VLOOKUP($B$3,'Data Current Rates'!$A:$BE,MATCH('BI Template_Energy'!$A20,CurrentHeader,0),FALSE)) -> 1.56 | D20: =B20*C20 -> 1.56 | E20: 1 | F20: =VLOOKUP($B$3,'Data Proposed Rates'!$A:$BC,MATCH('BI Template_Energy'!$A20,ProposedHeader,0),FALSE) -> 1.56 | G20: =E20*F20 -> 1.56 | H20: =G20-D20 -> 0 | I20: =IF(ISERROR(H20/ABS(D20)),"N/A",(H20/ABS(D20))) -> 0 | J20: 0.01017679615 | K20: 0.01025633249
A21: Fixed Deferral/Variance Account Rider (General) | B21: 1 | C21: =IF(ISERROR(VLOOKUP($B$3,'Data Current Rates'!$A:$BE,MATCH('BI Template_Energy'!$A21,CurrentHeader,0),FALSE)),0,VLOOKUP($B$3,'Data Current Rates'!$A:$BE,MATCH('BI Template_Energy'!$A21,CurrentHeader,0),FALSE)) -> -0.14 | D21: -0.14 | H21: 0.14 | I21: 1 | J21: 0 | K21: 0
A22: Fixed ESM Rider | B22: 1 | C22: =IF(ISERROR(VLOOKUP($B$3,'Data Current Rates'!$A:$BE,MATCH('BI Template_Energy'!$A22,CurrentHeader,0),FALSE)),0,VLOOKUP($B$3,'Data Current Rates'!$A:$BE,MATCH('BI Template_Energy'!$A22,CurrentHeader,0),FALSE)) -> -0.85 | D22: =B22*C22 -> -0.85 | H22: =G22-D22 -> 0.85 | I22: =IF(ISERROR(H22/ABS(D22)),"N/A",(H22/ABS(D22))) -> 1 | J22: 0 | K22: 0
A23: Distribution Volumetric Charge | B23: =IF($B$9="kWh",$B$4,$B$5) -> 920 | C23: =IF(ISERROR(VLOOKUP($B$3,'Data Current Rates'!$A:$BE,MATCH('BI Template_Energy'!$A23,CurrentHeader,0),FALSE)),0,VLOOKUP($B$3,'Data Current Rates'!$A:$BE,MATCH('BI Template_Energy'!$A23,CurrentHeader,0),FALSE)) -> 0.0141 | D23: 12.972 | E23: =IF($B$9="kWh",$B$4,$B$5) -> 920 | F23: =VLOOKUP($B$3,'Data Proposed Rates'!$A:$BC,MATCH('BI Template_Energy'!$A23,ProposedHeader,0),FALSE) -> 0.01 | G23: 9.2 | H23: -3.772 | I23: -0.2907801418 | J23: 0.06001700294 | K23: 0.06048606341
A24: Base Rate Adjustment to Recover Past Tax Amounts VOL | B24: =IF($B$9="kWh",$B$4,$B$5) -> 920 | C24: =IF(ISERROR(VLOOKUP($B$3,'Data Current Rates'!$A:$BE,MATCH('BI Template_Energy'!$A24,CurrentHeader,0),FALSE)),0,VLOOKUP($B$3,'Data Current Rates'!$A:$BE,MATCH('BI Template_Energy'!$A24,CurrentHeader,0),FALSE)) -> 0 | D24: 0 | E24: =IF($B$9="kWh",$B$4,$B$5) -> 920 | F24: =VLOOKUP($B$3,'Data Proposed Rates'!$A:$BC,MATCH('BI Template_Energy'!$A24,ProposedHeader,0),FALSE) -> 0 | G24: =E24*F24 -> 0 | H24: =G24-D24 -> 0 | I24: =IF(ISERROR(H24/ABS(D24)),"N/A",(H24/ABS(D24))) -> N/A | J24: 0 | K24: 0
A25: Volumetric Deferral/Variance Account Rider (General) | B25: =IF($B$9="kWh",$B$4,$B$5) -> 920 | C25: =IF(ISERROR(VLOOKUP($B$3,'Data Current Rates'!$A:$BE,MATCH('BI Template_Energy'!$A25,CurrentHeader,0),FALSE)),0,VLOOKUP($B$3,'Data Current Rates'!$A:$BE,MATCH('BI Template_Energy'!$A25,CurrentHeader,0),FALSE)) -> -0.0008 | D25: -0.736 | H25: 0.736 | I25: 1 | J25: 0 | K25: 0
A26: Volumetric ESM Rider | B26: 920 | C26: =IF(ISERROR(VLOOKUP($B$3,'Data Current Rates'!$A:$BE,MATCH('BI Template_Energy'!$A26,CurrentHeader,0),FALSE)),0,VLOOKUP($B$3,'Data Current Rates'!$A:$BE,MATCH('BI Template_Energy'!$A26,CurrentHeader,0),FALSE)) -> 0 | D26: =B26*C26 -> 0 | H26: 0 | I26: N/A | J26: 0 | K26: 0
A27: Fair Hydro Plan - Distribution Rate Protection Savings* | D27: =IF(AND(B3<>"R1",B3<>"R2"),0,IF(VLOOKUP($A27,'Data Pass Through'!$A:$D,2,FALSE)=0,0,IF(SUM(D19:D20,D23:D24)<VLOOKUP($A27,'Data Pass Through'!$A:$D,2,FALSE),0,VLOOKUP($A27,'Data Pass Through'!$A:$D,2,FALSE)-SUM(D19:D20,D23:D24)))) -> -26.712 | G27: =IF(AND(B3<>"R1",B3<>"R2"),0,IF(VLOOKUP($A27,'Data Pass Through'!$A:$D,2,FALSE)=0,0,IF(SUM(G19:G20,G23:G24)<VLOOKUP($A27,'Data Pass Through'!$A:$D,2,FALSE),0,VLOOKUP($A27,'Data Pass Through'!$A:$D,2,FALSE)-SUM(G19:G20,G23:G24)))) -> -29.96 | H27: -3.248 | I27: -0.1215932914 | J27: -0.1954466748 | K27: -0.1969741804
A28: Sub-Total: Distribution (excluding pass through) | D28: =SUM(INDIRECT("D19:D"&ROW()-1)) -> 35.134 | G28: =SUM(INDIRECT("g19:g"&ROW()-1)) -> 36.86 | H28: =G28-D28 -> 1.726 | I28: =IF(ISERROR(H28/ABS(D28)),"N/A",(H28/ABS(D28))) -> 0.04912620254 | J28: 0.240459427 | K28: 0.242338728
A29: Smart Metering Entity Charge | B29: 1 | C29: =VLOOKUP($A29,'Data Pass Through'!$A:$D,2,FALSE) -> 0.57 | D29: =B29*C29 -> 0.57 | E29: 1 | F29: =VLOOKUP($A29,'Data Pass Through'!$A:$D,3,FALSE) -> 0.57 | G29: =E29*F29 -> 0.57 | H29: 0 | I29: 0 | J29: 0.003718444747 | K29: 0.003747506103
A30: Line Losses on Cost of Power (based on two-tier RPP prices) | B30: =B8-B4 -> 69.92 | C30: =IF(B4>B7,C13,C12) -> 0.115 | D30: =B30*C30 -> 8.0408 | E30: 69.92 | F30: =IF(B4>B7,F13,F12) -> 0.115 | G30: =E30*F30 -> 8.0408 | H30: 0 | I30: 0 | J30: 0.05245486057 | K30: 0.05286481942
A31: Line Losses on Cost of Power (based on TOU prices) | B31: =B8-B4 -> 69.92 | C31: =VLOOKUP($B$3,'Data Billing Quantities'!$A:$O,MATCH('BI Template_Energy'!$A15,'Data Billing Quantities'!$4:$4,0),FALSE)*C15+VLOOKUP($B$3,'Data Billing Quantities'!$A:$O,MATCH('BI Template_Energy'!$A16,'Data Billing Quantities'!$4:$4,0),FALSE)*C16+VLOOKUP($B$3,'Data Billing Quantities'!$A:$O,MATCH('BI Template_Energy'!$A17,'Data Billing Quantities'!$4:$4,0),FALSE)*C17 -> 0.10342 | D31: =B31*C31 -> 7.2311264 | E31: 69.92 | F31: =VLOOKUP($B$3,'Data Billing Quantities'!$A:$O,MATCH('BI Template_Energy'!$A15,'Data Billing Quantities'!$4:$4,0),FALSE)*F15+VLOOKUP($B$3,'Data Billing Quantities'!$A:$O,MATCH('BI Template_Energy'!$A16,'Data Billing Quantities'!$4:$4,0),FALSE)*F16+VLOOKUP($B$3,'Data Billing Quantities'!$A:$O,MATCH('BI Template_Energy'!$A17,'Data Billing Quantities'!$4:$4,0),FALSE)*F17 -> 0.10342 | G31: =E31*F31 -> 7.2311264 | H31: 0 | I31: 0 | J31: 0.04717288417 | K31: 0.04754156195
A32: Sub-Total: Distribution (based on two-tier RPP prices) | D32: =SUM(D28,D29:D30) -> 43.7448 | G32: =SUM(G28,G29:G30) -> 45.4708 | H32: 1.726 | I32: 0.03945611821 | J32: 0.2966327323 | K32: 0.2989510535
A33: Sub-Total: Distribution (based on TOU prices) | D33: =SUM(D28,D29,D31) -> 42.9351264 | G33: =SUM(G28,G29,G31) -> 44.6611264 | H33: 1.726 | I33: 0.04020018443 | J33: 0.2913507559 | K33: 0.293627796
A34: Retail Transmission Rate – Network Service Rate | B34: =B8 -> 989.92 | C34: =VLOOKUP($B$3,'Data Current Rates'!$A:$BE,MATCH('BI Template_Energy'!$A34,CurrentHeader,0),FALSE) -> 0.0082 | D34: =B34*C34 -> 8.117344 | E34: 989.92 | F34: =VLOOKUP($B$3,'Data Proposed Rates'!$A:$BC,MATCH('BI Template_Energy'!$A34,ProposedHeader,0),FALSE) -> 0.0103 | G34: =E34*F34 -> 10.196176 | H34: =G34-D34 -> 2.078832 | I34: 0.256097561 | J34: 0.06651564401 | K34: 0.06703549436
A35: Retail Transmission Rate – Line and Transformation Connection Service Rate | B35: =B8 -> 989.92 | C35: =VLOOKUP($B$3,'Data Current Rates'!$A:$BE,MATCH('BI Template_Energy'!$A35,CurrentHeader,0),FALSE) -> 0.0073 | D35: =B35*C35 -> 7.226416 | E35: 989.92 | F35: =VLOOKUP($B$3,'Data Proposed Rates'!$A:$BC,MATCH('BI Template_Energy'!$A35,ProposedHeader,0),FALSE) -> 0.0076 | G35: =E35*F35 -> 7.523392 | H35: =G35-D35 -> 0.296976 | I35: 0.04109589041 | J35: 0.04907950432 | K35: 0.04946308322
A36: Sub-Total: Retail Transmission | D36: =SUM(D34:D35) -> 15.34376 | G36: =SUM(G34:G35) -> 17.719568 | H36: =G36-D36 -> 2.375808 | I36: 0.1548387097 | J36: 0.1155951483 | K36: 0.1164985776
A37: Sub-Total: Delivery (based on two-tier RPP prices) | D37: =D32+D36 -> 59.08856 | G37: =G32+G36 -> 63.190368 | H37: =G37-D37 -> 4.101808 | I37: 0.06941797194 | J37: 0.4122278806 | K37: 0.4154496311
A38: Sub-Total: Delivery (based on TOU prices) | D38: =D33+D36 -> 58.2788864 | G38: =G33+G36 -> 62.3806944 | H38: =G38-D38 -> 4.101808 | I38: 0.07038240182 | J38: 0.4069459042 | K38: 0.4101263736
A39: Wholesale Market Service Rate (WMS) - not including CBR | B39: =B8 -> 989.92 | C39: =VLOOKUP($A39,'Data Pass Through'!$A:$D,2,FALSE) -> 0.003 | D39: =B39*C39 -> 2.96976 | E39: =$B$8 -> 989.92 | F39: =VLOOKUP($A39,'Data Pass Through'!$A:$D,3,FALSE) -> 0.003 | G39: =E39*F39 -> 2.96976 | H39: 0 | I39: 0 | J39: 0.01937348855 | K39: 0.01952490127
A40: Capacity Based Recovery (CBR) - Applicable for Class B Customers | B40: =B8 -> 989.92 | C40: =VLOOKUP($A40,'Data Pass Through'!$A:$D,2,FALSE) -> 0.0004 | D40: =B40*C40 -> 0.395968 | E40: =$B$8 -> 989.92 | F40: =VLOOKUP($A40,'Data Pass Through'!$A:$D,3,FALSE) -> 0.0004 | G40: =E40*F40 -> 0.395968 | H40: =G40-D40 -> 0 | I40: =IF(ISERROR(H40/ABS(D40)),"N/A",(H40/ABS(D40))) -> 0 | J40: 0.002583131806 | K40: 0.002603320169
A41: Rural Rate Protection Charge | B41: =B8 -> 989.92 | C41: =VLOOKUP($A41,'Data Pass Through'!$A:$D,2,FALSE) -> 0.0005 | D41: 0.49496 | E41: 989.92 | F41: =VLOOKUP($A41,'Data Pass Through'!$A:$D,3,FALSE) -> 0.0005 | G41: 0.49496 | H41: 0 | I41: 0 | J41: 0.003228914758 | K41: 0.003254150212
A42: Standard Supply Service – Administration Charge (if applicable) | B42: 1 | C42: =VLOOKUP($A42,'Data Pass Through'!$A:$D,2,FALSE) -> 0.25 | D42: =B42*C42 -> 0.25 | E42: 1 | F42: =VLOOKUP($A42,'Data Pass Through'!$A:$D,3,FALSE) -> 0.25 | G42: 0.25 | H42: 0 | I42: 0 | J42: 0.001630896819 | K42: 0.001643643028
A43: Sub-Total: Regulatory | D43: =SUM(D39:D42) -> 4.110688 | G43: =SUM(G39:G42) -> 4.110688 | H43: 0 | I43: 0 | J43: 0.02681643193 | K43: 0.02702601468
A44: Debt Retirement Charge (DRC) | B44: =B4 -> 920 | C44: =VLOOKUP($A44,'Data Pass Through'!$A:$D,2,FALSE) -> 0 | D44: =B44*C44 -> 0 | E44: 920 | F44: =VLOOKUP($A44,'Data Pass Through'!$A:$D,3,FALSE) -> 0 | G44: =E44*F44 -> 0 | H44: 0 | I44: N/A | J44: 0 | K44: 0
A45: Total Electricty Charge on Two-Tier RPP | D45: =SUM(D14,D28,D29,D30,D36,D43,D44) -> 158.799248 | G45: =SUM(G14,G28,G29,G30,G36,G43,G44) -> 162.901056 | H45: 4.101808 | I45: 0.02583014751 | J45: 1.062699256
A46: HST | C46: 0.13 | D46: =D45*C46 -> 20.64390224 | F46: =C46 -> 0.13 | G46: =G45*F46 -> 21.17713728 | H46: 0.53323504 | I46: 0.02583014751 | J46: 0.1381509033
A47: Total Electricity Charge on Two-Tier RPP (including HST) | D47: =SUM(D45:D46) -> 179.4431502 | G47: =SUM(G45:G46) -> 184.0781933 | H47: 4.63504304 | I47: 0.02583014751 | J47: 1.200850159
A48: Ontario Electricity Rebate (OER) | C48: ='Data Pass Through'!B20 -> -0.189 | D48: =D45*C48 -> -30.01305787 | F48: ='Data Pass Through'!C20 -> -0.189 | G48: =G45*F48 -> -30.78829958 | H48: -0.775241712 | I48: -0.02583014751 | J48: -0.2008501594
A49: Total Amount on Two-Tier RPP | D49: =SUM(D47:D48) -> 149.4300924 | G49: =SUM(G47:G48) -> 153.2898937 | H49: 3.859801328 | I49: 0.02583014751 | J49: 1
A50: Total Electricty Charge on TOU (before HST) | D50: =SUM(D18,D28,D29,D31,D36,D43,D44) -> 157.5359744 | G50: =SUM(G18,G28,G29,G31,G36,G43,G44) -> 161.6377824 | H50: 4.101808 | I50: 0.02603727825 | K50: =G50/$G$54 -> 1.062699256
A51: HST | C51: 0.13 | D51: =D50*C51 -> 20.47967667 | F51: =C51 -> 0.13 | G51: =G50*F51 -> 21.01291171 | H51: 0.53323504 | I51: 0.02603727825 | K51: =G51/$G$54 -> 0.1381509033
A52: Total Electricity Charge on TOU (including HST) | D52: =SUM(D50:D51) -> 178.0156511 | G52: =SUM(G50:G51) -> 182.6506941 | H52: 4.63504304 | I52: 0.02603727825 | K52: =G52/$G$54 -> 1.200850159
A53: Ontario Electricity Rebate (OER) | C53: ='Data Pass Through'!B20 -> -0.189 | D53: =D50*C53 -> -29.77429916 | F53: ='Data Pass Through'!C20 -> -0.189 | G53: =G50*F53 -> -30.54954087 | H53: -0.775241712 | I53: -0.02603727825 | K53: =G53/$G$54 -> -0.2008501594
A54: Total Amount on TOU | D54: =SUM(D52:D53) -> 148.2413519 | G54: =SUM(G52:G53) -> 152.1011532 | H54: 3.859801328 | I54: 0.02603727825 | K54: =G54/$G$54 -> 1
A55: * Distribution rate protection applies to R1 and R2 customers

Sheet BI Template_EnergyUNM (hidden)
A1: 2022 Bill Impacts (Average Consumption Level) - USL
A3: Rate Class | B3: =RIGHT(A1,LEN(A1)-FIND("- ",A1,1)-1) -> USL
A4: Monthly Consumption (kWh) | B4: =IF(COUNTIF(A1,"*Low*")>0,VLOOKUP(B3,'Data Billing Quantities'!$A:$Z,MATCH("Low kWh",'Data Billing Quantities'!4:4,0),FALSE),IF(COUNTIF(A1,"*Typical*")>0,VLOOKUP(B3,'Data Billing Quantities'!$A:$Z,MATCH("Typical kWh",'Data Billing Quantities'!4:4,0),FALSE),IF(COUNTIF(A1,"*Average*")>0,VLOOKUP(B3,'Data Billing Quantities'!$A:$Z,MATCH("Average kWh",'Data Billing Quantities'!4:4,0),FALSE),IF(COUNTIF(A1,"*High*")>0,VLOOKUP(B3,'Data Billing Quantities'!$A:$Z,MATCH("High kWh",'Data Billing Quantities'!4:4,0),FALSE),"error")))) -> 364
A5: Peak (kW) | B5: =IF(COUNTIF(A1,"*Low*")>0,VLOOKUP(B3,'Data Billing Quantities'!$A:$Z,MATCH("Low kW",'Data Billing Quantities'!4:4,0),FALSE),IF(COUNTIF(A1,"*Typical*")>0,VLOOKUP(B3,'Data Billing Quantities'!$A:$Z,MATCH("Typical kW",'Data Billing Quantities'!4:4,0),FALSE),IF(COUNTIF(A1,"*Average*")>0,VLOOKUP(B3,'Data Billing Quantities'!$A:$Z,MATCH("Average kW",'Data Billing Quantities'!4:4,0),FALSE),IF(COUNTIF(A1,"*High*")>0,VLOOKUP(B3,'Data Billing Quantities'!$A:$Z,MATCH("High kW",'Data Billing Quantities'!4:4,0),FALSE),"error")))) -> 0
A6: Loss factor | B6: =VLOOKUP(B3,'Data Billing Quantities'!A:D,MATCH(A6,'Data Billing Quantities'!4:4,0),FALSE) -> 1.092
A7: Commodity Threshold | B7: =VLOOKUP(B3,'Data Billing Quantities'!A:D,MATCH(A7,'Data Billing Quantities'!4:4,0),FALSE) -> 750
A8: Monthly Consumption (kWh) - Uplifted | B8: =B4*B6 -> 397.488
A9: Charge determinant | B9: =VLOOKUP(B3,'Data Billing Quantities'!A:D,MATCH(A9,'Data Billing Quantities'!4:4,0),FALSE) -> kWh
B11: Volume | C11: Current Rate ($) | D11: Current Charge ($) | E11: Volume | F11: Proposed Rate ($) | G11: Proposed Charge ($) | H11: Change ($) | I11: Change (%) | J11: % of Total Bill on RPP
A12: Energy First Tier | B12: =IF(B4>B7,B7,B4) -> 364 | C12: =VLOOKUP($A12,'Data Pass Through'!$A:$D,2,FALSE) -> 0.098 | D12: =B12*C12 -> 35.672 | E12: =B12 -> 364 | F12: =VLOOKUP($A12,'Data Pass Through'!$A:$D,3,FALSE) -> 0.098 | G12: =E12*F12 -> 35.672 | H12: =G12-D12 -> 0 | I12: =IF(ISERROR(H12/ABS(D12)),"N/A",(H12/ABS(D12))) -> 0 | J12: =G12/$G$41 -> 0.3950498997
A13: Energy Second Tier | B13: =IF(B4>B7,(B4)-B7,0) -> 0 | C13: =VLOOKUP($A13,'Data Pass Through'!$A:$D,2,FALSE) -> 0.115 | D13: =B13*C13 -> 0 | E13: =B13 -> 0 | F13: =VLOOKUP($A13,'Data Pass Through'!$A:$D,3,FALSE) -> 0.115 | G13: =E13*F13 -> 0 | H13: 0 | I13: N/A | J13: 0
A14: Sub-Total: Energy (RPP Tiered) | D14: =SUM(D12:D13) -> 35.672 | G14: =SUM(G12:G13) -> 35.672 | H14: 0 | I14: 0 | J14: 0.3950498997
A15: Service Charge | B15: 1 | C15: =VLOOKUP($B$3,'Data Current Rates'!$A:$BE,MATCH('BI Template_EnergyUNM'!$A15,CurrentHeader,0),FALSE) -> 37.58 | D15: =B15*C15 -> 37.58 | E15: 1 | F15: =VLOOKUP($B$3,'Data Proposed Rates'!$A:$BC,MATCH('BI Template_EnergyUNM'!$A15,ProposedHeader,0),FALSE) -> 39.8 | G15: =E15*F15 -> 39.8 | H15: 2.22 | I15: 0.05907397552 | J15: 0.4407654746
A16: Base Rate Adjustment to Recover Past Tax Amounts FIXED | B16: 1 | C16: =VLOOKUP($B$3,'Data Current Rates'!$A:$BE,MATCH('BI Template_EnergyUNM'!$A16,CurrentHeader,0),FALSE) -> 0.89 | D16: =B16*C16 -> 0.89 | E16: 1 | F16: =VLOOKUP($B$3,'Data Proposed Rates'!$A:$BC,MATCH('BI Template_EnergyUNM'!$A16,ProposedHeader,0),FALSE) -> 0.89 | G16: =E16*F16 -> 0.89 | H16: =G16-D16 -> 0 | I16: =IF(ISERROR(H16/ABS(D16)),"N/A",(H16/ABS(D16))) -> 0 | J16: 0.009856313376
A17: Fixed Deferral/Variance Account Rider (General) | B17: 1 | C17: =VLOOKUP($B$3,'Data Current Rates'!$A:$BE,MATCH('BI Template_EnergyUNM'!$A17,CurrentHeader,0),FALSE) -> 0 | D17: =B17*C17 -> 0 | H17: 0 | I17: N/A | J17: 0
A18: Fixed ESM Rider | B18: 1 | C18: =VLOOKUP($B$3,'Data Current Rates'!$A:$BE,MATCH('BI Template_EnergyUNM'!$A18,CurrentHeader,0),FALSE) -> -0.53 | D18: =B18*C18 -> -0.53 | H18: =G18-D18 -> 0.53 | I18: =IF(ISERROR(H18/ABS(D18)),"N/A",(H18/ABS(D18))) -> 1 | J18: 0
A19: Distribution Volumetric Charge | B19: =IF($B$9="kWh",$B$4,$B$5) -> 364 | C19: =VLOOKUP($B$3,'Data Current Rates'!$A:$BE,MATCH('BI Template_EnergyUNM'!$A19,CurrentHeader,0),FALSE) -> 0.0251 | D19: 9.1364 | E19: =IF($B$9="kWh",$B$4,$B$5) -> 364 | F19: =VLOOKUP($B$3,'Data Proposed Rates'!$A:$BC,MATCH('BI Template_EnergyUNM'!$A19,ProposedHeader,0),FALSE) -> 0.0265 | G19: 9.646 | H19: 0.5096 | I19: 0.05577689243 | J19: 0.1068247178
A20: Base Rate Adjustment to Recover Past Tax Amounts VOL | B20: =IF($B$9="kWh",$B$4,$B$5) -> 364 | C20: =VLOOKUP($B$3,'Data Current Rates'!$A:$BE,MATCH('BI Template_EnergyUNM'!$A20,CurrentHeader,0),FALSE) -> 0.0006 | D20: 0.2184 | E20: =IF($B$9="kWh",$B$4,$B$5) -> 364 | F20: =VLOOKUP($B$3,'Data Proposed Rates'!$A:$BC,MATCH('BI Template_EnergyUNM'!$A20,ProposedHeader,0),FALSE) -> 0.0006 | G20: =E20*F20 -> 0.2184 | H20: =G20-D20 -> 0 | I20: =IF(ISERROR(H20/ABS(D20)),"N/A",(H20/ABS(D20))) -> 0 | J20: 0.002418672855
A21: Volumetric Deferral/Variance Account Rider (General) | B21: =IF($B$9="kWh",$B$4,$B$5) -> 364 | C21: =VLOOKUP($B$3,'Data Current Rates'!$A:$BE,MATCH('BI Template_EnergyUNM'!$A21,CurrentHeader,0),FALSE) -> 0.0001 | D21: 0.0364 | H21: -0.0364 | I21: -1 | J21: 0
A22: Volumetric ESM Rider | B22: 364 | C22: =VLOOKUP($B$3,'Data Current Rates'!$A:$BE,MATCH('BI Template_EnergyUNM'!$A22,CurrentHeader,0),FALSE) -> -0.0004 | D22: =B22*C22 -> -0.1456 | H22: 0.1456 | I22: 1 | J22: 0
A23: Sub-Total: Distribution (excluding pass through) | D23: =SUM(INDIRECT("D15:D"&ROW()-1)) -> 47.1856 | G23: =SUM(INDIRECT("g15:g"&ROW()-1)) -> 50.5544 | H23: =G23-D23 -> 3.3688 | I23: 0.07139466278 | J23: 0.5598651786
A25: Line Losses on Cost of Power (based on two-tier RPP prices) | B25: =B8-B4 -> 33.488 | C25: =IF(B4>B7,C13,C12) -> 0.098 | D25: =B25*C25 -> 3.281824 | E25: 33.488 | F25: =IF(B4>B7,F13,F12) -> 0.098 | G25: =E25*F25 -> 3.281824 | H25: 0 | I25: 0 | J25: =G25/$G$41 -> 0.03634459077
A26: Sub-Total: Distribution (based on two-tier RPP prices) | D26: =SUM(D23,D24:D25) -> 50.467424 | G26: =SUM(G23,G24:G25) -> 53.836224 | H26: 3.3688 | I26: 0.06675197054 | J26: 0.5962097693
A27: Retail Transmission Rate – Network Service Rate | B27: =B8 -> 397.488 | C27: =VLOOKUP($B$3,'Data Current Rates'!$A:$BE,MATCH('BI Template_EnergyUNM'!$A27,CurrentHeader,0),FALSE) -> 0.0054 | D27: =B27*C27 -> 2.1464352 | E27: 397.488 | F27: =VLOOKUP($B$3,'Data Proposed Rates'!$A:$BC,MATCH('BI Template_EnergyUNM'!$A27,ProposedHeader,0),FALSE) -> 0.0068 | G27: =E27*F27 -> 2.7029184 | H27: =G27-D27 -> 0.5564832 | I27: 0.2592592593 | J27: 0.02993349526
A28: Retail Transmission Rate – Line and Transformation Connection Service Rate | B28: =B8 -> 397.488 | C28: =VLOOKUP($B$3,'Data Current Rates'!$A:$BE,MATCH('BI Template_EnergyUNM'!$A28,CurrentHeader,0),FALSE) -> 0.0046 | D28: =B28*C28 -> 1.8284448 | E28: 397.488 | F28: =VLOOKUP($B$3,'Data Proposed Rates'!$A:$BC,MATCH('BI Template_EnergyUNM'!$A28,ProposedHeader,0),FALSE) -> 0.0049 | G28: =E28*F28 -> 1.9476912 | H28: =G28-D28 -> 0.1192464 | I28: 0.0652173913 | J28: 0.02156972452
A29: Sub-Total: Retail Transmission | D29: =SUM(D27:D28) -> 3.97488 | G29: =SUM(G27:G28) -> 4.6506096 | H29: =G29-D29 -> 0.6757296 | I29: 0.17 | J29: 0.05150321978
A30: Sub-Total: Delivery (based on two-tier RPP prices) | D30: =D26+D29 -> 54.442304 | G30: =G26+G29 -> 58.4868336 | H30: =G30-D30 -> 4.0445296 | I30: 0.07429019903 | J30: 0.6477129891
A31: Wholesale Market Service Rate (WMS) - not including CBR | B31: =B8 -> 397.488 | C31: =VLOOKUP($A31,'Data Pass Through'!$A:$D,2,FALSE) -> 0.003 | D31: =B31*C31 -> 1.192464 | E31: =$B$8 -> 397.488 | F31: =VLOOKUP($A31,'Data Pass Through'!$A:$D,3,FALSE) -> 0.003 | G31: =E31*F31 -> 1.192464 | H31: =G31-D31 -> 0 | I31: 0 | J31: 0.01320595379
A32: Capacity Based Recovery (CBR) - Applicable for Class B Customers | B32: =B8 -> 397.488 | C32: =VLOOKUP($A32,'Data Pass Through'!$A:$D,2,FALSE) -> 0.0004 | D32: =B32*C32 -> 0.1589952 | E32: =$B$8 -> 397.488 | F32: =VLOOKUP($A32,'Data Pass Through'!$A:$D,3,FALSE) -> 0.0004 | G32: =E32*F32 -> 0.1589952 | H32: 0 | I32: 0 | J32: 0.001760793839
A33: Rural Rate Protection Charge | B33: =B8 -> 397.488 | C33: =VLOOKUP($A33,'Data Pass Through'!$A:$D,2,FALSE) -> 0.0005 | D33: 0.198744 | E33: 397.488 | F33: =VLOOKUP($A33,'Data Pass Through'!$A:$D,3,FALSE) -> 0.0005 | G33: 0.198744 | H33: 0 | I33: 0 | J33: 0.002200992298
A34: Standard Supply Service – Administration Charge (if applicable) | B34: 1 | C34: =VLOOKUP($A34,'Data Pass Through'!$A:$D,2,FALSE) -> 0.25 | D34: =B34*C34 -> 0.25 | E34: 1 | F34: =VLOOKUP($A34,'Data Pass Through'!$A:$D,3,FALSE) -> 0.25 | G34: 0.25 | H34: 0 | I34: 0 | J34: 0.002768627353
A35: Sub-Total: Regulatory | D35: =SUM(D31:D34) -> 1.8002032 | G35: =SUM(G31:G34) -> 1.8002032 | H35: 0 | I35: 0 | J35: 0.01993636728
A36: Debt Retirement Charge (DRC) | B36: =B4 -> 364 | C36: =VLOOKUP($A36,'Data Pass Through'!$A:$D,2,FALSE) -> 0 | D36: =B36*C36 -> 0 | E36: 364 | F36: =VLOOKUP($A36,'Data Pass Through'!$A:$D,3,FALSE) -> 0 | G36: =E36*F36 -> 0 | H36: 0 | I36: N/A | J36: 0
A37: Total Electricty Charge on Two-Tier RPP | D37: =SUM(D14,D23,D24,D25,D29,D35,D36) -> 91.9145072 | G37: =SUM(G14,G23,G24,G25,G29,G35,G36) -> 95.9590368 | H37: 4.0445296 | I37: 0.04400316907 | J37: 1.062699256
A38: HST | C38: 0.13 | D38: =D37*C38 -> 11.94888594 | F38: =C38 -> 0.13 | G38: =G37*F38 -> 12.47467478 | H38: 0.525788848 | I38: 0.04400316907 | J38: 0.1381509033
A39: Total Electricity Charge on Two-Tier RPP (including HST) | D39: =SUM(D37:D38) -> 103.8633931 | G39: =SUM(G37:G38) -> 108.4337116 | H39: 4.570318448 | I39: 0.04400316907 | J39: 1.200850159
A40: Ontario Electricity Rebate (OER) | C40: ='Data Pass Through'!B20 -> -0.189 | D40: =D37*C40 -> -17.37184186 | F40: ='Data Pass Through'!C20 -> -0.189 | G40: =G37*F40 -> -18.13625796 | H40: -0.7644160944 | I40: -0.04400316907 | J40: -0.2008501594
A41: Total Amount on Two-Tier RPP | D41: =SUM(D39:D40) -> 86.49155128 | G41: =SUM(G39:G40) -> 90.29745363 | H41: 3.805902354 | I41: 0.04400316907 | J41: 1

Sheet BI Template_Demand (hidden)
A1: 2022 Bill Impacts (Average Consumption Level) - GSd
A3: Rate Class | B3: =RIGHT(A1,LEN(A1)-FIND("- ",A1,1)-1) -> GSd
A4: Monthly Consumption (kWh) | B4: =IF(COUNTIF(A1,"*Low*")>0,VLOOKUP(B3,'Data Billing Quantities'!$A:$Z,MATCH("Low kWh",'Data Billing Quantities'!4:4,0),FALSE),IF(COUNTIF(A1,"*Typical*")>0,VLOOKUP(B3,'Data Billing Quantities'!$A:$Z,MATCH("Typical kWh",'Data Billing Quantities'!4:4,0),FALSE),IF(COUNTIF(A1,"*Average*")>0,VLOOKUP(B3,'Data Billing Quantities'!$A:$Z,MATCH("Average kWh",'Data Billing Quantities'!4:4,0),FALSE),IF(COUNTIF(A1,"*High*")>0,VLOOKUP(B3,'Data Billing Quantities'!$A:$Z,MATCH("High kWh",'Data Billing Quantities'!4:4,0),FALSE),"error")))) -> 36104
A5: Peak (kW) | B5: =IF(COUNTIF(A1,"*Low*")>0,VLOOKUP(B3,'Data Billing Quantities'!$A:$Z,MATCH("Low kW",'Data Billing Quantities'!4:4,0),FALSE),IF(COUNTIF(A1,"*Typical*")>0,VLOOKUP(B3,'Data Billing Quantities'!$A:$Z,MATCH("Typical kW",'Data Billing Quantities'!4:4,0),FALSE),IF(COUNTIF(A1,"*Average*")>0,VLOOKUP(B3,'Data Billing Quantities'!$A:$Z,MATCH("Average kW",'Data Billing Quantities'!4:4,0),FALSE),IF(COUNTIF(A1,"*High*")>0,VLOOKUP(B3,'Data Billing Quantities'!$A:$Z,MATCH("High kW",'Data Billing Quantities'!4:4,0),FALSE),"error")))) -> 124
A6: Loss factor | B6: =VLOOKUP(B3,'Data Billing Quantities'!A:D,MATCH(A6,'Data Billing Quantities'!4:4,0),FALSE) -> 1.061
A7: Load factor | B7: =B4/(B5*730) -> 0.3988510826
A8: Monthly Consumption (kWh) - Uplifted | B8: =B4*B6 -> 38306.344
A9: Charge determinant | B9: =VLOOKUP(B3,'Data Billing Quantities'!A:D,MATCH(A9,'Data Billing Quantities'!4:4,0),FALSE) -> kW
B11: Volume | C11: Current Rate ($) | D11: Current Charge ($) | E11: Volume | F11: Proposed Rate ($) | G11: Proposed Charge ($) | H11: Change ($) | I11: Change (%) | J11: % of Total Bill
A12: Weighted Average Hourly Spot Price | B12: =B8 -> 38306.344 | C12: =VLOOKUP($A12,'Data Pass Through'!A:E,2,FALSE) -> 0.119 | D12: =B12*C12 -> 4558.454936 | E12: =B8 -> 38306.344 | F12: =VLOOKUP($A12,'Data Pass Through'!A:E,3,FALSE) -> 0.119 | G12: =E12*F12 -> 4558.454936 | H12: =G12-D12 -> 0 | I12: =IF(ISERROR(H12/ABS(D12)),"N/A",(H12/ABS(D12))) -> 0 | J12: =G12/$G$37 -> 0.5132796774
A13: Service Charge | B13: 1 | C13: =VLOOKUP($B$3,'Data Current Rates'!$A:$BE,MATCH($A13,CurrentHeader,0),FALSE) -> 108.28 | D13: =B13*C13 -> 108.28 | E13: =B13 -> 1 | F13: =VLOOKUP($B$3,'Data Proposed Rates'!$A:$BC,MATCH($A13,ProposedHeader,0),FALSE) -> 113.67 | G13: =E13*F13 -> 113.67 | H13: 5.39 | I13: 0.04977835242 | J13: 0.01279918344
A14: Base Rate Adjustment to Recover Past Tax Amounts FIXED | B14: 1 | C14: =VLOOKUP($B$3,'Data Current Rates'!$A:$BE,MATCH($A14,CurrentHeader,0),FALSE) -> 4.34 | D14: =B14*C14 -> 4.34 | E14: 1 | F14: =VLOOKUP($B$3,'Data Proposed Rates'!$A:$BC,MATCH($A14,ProposedHeader,0),FALSE) -> 4.34 | G14: =E14*F14 -> 4.34 | H14: =G14-D14 -> 0 | I14: =IF(ISERROR(H14/ABS(D14)),"N/A",(H14/ABS(D14))) -> 0 | J14: 0.0004886817642
A15: Fixed Deferral/Variance Account Rider (General) | B15: 1 | C15: =VLOOKUP($B$3,'Data Current Rates'!$A:$BE,MATCH($A15,CurrentHeader,0),FALSE) -> 0 | D15: =B15*C15 -> 0 | H15: 0 | I15: N/A | J15: 0
A16: Fixed ESM Rider | B16: 1 | C16: =VLOOKUP($B$3,'Data Current Rates'!$A:$BE,MATCH($A16,CurrentHeader,0),FALSE) -> -1.52 | D16: =B16*C16 -> -1.52 | H16: =G16-D16 -> 1.52 | I16: =IF(ISERROR(H16/ABS(D16)),"N/A",(H16/ABS(D16))) -> 1 | J16: 0
A17: Distribution Volumetric Charge | B17: =IF($B$9="kWh",$B$4,$B$5) -> 124 | C17: =VLOOKUP($B$3,'Data Current Rates'!$A:$BE,MATCH($A17,CurrentHeader,0),FALSE) -> 18.3296 | D17: 2272.8704 | E17: =$B$5 -> 124 | F17: =VLOOKUP($B$3,'Data Proposed Rates'!$A:$BC,MATCH($A17,ProposedHeader,0),FALSE) -> 19.3834 | G17: =E17*F17 -> 2403.5416 | H17: 130.6712 | I17: =IF(ISERROR(H17/ABS(D17)),"N/A",(H17/ABS(D17))) -> 0.0574917074 | J17: 0.2706375459
A18: Base Rate Adjustment to Recover Past Tax Amounts VOL | B18: =IF($B$9="kWh",$B$4,$B$5) -> 124 | C18: =VLOOKUP($B$3,'Data Current Rates'!$A:$BE,MATCH($A18,CurrentHeader,0),FALSE) -> 0.7338 | D18: =B18*C18 -> 90.9912 | E18: =$B$5 -> 124 | F18: =VLOOKUP($B$3,'Data Proposed Rates'!$A:$BC,MATCH($A18,ProposedHeader,0),FALSE) -> 0.7338 | G18: =E18*F18 -> 90.9912 | H18: =G18-D18 -> 0 | I18: =IF(ISERROR(H18/ABS(D18)),"N/A",(H18/ABS(D18))) -> 0 | J18: 0.01024556224
A19: Volumetric Deferral/Variance Account Rider (General) | B19: =IF($B$9="kWh",$B$4,$B$5) -> 124 | C19: =VLOOKUP($B$3,'Data Current Rates'!$A:$BE,MATCH($A19,CurrentHeader,0),FALSE) -> 0.0117 | D19: 1.4508 | H19: -1.4508 | I19: =IF(ISERROR(H19/ABS(D19)),"N/A",(H19/ABS(D19))) -> -1 | J19: 0
A20: Volumetric Deferral/Variance Account Rider (Sub-Account Global Adjustment) | B20: =B8 -> 38306.344 | C20: =VLOOKUP($B$3,'Data Current Rates'!$A:$BE,MATCH($A20,CurrentHeader,0),FALSE) -> -0.0039 | D20: -149.3947416 | H20: =G20-D20 -> 149.3947416 | I20: =IF(ISERROR(H20/ABS(D20)),"N/A",(H20/ABS(D20))) -> 1 | J20: 0
A21: Volumetric ESM Rider | B21: =IF($B$9="kWh",$B$4,$B$5) -> 124 | C21: =VLOOKUP($B$3,'Data Current Rates'!$A:$BE,MATCH($A21,CurrentHeader,0),FALSE) -> -0.2555 | D21: =B21*C21 -> -31.682 | H21: =G21-D21 -> 31.682 | I21: =IF(ISERROR(H21/ABS(D21)),"N/A",(H21/ABS(D21))) -> 1 | J21: 0
A22: Sub-Total: Distribution | D22: =SUM(INDIRECT("D13:D"&ROW()-1)) -> 2295.335658 | G22: =SUM(INDIRECT("g13:g"&ROW()-1)) -> 2612.5428 | H22: 317.2071416 | I22: 0.1381964073 | J22: 0.2941709734
A23: Retail Transmission Rate – Network Service Rate | B23: =B5 -> 124 | C23: =VLOOKUP($B$3,'Data Current Rates'!$A:$BE,MATCH($A23,CurrentHeader,0),FALSE) -> 2.0421 | D23: =B23*C23 -> 253.2204 | E23: 124 | F23: =VLOOKUP($B$3,'Data Proposed Rates'!$A:$BC,MATCH($A23,ProposedHeader,0),FALSE) -> 2.5526 | G23: =E23*F23 -> 316.5224 | H23: 63.302 | I23: 0.2499877577 | J23: 0.03564025918
A24: Retail Transmission Rate – Line and Transformation Connection Service Rate | B24: =B5 -> 124 | C24: =VLOOKUP($B$3,'Data Current Rates'!$A:$BE,MATCH($A24,CurrentHeader,0),FALSE) -> 1.7006 | D24: =B24*C24 -> 210.8744 | E24: 124 | F24: =VLOOKUP($B$3,'Data Proposed Rates'!$A:$BC,MATCH($A24,ProposedHeader,0),FALSE) -> 1.7916 | G24: =E24*F24 -> 222.1584 | H24: 11.284 | I24: 0.0535105257 | J24: 0.02501492139
A25: Sub-Total: Retail Transmission | D25: =SUM(D23:D24) -> 464.0948 | G25: =SUM(G23:G24) -> 538.6808 | H25: 74.586 | I25: 0.1607128544 | J25: 0.06065518057
A26: Sub-Total: Delivery | D26: =D22+D25 -> 2759.430458 | G26: =G22+G25 -> 3151.2236 | H26: 391.7931416 | I26: 0.1419833359 | J26: 0.354826154
A27: Wholesale Market Service Rate (WMS) - not including CBR | B27: =$B$8 -> 38306.344 | C27: =VLOOKUP($A27,'Data Pass Through'!$A:$D,2,FALSE) -> 0.003 | D27: =B27*C27 -> 114.919032 | E27: =$B$8 -> 38306.344 | F27: =VLOOKUP($A27,'Data Pass Through'!$A:$D,3,FALSE) -> 0.003 | G27: =E27*F27 -> 114.919032 | H27: 0 | I27: 0 | J27: 0.0129398238
A28: Capacity Based Recovery (CBR) - Applicable for Class B Customers | B28: =$B$8 -> 38306.344 | C28: =VLOOKUP($A28,'Data Pass Through'!$A:$D,2,FALSE) -> 0.0004 | D28: =B28*C28 -> 15.3225376 | E28: =$B$8 -> 38306.344 | F28: =VLOOKUP($A28,'Data Pass Through'!$A:$D,3,FALSE) -> 0.0004 | G28: =E28*F28 -> 15.3225376 | H28: =G28-D28 -> 0 | I28: 0 | J28: 0.00172530984
A29: Rural Rate Protection Charge | B29: =$B$8 -> 38306.344 | C29: =VLOOKUP($A29,'Data Pass Through'!$A:$D,2,FALSE) -> 0.0005 | D29: =B29*C29 -> 19.153172 | E29: =$B$8 -> 38306.344 | F29: =VLOOKUP($A29,'Data Pass Through'!$A:$D,3,FALSE) -> 0.0005 | G29: =E29*F29 -> 19.153172 | H29: =G29-D29 -> 0 | I29: 0 | J29: 0.0021566373
A30: Standard Supply Service – Administration Charge (if applicable) | B30: 1 | C30: =VLOOKUP($A30,'Data Pass Through'!$A:$D,2,FALSE) -> 0.25 | D30: =B30*C30 -> 0.25 | E30: 1 | F30: =VLOOKUP($A30,'Data Pass Through'!$A:$D,3,FALSE) -> 0.25 | G30: =E30*F30 -> 0.25 | H30: 0 | I30: 0 | J30: 2.814987121e-05
A31: Sub-Total: Regulatory | D31: =SUM(D27:D30) -> 149.6447416 | G31: =SUM(G27:G30) -> 149.6447416 | H31: 0 | I31: 0 | J31: 0.01684992081
A32: Debt Retirement Charge (DRC) | B32: =B4 -> 36104 | C32: =VLOOKUP($A32,'Data Pass Through'!$A:$D,2,FALSE) -> 0 | D32: =B32*C32 -> 0 | E32: =B4 -> 36104 | F32: =VLOOKUP($A32,'Data Pass Through'!$A:$D,3,FALSE) -> 0 | G32: =E32*F32 -> 0 | H32: 0 | I32: N/A | J32: 0
A33: Total Electricity Charge (before HST) | D33: =SUM(D12,D22,D25,D31,D32) -> 7467.530136 | G33: =SUM(G12,G22,G25,G31,G32) -> 7859.323278 | H33: 391.7931416 | I33: 0.05246622839 | J33: 0.8849557522
A34: HST | C34: 0.13 | D34: =D33*C34 -> 970.7789177 | F34: =C34 -> 0.13 | G34: =G33*F34 -> 1021.712026 | H34: 50.93310841 | I34: 0.05246622839 | J34: 0.1150442478
A35: Total Electricity Charge (including HST) | D35: =SUM(D33:D34) -> 8438.309054 | G35: =SUM(G33:G34) -> 8881.035304 | H35: 442.72625 | I35: 0.05246622839 | J35: 1
A36: Ontario Electricity Rebate (OER) | C36: 0 | D36: =D33*C36 -> 0 | F36: =C36 -> 0 | G36: =G33*F36 -> 0 | H36: 0 | I36: N/A | J36: 0
A37: Total Amount | D37: =SUM(D35:D36) -> 8438.309054 | G37: =SUM(G35:G36) -> 8881.035304 | H37: 442.72625 | I37: 0.05246622839 | J37: 1

Sheet BI_UR_Low
A1: 2022 Bill Impacts (Low Consumption Level) - UR
A3: Rate Class | B3: =RIGHT(A1,LEN(A1)-FIND("- ",A1,1)-1) -> UR
A4: Monthly Consumption (kWh) | B4: =IF(COUNTIF(A1,"*Low*")>0,VLOOKUP(B3,'Data Billing Quantities'!$A:$Z,MATCH("Low kWh",'Data Billing Quantities'!4:4,0),FALSE),IF(COUNTIF(A1,"*Typical*")>0,VLOOKUP(B3,'Data Billing Quantities'!$A:$Z,MATCH("Typical kWh",'Data Billing Quantities'!4:4,0),FALSE),IF(COUNTIF(A1,"*Average*")>0,VLOOKUP(B3,'Data Billing Quantities'!$A:$Z,MATCH("Average kWh",'Data Billing Quantities'!4:4,0),FALSE),IF(COUNTIF(A1,"*High*")>0,VLOOKUP(B3,'Data Billing Quantities'!$A:$Z,MATCH("High kWh",'Data Billing Quantities'!4:4,0),FALSE),"error")))) -> 350
A5: Peak (kW) | B5: =IF(COUNTIF(A1,"*Low*")>0,VLOOKUP(B3,'Data Billing Quantities'!$A:$Z,MATCH("Low kW",'Data Billing Quantities'!4:4,0),FALSE),IF(COUNTIF(A1,"*Typical*")>0,VLOOKUP(B3,'Data Billing Quantities'!$A:$Z,MATCH("Typical kW",'Data Billing Quantities'!4:4,0),FALSE),IF(COUNTIF(A1,"*Average*")>0,VLOOKUP(B3,'Data Billing Quantities'!$A:$Z,MATCH("Average kW",'Data Billing Quantities'!4:4,0),FALSE),IF(COUNTIF(A1,"*High*")>0,VLOOKUP(B3,'Data Billing Quantities'!$A:$Z,MATCH("High kW",'Data Billing Quantities'!4:4,0),FALSE),"error")))) -> 0
A6: Loss factor | B6: =VLOOKUP(B3,'Data Billing Quantities'!A:D,MATCH(A6,'Data Billing Quantities'!4:4,0),FALSE) -> 1.057
A7: Commodity Threshold | B7: =VLOOKUP(B3,'Data Billing Quantities'!A:D,MATCH(A7,'Data Billing Quantities'!4:4,0),FALSE) -> 600
A8: Monthly Consumption (kWh) - Uplifted | B8: =B4*B6 -> 369.95
A9: Charge determinant | B9: =VLOOKUP(B3,'Data Billing Quantities'!A:D,MATCH(A9,'Data Billing Quantities'!4:4,0),FALSE) -> kWh
B11: Volume | C11: Current Rate ($) | D11: Current Charge ($) | E11: Volume | F11: Proposed Rate ($) | G11: Proposed Charge ($) | H11: Change ($) | I11: Change (%) | J11: % of Total Bill on RPP | K11: % of Total Bill on TOU
A12: Energy First Tier | B12: =IF(B4>B7,B7,B4) -> 350 | C12: =VLOOKUP($A12,'Data Pass Through'!$A:$D,2,FALSE) -> 0.098 | D12: =B12*C12 -> 34.3 | E12: =B12 -> 350 | F12: =VLOOKUP($A12,'Data Pass Through'!$A:$D,3,FALSE) -> 0.098 | G12: =E12*F12 -> 34.3 | H12: =G12-D12 -> 0 | I12: =IF(ISERROR(H12/ABS(D12)),"N/A",(H12/ABS(D12))) -> 0 | J12: =G12/$G$49 -> 0.4312763004
A13: Energy Second Tier | B13: =IF(B4>B7,(B4)-B7,0) -> 0 | C13: =VLOOKUP($A13,'Data Pass Through'!$A:$D,2,FALSE) -> 0.115 | D13: =B13*C13 -> 0 | E13: =B13 -> 0 | F13: =VLOOKUP($A13,'Data Pass Through'!$A:$D,3,FALSE) -> 0.115 | G13: =E13*F13 -> 0 | H13: 0 | I13: N/A | J13: =G13/$G$49 -> 0
A14: Sub-Total: Energy (RPP Tiered) | D14: =SUM(D12:D13) -> 34.3 | G14: =SUM(G12:G13) -> 34.3 | H14: 0 | I14: 0 | J14: =G14/$G$49 -> 0.4312763004
A15: TOU-Off Peak | B15: =B$4*VLOOKUP($B$3,'Data Billing Quantities'!$A:$O,MATCH(BI_UR_Low!$A15,'Data Billing Quantities'!$4:$4,0),FALSE) -> 224 | C15: =VLOOKUP($A15,'Data Pass Through'!$A:$D,2,FALSE) -> 0.082 | D15: =B15*C15 -> 18.368 | E15: 224 | F15: =VLOOKUP($A15,'Data Pass Through'!$A:$D,3,FALSE) -> 0.082 | G15: =E15*F15 -> 18.368 | H15: 0 | I15: 0 | K15: =G15/$G$54 -> 0.2256006423
A16: TOU-Mid Peak | B16: =B$4*VLOOKUP($B$3,'Data Billing Quantities'!$A:$O,MATCH(BI_UR_Low!$A16,'Data Billing Quantities'!$4:$4,0),FALSE) -> 63 | C16: =VLOOKUP($A16,'Data Pass Through'!$A:$D,2,FALSE) -> 0.113 | D16: =B16*C16 -> 7.119 | E16: 63 | F16: =VLOOKUP($A16,'Data Pass Through'!$A:$D,3,FALSE) -> 0.113 | G16: =E16*F16 -> 7.119 | H16: 0 | I16: 0 | K16: 0.08743744404
A17: TOU-On Peak | B17: =B$4*VLOOKUP($B$3,'Data Billing Quantities'!$A:$O,MATCH(BI_UR_Low!$A17,'Data Billing Quantities'!$4:$4,0),FALSE) -> 63 | C17: =VLOOKUP($A17,'Data Pass Through'!$A:$D,2,FALSE) -> 0.17 | D17: =B17*C17 -> 10.71 | E17: 63 | F17: =VLOOKUP($A17,'Data Pass Through'!$A:$D,3,FALSE) -> 0.17 | G17: =E17*F17 -> 10.71 | H17: 0 | I17: 0 | K17: 0.1315430574
A18: Sub-Total: Energy (RPP TOU) | D18: =SUM(D15:D17) -> 36.197 | G18: =SUM(G15:G17) -> 36.197 | H18: 0 | I18: 0 | J18: =G18/$G$49 -> 0.4551285203 | K18: 0.4445811437
A19: Service Charge | B19: 1 | C19: =IF(ISERROR(VLOOKUP($B$3,'Data Current Rates'!$A:$BE,MATCH(BI_UR_Low!$A19,CurrentHeader,0),FALSE)),0,VLOOKUP($B$3,'Data Current Rates'!$A:$BE,MATCH(BI_UR_Low!$A19,CurrentHeader,0),FALSE)) -> 35.92 | D19: =B19*C19 -> 35.92 | E19: 1 | F19: =VLOOKUP($B$3,'Data Proposed Rates'!$A:$BC,MATCH(BI_UR_Low!$A19,ProposedHeader,0),FALSE) -> 38.03 | G19: =E19*F19 -> 38.03 | H19: 2.11 | I19: 0.05874164811 | J19: 0.4781760264 | K19: 0.4670945353
A20: Base Rate Adjustment to Recover Past Tax Amounts FIXED | B20: 1 | C20: =IF(ISERROR(VLOOKUP($B$3,'Data Current Rates'!$A:$BE,MATCH(BI_UR_Low!$A20,CurrentHeader,0),FALSE)),0,VLOOKUP($B$3,'Data Current Rates'!$A:$BE,MATCH(BI_UR_Low!$A20,CurrentHeader,0),FALSE)) -> 0.83 | D20: 0.83 | E20: 1 | F20: =VLOOKUP($B$3,'Data Proposed Rates'!$A:$BC,MATCH(BI_UR_Low!$A20,ProposedHeader,0),FALSE) -> 0.83 | G20: 0.83 | H20: 0 | I20: 0 | J20: 0.01043613205 | K20: 0.01019427989
A21: Fixed Deferral/Variance Account Rider (General) | B21: 1 | C21: =IF(ISERROR(VLOOKUP($B$3,'Data Current Rates'!$A:$BE,MATCH(BI_UR_Low!$A21,CurrentHeader,0),FALSE)),0,VLOOKUP($B$3,'Data Current Rates'!$A:$BE,MATCH(BI_UR_Low!$A21,CurrentHeader,0),FALSE)) -> -0.14 | D21: -0.14 | H21: 0.14 | I21: 1 | J21: 0 | K21: 0
A22: Fixed ESM Rider | B22: 1 | C22: =IF(ISERROR(VLOOKUP($B$3,'Data Current Rates'!$A:$BE,MATCH(BI_UR_Low!$A22,CurrentHeader,0),FALSE)),0,VLOOKUP($B$3,'Data Current Rates'!$A:$BE,MATCH(BI_UR_Low!$A22,CurrentHeader,0),FALSE)) -> -0.5 | D22: -0.5 | H22: 0.5 | I22: 1 | J22: 0 | K22: 0
A23: Distribution Volumetric Charge | B23: =IF($B$9="kWh",$B$4,$B$5) -> 350 | C23: =IF(ISERROR(VLOOKUP($B$3,'Data Current Rates'!$A:$BE,MATCH(BI_UR_Low!$A23,CurrentHeader,0),FALSE)),0,VLOOKUP($B$3,'Data Current Rates'!$A:$BE,MATCH(BI_UR_Low!$A23,CurrentHeader,0),FALSE)) -> 0 | D23: 0 | E23: =IF($B$9="kWh",$B$4,$B$5) -> 350 | F23: =VLOOKUP($B$3,'Data Proposed Rates'!$A:$BC,MATCH(BI_UR_Low!$A23,ProposedHeader,0),FALSE) -> 0 | G23: 0 | H23: 0 | I23: N/A | J23: 0 | K23: 0
A24: Base Rate Adjustment to Recover Past Tax Amounts VOL | B24: =IF($B$9="kWh",$B$4,$B$5) -> 350 | C24: =IF(ISERROR(VLOOKUP($B$3,'Data Current Rates'!$A:$BE,MATCH(BI_UR_Low!$A24,CurrentHeader,0),FALSE)),0,VLOOKUP($B$3,'Data Current Rates'!$A:$BE,MATCH(BI_UR_Low!$A24,CurrentHeader,0),FALSE)) -> 0 | D24: 0 | E24: =IF($B$9="kWh",$B$4,$B$5) -> 350 | F24: =VLOOKUP($B$3,'Data Proposed Rates'!$A:$BC,MATCH(BI_UR_Low!$A24,ProposedHeader,0),FALSE) -> 0 | G24: 0 | H24: 0 | I24: N/A | J24: 0 | K24: 0
A25: Volumetric Deferral/Variance Account Rider (General) | B25: =IF($B$9="kWh",$B$4,$B$5) -> 350 | C25: =IF(ISERROR(VLOOKUP($B$3,'Data Current Rates'!$A:$BE,MATCH(BI_UR_Low!$A25,CurrentHeader,0),FALSE)),0,VLOOKUP($B$3,'Data Current Rates'!$A:$BE,MATCH(BI_UR_Low!$A25,CurrentHeader,0),FALSE)) -> -0.0007 | D25: -0.245 | H25: 0.245 | I25: 1 | J25: 0 | K25: 0
A26: Volumetric ESM Rider | B26: 350 | C26: =IF(ISERROR(VLOOKUP($B$3,'Data Current Rates'!$A:$BE,MATCH(BI_UR_Low!$A26,CurrentHeader,0),FALSE)),0,VLOOKUP($B$3,'Data Current Rates'!$A:$BE,MATCH(BI_UR_Low!$A26,CurrentHeader,0),FALSE)) -> 0 | D26: 0 | H26: 0 | I26: N/A | J26: 0 | K26: 0
A27: Fair Hydro Plan - Distribution Rate Protection Savings* | D27: =IF(AND(B3<>"R1",B3<>"R2"),0,IF(VLOOKUP($A27,'Data Pass Through'!$A:$D,2,FALSE)=0,0,IF(SUM(D19:D20,D23:D24)<VLOOKUP($A27,'Data Pass Through'!$A:$D,2,FALSE),0,VLOOKUP($A27,'Data Pass Through'!$A:$D,2,FALSE)-SUM(D19:D20,D23:D24)))) -> 0 | G27: =IF(AND(B3<>"R1",B3<>"R2"),0,IF(VLOOKUP($A27,'Data Pass Through'!$A:$D,2,FALSE)=0,0,IF(SUM(G19:G20,G23:G24)<VLOOKUP($A27,'Data Pass Through'!$A:$D,2,FALSE),0,VLOOKUP($A27,'Data Pass Through'!$A:$D,2,FALSE)-SUM(G19:G20,G23:G24)))) -> 0 | H27: 0 | I27: N/A | J27: 0 | K27: 0
A28: Sub-Total: Distribution (excluding pass through) | D28: =SUM(INDIRECT("D19:D"&ROW()-1)) -> 35.865 | G28: =SUM(INDIRECT("g19:g"&ROW()-1)) -> 38.86 | H28: =G28-D28 -> 2.995 | I28: 0.08350759794 | J28: 0.4886121585 | K28: 0.4772888152
A29: Smart Metering Entity Charge | B29: 1 | C29: =VLOOKUP($A29,'Data Pass Through'!$A:$D,2,FALSE) -> 0.57 | D29: =B29*C29 -> 0.57 | E29: 1 | F29: =VLOOKUP($A29,'Data Pass Through'!$A:$D,3,FALSE) -> 0.57 | G29: =E29*F29 -> 0.57 | H29: 0 | I29: 0 | J29: 0.007166982252 | K29: 0.007000891011
A30: Line Losses on Cost of Power (based on two-tier RPP prices) | B30: =B8-B4 -> 19.95 | C30: =IF(B4>B7,C13,C12) -> 0.098 | D30: =B30*C30 -> 1.9551 | E30: 19.95 | F30: =IF(B4>B7,F13,F12) -> 0.098 | G30: =E30*F30 -> 1.9551 | H30: 0 | I30: 0 | J30: 0.02458274913 | K30: 0.02401305617
A31: Line Losses on Cost of Power (based on TOU prices) | B31: =B8-B4 -> 19.95 | C31: =VLOOKUP($B$3,'Data Billing Quantities'!$A:$O,MATCH(BI_UR_Low!$A15,'Data Billing Quantities'!$4:$4,0),FALSE)*C15+VLOOKUP($B$3,'Data Billing Quantities'!$A:$O,MATCH(BI_UR_Low!$A16,'Data Billing Quantities'!$4:$4,0),FALSE)*C16+VLOOKUP($B$3,'Data Billing Quantities'!$A:$O,MATCH(BI_UR_Low!$A17,'Data Billing Quantities'!$4:$4,0),FALSE)*C17 -> 0.10342 | D31: =B31*C31 -> 2.063229 | E31: 19.95 | F31: =VLOOKUP($B$3,'Data Billing Quantities'!$A:$O,MATCH(BI_UR_Low!$A15,'Data Billing Quantities'!$4:$4,0),FALSE)*F15+VLOOKUP($B$3,'Data Billing Quantities'!$A:$O,MATCH(BI_UR_Low!$A16,'Data Billing Quantities'!$4:$4,0),FALSE)*F16+VLOOKUP($B$3,'Data Billing Quantities'!$A:$O,MATCH(BI_UR_Low!$A17,'Data Billing Quantities'!$4:$4,0),FALSE)*F17 -> 0.10342 | G31: =E31*F31 -> 2.063229 | H31: 0 | I31: 0 | J31: 0.02594232566 | K31: 0.02534112519
A32: Sub-Total: Distribution (based on two-tier RPP prices) | D32: =SUM(D28,D29:D30) -> 38.3901 | G32: =SUM(G28,G29:G30) -> 41.3851 | H32: 2.995 | I32: 0.07801490488 | J32: 0.5203618898 | K32: 0.5083027624
A33: Sub-Total: Distribution (based on TOU prices) | D33: =SUM(D28,D29,D31) -> 38.498229 | G33: =SUM(G28,G29,G31) -> 41.493229 | H33: 2.995 | I33: 0.0777957864 | J33: 0.5217214664 | K33: 0.5096308314
A34: Retail Transmission Rate – Network Service Rate | B34: =B8 -> 369.95 | C34: =VLOOKUP($B$3,'Data Current Rates'!$A:$BE,MATCH(BI_UR_Low!$A34,CurrentHeader,0),FALSE) -> 0.0089 | D34: =B34*C34 -> 3.292555 | E34: 369.95 | F34: =VLOOKUP($B$3,'Data Proposed Rates'!$A:$BC,MATCH(BI_UR_Low!$A34,ProposedHeader,0),FALSE) -> 0.0112 | G34: =E34*F34 -> 4.14344 | H34: =G34-D34 -> 0.850885 | I34: 0.2584269663 | J34: 0.05209817709 | K34: 0.05089082781
A35: Retail Transmission Rate – Line and Transformation Connection Service Rate | B35: =B8 -> 369.95 | C35: =VLOOKUP($B$3,'Data Current Rates'!$A:$BE,MATCH(BI_UR_Low!$A35,CurrentHeader,0),FALSE) -> 0.0077 | D35: =B35*C35 -> 2.848615 | E35: 369.95 | F35: =VLOOKUP($B$3,'Data Proposed Rates'!$A:$BC,MATCH(BI_UR_Low!$A35,ProposedHeader,0),FALSE) -> 0.0081 | G35: =E35*F35 -> 2.996595 | H35: =G35-D35 -> 0.14798 | I35: 0.05194805195 | J35: 0.03767814593 | K35: 0.03680497368
A36: Sub-Total: Retail Transmission | D36: =SUM(D34:D35) -> 6.14117 | G36: =SUM(G34:G35) -> 7.140035 | H36: =G36-D36 -> 0.998865 | I36: 0.1626506024 | J36: 0.08977632303 | K36: 0.08769580149
A37: Sub-Total: Delivery (based on two-tier RPP prices) | D37: =D32+D36 -> 44.53127 | G37: =G32+G36 -> 48.525135 | H37: =G37-D37 -> 3.993865 | I37: 0.0896867527 | J37: 0.6101382129 | K37: 0.5959985639
A38: Sub-Total: Delivery (based on TOU prices) | D38: =D33+D36 -> 44.639399 | G38: =G33+G36 -> 48.633264 | H38: =G38-D38 -> 3.993865 | I38: 0.08946950652 | J38: 0.6114977894 | K38: 0.5973266329
A39: Wholesale Market Service Rate (WMS) - not including CBR | B39: =B8 -> 369.95 | C39: =VLOOKUP($A39,'Data Pass Through'!$A:$D,2,FALSE) -> 0.003 | D39: =B39*C39 -> 1.10985 | E39: =$B$8 -> 369.95 | F39: =VLOOKUP($A39,'Data Pass Through'!$A:$D,3,FALSE) -> 0.003 | G39: =E39*F39 -> 1.10985 | H39: 0 | I39: 0 | J39: 0.01395486886 | K39: 0.01363147173
A40: Capacity Based Recovery (CBR) - Applicable for Class B Customers | B40: =B8 -> 369.95 | C40: =VLOOKUP($A40,'Data Pass Through'!$A:$D,2,FALSE) -> 0.0004 | D40: =B40*C40 -> 0.14798 | E40: =$B$8 -> 369.95 | F40: =VLOOKUP($A40,'Data Pass Through'!$A:$D,3,FALSE) -> 0.0004 | G40: =E40*F40 -> 0.14798 | H40: 0 | I40: 0 | J40: 0.001860649182 | K40: 0.001817529565
A41: Rural Rate Protection Charge | B41: =B8 -> 369.95 | C41: =VLOOKUP($A41,'Data Pass Through'!$A:$D,2,FALSE) -> 0.0005 | D41: 0.184975 | E41: 369.95 | F41: =VLOOKUP($A41,'Data Pass Through'!$A:$D,3,FALSE) -> 0.0005 | G41: 0.184975 | H41: 0 | I41: 0 | J41: 0.002325811477 | K41: 0.002271911956
A42: Standard Supply Service – Administration Charge (if applicable) | B42: 1 | C42: =VLOOKUP($A42,'Data Pass Through'!$A:$D,2,FALSE) -> 0.25 | D42: =B42*C42 -> 0.25 | E42: 1 | F42: =VLOOKUP($A42,'Data Pass Through'!$A:$D,3,FALSE) -> 0.25 | G42: 0.25 | H42: 0 | I42: 0 | J42: 0.003143413269 | K42: 0.003070566233
A43: Sub-Total: Regulatory | D43: =SUM(D39:D42) -> 1.692805 | G43: =SUM(G39:G42) -> 1.692805 | H43: 0 | I43: 0 | J43: 0.02128474279 | K43: 0.02079147949
A44: Debt Retirement Charge (DRC) | B44: =B4 -> 350 | C44: =VLOOKUP($A44,'Data Pass Through'!$A:$D,2,FALSE) -> 0 | D44: =B44*C44 -> 0 | E44: 350 | F44: =VLOOKUP($A44,'Data Pass Through'!$A:$D,3,FALSE) -> 0 | G44: =E44*F44 -> 0 | H44: 0 | I44: N/A | J44: 0 | K44: 0
A45: Total Electricty Charge on Two-Tier RPP | D45: =SUM(D14,D28,D29,D30,D36,D43,D44) -> 80.524075 | G45: =SUM(G14,G28,G29,G30,G36,G43,G44) -> 84.51794 | H45: 3.993865 | I45: 0.0495983965 | J45: 1.062699256
A46: HST | C46: 0.13 | D46: =D45*C46 -> 10.46812975 | F46: =C46 -> 0.13 | G46: =G45*F46 -> 10.9873322 | H46: 0.51920245 | I46: 0.0495983965 | J46: 0.1381509033
A47: Total Electricity Charge on Two-Tier RPP (including HST) | D47: =SUM(D45:D46) -> 90.99220475 | G47: =SUM(G45:G46) -> 95.5052722 | H47: 4.51306745 | I47: 0.0495983965 | J47: 1.200850159
A48: Ontario Electricity Rebate (OER) | C48: ='Data Pass Through'!B20 -> -0.189 | D48: =D45*C48 -> -15.21905018 | F48: ='Data Pass Through'!C20 -> -0.189 | G48: =G45*F48 -> -15.97389066 | H48: -0.754840485 | I48: -0.0495983965 | J48: -0.2008501594
A49: Total Amount on Two-Tier RPP | D49: =SUM(D47:D48) -> 75.77315458 | G49: =SUM(G47:G48) -> 79.53138154 | H49: 3.758226965 | I49: 0.0495983965 | J49: 1
A50: Total Electricty Charge on TOU (before HST) | D50: =SUM(D18,D28,D29,D31,D36,D43,D44) -> 82.529204 | G50: =SUM(G18,G28,G29,G31,G36,G43,G44) -> 86.523069 | H50: 3.993865 | I50: 0.04839335419 | K50: =G50/$G$54 -> 1.062699256
A51: HST | C51: 0.13 | D51: =D50*C51 -> 10.72879652 | F51: =C51 -> 0.13 | G51: =G50*F51 -> 11.24799897 | H51: 0.51920245 | I51: 0.04839335419 | K51: =G51/$G$54 -> 0.1381509033
A52: Total Electricity Charge on TOU (including HST) | D52: =SUM(D50:D51) -> 93.25800052 | G52: =SUM(G50:G51) -> 97.77106797 | H52: 4.51306745 | I52: 0.04839335419 | K52: =G52/$G$54 -> 1.200850159
A53: Ontario Electricity Rebate (OER) | C53: ='Data Pass Through'!B20 -> -0.189 | D53: =D50*C53 -> -15.59801956 | F53: ='Data Pass Through'!C20 -> -0.189 | G53: =G50*F53 -> -16.35286004 | H53: -0.754840485 | I53: -0.04839335419 | K53: =G53/$G$54 -> -0.2008501594
A54: Total Amount on TOU | D54: =SUM(D52:D53) -> 77.65998096 | G54: =SUM(G52:G53) -> 81.41820793 | H54: 3.758226965 | I54: 0.04839335419 | K54: =G54/$G$54 -> 1
A55: * Distribution rate protection applies to R1 and R2 customers

Sheet BI_UR_Typical
A1: 2022 Bill Impacts (Typical Consumption Level) - UR
A3: Rate Class | B3: =RIGHT(A1,LEN(A1)-FIND("- ",A1,1)-1) -> UR
A4: Monthly Consumption (kWh) | B4: =IF(COUNTIF(A1,"*Low*")>0,VLOOKUP(B3,'Data Billing Quantities'!$A:$Z,MATCH("Low kWh",'Data Billing Quantities'!4:4,0),FALSE),IF(COUNTIF(A1,"*Typical*")>0,VLOOKUP(B3,'Data Billing Quantities'!$A:$Z,MATCH("Typical kWh",'Data Billing Quantities'!4:4,0),FALSE),IF(COUNTIF(A1,"*Average*")>0,VLOOKUP(B3,'Data Billing Quantities'!$A:$Z,MATCH("Average kWh",'Data Billing Quantities'!4:4,0),FALSE),IF(COUNTIF(A1,"*High*")>0,VLOOKUP(B3,'Data Billing Quantities'!$A:$Z,MATCH("High kWh",'Data Billing Quantities'!4:4,0),FALSE),"error")))) -> 750
A5: Peak (kW) | B5: =IF(COUNTIF(A1,"*Low*")>0,VLOOKUP(B3,'Data Billing Quantities'!$A:$Z,MATCH("Low kW",'Data Billing Quantities'!4:4,0),FALSE),IF(COUNTIF(A1,"*Typical*")>0,VLOOKUP(B3,'Data Billing Quantities'!$A:$Z,MATCH("Typical kW",'Data Billing Quantities'!4:4,0),FALSE),IF(COUNTIF(A1,"*Average*")>0,VLOOKUP(B3,'Data Billing Quantities'!$A:$Z,MATCH("Average kW",'Data Billing Quantities'!4:4,0),FALSE),IF(COUNTIF(A1,"*High*")>0,VLOOKUP(B3,'Data Billing Quantities'!$A:$Z,MATCH("High kW",'Data Billing Quantities'!4:4,0),FALSE),"error")))) -> 0
A6: Loss factor | B6: =VLOOKUP(B3,'Data Billing Quantities'!A:D,MATCH(A6,'Data Billing Quantities'!4:4,0),FALSE) -> 1.057
A7: Commodity Threshold | B7: =VLOOKUP(B3,'Data Billing Quantities'!A:D,MATCH(A7,'Data Billing Quantities'!4:4,0),FALSE) -> 600
A8: Monthly Consumption (kWh) - Uplifted | B8: =B4*B6 -> 792.75
A9: Charge determinant | B9: =VLOOKUP(B3,'Data Billing Quantities'!A:D,MATCH(A9,'Data Billing Quantities'!4:4,0),FALSE) -> kWh
B11: Volume | C11: Current Rate ($) | D11: Current Charge ($) | E11: Volume | F11: Proposed Rate ($) | G11: Proposed Charge ($) | H11: Change ($) | I11: Change (%) | J11: % of Total Bill on RPP | K11: % of Total Bill on TOU
A12: Energy First Tier | B12: =IF(B4>B7,B7,B4) -> 600 | C12: =VLOOKUP($A12,'Data Pass Through'!$A:$D,2,FALSE) -> 0.098 | D12: =B12*C12 -> 58.8 | E12: =B12 -> 600 | F12: =VLOOKUP($A12,'Data Pass Through'!$A:$D,3,FALSE) -> 0.098 | G12: =E12*F12 -> 58.8 | H12: =G12-D12 -> 0 | I12: =IF(ISERROR(H12/ABS(D12)),"N/A",(H12/ABS(D12))) -> 0 | J12: =G12/$G$49 -> 0.4494216961
A13: Energy Second Tier | B13: =IF(B4>B7,(B4)-B7,0) -> 150 | C13: =VLOOKUP($A13,'Data Pass Through'!$A:$D,2,FALSE) -> 0.115 | D13: =B13*C13 -> 17.25 | E13: =B13 -> 150 | F13: =VLOOKUP($A13,'Data Pass Through'!$A:$D,3,FALSE) -> 0.115 | G13: =E13*F13 -> 17.25 | H13: 0 | I13: 0 | J13: =G13/$G$49 -> 0.1318456507
A14: Sub-Total: Energy (RPP Tiered) | D14: =SUM(D12:D13) -> 76.05 | G14: =SUM(G12:G13) -> 76.05 | H14: 0 | I14: 0 | J14: =G14/$G$49 -> 0.5812673468
A15: TOU-Off Peak | B15: =B$4*VLOOKUP($B$3,'Data Billing Quantities'!$A:$O,MATCH(BI_UR_Typical!$A15,'Data Billing Quantities'!$4:$4,0),FALSE) -> 480 | C15: =VLOOKUP($A15,'Data Pass Through'!$A:$D,2,FALSE) -> 0.082 | D15: =B15*C15 -> 39.36 | E15: 480 | F15: =VLOOKUP($A15,'Data Pass Through'!$A:$D,3,FALSE) -> 0.082 | G15: =E15*F15 -> 39.36 | H15: 0 | I15: 0 | K15: =G15/$G$54 -> 0.2986465695
A16: TOU-Mid Peak | B16: =B$4*VLOOKUP($B$3,'Data Billing Quantities'!$A:$O,MATCH(BI_UR_Typical!$A16,'Data Billing Quantities'!$4:$4,0),FALSE) -> 135 | C16: =VLOOKUP($A16,'Data Pass Through'!$A:$D,2,FALSE) -> 0.113 | D16: =B16*C16 -> 15.255 | E16: 135 | F16: =VLOOKUP($A16,'Data Pass Through'!$A:$D,3,FALSE) -> 0.113 | G16: =E16*F16 -> 15.255 | H16: 0 | I16: 0 | K16: 0.1157483084
A17: TOU-On Peak | B17: =B$4*VLOOKUP($B$3,'Data Billing Quantities'!$A:$O,MATCH(BI_UR_Typical!$A17,'Data Billing Quantities'!$4:$4,0),FALSE) -> 135 | C17: =VLOOKUP($A17,'Data Pass Through'!$A:$D,2,FALSE) -> 0.17 | D17: =B17*C17 -> 22.95 | E17: 135 | F17: =VLOOKUP($A17,'Data Pass Through'!$A:$D,3,FALSE) -> 0.17 | G17: =E17*F17 -> 22.95 | H17: 0 | I17: 0 | K17: 0.1741346232
A18: Sub-Total: Energy (RPP TOU) | D18: =SUM(D15:D17) -> 77.565 | G18: =SUM(G15:G17) -> 77.565 | H18: 0 | I18: 0 | J18: =G18/$G$49 -> 0.5928468344 | K18: 0.588529501
A19: Service Charge | B19: 1 | C19: =IF(ISERROR(VLOOKUP($B$3,'Data Current Rates'!$A:$BE,MATCH(BI_UR_Typical!$A19,CurrentHeader,0),FALSE)),0,VLOOKUP($B$3,'Data Current Rates'!$A:$BE,MATCH(BI_UR_Typical!$A19,CurrentHeader,0),FALSE)) -> 35.92 | D19: =B19*C19 -> 35.92 | E19: 1 | F19: =VLOOKUP($B$3,'Data Proposed Rates'!$A:$BC,MATCH(BI_UR_Typical!$A19,ProposedHeader,0),FALSE) -> 38.03 | G19: =E19*F19 -> 38.03 | H19: 2.11 | I19: 0.05874164811 | J19: 0.2906718895 | K19: 0.2885551076
A20: Base Rate Adjustment to Recover Past Tax Amounts FIXED | B20: 1 | C20: =IF(ISERROR(VLOOKUP($B$3,'Data Current Rates'!$A:$BE,MATCH(BI_UR_Typical!$A20,CurrentHeader,0),FALSE)),0,VLOOKUP($B$3,'Data Current Rates'!$A:$BE,MATCH(BI_UR_Typical!$A20,CurrentHeader,0),FALSE)) -> 0.83 | D20: 0.83 | E20: 1 | F20: =VLOOKUP($B$3,'Data Proposed Rates'!$A:$BC,MATCH(BI_UR_Typical!$A20,ProposedHeader,0),FALSE) -> 0.83 | G20: 0.83 | H20: 0 | I20: 0 | J20: 0.006343877684 | K20: 0.006297679184
A21: Fixed Deferral/Variance Account Rider (General) | B21: 1 | C21: =IF(ISERROR(VLOOKUP($B$3,'Data Current Rates'!$A:$BE,MATCH(BI_UR_Typical!$A21,CurrentHeader,0),FALSE)),0,VLOOKUP($B$3,'Data Current Rates'!$A:$BE,MATCH(BI_UR_Typical!$A21,CurrentHeader,0),FALSE)) -> -0.14 | D21: -0.14 | H21: 0.14 | I21: 1 | J21: 0 | K21: 0
A22: Fixed ESM Rider | B22: 1 | C22: =IF(ISERROR(VLOOKUP($B$3,'Data Current Rates'!$A:$BE,MATCH(BI_UR_Typical!$A22,CurrentHeader,0),FALSE)),0,VLOOKUP($B$3,'Data Current Rates'!$A:$BE,MATCH(BI_UR_Typical!$A22,CurrentHeader,0),FALSE)) -> -0.5 | D22: -0.5 | H22: 0.5 | I22: 1 | J22: 0 | K22: 0
A23: Distribution Volumetric Charge | B23: =IF($B$9="kWh",$B$4,$B$5) -> 750 | C23: =IF(ISERROR(VLOOKUP($B$3,'Data Current Rates'!$A:$BE,MATCH(BI_UR_Typical!$A23,CurrentHeader,0),FALSE)),0,VLOOKUP($B$3,'Data Current Rates'!$A:$BE,MATCH(BI_UR_Typical!$A23,CurrentHeader,0),FALSE)) -> 0 | D23: 0 | E23: =IF($B$9="kWh",$B$4,$B$5) -> 750 | F23: =VLOOKUP($B$3,'Data Proposed Rates'!$A:$BC,MATCH(BI_UR_Typical!$A23,ProposedHeader,0),FALSE) -> 0 | G23: 0 | H23: 0 | I23: N/A | J23: 0 | K23: 0
A24: Base Rate Adjustment to Recover Past Tax Amounts VOL | B24: =IF($B$9="kWh",$B$4,$B$5) -> 750 | C24: =IF(ISERROR(VLOOKUP($B$3,'Data Current Rates'!$A:$BE,MATCH(BI_UR_Typical!$A24,CurrentHeader,0),FALSE)),0,VLOOKUP($B$3,'Data Current Rates'!$A:$BE,MATCH(BI_UR_Typical!$A24,CurrentHeader,0),FALSE)) -> 0 | D24: 0 | E24: =IF($B$9="kWh",$B$4,$B$5) -> 750 | F24: =VLOOKUP($B$3,'Data Proposed Rates'!$A:$BC,MATCH(BI_UR_Typical!$A24,ProposedHeader,0),FALSE) -> 0 | G24: 0 | H24: 0 | I24: N/A | J24: 0 | K24: 0
A25: Volumetric Deferral/Variance Account Rider (General) | B25: =IF($B$9="kWh",$B$4,$B$5) -> 750 | C25: =IF(ISERROR(VLOOKUP($B$3,'Data Current Rates'!$A:$BE,MATCH(BI_UR_Typical!$A25,CurrentHeader,0),FALSE)),0,VLOOKUP($B$3,'Data Current Rates'!$A:$BE,MATCH(BI_UR_Typical!$A25,CurrentHeader,0),FALSE)) -> -0.0007 | D25: -0.525 | H25: 0.525 | I25: 1 | J25: 0 | K25: 0
A26: Volumetric ESM Rider | B26: 750 | C26: =IF(ISERROR(VLOOKUP($B$3,'Data Current Rates'!$A:$BE,MATCH(BI_UR_Typical!$A26,CurrentHeader,0),FALSE)),0,VLOOKUP($B$3,'Data Current Rates'!$A:$BE,MATCH(BI_UR_Typical!$A26,CurrentHeader,0),FALSE)) -> 0 | D26: 0 | H26: 0 | I26: N/A | J26: 0 | K26: 0
A27: Fair Hydro Plan - Distribution Rate Protection Savings* | D27: =IF(AND(B3<>"R1",B3<>"R2"),0,IF(VLOOKUP($A27,'Data Pass Through'!$A:$D,2,FALSE)=0,0,IF(SUM(D19:D20,D23:D24)<VLOOKUP($A27,'Data Pass Through'!$A:$D,2,FALSE),0,VLOOKUP($A27,'Data Pass Through'!$A:$D,2,FALSE)-SUM(D19:D20,D23:D24)))) -> 0 | G27: =IF(AND(B3<>"R1",B3<>"R2"),0,IF(VLOOKUP($A27,'Data Pass Through'!$A:$D,2,FALSE)=0,0,IF(SUM(G19:G20,G23:G24)<VLOOKUP($A27,'Data Pass Through'!$A:$D,2,FALSE),0,VLOOKUP($A27,'Data Pass Through'!$A:$D,2,FALSE)-SUM(G19:G20,G23:G24)))) -> 0 | H27: 0 | I27: N/A | J27: 0 | K27: 0
A28: Sub-Total: Distribution (excluding pass through) | D28: =SUM(INDIRECT("D19:D"&ROW()-1)) -> 35.585 | G28: =SUM(INDIRECT("g19:g"&ROW()-1)) -> 38.86 | H28: =G28-D28 -> 3.275 | I28: 0.09203316004 | J28: 0.2970157672 | K28: 0.2948527868
A29: Smart Metering Entity Charge | B29: 1 | C29: =VLOOKUP($A29,'Data Pass Through'!$A:$D,2,FALSE) -> 0.57 | D29: =B29*C29 -> 0.57 | E29: 1 | F29: =VLOOKUP($A29,'Data Pass Through'!$A:$D,3,FALSE) -> 0.57 | G29: =E29*F29 -> 0.57 | H29: 0 | I29: 0 | J29: 0.004356638891 | K29: 0.00432491221
A30: Line Losses on Cost of Power (based on two-tier RPP prices) | B30: =B8-B4 -> 42.75 | C30: =IF(B4>B7,C13,C12) -> 0.115 | D30: =B30*C30 -> 4.91625 | E30: 42.75 | F30: =IF(B4>B7,F13,F12) -> 0.115 | G30: =E30*F30 -> 4.91625 | H30: 0 | I30: 0 | J30: 0.03757601044 | K30: 0.03730236781
A31: Line Losses on Cost of Power (based on TOU prices) | B31: =B8-B4 -> 42.75 | C31: =VLOOKUP($B$3,'Data Billing Quantities'!$A:$O,MATCH(BI_UR_Typical!$A15,'Data Billing Quantities'!$4:$4,0),FALSE)*C15+VLOOKUP($B$3,'Data Billing Quantities'!$A:$O,MATCH(BI_UR_Typical!$A16,'Data Billing Quantities'!$4:$4,0),FALSE)*C16+VLOOKUP($B$3,'Data Billing Quantities'!$A:$O,MATCH(BI_UR_Typical!$A17,'Data Billing Quantities'!$4:$4,0),FALSE)*C17 -> 0.10342 | D31: =B31*C31 -> 4.421205 | E31: 42.75 | F31: =VLOOKUP($B$3,'Data Billing Quantities'!$A:$O,MATCH(BI_UR_Typical!$A15,'Data Billing Quantities'!$4:$4,0),FALSE)*F15+VLOOKUP($B$3,'Data Billing Quantities'!$A:$O,MATCH(BI_UR_Typical!$A16,'Data Billing Quantities'!$4:$4,0),FALSE)*F16+VLOOKUP($B$3,'Data Billing Quantities'!$A:$O,MATCH(BI_UR_Typical!$A17,'Data Billing Quantities'!$4:$4,0),FALSE)*F17 -> 0.10342 | G31: =E31*F31 -> 4.421205 | H31: 0 | I31: 0 | J31: 0.03379226956 | K31: 0.03354618156
A32: Sub-Total: Distribution (based on two-tier RPP prices) | D32: =SUM(D28,D29:D30) -> 41.07125 | G32: =SUM(G28,G29:G30) -> 44.34625 | H32: 3.275 | I32: 0.07973947713 | J32: 0.3389484165 | K32: 0.3364800669
A33: Sub-Total: Distribution (based on TOU prices) | D33: =SUM(D28,D29,D31) -> 40.576205 | G33: =SUM(G28,G29,G31) -> 43.851205 | H33: 3.275 | I33: 0.08071232881 | J33: 0.3351646757 | K33: 0.3327238806
A34: Retail Transmission Rate – Network Service Rate | B34: =B8 -> 792.75 | C34: =VLOOKUP($B$3,'Data Current Rates'!$A:$BE,MATCH(BI_UR_Typical!$A34,CurrentHeader,0),FALSE) -> 0.0089 | D34: =B34*C34 -> 7.055475 | E34: 792.75 | F34: =VLOOKUP($B$3,'Data Proposed Rates'!$A:$BC,MATCH(BI_UR_Typical!$A34,ProposedHeader,0),FALSE) -> 0.0112 | G34: =E34*F34 -> 8.8788 | H34: =G34-D34 -> 1.823325 | I34: 0.2584269663 | J34: 0.06786267612 | K34: 0.06736847462
A35: Retail Transmission Rate – Line and Transformation Connection Service Rate | B35: =B8 -> 792.75 | C35: =VLOOKUP($B$3,'Data Current Rates'!$A:$BE,MATCH(BI_UR_Typical!$A35,CurrentHeader,0),FALSE) -> 0.0077 | D35: =B35*C35 -> 6.104175 | E35: 792.75 | F35: =VLOOKUP($B$3,'Data Proposed Rates'!$A:$BC,MATCH(BI_UR_Typical!$A35,ProposedHeader,0),FALSE) -> 0.0081 | G35: =E35*F35 -> 6.421275 | H35: =G35-D35 -> 0.3171 | I35: 0.05194805195 | J35: 0.04907925683 | K35: 0.04872184325
A36: Sub-Total: Retail Transmission | D36: =SUM(D34:D35) -> 13.15965 | G36: =SUM(G34:G35) -> 15.300075 | H36: =G36-D36 -> 2.140425 | I36: 0.1626506024 | J36: 0.116941933 | K36: 0.1160903179
A37: Sub-Total: Delivery (based on two-tier RPP prices) | D37: =D32+D36 -> 54.2309 | G37: =G32+G36 -> 59.646325 | H37: =G37-D37 -> 5.415425 | I37: 0.09985865992 | J37: 0.4558903495 | K37: 0.4525703847
A38: Sub-Total: Delivery (based on TOU prices) | D38: =D33+D36 -> 53.735855 | G38: =G33+G36 -> 59.15128 | H38: =G38-D38 -> 5.415425 | I38: 0.1007786142 | J38: 0.4521066086 | K38: 0.4488141985
A39: Wholesale Market Service Rate (WMS) - not including CBR | B39: =B8 -> 792.75 | C39: =VLOOKUP($A39,'Data Pass Through'!$A:$D,2,FALSE) -> 0.003 | D39: =B39*C39 -> 2.37825 | E39: =$B$8 -> 792.75 | F39: =VLOOKUP($A39,'Data Pass Through'!$A:$D,3,FALSE) -> 0.003 | G39: =E39*F39 -> 2.37825 | H39: 0 | I39: 0 | J39: 0.01817750253 | K39: 0.01804512713
A40: Capacity Based Recovery (CBR) - Applicable for Class B Customers | B40: =B8 -> 792.75 | C40: =VLOOKUP($A40,'Data Pass Through'!$A:$D,2,FALSE) -> 0.0004 | D40: =B40*C40 -> 0.3171 | E40: =$B$8 -> 792.75 | F40: =VLOOKUP($A40,'Data Pass Through'!$A:$D,3,FALSE) -> 0.0004 | G40: =E40*F40 -> 0.3171 | H40: 0 | I40: 0 | J40: 0.002423667004 | K40: 0.002406016951
A41: Rural Rate Protection Charge | B41: =B8 -> 792.75 | C41: =VLOOKUP($A41,'Data Pass Through'!$A:$D,2,FALSE) -> 0.0005 | D41: 0.396375 | E41: 792.75 | F41: =VLOOKUP($A41,'Data Pass Through'!$A:$D,3,FALSE) -> 0.0005 | G41: 0.396375 | H41: 0 | I41: 0 | J41: 0.003029583755 | K41: 0.003007521188
A42: Standard Supply Service – Administration Charge (if applicable) | B42: 1 | C42: =VLOOKUP($A42,'Data Pass Through'!$A:$D,2,FALSE) -> 0.25 | D42: =B42*C42 -> 0.25 | E42: 1 | F42: =VLOOKUP($A42,'Data Pass Through'!$A:$D,3,FALSE) -> 0.25 | G42: 0.25 | H42: 0 | I42: 0 | J42: 0.001910806531 | K42: 0.00189689132
A43: Sub-Total: Regulatory | D43: =SUM(D39:D42) -> 3.341725 | G43: =SUM(G39:G42) -> 3.341725 | H43: 0 | I43: 0 | J43: 0.02554155982 | K43: 0.02535555659
A44: Debt Retirement Charge (DRC) | B44: =B4 -> 750 | C44: =VLOOKUP($A44,'Data Pass Through'!$A:$D,2,FALSE) -> 0 | D44: =B44*C44 -> 0 | E44: 750 | F44: =VLOOKUP($A44,'Data Pass Through'!$A:$D,3,FALSE) -> 0 | G44: =E44*F44 -> 0 | H44: 0 | I44: N/A | J44: 0 | K44: 0
A45: Total Electricty Charge on Two-Tier RPP | D45: =SUM(D14,D28,D29,D30,D36,D43,D44) -> 133.622625 | G45: =SUM(G14,G28,G29,G30,G36,G43,G44) -> 139.03805 | H45: 5.415425 | I45: 0.04052775494 | J45: 1.062699256
A46: HST | C46: 0.13 | D46: =D45*C46 -> 17.37094125 | F46: =C46 -> 0.13 | G46: =G45*F46 -> 18.0749465 | H46: 0.70400525 | I46: 0.04052775494 | J46: 0.1381509033
A47: Total Electricity Charge on Two-Tier RPP (including HST) | D47: =SUM(D45:D46) -> 150.9935663 | G47: =SUM(G45:G46) -> 157.1129965 | H47: 6.11943025 | I47: 0.04052775494 | J47: 1.200850159
A48: Ontario Electricity Rebate (OER) | C48: ='Data Pass Through'!B20 -> -0.189 | D48: =D45*C48 -> -25.25467613 | F48: ='Data Pass Through'!C20 -> -0.189 | G48: =G45*F48 -> -26.27819145 | H48: -1.023515325 | I48: -0.04052775494 | J48: -0.2008501594
A49: Total Amount on Two-Tier RPP | D49: =SUM(D47:D48) -> 125.7388901 | G49: =SUM(G47:G48) -> 130.834805 | H49: 5.095914925 | I49: 0.04052775494 | J49: 1
A50: Total Electricty Charge on TOU (before HST) | D50: =SUM(D18,D28,D29,D31,D36,D43,D44) -> 134.64258 | G50: =SUM(G18,G28,G29,G31,G36,G43,G44) -> 140.058005 | H50: 5.415425 | I50: 0.04022074592 | K50: =G50/$G$54 -> 1.062699256
A51: HST | C51: 0.13 | D51: =D50*C51 -> 17.5035354 | F51: =C51 -> 0.13 | G51: =G50*F51 -> 18.20754065 | H51: 0.70400525 | I51: 0.04022074592 | K51: =G51/$G$54 -> 0.1381509033
A52: Total Electricity Charge on TOU (including HST) | D52: =SUM(D50:D51) -> 152.1461154 | G52: =SUM(G50:G51) -> 158.2655456 | H52: 6.11943025 | I52: 0.04022074592 | K52: =G52/$G$54 -> 1.200850159
A53: Ontario Electricity Rebate (OER) | C53: ='Data Pass Through'!B20 -> -0.189 | D53: =D50*C53 -> -25.44744762 | F53: ='Data Pass Through'!C20 -> -0.189 | G53: =G50*F53 -> -26.47096294 | H53: -1.023515325 | I53: -0.04022074592 | K53: =G53/$G$54 -> -0.2008501594
A54: Total Amount on TOU | D54: =SUM(D52:D53) -> 126.6986678 | G54: =SUM(G52:G53) -> 131.7945827 | H54: 5.095914925 | I54: 0.04022074592 | K54: =G54/$G$54 -> 1
A55: * Distribution rate protection applies to R1 and R2 customers

Sheet BI_UR_Avg
A1: 2022 Bill Impacts (Average Consumption Level) - UR
A3: Rate Class | B3: =RIGHT(A1,LEN(A1)-FIND("- ",A1,1)-1) -> UR
A4: Monthly Consumption (kWh) | B4: =IF(COUNTIF(A1,"*Low*")>0,VLOOKUP(B3,'Data Billing Quantities'!$A:$Z,MATCH("Low kWh",'Data Billing Quantities'!4:4,0),FALSE),IF(COUNTIF(A1,"*Typical*")>0,VLOOKUP(B3,'Data Billing Quantities'!$A:$Z,MATCH("Typical kWh",'Data Billing Quantities'!4:4,0),FALSE),IF(COUNTIF(A1,"*Average*")>0,VLOOKUP(B3,'Data Billing Quantities'!$A:$Z,MATCH("Average kWh",'Data Billing Quantities'!4:4,0),FALSE),IF(COUNTIF(A1,"*High*")>0,VLOOKUP(B3,'Data Billing Quantities'!$A:$Z,MATCH("High kWh",'Data Billing Quantities'!4:4,0),FALSE),"error")))) -> 755
A5: Peak (kW) | B5: =IF(COUNTIF(A1,"*Low*")>0,VLOOKUP(B3,'Data Billing Quantities'!$A:$Z,MATCH("Low kW",'Data Billing Quantities'!4:4,0),FALSE),IF(COUNTIF(A1,"*Typical*")>0,VLOOKUP(B3,'Data Billing Quantities'!$A:$Z,MATCH("Typical kW",'Data Billing Quantities'!4:4,0),FALSE),IF(COUNTIF(A1,"*Average*")>0,VLOOKUP(B3,'Data Billing Quantities'!$A:$Z,MATCH("Average kW",'Data Billing Quantities'!4:4,0),FALSE),IF(COUNTIF(A1,"*High*")>0,VLOOKUP(B3,'Data Billing Quantities'!$A:$Z,MATCH("High kW",'Data Billing Quantities'!4:4,0),FALSE),"error")))) -> 0
A6: Loss factor | B6: =VLOOKUP(B3,'Data Billing Quantities'!A:D,MATCH(A6,'Data Billing Quantities'!4:4,0),FALSE) -> 1.057
A7: Commodity Threshold | B7: =VLOOKUP(B3,'Data Billing Quantities'!A:D,MATCH(A7,'Data Billing Quantities'!4:4,0),FALSE) -> 600
A8: Monthly Consumption (kWh) - Uplifted | B8: =B4*B6 -> 798.035
A9: Charge determinant | B9: =VLOOKUP(B3,'Data Billing Quantities'!A:D,MATCH(A9,'Data Billing Quantities'!4:4,0),FALSE) -> kWh
B11: Volume | C11: Current Rate ($) | D11: Current Charge ($) | E11: Volume | F11: Proposed Rate ($) | G11: Proposed Charge ($) | H11: Change ($) | I11: Change (%) | J11: % of Total Bill on RPP | K11: % of Total Bill on TOU
A12: Energy First Tier | B12: =IF(B4>B7,B7,B4) -> 600 | C12: =VLOOKUP($A12,'Data Pass Through'!$A:$D,2,FALSE) -> 0.098 | D12: =B12*C12 -> 58.8 | E12: =B12 -> 600 | F12: =VLOOKUP($A12,'Data Pass Through'!$A:$D,3,FALSE) -> 0.098 | G12: =E12*F12 -> 58.8 | H12: =G12-D12 -> 0 | I12: =IF(ISERROR(H12/ABS(D12)),"N/A",(H12/ABS(D12))) -> 0 | J12: =G12/$G$49 -> 0.4470731561
A13: Energy Second Tier | B13: =IF(B4>B7,(B4)-B7,0) -> 155 | C13: =VLOOKUP($A13,'Data Pass Through'!$A:$D,2,FALSE) -> 0.115 | D13: =B13*C13 -> 17.825 | E13: =B13 -> 155 | F13: =VLOOKUP($A13,'Data Pass Through'!$A:$D,3,FALSE) -> 0.115 | G13: =E13*F13 -> 17.825 | H13: 0 | I13: 0 | J13: =G13/$G$49 -> 0.1355285546
A14: Sub-Total: Energy (RPP Tiered) | D14: =SUM(D12:D13) -> 76.625 | G14: =SUM(G12:G13) -> 76.625 | H14: 0 | I14: 0 | J14: =G14/$G$49 -> 0.5826017107
A15: TOU-Off Peak | B15: =B$4*VLOOKUP($B$3,'Data Billing Quantities'!$A:$O,MATCH(BI_UR_Avg!$A15,'Data Billing Quantities'!$4:$4,0),FALSE) -> 483.2 | C15: =VLOOKUP($A15,'Data Pass Through'!$A:$D,2,FALSE) -> 0.082 | D15: =B15*C15 -> 39.6224 | E15: 483.2 | F15: =VLOOKUP($A15,'Data Pass Through'!$A:$D,3,FALSE) -> 0.082 | G15: =E15*F15 -> 39.6224 | H15: 0 | I15: 0 | K15: =G15/$G$54 -> 0.2992079533
A16: TOU-Mid Peak | B16: =B$4*VLOOKUP($B$3,'Data Billing Quantities'!$A:$O,MATCH(BI_UR_Avg!$A16,'Data Billing Quantities'!$4:$4,0),FALSE) -> 135.9 | C16: =VLOOKUP($A16,'Data Pass Through'!$A:$D,2,FALSE) -> 0.113 | D16: =B16*C16 -> 15.3567 | E16: 135.9 | F16: =VLOOKUP($A16,'Data Pass Through'!$A:$D,3,FALSE) -> 0.113 | G16: =E16*F16 -> 15.3567 | H16: 0 | I16: 0 | K16: 0.1159658874
A17: TOU-On Peak | B17: =B$4*VLOOKUP($B$3,'Data Billing Quantities'!$A:$O,MATCH(BI_UR_Avg!$A17,'Data Billing Quantities'!$4:$4,0),FALSE) -> 135.9 | C17: =VLOOKUP($A17,'Data Pass Through'!$A:$D,2,FALSE) -> 0.17 | D17: =B17*C17 -> 23.103 | E17: 135.9 | F17: =VLOOKUP($A17,'Data Pass Through'!$A:$D,3,FALSE) -> 0.17 | G17: =E17*F17 -> 23.103 | H17: 0 | I17: 0 | K17: 0.1744619545
A18: Sub-Total: Energy (RPP TOU) | D18: =SUM(D15:D17) -> 78.0821 | G18: =SUM(G15:G17) -> 78.0821 | H18: 0 | I18: 0 | J18: =G18/$G$49 -> 0.5936804572 | K18: 0.5896357952
A19: Service Charge | B19: 1 | C19: =IF(ISERROR(VLOOKUP($B$3,'Data Current Rates'!$A:$BE,MATCH(BI_UR_Avg!$A19,CurrentHeader,0),FALSE)),0,VLOOKUP($B$3,'Data Current Rates'!$A:$BE,MATCH(BI_UR_Avg!$A19,CurrentHeader,0),FALSE)) -> 35.92 | D19: =B19*C19 -> 35.92 | E19: 1 | F19: =VLOOKUP($B$3,'Data Proposed Rates'!$A:$BC,MATCH(BI_UR_Avg!$A19,ProposedHeader,0),FALSE) -> 38.03 | G19: =E19*F19 -> 38.03 | H19: 2.11 | I19: 0.05874164811 | J19: 0.2891529274 | K19: 0.2871829688
A20: Base Rate Adjustment to Recover Past Tax Amounts FIXED | B20: 1 | C20: =IF(ISERROR(VLOOKUP($B$3,'Data Current Rates'!$A:$BE,MATCH(BI_UR_Avg!$A20,CurrentHeader,0),FALSE)),0,VLOOKUP($B$3,'Data Current Rates'!$A:$BE,MATCH(BI_UR_Avg!$A20,CurrentHeader,0),FALSE)) -> 0.83 | D20: 0.83 | E20: 1 | F20: =VLOOKUP($B$3,'Data Proposed Rates'!$A:$BC,MATCH(BI_UR_Avg!$A20,ProposedHeader,0),FALSE) -> 0.83 | G20: 0.83 | H20: 0 | I20: 0 | J20: 0.006310726524 | K20: 0.006267732426
A21: Fixed Deferral/Variance Account Rider (General) | B21: 1 | C21: =IF(ISERROR(VLOOKUP($B$3,'Data Current Rates'!$A:$BE,MATCH(BI_UR_Avg!$A21,CurrentHeader,0),FALSE)),0,VLOOKUP($B$3,'Data Current Rates'!$A:$BE,MATCH(BI_UR_Avg!$A21,CurrentHeader,0),FALSE)) -> -0.14 | D21: -0.14 | H21: 0.14 | I21: 1 | J21: 0 | K21: 0
A22: Fixed ESM Rider | B22: 1 | C22: =IF(ISERROR(VLOOKUP($B$3,'Data Current Rates'!$A:$BE,MATCH(BI_UR_Avg!$A22,CurrentHeader,0),FALSE)),0,VLOOKUP($B$3,'Data Current Rates'!$A:$BE,MATCH(BI_UR_Avg!$A22,CurrentHeader,0),FALSE)) -> -0.5 | D22: -0.5 | H22: 0.5 | I22: 1 | J22: 0 | K22: 0
A23: Distribution Volumetric Charge | B23: =IF($B$9="kWh",$B$4,$B$5) -> 755 | C23: =IF(ISERROR(VLOOKUP($B$3,'Data Current Rates'!$A:$BE,MATCH(BI_UR_Avg!$A23,CurrentHeader,0),FALSE)),0,VLOOKUP($B$3,'Data Current Rates'!$A:$BE,MATCH(BI_UR_Avg!$A23,CurrentHeader,0),FALSE)) -> 0 | D23: 0 | E23: =IF($B$9="kWh",$B$4,$B$5) -> 755 | F23: =VLOOKUP($B$3,'Data Proposed Rates'!$A:$BC,MATCH(BI_UR_Avg!$A23,ProposedHeader,0),FALSE) -> 0 | G23: 0 | H23: 0 | I23: N/A | J23: 0 | K23: 0
A24: Base Rate Adjustment to Recover Past Tax Amounts VOL | B24: =IF($B$9="kWh",$B$4,$B$5) -> 755 | C24: =IF(ISERROR(VLOOKUP($B$3,'Data Current Rates'!$A:$BE,MATCH(BI_UR_Avg!$A24,CurrentHeader,0),FALSE)),0,VLOOKUP($B$3,'Data Current Rates'!$A:$BE,MATCH(BI_UR_Avg!$A24,CurrentHeader,0),FALSE)) -> 0 | D24: 0 | E24: =IF($B$9="kWh",$B$4,$B$5) -> 755 | F24: =VLOOKUP($B$3,'Data Proposed Rates'!$A:$BC,MATCH(BI_UR_Avg!$A24,ProposedHeader,0),FALSE) -> 0 | G24: 0 | H24: 0 | I24: N/A | J24: 0 | K24: 0
A25: Volumetric Deferral/Variance Account Rider (General) | B25: =IF($B$9="kWh",$B$4,$B$5) -> 755 | C25: =IF(ISERROR(VLOOKUP($B$3,'Data Current Rates'!$A:$BE,MATCH(BI_UR_Avg!$A25,CurrentHeader,0),FALSE)),0,VLOOKUP($B$3,'Data Current Rates'!$A:$BE,MATCH(BI_UR_Avg!$A25,CurrentHeader,0),FALSE)) -> -0.0007 | D25: -0.5285 | H25: 0.5285 | I25: 1 | J25: 0 | K25: 0
A26: Volumetric ESM Rider | B26: 755 | C26: =IF(ISERROR(VLOOKUP($B$3,'Data Current Rates'!$A:$BE,MATCH(BI_UR_Avg!$A26,CurrentHeader,0),FALSE)),0,VLOOKUP($B$3,'Data Current Rates'!$A:$BE,MATCH(BI_UR_Avg!$A26,CurrentHeader,0),FALSE)) -> 0 | D26: 0 | H26: 0 | I26: N/A | J26: 0 | K26: 0
A27: Fair Hydro Plan - Distribution Rate Protection Savings* | D27: =IF(AND(B3<>"R1",B3<>"R2"),0,IF(VLOOKUP($A27,'Data Pass Through'!$A:$D,2,FALSE)=0,0,IF(SUM(D19:D20,D23:D24)<VLOOKUP($A27,'Data Pass Through'!$A:$D,2,FALSE),0,VLOOKUP($A27,'Data Pass Through'!$A:$D,2,FALSE)-SUM(D19:D20,D23:D24)))) -> 0 | G27: =IF(AND(B3<>"R1",B3<>"R2"),0,IF(VLOOKUP($A27,'Data Pass Through'!$A:$D,2,FALSE)=0,0,IF(SUM(G19:G20,G23:G24)<VLOOKUP($A27,'Data Pass Through'!$A:$D,2,FALSE),0,VLOOKUP($A27,'Data Pass Through'!$A:$D,2,FALSE)-SUM(G19:G20,G23:G24)))) -> 0 | H27: 0 | I27: N/A | J27: 0 | K27: 0
A28: Sub-Total: Distribution (excluding pass through) | D28: =SUM(INDIRECT("D19:D"&ROW()-1)) -> 35.5815 | G28: =SUM(INDIRECT("g19:g"&ROW()-1)) -> 38.86 | H28: =G28-D28 -> 3.2785 | I28: 0.09214057867 | J28: 0.2954636539 | K28: 0.2934507013
A29: Smart Metering Entity Charge | B29: 1 | C29: =VLOOKUP($A29,'Data Pass Through'!$A:$D,2,FALSE) -> 0.57 | D29: =B29*C29 -> 0.57 | E29: 1 | F29: =VLOOKUP($A29,'Data Pass Through'!$A:$D,3,FALSE) -> 0.57 | G29: =E29*F29 -> 0.57 | H29: 0 | I29: 0 | J29: 0.004333872432 | K29: 0.004304346365
A30: Line Losses on Cost of Power (based on two-tier RPP prices) | B30: =B8-B4 -> 43.035 | C30: =IF(B4>B7,C13,C12) -> 0.115 | D30: =B30*C30 -> 4.949025 | E30: 43.035 | F30: =IF(B4>B7,F13,F12) -> 0.115 | G30: =E30*F30 -> 4.949025 | H30: 0 | I30: 0 | J30: 0.03762884739 | K30: 0.03737248731
A31: Line Losses on Cost of Power (based on TOU prices) | B31: =B8-B4 -> 43.035 | C31: =VLOOKUP($B$3,'Data Billing Quantities'!$A:$O,MATCH(BI_UR_Avg!$A15,'Data Billing Quantities'!$4:$4,0),FALSE)*C15+VLOOKUP($B$3,'Data Billing Quantities'!$A:$O,MATCH(BI_UR_Avg!$A16,'Data Billing Quantities'!$4:$4,0),FALSE)*C16+VLOOKUP($B$3,'Data Billing Quantities'!$A:$O,MATCH(BI_UR_Avg!$A17,'Data Billing Quantities'!$4:$4,0),FALSE)*C17 -> 0.10342 | D31: =B31*C31 -> 4.4506797 | E31: 43.035 | F31: =VLOOKUP($B$3,'Data Billing Quantities'!$A:$O,MATCH(BI_UR_Avg!$A15,'Data Billing Quantities'!$4:$4,0),FALSE)*F15+VLOOKUP($B$3,'Data Billing Quantities'!$A:$O,MATCH(BI_UR_Avg!$A16,'Data Billing Quantities'!$4:$4,0),FALSE)*F16+VLOOKUP($B$3,'Data Billing Quantities'!$A:$O,MATCH(BI_UR_Avg!$A17,'Data Billing Quantities'!$4:$4,0),FALSE)*F17 -> 0.10342 | G31: =E31*F31 -> 4.4506797 | H31: 0 | I31: 0 | J31: 0.03383978606 | K31: 0.03360924033
A32: Sub-Total: Distribution (based on two-tier RPP prices) | D32: =SUM(D28,D29:D30) -> 41.100525 | G32: =SUM(G28,G29:G30) -> 44.379025 | H32: 3.2785 | I32: 0.07976783752 | J32: 0.3374263737 | K32: 0.3351275349
A33: Sub-Total: Distribution (based on TOU prices) | D33: =SUM(D28,D29,D31) -> 40.6021797 | G33: =SUM(G28,G29,G31) -> 43.8806797 | H33: 3.2785 | I33: 0.08074689645 | J33: 0.3336373124 | K33: 0.331364288
A34: Retail Transmission Rate – Network Service Rate | B34: =B8 -> 798.035 | C34: =VLOOKUP($B$3,'Data Current Rates'!$A:$BE,MATCH(BI_UR_Avg!$A34,CurrentHeader,0),FALSE) -> 0.0089 | D34: =B34*C34 -> 7.1025115 | E34: 798.035 | F34: =VLOOKUP($B$3,'Data Proposed Rates'!$A:$BC,MATCH(BI_UR_Avg!$A34,ProposedHeader,0),FALSE) -> 0.0112 | G34: =E34*F34 -> 8.937992 | H34: =G34-D34 -> 1.8354805 | I34: 0.2584269663 | J34: 0.06795810022 | K34: 0.06749511118
A35: Retail Transmission Rate – Line and Transformation Connection Service Rate | B35: =B8 -> 798.035 | C35: =VLOOKUP($B$3,'Data Current Rates'!$A:$BE,MATCH(BI_UR_Avg!$A35,CurrentHeader,0),FALSE) -> 0.0077 | D35: =B35*C35 -> 6.1448695 | E35: 798.035 | F35: =VLOOKUP($B$3,'Data Proposed Rates'!$A:$BC,MATCH(BI_UR_Avg!$A35,ProposedHeader,0),FALSE) -> 0.0081 | G35: =E35*F35 -> 6.4640835 | H35: =G35-D35 -> 0.319214 | I35: 0.05194805195 | J35: 0.04914826891 | K35: 0.04881342862
A36: Sub-Total: Retail Transmission | D36: =SUM(D34:D35) -> 13.247381 | G36: =SUM(G34:G35) -> 15.4020755 | H36: =G36-D36 -> 2.1546945 | I36: 0.1626506024 | J36: 0.1171063691 | K36: 0.1163085398
A37: Sub-Total: Delivery (based on two-tier RPP prices) | D37: =D32+D36 -> 54.347906 | G37: =G32+G36 -> 59.7811005 | H37: =G37-D37 -> 5.4331945 | I37: 0.0999706318 | J37: 0.4545327428 | K37: 0.4514360747
A38: Sub-Total: Delivery (based on TOU prices) | D38: =D33+D36 -> 53.8495607 | G38: =G33+G36 -> 59.2827552 | H38: =G38-D38 -> 5.4331945 | I38: 0.1008957999 | J38: 0.4507436815 | K38: 0.4476728278
A39: Wholesale Market Service Rate (WMS) - not including CBR | B39: =B8 -> 798.035 | C39: =VLOOKUP($A39,'Data Pass Through'!$A:$D,2,FALSE) -> 0.003 | D39: =B39*C39 -> 2.394105 | E39: =$B$8 -> 798.035 | F39: =VLOOKUP($A39,'Data Pass Through'!$A:$D,3,FALSE) -> 0.003 | G39: =E39*F39 -> 2.394105 | H39: 0 | I39: 0 | J39: 0.01820306256 | K39: 0.01807904764
A40: Capacity Based Recovery (CBR) - Applicable for Class B Customers | B40: =B8 -> 798.035 | C40: =VLOOKUP($A40,'Data Pass Through'!$A:$D,2,FALSE) -> 0.0004 | D40: =B40*C40 -> 0.319214 | E40: =$B$8 -> 798.035 | F40: =VLOOKUP($A40,'Data Pass Through'!$A:$D,3,FALSE) -> 0.0004 | G40: =E40*F40 -> 0.319214 | H40: 0 | I40: 0 | J40: 0.002427075008 | K40: 0.002410539685
A41: Rural Rate Protection Charge | B41: =B8 -> 798.035 | C41: =VLOOKUP($A41,'Data Pass Through'!$A:$D,2,FALSE) -> 0.0005 | D41: 0.3990175 | E41: 798.035 | F41: =VLOOKUP($A41,'Data Pass Through'!$A:$D,3,FALSE) -> 0.0005 | G41: 0.3990175 | H41: 0 | I41: 0 | J41: 0.00303384376 | K41: 0.003013174606
A42: Standard Supply Service – Administration Charge (if applicable) | B42: 1 | C42: =VLOOKUP($A42,'Data Pass Through'!$A:$D,2,FALSE) -> 0.25 | D42: =B42*C42 -> 0.25 | E42: 1 | F42: =VLOOKUP($A42,'Data Pass Through'!$A:$D,3,FALSE) -> 0.25 | G42: 0.25 | H42: 0 | I42: 0 | J42: 0.001900821242 | K42: 0.001887871213
A43: Sub-Total: Regulatory | D43: =SUM(D39:D42) -> 3.3623365 | G43: =SUM(G39:G42) -> 3.3623365 | H43: 0 | I43: 0 | J43: 0.02556480257 | K43: 0.02539063314
A44: Debt Retirement Charge (DRC) | B44: =B4 -> 755 | C44: =VLOOKUP($A44,'Data Pass Through'!$A:$D,2,FALSE) -> 0 | D44: =B44*C44 -> 0 | E44: 755 | F44: =VLOOKUP($A44,'Data Pass Through'!$A:$D,3,FALSE) -> 0 | G44: =E44*F44 -> 0 | H44: 0 | I44: N/A | J44: 0 | K44: 0
A45: Total Electricty Charge on Two-Tier RPP | D45: =SUM(D14,D28,D29,D30,D36,D43,D44) -> 134.3352425 | G45: =SUM(G14,G28,G29,G30,G36,G43,G44) -> 139.768437 | H45: 5.4331945 | I45: 0.04044504181 | J45: 1.062699256
A46: HST | C46: 0.13 | D46: =D45*C46 -> 17.46358152 | F46: =C46 -> 0.13 | G46: =G45*F46 -> 18.16989681 | H46: 0.706315285 | I46: 0.04044504181 | J46: 0.1381509033
A47: Total Electricity Charge on Two-Tier RPP (including HST) | D47: =SUM(D45:D46) -> 151.798824 | G47: =SUM(G45:G46) -> 157.9383338 | H47: 6.139509785 | I47: 0.04044504181 | J47: 1.200850159
A48: Ontario Electricity Rebate (OER) | C48: ='Data Pass Through'!B20 -> -0.189 | D48: =D45*C48 -> -25.38936083 | F48: ='Data Pass Through'!C20 -> -0.189 | G48: =G45*F48 -> -26.41623459 | H48: -1.02687376 | I48: -0.04044504181 | J48: -0.2008501594
A49: Total Amount on Two-Tier RPP | D49: =SUM(D47:D48) -> 126.4094632 | G49: =SUM(G47:G48) -> 131.5220992 | H49: 5.112636024 | I49: 0.04044504181 | J49: 1
A50: Total Electricty Charge on TOU (before HST) | D50: =SUM(D18,D28,D29,D31,D36,D43,D44) -> 135.2939972 | G50: =SUM(G18,G28,G29,G31,G36,G43,G44) -> 140.7271917 | H50: 5.4331945 | I50: 0.04015842988 | K50: =G50/$G$54 -> 1.062699256
A51: HST | C51: 0.13 | D51: =D50*C51 -> 17.58821964 | F51: =C51 -> 0.13 | G51: =G50*F51 -> 18.29453492 | H51: 0.706315285 | I51: 0.04015842988 | K51: =G51/$G$54 -> 0.1381509033
A52: Total Electricity Charge on TOU (including HST) | D52: =SUM(D50:D51) -> 152.8822168 | G52: =SUM(G50:G51) -> 159.0217266 | H52: 6.139509785 | I52: 0.04015842988 | K52: =G52/$G$54 -> 1.200850159
A53: Ontario Electricity Rebate (OER) | C53: ='Data Pass Through'!B20 -> -0.189 | D53: =D50*C53 -> -25.57056547 | F53: ='Data Pass Through'!C20 -> -0.189 | G53: =G50*F53 -> -26.59743923 | H53: -1.026873761 | I53: -0.04015842988 | K53: =G53/$G$54 -> -0.2008501594
A54: Total Amount on TOU | D54: =SUM(D52:D53) -> 127.3116514 | G54: =SUM(G52:G53) -> 132.4242874 | H54: 5.112636025 | I54: 0.04015842988 | K54: =G54/$G$54 -> 1
A55: * Distribution rate protection applies to R1 and R2 customers

Sheet BI_UR_High
A1: 2022 Bill Impacts (High Consumption Level) - UR
A3: Rate Class | B3: =RIGHT(A1,LEN(A1)-FIND("- ",A1,1)-1) -> UR
A4: Monthly Consumption (kWh) | B4: =IF(COUNTIF(A1,"*Low*")>0,VLOOKUP(B3,'Data Billing Quantities'!$A:$Z,MATCH("Low kWh",'Data Billing Quantities'!4:4,0),FALSE),IF(COUNTIF(A1,"*Typical*")>0,VLOOKUP(B3,'Data Billing Quantities'!$A:$Z,MATCH("Typical kWh",'Data Billing Quantities'!4:4,0),FALSE),IF(COUNTIF(A1,"*Average*")>0,VLOOKUP(B3,'Data Billing Quantities'!$A:$Z,MATCH("Average kWh",'Data Billing Quantities'!4:4,0),FALSE),IF(COUNTIF(A1,"*High*")>0,VLOOKUP(B3,'Data Billing Quantities'!$A:$Z,MATCH("High kWh",'Data Billing Quantities'!4:4,0),FALSE),"error")))) -> 1400
A5: Peak (kW) | B5: =IF(COUNTIF(A1,"*Low*")>0,VLOOKUP(B3,'Data Billing Quantities'!$A:$Z,MATCH("Low kW",'Data Billing Quantities'!4:4,0),FALSE),IF(COUNTIF(A1,"*Typical*")>0,VLOOKUP(B3,'Data Billing Quantities'!$A:$Z,MATCH("Typical kW",'Data Billing Quantities'!4:4,0),FALSE),IF(COUNTIF(A1,"*Average*")>0,VLOOKUP(B3,'Data Billing Quantities'!$A:$Z,MATCH("Average kW",'Data Billing Quantities'!4:4,0),FALSE),IF(COUNTIF(A1,"*High*")>0,VLOOKUP(B3,'Data Billing Quantities'!$A:$Z,MATCH("High kW",'Data Billing Quantities'!4:4,0),FALSE),"error")))) -> 0
A6: Loss factor | B6: =VLOOKUP(B3,'Data Billing Quantities'!A:D,MATCH(A6,'Data Billing Quantities'!4:4,0),FALSE) -> 1.057
A7: Commodity Threshold | B7: =VLOOKUP(B3,'Data Billing Quantities'!A:D,MATCH(A7,'Data Billing Quantities'!4:4,0),FALSE) -> 600
A8: Monthly Consumption (kWh) - Uplifted | B8: =B4*B6 -> 1479.8
A9: Charge determinant | B9: =VLOOKUP(B3,'Data Billing Quantities'!A:D,MATCH(A9,'Data Billing Quantities'!4:4,0),FALSE) -> kWh
B11: Volume | C11: Current Rate ($) | D11: Current Charge ($) | E11: Volume | F11: Proposed Rate ($) | G11: Proposed Charge ($) | H11: Change ($) | I11: Change (%) | J11: % of Total Bill on RPP | K11: % of Total Bill on TOU
A12: Energy First Tier | B12: =IF(B4>B7,B7,B4) -> 600 | C12: =VLOOKUP($A12,'Data Pass Through'!$A:$D,2,FALSE) -> 0.098 | D12: =B12*C12 -> 58.8 | E12: =B12 -> 600 | F12: =VLOOKUP($A12,'Data Pass Through'!$A:$D,3,FALSE) -> 0.098 | G12: =E12*F12 -> 58.8 | H12: =G12-D12 -> 0 | I12: =IF(ISERROR(H12/ABS(D12)),"N/A",(H12/ABS(D12))) -> 0 | J12: =G12/$G$49 -> 0.267050533
A13: Energy Second Tier | B13: =IF(B4>B7,(B4)-B7,0) -> 800 | C13: =VLOOKUP($A13,'Data Pass Through'!$A:$D,2,FALSE) -> 0.115 | D13: =B13*C13 -> 92 | E13: =B13 -> 800 | F13: =VLOOKUP($A13,'Data Pass Through'!$A:$D,3,FALSE) -> 0.115 | G13: =E13*F13 -> 92 | H13: 0 | I13: 0 | J13: =G13/$G$49 -> 0.4178341673
A14: Sub-Total: Energy (RPP Tiered) | D14: =SUM(D12:D13) -> 150.8 | G14: =SUM(G12:G13) -> 150.8 | H14: 0 | I14: 0 | J14: =G14/$G$49 -> 0.6848847003
A15: TOU-Off Peak | B15: =B$4*VLOOKUP($B$3,'Data Billing Quantities'!$A:$O,MATCH(BI_UR_High!$A15,'Data Billing Quantities'!$4:$4,0),FALSE) -> 896 | C15: =VLOOKUP($A15,'Data Pass Through'!$A:$D,2,FALSE) -> 0.082 | D15: =B15*C15 -> 73.472 | E15: 896 | F15: =VLOOKUP($A15,'Data Pass Through'!$A:$D,3,FALSE) -> 0.082 | G15: =E15*F15 -> 73.472 | H15: 0 | I15: 0 | K15: =G15/$G$54 -> 0.3438795731
A16: TOU-Mid Peak | B16: =B$4*VLOOKUP($B$3,'Data Billing Quantities'!$A:$O,MATCH(BI_UR_High!$A16,'Data Billing Quantities'!$4:$4,0),FALSE) -> 252 | C16: =VLOOKUP($A16,'Data Pass Through'!$A:$D,2,FALSE) -> 0.113 | D16: =B16*C16 -> 28.476 | E16: 252 | F16: =VLOOKUP($A16,'Data Pass Through'!$A:$D,3,FALSE) -> 0.113 | G16: =E16*F16 -> 28.476 | H16: 0 | I16: 0 | K16: 0.1332795449
A17: TOU-On Peak | B17: =B$4*VLOOKUP($B$3,'Data Billing Quantities'!$A:$O,MATCH(BI_UR_High!$A17,'Data Billing Quantities'!$4:$4,0),FALSE) -> 252 | C17: =VLOOKUP($A17,'Data Pass Through'!$A:$D,2,FALSE) -> 0.17 | D17: =B17*C17 -> 42.84 | E17: 252 | F17: =VLOOKUP($A17,'Data Pass Through'!$A:$D,3,FALSE) -> 0.17 | G17: =E17*F17 -> 42.84 | H17: 0 | I17: 0 | K17: 0.2005090499
A18: Sub-Total: Energy (RPP TOU) | D18: =SUM(D15:D17) -> 144.788 | G18: =SUM(G15:G17) -> 144.788 | H18: 0 | I18: 0 | J18: =G18/$G$49 -> 0.6575801458 | K18: 0.6776681679
A19: Service Charge | B19: 1 | C19: =IF(ISERROR(VLOOKUP($B$3,'Data Current Rates'!$A:$BE,MATCH(BI_UR_High!$A19,CurrentHeader,0),FALSE)),0,VLOOKUP($B$3,'Data Current Rates'!$A:$BE,MATCH(BI_UR_High!$A19,CurrentHeader,0),FALSE)) -> 35.92 | D19: =B19*C19 -> 35.92 | E19: 1 | F19: =VLOOKUP($B$3,'Data Proposed Rates'!$A:$BC,MATCH(BI_UR_High!$A19,ProposedHeader,0),FALSE) -> 38.03 | G19: =E19*F19 -> 38.03 | H19: 2.11 | I19: 0.05874164811 | J19: 0.1727199281 | K19: 0.1779962457
A20: Base Rate Adjustment to Recover Past Tax Amounts FIXED | B20: 1 | C20: =IF(ISERROR(VLOOKUP($B$3,'Data Current Rates'!$A:$BE,MATCH(BI_UR_High!$A20,CurrentHeader,0),FALSE)),0,VLOOKUP($B$3,'Data Current Rates'!$A:$BE,MATCH(BI_UR_High!$A20,CurrentHeader,0),FALSE)) -> 0.83 | D20: 0.83 | E20: 1 | F20: =VLOOKUP($B$3,'Data Proposed Rates'!$A:$BC,MATCH(BI_UR_High!$A20,ProposedHeader,0),FALSE) -> 0.83 | G20: 0.83 | H20: 0 | I20: 0 | J20: 0.003769590857 | K20: 0.003884745831
A21: Fixed Deferral/Variance Account Rider (General) | B21: 1 | C21: =IF(ISERROR(VLOOKUP($B$3,'Data Current Rates'!$A:$BE,MATCH(BI_UR_High!$A21,CurrentHeader,0),FALSE)),0,VLOOKUP($B$3,'Data Current Rates'!$A:$BE,MATCH(BI_UR_High!$A21,CurrentHeader,0),FALSE)) -> -0.14 | D21: -0.14 | H21: 0.14 | I21: 1 | J21: 0 | K21: 0
A22: Fixed ESM Rider | B22: 1 | C22: =IF(ISERROR(VLOOKUP($B$3,'Data Current Rates'!$A:$BE,MATCH(BI_UR_High!$A22,CurrentHeader,0),FALSE)),0,VLOOKUP($B$3,'Data Current Rates'!$A:$BE,MATCH(BI_UR_High!$A22,CurrentHeader,0),FALSE)) -> -0.5 | D22: -0.5 | H22: 0.5 | I22: 1 | J22: 0 | K22: 0
A23: Distribution Volumetric Charge | B23: =IF($B$9="kWh",$B$4,$B$5) -> 1400 | C23: =IF(ISERROR(VLOOKUP($B$3,'Data Current Rates'!$A:$BE,MATCH(BI_UR_High!$A23,CurrentHeader,0),FALSE)),0,VLOOKUP($B$3,'Data Current Rates'!$A:$BE,MATCH(BI_UR_High!$A23,CurrentHeader,0),FALSE)) -> 0 | D23: 0 | E23: =IF($B$9="kWh",$B$4,$B$5) -> 1400 | F23: =VLOOKUP($B$3,'Data Proposed Rates'!$A:$BC,MATCH(BI_UR_High!$A23,ProposedHeader,0),FALSE) -> 0 | G23: 0 | H23: 0 | I23: N/A | J23: 0 | K23: 0
A24: Base Rate Adjustment to Recover Past Tax Amounts VOL | B24: =IF($B$9="kWh",$B$4,$B$5) -> 1400 | C24: =IF(ISERROR(VLOOKUP($B$3,'Data Current Rates'!$A:$BE,MATCH(BI_UR_High!$A24,CurrentHeader,0),FALSE)),0,VLOOKUP($B$3,'Data Current Rates'!$A:$BE,MATCH(BI_UR_High!$A24,CurrentHeader,0),FALSE)) -> 0 | D24: 0 | E24: =IF($B$9="kWh",$B$4,$B$5) -> 1400 | F24: =VLOOKUP($B$3,'Data Proposed Rates'!$A:$BC,MATCH(BI_UR_High!$A24,ProposedHeader,0),FALSE) -> 0 | G24: 0 | H24: 0 | I24: N/A | J24: 0 | K24: 0
A25: Volumetric Deferral/Variance Account Rider (General) | B25: =IF($B$9="kWh",$B$4,$B$5) -> 1400 | C25: =IF(ISERROR(VLOOKUP($B$3,'Data Current Rates'!$A:$BE,MATCH(BI_UR_High!$A25,CurrentHeader,0),FALSE)),0,VLOOKUP($B$3,'Data Current Rates'!$A:$BE,MATCH(BI_UR_High!$A25,CurrentHeader,0),FALSE)) -> -0.0007 | D25: -0.98 | H25: 0.98 | I25: 1 | J25: 0 | K25: 0
A26: Volumetric ESM Rider | B26: 1400 | C26: =IF(ISERROR(VLOOKUP($B$3,'Data Current Rates'!$A:$BE,MATCH(BI_UR_High!$A26,CurrentHeader,0),FALSE)),0,VLOOKUP($B$3,'Data Current Rates'!$A:$BE,MATCH(BI_UR_High!$A26,CurrentHeader,0),FALSE)) -> 0 | D26: 0 | H26: 0 | I26: N/A | J26: 0 | K26: 0
A27: Fair Hydro Plan - Distribution Rate Protection Savings* | D27: =IF(AND(B3<>"R1",B3<>"R2"),0,IF(VLOOKUP($A27,'Data Pass Through'!$A:$D,2,FALSE)=0,0,IF(SUM(D19:D20,D23:D24)<VLOOKUP($A27,'Data Pass Through'!$A:$D,2,FALSE),0,VLOOKUP($A27,'Data Pass Through'!$A:$D,2,FALSE)-SUM(D19:D20,D23:D24)))) -> 0 | G27: =IF(AND(B3<>"R1",B3<>"R2"),0,IF(VLOOKUP($A27,'Data Pass Through'!$A:$D,2,FALSE)=0,0,IF(SUM(G19:G20,G23:G24)<VLOOKUP($A27,'Data Pass Through'!$A:$D,2,FALSE),0,VLOOKUP($A27,'Data Pass Through'!$A:$D,2,FALSE)-SUM(G19:G20,G23:G24)))) -> 0 | H27: 0 | I27: N/A | J27: 0 | K27: 0
A28: Sub-Total: Distribution (excluding pass through) | D28: =SUM(INDIRECT("D19:D"&ROW()-1)) -> 35.13 | G28: =SUM(INDIRECT("g19:g"&ROW()-1)) -> 38.86 | H28: =G28-D28 -> 3.73 | I28: 0.1061770566 | J28: 0.1764895189 | K28: 0.1818809915
A29: Smart Metering Entity Charge | B29: 1 | C29: =VLOOKUP($A29,'Data Pass Through'!$A:$D,2,FALSE) -> 0.57 | D29: =B29*C29 -> 0.57 | E29: 1 | F29: =VLOOKUP($A29,'Data Pass Through'!$A:$D,3,FALSE) -> 0.57 | G29: =E29*F29 -> 0.57 | H29: 0 | I29: 0 | J29: 0.002588755167 | K29: 0.002667837498
A30: Line Losses on Cost of Power (based on two-tier RPP prices) | B30: =B8-B4 -> 79.8 | C30: =IF(B4>B7,C13,C12) -> 0.115 | D30: =B30*C30 -> 9.177 | E30: 79.8 | F30: =IF(B4>B7,F13,F12) -> 0.115 | G30: =E30*F30 -> 9.177 | H30: 0 | I30: 0 | J30: 0.04167895819 | K30: 0.04295218372
A31: Line Losses on Cost of Power (based on TOU prices) | B31: =B8-B4 -> 79.8 | C31: =VLOOKUP($B$3,'Data Billing Quantities'!$A:$O,MATCH(BI_UR_High!$A15,'Data Billing Quantities'!$4:$4,0),FALSE)*C15+VLOOKUP($B$3,'Data Billing Quantities'!$A:$O,MATCH(BI_UR_High!$A16,'Data Billing Quantities'!$4:$4,0),FALSE)*C16+VLOOKUP($B$3,'Data Billing Quantities'!$A:$O,MATCH(BI_UR_High!$A17,'Data Billing Quantities'!$4:$4,0),FALSE)*C17 -> 0.10342 | D31: =B31*C31 -> 8.252916 | E31: 79.8 | F31: =VLOOKUP($B$3,'Data Billing Quantities'!$A:$O,MATCH(BI_UR_High!$A15,'Data Billing Quantities'!$4:$4,0),FALSE)*F15+VLOOKUP($B$3,'Data Billing Quantities'!$A:$O,MATCH(BI_UR_High!$A16,'Data Billing Quantities'!$4:$4,0),FALSE)*F16+VLOOKUP($B$3,'Data Billing Quantities'!$A:$O,MATCH(BI_UR_High!$A17,'Data Billing Quantities'!$4:$4,0),FALSE)*F17 -> 0.10342 | G31: =E31*F31 -> 8.252916 | H31: 0 | I31: 0 | J31: 0.03748206831 | K31: 0.03862708557
A32: Sub-Total: Distribution (based on two-tier RPP prices) | D32: =SUM(D28,D29:D30) -> 44.877 | G32: =SUM(G28,G29:G30) -> 48.607 | H32: 3.73 | I32: 0.08311607282 | J32: 0.2207572323 | K32: 0.2275010128
A33: Sub-Total: Distribution (based on TOU prices) | D33: =SUM(D28,D29,D31) -> 43.952916 | G33: =SUM(G28,G29,G31) -> 47.682916 | H33: 3.73 | I33: 0.08486353897 | J33: 0.2165603424 | K33: 0.2231759146
A34: Retail Transmission Rate – Network Service Rate | B34: =B8 -> 1479.8 | C34: =VLOOKUP($B$3,'Data Current Rates'!$A:$BE,MATCH(BI_UR_High!$A34,CurrentHeader,0),FALSE) -> 0.0089 | D34: =B34*C34 -> 13.17022 | E34: 1479.8 | F34: =VLOOKUP($B$3,'Data Proposed Rates'!$A:$BC,MATCH(BI_UR_High!$A34,ProposedHeader,0),FALSE) -> 0.0112 | G34: =E34*F34 -> 16.57376 | H34: =G34-D34 -> 3.40354 | I34: 0.2584269663 | J34: 0.07527264357 | K34: 0.07757210248
A35: Retail Transmission Rate – Line and Transformation Connection Service Rate | B35: =B8 -> 1479.8 | C35: =VLOOKUP($B$3,'Data Current Rates'!$A:$BE,MATCH(BI_UR_High!$A35,CurrentHeader,0),FALSE) -> 0.0077 | D35: =B35*C35 -> 11.39446 | E35: 1479.8 | F35: =VLOOKUP($B$3,'Data Proposed Rates'!$A:$BC,MATCH(BI_UR_High!$A35,ProposedHeader,0),FALSE) -> 0.0081 | G35: =E35*F35 -> 11.98638 | H35: =G35-D35 -> 0.59192 | I35: 0.05194805195 | J35: 0.05443825116 | K35: 0.05610125269
A36: Sub-Total: Retail Transmission | D36: =SUM(D34:D35) -> 24.56468 | G36: =SUM(G34:G35) -> 28.56014 | H36: =G36-D36 -> 3.99546 | I36: 0.1626506024 | J36: 0.1297108947 | K36: 0.1336733552
A37: Sub-Total: Delivery (based on two-tier RPP prices) | D37: =D32+D36 -> 69.44168 | G37: =G32+G36 -> 77.16714 | H37: =G37-D37 -> 7.72546 | I37: 0.1112510527 | J37: 0.350468127 | K37: 0.3611743679
A38: Sub-Total: Delivery (based on TOU prices) | D38: =D33+D36 -> 68.517596 | G38: =G33+G36 -> 76.243056 | H38: =G38-D38 -> 7.72546 | I38: 0.1127514748 | J38: 0.3462712371 | K38: 0.3568492698
A39: Wholesale Market Service Rate (WMS) - not including CBR | B39: =B8 -> 1479.8 | C39: =VLOOKUP($A39,'Data Pass Through'!$A:$D,2,FALSE) -> 0.003 | D39: =B39*C39 -> 4.4394 | E39: =$B$8 -> 1479.8 | F39: =VLOOKUP($A39,'Data Pass Through'!$A:$D,3,FALSE) -> 0.003 | G39: =E39*F39 -> 4.4394 | H39: 0 | I39: 0 | J39: 0.02016231524 | K39: 0.02077824174
A40: Capacity Based Recovery (CBR) - Applicable for Class B Customers | B40: =B8 -> 1479.8 | C40: =VLOOKUP($A40,'Data Pass Through'!$A:$D,2,FALSE) -> 0.0004 | D40: =B40*C40 -> 0.59192 | E40: =$B$8 -> 1479.8 | F40: =VLOOKUP($A40,'Data Pass Through'!$A:$D,3,FALSE) -> 0.0004 | G40: =E40*F40 -> 0.59192 | H40: 0 | I40: 0 | J40: 0.002688308699 | K40: 0.002770432232
A41: Rural Rate Protection Charge | B41: =B8 -> 1479.8 | C41: =VLOOKUP($A41,'Data Pass Through'!$A:$D,2,FALSE) -> 0.0005 | D41: 0.7399 | E41: 1479.8 | F41: =VLOOKUP($A41,'Data Pass Through'!$A:$D,3,FALSE) -> 0.0005 | G41: 0.7399 | H41: 0 | I41: 0 | J41: 0.003360385874 | K41: 0.003463040289
A42: Standard Supply Service – Administration Charge (if applicable) | B42: 1 | C42: =VLOOKUP($A42,'Data Pass Through'!$A:$D,2,FALSE) -> 0.25 | D42: =B42*C42 -> 0.25 | E42: 1 | F42: =VLOOKUP($A42,'Data Pass Through'!$A:$D,3,FALSE) -> 0.25 | G42: 0.25 | H42: 0 | I42: 0 | J42: 0.001135418933 | K42: 0.001170104166
A43: Sub-Total: Regulatory | D43: =SUM(D39:D42) -> 6.02122 | G43: =SUM(G39:G42) -> 6.02122 | H43: 0 | I43: 0 | J43: 0.02734642875 | K43: 0.02818181842
A44: Debt Retirement Charge (DRC) | B44: =B4 -> 1400 | C44: =VLOOKUP($A44,'Data Pass Through'!$A:$D,2,FALSE) -> 0 | D44: =B44*C44 -> 0 | E44: 1400 | F44: =VLOOKUP($A44,'Data Pass Through'!$A:$D,3,FALSE) -> 0 | G44: =E44*F44 -> 0 | H44: 0 | I44: N/A | J44: 0 | K44: 0
A45: Total Electricty Charge on Two-Tier RPP | D45: =SUM(D14,D28,D29,D30,D36,D43,D44) -> 226.2629 | G45: =SUM(G14,G28,G29,G30,G36,G43,G44) -> 233.98836 | H45: 7.72546 | I45: 0.0341437328 | J45: 1.062699256
A46: HST | C46: 0.13 | D46: =D45*C46 -> 29.414177 | F46: =C46 -> 0.13 | G46: =G45*F46 -> 30.4184868 | H46: 1.0043098 | I46: 0.0341437328 | J46: 0.1381509033
A47: Total Electricity Charge on Two-Tier RPP (including HST) | D47: =SUM(D45:D46) -> 255.677077 | G47: =SUM(G45:G46) -> 264.4068468 | H47: 8.7297698 | I47: 0.0341437328 | J47: 1.200850159
A48: Ontario Electricity Rebate (OER) | C48: ='Data Pass Through'!B20 -> -0.189 | D48: =D45*C48 -> -42.7636881 | F48: ='Data Pass Through'!C20 -> -0.189 | G48: =G45*F48 -> -44.22380004 | H48: -1.46011194 | I48: -0.0341437328 | J48: -0.2008501594
A49: Total Amount on Two-Tier RPP | D49: =SUM(D47:D48) -> 212.9133889 | G49: =SUM(G47:G48) -> 220.1830468 | H49: 7.26965786 | I49: 0.0341437328 | J49: 1
A50: Total Electricty Charge on TOU (before HST) | D50: =SUM(D18,D28,D29,D31,D36,D43,D44) -> 219.326816 | G50: =SUM(G18,G28,G29,G31,G36,G43,G44) -> 227.052276 | H50: 7.72546 | I50: 0.03522350865 | K50: =G50/$G$54 -> 1.062699256
A51: HST | C51: 0.13 | D51: =D50*C51 -> 28.51248608 | F51: =C51 -> 0.13 | G51: =G50*F51 -> 29.51679588 | H51: 1.0043098 | I51: 0.03522350865 | K51: =G51/$G$54 -> 0.1381509033
A52: Total Electricity Charge on TOU (including HST) | D52: =SUM(D50:D51) -> 247.8393021 | G52: =SUM(G50:G51) -> 256.5690719 | H52: 8.7297698 | I52: 0.03522350865 | K52: =G52/$G$54 -> 1.200850159
A53: Ontario Electricity Rebate (OER) | C53: ='Data Pass Through'!B20 -> -0.189 | D53: =D50*C53 -> -41.45276822 | F53: ='Data Pass Through'!C20 -> -0.189 | G53: =G50*F53 -> -42.91288016 | H53: -1.46011194 | I53: -0.03522350865 | K53: =G53/$G$54 -> -0.2008501594
A54: Total Amount on TOU | D54: =SUM(D52:D53) -> 206.3865339 | G54: =SUM(G52:G53) -> 213.6561917 | H54: 7.26965786 | I54: 0.03522350865 | K54: =G54/$G$54 -> 1
A55: * Distribution rate protection applies to R1 and R2 customers

Sheet BI_R1_Low
A1: 2022 Bill Impacts (Low Consumption Level) - R1
A3: Rate Class | B3: =RIGHT(A1,LEN(A1)-FIND("- ",A1,1)-1) -> R1
A4: Monthly Consumption (kWh) | B4: =IF(COUNTIF(A1,"*Low*")>0,VLOOKUP(B3,'Data Billing Quantities'!$A:$Z,MATCH("Low kWh",'Data Billing Quantities'!4:4,0),FALSE),IF(COUNTIF(A1,"*Typical*")>0,VLOOKUP(B3,'Data Billing Quantities'!$A:$Z,MATCH("Typical kWh",'Data Billing Quantities'!4:4,0),FALSE),IF(COUNTIF(A1,"*Average*")>0,VLOOKUP(B3,'Data Billing Quantities'!$A:$Z,MATCH("Average kWh",'Data Billing Quantities'!4:4,0),FALSE),IF(COUNTIF(A1,"*High*")>0,VLOOKUP(B3,'Data Billing Quantities'!$A:$Z,MATCH("High kWh",'Data Billing Quantities'!4:4,0),FALSE),"error")))) -> 400
A5: Peak (kW) | B5: =IF(COUNTIF(A1,"*Low*")>0,VLOOKUP(B3,'Data Billing Quantities'!$A:$Z,MATCH("Low kW",'Data Billing Quantities'!4:4,0),FALSE),IF(COUNTIF(A1,"*Typical*")>0,VLOOKUP(B3,'Data Billing Quantities'!$A:$Z,MATCH("Typical kW",'Data Billing Quantities'!4:4,0),FALSE),IF(COUNTIF(A1,"*Average*")>0,VLOOKUP(B3,'Data Billing Quantities'!$A:$Z,MATCH("Average kW",'Data Billing Quantities'!4:4,0),FALSE),IF(COUNTIF(A1,"*High*")>0,VLOOKUP(B3,'Data Billing Quantities'!$A:$Z,MATCH("High kW",'Data Billing Quantities'!4:4,0),FALSE),"error")))) -> 0
A6: Loss factor | B6: =VLOOKUP(B3,'Data Billing Quantities'!A:D,MATCH(A6,'Data Billing Quantities'!4:4,0),FALSE) -> 1.076
A7: Commodity Threshold | B7: =VLOOKUP(B3,'Data Billing Quantities'!A:D,MATCH(A7,'Data Billing Quantities'!4:4,0),FALSE) -> 600
A8: Monthly Consumption (kWh) - Uplifted | B8: =B4*B6 -> 430.4
A9: Charge determinant | B9: =VLOOKUP(B3,'Data Billing Quantities'!A:D,MATCH(A9,'Data Billing Quantities'!4:4,0),FALSE) -> kWh
B11: Volume | C11: Current Rate ($) | D11: Current Charge ($) | E11: Volume | F11: Proposed Rate ($) | G11: Proposed Charge ($) | H11: Change ($) | I11: Change (%) | J11: % of Total Bill on RPP | K11: % of Total Bill on TOU
A12: Energy First Tier | B12: =IF(B4>B7,B7,B4) -> 400 | C12: =VLOOKUP($A12,'Data Pass Through'!$A:$D,2,FALSE) -> 0.098 | D12: =B12*C12 -> 39.2 | E12: =B12 -> 400 | F12: =VLOOKUP($A12,'Data Pass Through'!$A:$D,3,FALSE) -> 0.098 | G12: =E12*F12 -> 39.2 | H12: =G12-D12 -> 0 | I12: =IF(ISERROR(H12/ABS(D12)),"N/A",(H12/ABS(D12))) -> 0 | J12: =G12/$G$49 -> 0.4667964432
A13: Energy Second Tier | B13: =IF(B4>B7,(B4)-B7,0) -> 0 | C13: =VLOOKUP($A13,'Data Pass Through'!$A:$D,2,FALSE) -> 0.115 | D13: =B13*C13 -> 0 | E13: =B13 -> 0 | F13: =VLOOKUP($A13,'Data Pass Through'!$A:$D,3,FALSE) -> 0.115 | G13: =E13*F13 -> 0 | H13: 0 | I13: N/A | J13: =G13/$G$49 -> 0
A14: Sub-Total: Energy (RPP Tiered) | D14: =SUM(D12:D13) -> 39.2 | G14: =SUM(G12:G13) -> 39.2 | H14: 0 | I14: 0 | J14: =G14/$G$49 -> 0.4667964432
A15: TOU-Off Peak | B15: =B$4*VLOOKUP($B$3,'Data Billing Quantities'!$A:$O,MATCH(BI_R1_Low!$A15,'Data Billing Quantities'!$4:$4,0),FALSE) -> 256 | C15: =VLOOKUP($A15,'Data Pass Through'!$A:$D,2,FALSE) -> 0.082 | D15: =B15*C15 -> 20.992 | E15: 256 | F15: =VLOOKUP($A15,'Data Pass Through'!$A:$D,3,FALSE) -> 0.082 | G15: =E15*F15 -> 20.992 | H15: 0 | I15: 0 | K15: =G15/$G$54 -> 0.2436064296
A16: TOU-Mid Peak | B16: =B$4*VLOOKUP($B$3,'Data Billing Quantities'!$A:$O,MATCH(BI_R1_Low!$A16,'Data Billing Quantities'!$4:$4,0),FALSE) -> 72 | C16: =VLOOKUP($A16,'Data Pass Through'!$A:$D,2,FALSE) -> 0.113 | D16: =B16*C16 -> 8.136 | E16: 72 | F16: =VLOOKUP($A16,'Data Pass Through'!$A:$D,3,FALSE) -> 0.113 | G16: =E16*F16 -> 8.136 | H16: 0 | I16: 0 | K16: 0.09441605903
A17: TOU-On Peak | B17: =B$4*VLOOKUP($B$3,'Data Billing Quantities'!$A:$O,MATCH(BI_R1_Low!$A17,'Data Billing Quantities'!$4:$4,0),FALSE) -> 72 | C17: =VLOOKUP($A17,'Data Pass Through'!$A:$D,2,FALSE) -> 0.17 | D17: =B17*C17 -> 12.24 | E17: 72 | F17: =VLOOKUP($A17,'Data Pass Through'!$A:$D,3,FALSE) -> 0.17 | G17: =E17*F17 -> 12.24 | H17: 0 | I17: 0 | K17: 0.1420418587
A18: Sub-Total: Energy (RPP TOU) | D18: =SUM(D15:D17) -> 41.368 | G18: =SUM(G15:G17) -> 41.368 | H18: 0 | I18: 0 | J18: =G18/$G$49 -> 0.4926131444 | K18: 0.4800643473
A19: Service Charge | B19: 1 | C19: =IF(ISERROR(VLOOKUP($B$3,'Data Current Rates'!$A:$BE,MATCH(BI_R1_Low!$A19,CurrentHeader,0),FALSE)),0,VLOOKUP($B$3,'Data Current Rates'!$A:$BE,MATCH(BI_R1_Low!$A19,CurrentHeader,0),FALSE)) -> 49.04 | D19: =B19*C19 -> 49.04 | E19: 1 | F19: =VLOOKUP($B$3,'Data Proposed Rates'!$A:$BC,MATCH(BI_R1_Low!$A19,ProposedHeader,0),FALSE) -> 56.06 | G19: =E19*F19 -> 56.06 | H19: 7.02 | I19: 0.1431484502 | J19: 0.6675665461 | K19: 0.6505609967
A20: Base Rate Adjustment to Recover Past Tax Amounts FIXED | B20: 1 | C20: =IF(ISERROR(VLOOKUP($B$3,'Data Current Rates'!$A:$BE,MATCH(BI_R1_Low!$A20,CurrentHeader,0),FALSE)),0,VLOOKUP($B$3,'Data Current Rates'!$A:$BE,MATCH(BI_R1_Low!$A20,CurrentHeader,0),FALSE)) -> 1.56 | D20: 1.56 | E20: 1 | F20: =VLOOKUP($B$3,'Data Proposed Rates'!$A:$BC,MATCH(BI_R1_Low!$A20,ProposedHeader,0),FALSE) -> 1.56 | G20: 1.56 | H20: 0 | I20: 0 | J20: 0.01857659315 | K20: 0.01810337415
A21: Fixed Deferral/Variance Account Rider (General) | B21: 1 | C21: =IF(ISERROR(VLOOKUP($B$3,'Data Current Rates'!$A:$BE,MATCH(BI_R1_Low!$A21,CurrentHeader,0),FALSE)),0,VLOOKUP($B$3,'Data Current Rates'!$A:$BE,MATCH(BI_R1_Low!$A21,CurrentHeader,0),FALSE)) -> -0.14 | D21: -0.14 | H21: 0.14 | I21: 1 | J21: 0 | K21: 0
A22: Fixed ESM Rider | B22: 1 | C22: =IF(ISERROR(VLOOKUP($B$3,'Data Current Rates'!$A:$BE,MATCH(BI_R1_Low!$A22,CurrentHeader,0),FALSE)),0,VLOOKUP($B$3,'Data Current Rates'!$A:$BE,MATCH(BI_R1_Low!$A22,CurrentHeader,0),FALSE)) -> -0.85 | D22: -0.85 | H22: 0.85 | I22: 1 | J22: 0 | K22: 0
A23: Distribution Volumetric Charge | B23: =IF($B$9="kWh",$B$4,$B$5) -> 400 | C23: =IF(ISERROR(VLOOKUP($B$3,'Data Current Rates'!$A:$BE,MATCH(BI_R1_Low!$A23,CurrentHeader,0),FALSE)),0,VLOOKUP($B$3,'Data Current Rates'!$A:$BE,MATCH(BI_R1_Low!$A23,CurrentHeader,0),FALSE)) -> 0.0141 | D23: 5.64 | E23: =IF($B$9="kWh",$B$4,$B$5) -> 400 | F23: =VLOOKUP($B$3,'Data Proposed Rates'!$A:$BC,MATCH(BI_R1_Low!$A23,ProposedHeader,0),FALSE) -> 0.01 | G23: 4 | H23: -1.64 | I23: -0.2907801418 | J23: 0.04763229012 | K23: 0.04641890808
A24: Base Rate Adjustment to Recover Past Tax Amounts VOL | B24: =IF($B$9="kWh",$B$4,$B$5) -> 400 | C24: =IF(ISERROR(VLOOKUP($B$3,'Data Current Rates'!$A:$BE,MATCH(BI_R1_Low!$A24,CurrentHeader,0),FALSE)),0,VLOOKUP($B$3,'Data Current Rates'!$A:$BE,MATCH(BI_R1_Low!$A24,CurrentHeader,0),FALSE)) -> 0 | D24: 0 | E24: =IF($B$9="kWh",$B$4,$B$5) -> 400 | F24: =VLOOKUP($B$3,'Data Proposed Rates'!$A:$BC,MATCH(BI_R1_Low!$A24,ProposedHeader,0),FALSE) -> 0 | G24: 0 | H24: 0 | I24: N/A | J24: 0 | K24: 0
A25: Volumetric Deferral/Variance Account Rider (General) | B25: =IF($B$9="kWh",$B$4,$B$5) -> 400 | C25: =IF(ISERROR(VLOOKUP($B$3,'Data Current Rates'!$A:$BE,MATCH(BI_R1_Low!$A25,CurrentHeader,0),FALSE)),0,VLOOKUP($B$3,'Data Current Rates'!$A:$BE,MATCH(BI_R1_Low!$A25,CurrentHeader,0),FALSE)) -> -0.0008 | D25: -0.32 | H25: 0.32 | I25: 1 | J25: 0 | K25: 0
A26: Volumetric ESM Rider | B26: 400 | C26: =IF(ISERROR(VLOOKUP($B$3,'Data Current Rates'!$A:$BE,MATCH(BI_R1_Low!$A26,CurrentHeader,0),FALSE)),0,VLOOKUP($B$3,'Data Current Rates'!$A:$BE,MATCH(BI_R1_Low!$A26,CurrentHeader,0),FALSE)) -> 0 | D26: 0 | H26: 0 | I26: N/A | J26: 0 | K26: 0
A27: Fair Hydro Plan - Distribution Rate Protection Savings* | D27: =IF(AND(B3<>"R1",B3<>"R2"),0,IF(VLOOKUP($A27,'Data Pass Through'!$A:$D,2,FALSE)=0,0,IF(SUM(D19:D20,D23:D24)<VLOOKUP($A27,'Data Pass Through'!$A:$D,2,FALSE),0,VLOOKUP($A27,'Data Pass Through'!$A:$D,2,FALSE)-SUM(D19:D20,D23:D24)))) -> -19.38 | G27: =IF(AND(B3<>"R1",B3<>"R2"),0,IF(VLOOKUP($A27,'Data Pass Through'!$A:$D,2,FALSE)=0,0,IF(SUM(G19:G20,G23:G24)<VLOOKUP($A27,'Data Pass Through'!$A:$D,2,FALSE),0,VLOOKUP($A27,'Data Pass Through'!$A:$D,2,FALSE)-SUM(G19:G20,G23:G24)))) -> -24.76 | H27: -5.38 | I27: -0.2776057792 | J27: -0.2948438759 | K27: -0.287333041
A28: Sub-Total: Distribution (excluding pass through) | D28: =SUM(INDIRECT("D19:D"&ROW()-1)) -> 35.55 | G28: =SUM(INDIRECT("g19:g"&ROW()-1)) -> 36.86 | H28: =G28-D28 -> 1.31 | I28: 0.03684950774 | J28: 0.4389315535 | K28: 0.4277502379
A29: Smart Metering Entity Charge | B29: 1 | C29: =VLOOKUP($A29,'Data Pass Through'!$A:$D,2,FALSE) -> 0.57 | D29: =B29*C29 -> 0.57 | E29: 1 | F29: =VLOOKUP($A29,'Data Pass Through'!$A:$D,3,FALSE) -> 0.57 | G29: =E29*F29 -> 0.57 | H29: 0 | I29: 0 | J29: 0.006787601342 | K29: 0.006614694401
A30: Line Losses on Cost of Power (based on two-tier RPP prices) | B30: =B8-B4 -> 30.4 | C30: =IF(B4>B7,C13,C12) -> 0.098 | D30: =B30*C30 -> 2.9792 | E30: 30.4 | F30: =IF(B4>B7,F13,F12) -> 0.098 | G30: =E30*F30 -> 2.9792 | H30: 0 | I30: 0 | J30: 0.03547652968 | K30: 0.03457280274
A31: Line Losses on Cost of Power (based on TOU prices) | B31: =B8-B4 -> 30.4 | C31: =VLOOKUP($B$3,'Data Billing Quantities'!$A:$O,MATCH(BI_R1_Low!$A15,'Data Billing Quantities'!$4:$4,0),FALSE)*C15+VLOOKUP($B$3,'Data Billing Quantities'!$A:$O,MATCH(BI_R1_Low!$A16,'Data Billing Quantities'!$4:$4,0),FALSE)*C16+VLOOKUP($B$3,'Data Billing Quantities'!$A:$O,MATCH(BI_R1_Low!$A17,'Data Billing Quantities'!$4:$4,0),FALSE)*C17 -> 0.10342 | D31: =B31*C31 -> 3.143968 | E31: 30.4 | F31: =VLOOKUP($B$3,'Data Billing Quantities'!$A:$O,MATCH(BI_R1_Low!$A15,'Data Billing Quantities'!$4:$4,0),FALSE)*F15+VLOOKUP($B$3,'Data Billing Quantities'!$A:$O,MATCH(BI_R1_Low!$A16,'Data Billing Quantities'!$4:$4,0),FALSE)*F16+VLOOKUP($B$3,'Data Billing Quantities'!$A:$O,MATCH(BI_R1_Low!$A17,'Data Billing Quantities'!$4:$4,0),FALSE)*F17 -> 0.10342 | G31: =E31*F31 -> 3.143968 | H31: 0 | I31: 0 | J31: 0.03743859898 | K31: 0.0364848904
A32: Sub-Total: Distribution (based on two-tier RPP prices) | D32: =SUM(D28,D29:D30) -> 39.0992 | G32: =SUM(G28,G29:G30) -> 40.4092 | H32: 1.31 | I32: 0.03350452183 | J32: 0.4811956845 | K32: 0.4689377351
A33: Sub-Total: Distribution (based on TOU prices) | D33: =SUM(D28,D29,D31) -> 39.263968 | G33: =SUM(G28,G29,G31) -> 40.573968 | H33: 1.31 | I33: 0.03336392287 | J33: 0.4831577538 | K33: 0.4708498227
A34: Retail Transmission Rate – Network Service Rate | B34: =B8 -> 430.4 | C34: =VLOOKUP($B$3,'Data Current Rates'!$A:$BE,MATCH(BI_R1_Low!$A34,CurrentHeader,0),FALSE) -> 0.0082 | D34: =B34*C34 -> 3.52928 | E34: 430.4 | F34: =VLOOKUP($B$3,'Data Proposed Rates'!$A:$BC,MATCH(BI_R1_Low!$A34,ProposedHeader,0),FALSE) -> 0.0103 | G34: =E34*F34 -> 4.43312 | H34: =G34-D34 -> 0.90384 | I34: 0.256097561 | J34: 0.0527899145 | K34: 0.05144514744
A35: Retail Transmission Rate – Line and Transformation Connection Service Rate | B35: =B8 -> 430.4 | C35: =VLOOKUP($B$3,'Data Current Rates'!$A:$BE,MATCH(BI_R1_Low!$A35,CurrentHeader,0),FALSE) -> 0.0073 | D35: =B35*C35 -> 3.14192 | E35: 430.4 | F35: =VLOOKUP($B$3,'Data Proposed Rates'!$A:$BC,MATCH(BI_R1_Low!$A35,ProposedHeader,0),FALSE) -> 0.0076 | G35: =E35*F35 -> 3.27104 | H35: =G35-D35 -> 0.12912 | I35: 0.04109589041 | J35: 0.03895178157 | K35: 0.03795952627
A36: Sub-Total: Retail Transmission | D36: =SUM(D34:D35) -> 6.6712 | G36: =SUM(G34:G35) -> 7.70416 | H36: =G36-D36 -> 1.03296 | I36: 0.1548387097 | J36: 0.09174169607 | K36: 0.08940467371
A37: Sub-Total: Delivery (based on two-tier RPP prices) | D37: =D32+D36 -> 45.7704 | G37: =G32+G36 -> 48.11336 | H37: =G37-D37 -> 2.34296 | I37: 0.05118941499 | J37: 0.5729373806 | K37: 0.5583424088
A38: Sub-Total: Delivery (based on TOU prices) | D38: =D33+D36 -> 45.935168 | G38: =G33+G36 -> 48.278128 | H38: =G38-D38 -> 2.34296 | I38: 0.05100580017 | J38: 0.5748994499 | K38: 0.5602544964
A39: Wholesale Market Service Rate (WMS) - not including CBR | B39: =B8 -> 430.4 | C39: =VLOOKUP($A39,'Data Pass Through'!$A:$D,2,FALSE) -> 0.003 | D39: =B39*C39 -> 1.2912 | E39: =$B$8 -> 430.4 | F39: =VLOOKUP($A39,'Data Pass Through'!$A:$D,3,FALSE) -> 0.003 | G39: =E39*F39 -> 1.2912 | H39: 0 | I39: 0 | J39: 0.01537570325 | K39: 0.01498402353
A40: Capacity Based Recovery (CBR) - Applicable for Class B Customers | B40: =B8 -> 430.4 | C40: =VLOOKUP($A40,'Data Pass Through'!$A:$D,2,FALSE) -> 0.0004 | D40: =B40*C40 -> 0.17216 | E40: =$B$8 -> 430.4 | F40: =VLOOKUP($A40,'Data Pass Through'!$A:$D,3,FALSE) -> 0.0004 | G40: =E40*F40 -> 0.17216 | H40: 0 | I40: 0 | J40: 0.002050093767 | K40: 0.001997869804
A41: Rural Rate Protection Charge | B41: =B8 -> 430.4 | C41: =VLOOKUP($A41,'Data Pass Through'!$A:$D,2,FALSE) -> 0.0005 | D41: 0.2152 | E41: 430.4 | F41: =VLOOKUP($A41,'Data Pass Through'!$A:$D,3,FALSE) -> 0.0005 | G41: 0.2152 | H41: 0 | I41: 0 | J41: 0.002562617209 | K41: 0.002497337255
A42: Standard Supply Service – Administration Charge (if applicable) | B42: 1 | C42: =VLOOKUP($A42,'Data Pass Through'!$A:$D,2,FALSE) -> 0.25 | D42: =B42*C42 -> 0.25 | E42: 1 | F42: =VLOOKUP($A42,'Data Pass Through'!$A:$D,3,FALSE) -> 0.25 | G42: 0.25 | H42: 0 | I42: 0 | J42: 0.002977018133 | K42: 0.002901181755
A43: Sub-Total: Regulatory | D43: =SUM(D39:D42) -> 1.92856 | G43: =SUM(G39:G42) -> 1.92856 | H43: 0 | I43: 0 | J43: 0.02296543236 | K43: 0.02238041234
A44: Debt Retirement Charge (DRC) | B44: =B4 -> 400 | C44: =VLOOKUP($A44,'Data Pass Through'!$A:$D,2,FALSE) -> 0 | D44: =B44*C44 -> 0 | E44: 400 | F44: =VLOOKUP($A44,'Data Pass Through'!$A:$D,3,FALSE) -> 0 | G44: =E44*F44 -> 0 | H44: 0 | I44: N/A | J44: 0 | K44: 0
A45: Total Electricty Charge on Two-Tier RPP | D45: =SUM(D14,D28,D29,D30,D36,D43,D44) -> 86.89896 | G45: =SUM(G14,G28,G29,G30,G36,G43,G44) -> 89.24192 | H45: 2.34296 | I45: 0.02696188769 | J45: 1.062699256
A46: HST | C46: 0.13 | D46: =D45*C46 -> 11.2968648 | F46: =C46 -> 0.13 | G46: =G45*F46 -> 11.6014496 | H46: 0.3045848 | I46: 0.02696188769 | J46: 0.1381509033
A47: Total Electricity Charge on Two-Tier RPP (including HST) | D47: =SUM(D45:D46) -> 98.1958248 | G47: =SUM(G45:G46) -> 100.8433696 | H47: 2.6475448 | I47: 0.02696188769 | J47: 1.200850159
A48: Ontario Electricity Rebate (OER) | C48: ='Data Pass Through'!B20 -> -0.189 | D48: =D45*C48 -> -16.42390344 | F48: ='Data Pass Through'!C20 -> -0.189 | G48: =G45*F48 -> -16.86672288 | H48: -0.44281944 | I48: -0.02696188769 | J48: -0.2008501594
A49: Total Amount on Two-Tier RPP | D49: =SUM(D47:D48) -> 81.77192136 | G49: =SUM(G47:G48) -> 83.97664672 | H49: 2.20472536 | I49: 0.02696188769 | J49: 1
A50: Total Electricty Charge on TOU (before HST) | D50: =SUM(D18,D28,D29,D31,D36,D43,D44) -> 89.231728 | G50: =SUM(G18,G28,G29,G31,G36,G43,G44) -> 91.574688 | H50: 2.34296 | I50: 0.02625702822 | K50: =G50/$G$54 -> 1.062699256
A51: HST | C51: 0.13 | D51: =D50*C51 -> 11.60012464 | F51: =C51 -> 0.13 | G51: =G50*F51 -> 11.90470944 | H51: 0.3045848 | I51: 0.02625702822 | K51: =G51/$G$54 -> 0.1381509033
A52: Total Electricity Charge on TOU (including HST) | D52: =SUM(D50:D51) -> 100.8318526 | G52: =SUM(G50:G51) -> 103.4793974 | H52: 2.6475448 | I52: 0.02625702822 | K52: =G52/$G$54 -> 1.200850159
A53: Ontario Electricity Rebate (OER) | C53: ='Data Pass Through'!B20 -> -0.189 | D53: =D50*C53 -> -16.86479659 | F53: ='Data Pass Through'!C20 -> -0.189 | G53: =G50*F53 -> -17.30761603 | H53: -0.44281944 | I53: -0.02625702822 | K53: =G53/$G$54 -> -0.2008501594
A54: Total Amount on TOU | D54: =SUM(D52:D53) -> 83.96705605 | G54: =SUM(G52:G53) -> 86.17178141 | H54: 2.20472536 | I54: 0.02625702822 | K54: =G54/$G$54 -> 1
A55: * Distribution rate protection applies to R1 and R2 customers

Sheet BI_R1_Typical
A1: 2022 Bill Impacts (Typical Consumption Level) - R1
A3: Rate Class | B3: =RIGHT(A1,LEN(A1)-FIND("- ",A1,1)-1) -> R1
A4: Monthly Consumption (kWh) | B4: =IF(COUNTIF(A1,"*Low*")>0,VLOOKUP(B3,'Data Billing Quantities'!$A:$Z,MATCH("Low kWh",'Data Billing Quantities'!4:4,0),FALSE),IF(COUNTIF(A1,"*Typical*")>0,VLOOKUP(B3,'Data Billing Quantities'!$A:$Z,MATCH("Typical kWh",'Data Billing Quantities'!4:4,0),FALSE),IF(COUNTIF(A1,"*Average*")>0,VLOOKUP(B3,'Data Billing Quantities'!$A:$Z,MATCH("Average kWh",'Data Billing Quantities'!4:4,0),FALSE),IF(COUNTIF(A1,"*High*")>0,VLOOKUP(B3,'Data Billing Quantities'!$A:$Z,MATCH("High kWh",'Data Billing Quantities'!4:4,0),FALSE),"error")))) -> 750
A5: Peak (kW) | B5: =IF(COUNTIF(A1,"*Low*")>0,VLOOKUP(B3,'Data Billing Quantities'!$A:$Z,MATCH("Low kW",'Data Billing Quantities'!4:4,0),FALSE),IF(COUNTIF(A1,"*Typical*")>0,VLOOKUP(B3,'Data Billing Quantities'!$A:$Z,MATCH("Typical kW",'Data Billing Quantities'!4:4,0),FALSE),IF(COUNTIF(A1,"*Average*")>0,VLOOKUP(B3,'Data Billing Quantities'!$A:$Z,MATCH("Average kW",'Data Billing Quantities'!4:4,0),FALSE),IF(COUNTIF(A1,"*High*")>0,VLOOKUP(B3,'Data Billing Quantities'!$A:$Z,MATCH("High kW",'Data Billing Quantities'!4:4,0),FALSE),"error")))) -> 0
A6: Loss factor | B6: =VLOOKUP(B3,'Data Billing Quantities'!A:D,MATCH(A6,'Data Billing Quantities'!4:4,0),FALSE) -> 1.076
A7: Commodity Threshold | B7: =VLOOKUP(B3,'Data Billing Quantities'!A:D,MATCH(A7,'Data Billing Quantities'!4:4,0),FALSE) -> 600
A8: Monthly Consumption (kWh) - Uplifted | B8: =B4*B6 -> 807
A9: Charge determinant | B9: =VLOOKUP(B3,'Data Billing Quantities'!A:D,MATCH(A9,'Data Billing Quantities'!4:4,0),FALSE) -> kWh
B11: Volume | C11: Current Rate ($) | D11: Current Charge ($) | E11: Volume | F11: Proposed Rate ($) | G11: Proposed Charge ($) | H11: Change ($) | I11: Change (%) | J11: % of Total Bill on RPP | K11: % of Total Bill on TOU
A12: Energy First Tier | B12: =IF(B4>B7,B7,B4) -> 600 | C12: =VLOOKUP($A12,'Data Pass Through'!$A:$D,2,FALSE) -> 0.098 | D12: =B12*C12 -> 58.8 | E12: =B12 -> 600 | F12: =VLOOKUP($A12,'Data Pass Through'!$A:$D,3,FALSE) -> 0.098 | G12: =E12*F12 -> 58.8 | H12: =G12-D12 -> 0 | I12: =IF(ISERROR(H12/ABS(D12)),"N/A",(H12/ABS(D12))) -> 0 | J12: =G12/$G$49 -> 0.4532042642
A13: Energy Second Tier | B13: =IF(B4>B7,(B4)-B7,0) -> 150 | C13: =VLOOKUP($A13,'Data Pass Through'!$A:$D,2,FALSE) -> 0.115 | D13: =B13*C13 -> 17.25 | E13: =B13 -> 150 | F13: =VLOOKUP($A13,'Data Pass Through'!$A:$D,3,FALSE) -> 0.115 | G13: =E13*F13 -> 17.25 | H13: 0 | I13: 0 | J13: =G13/$G$49 -> 0.1329553326
A14: Sub-Total: Energy (RPP Tiered) | D14: =SUM(D12:D13) -> 76.05 | G14: =SUM(G12:G13) -> 76.05 | H14: 0 | I14: 0 | J14: =G14/$G$49 -> 0.5861595968
A15: TOU-Off Peak | B15: =B$4*VLOOKUP($B$3,'Data Billing Quantities'!$A:$O,MATCH(BI_R1_Typical!$A15,'Data Billing Quantities'!$4:$4,0),FALSE) -> 480 | C15: =VLOOKUP($A15,'Data Pass Through'!$A:$D,2,FALSE) -> 0.082 | D15: =B15*C15 -> 39.36 | E15: 480 | F15: =VLOOKUP($A15,'Data Pass Through'!$A:$D,3,FALSE) -> 0.082 | G15: =E15*F15 -> 39.36 | H15: 0 | I15: 0 | K15: =G15/$G$54 -> 0.3014998696
A16: TOU-Mid Peak | B16: =B$4*VLOOKUP($B$3,'Data Billing Quantities'!$A:$O,MATCH(BI_R1_Typical!$A16,'Data Billing Quantities'!$4:$4,0),FALSE) -> 135 | C16: =VLOOKUP($A16,'Data Pass Through'!$A:$D,2,FALSE) -> 0.113 | D16: =B16*C16 -> 15.255 | E16: 135 | F16: =VLOOKUP($A16,'Data Pass Through'!$A:$D,3,FALSE) -> 0.113 | G16: =E16*F16 -> 15.255 | H16: 0 | I16: 0 | K16: 0.1168541796
A17: TOU-On Peak | B17: =B$4*VLOOKUP($B$3,'Data Billing Quantities'!$A:$O,MATCH(BI_R1_Typical!$A17,'Data Billing Quantities'!$4:$4,0),FALSE) -> 135 | C17: =VLOOKUP($A17,'Data Pass Through'!$A:$D,2,FALSE) -> 0.17 | D17: =B17*C17 -> 22.95 | E17: 135 | F17: =VLOOKUP($A17,'Data Pass Through'!$A:$D,3,FALSE) -> 0.17 | G17: =E17*F17 -> 22.95 | H17: 0 | I17: 0 | K17: 0.1757983234
A18: Sub-Total: Energy (RPP TOU) | D18: =SUM(D15:D17) -> 77.565 | G18: =SUM(G15:G17) -> 77.565 | H18: 0 | I18: 0 | J18: =G18/$G$49 -> 0.5978365434 | K18: 0.5941523726
A19: Service Charge | B19: 1 | C19: =IF(ISERROR(VLOOKUP($B$3,'Data Current Rates'!$A:$BE,MATCH(BI_R1_Typical!$A19,CurrentHeader,0),FALSE)),0,VLOOKUP($B$3,'Data Current Rates'!$A:$BE,MATCH(BI_R1_Typical!$A19,CurrentHeader,0),FALSE)) -> 49.04 | D19: =B19*C19 -> 49.04 | E19: 1 | F19: =VLOOKUP($B$3,'Data Proposed Rates'!$A:$BC,MATCH(BI_R1_Typical!$A19,ProposedHeader,0),FALSE) -> 56.06 | G19: =E19*F19 -> 56.06 | H19: 7.02 | I19: 0.1431484502 | J19: 0.4320855621 | K19: 0.4294228326
A20: Base Rate Adjustment to Recover Past Tax Amounts FIXED | B20: 1 | C20: =IF(ISERROR(VLOOKUP($B$3,'Data Current Rates'!$A:$BE,MATCH(BI_R1_Typical!$A20,CurrentHeader,0),FALSE)),0,VLOOKUP($B$3,'Data Current Rates'!$A:$BE,MATCH(BI_R1_Typical!$A20,CurrentHeader,0),FALSE)) -> 1.56 | D20: 1.56 | E20: 1 | F20: =VLOOKUP($B$3,'Data Proposed Rates'!$A:$BC,MATCH(BI_R1_Typical!$A20,ProposedHeader,0),FALSE) -> 1.56 | G20: 1.56 | H20: 0 | I20: 0 | J20: 0.0120237866 | K20: 0.01194968995
A21: Fixed Deferral/Variance Account Rider (General) | B21: 1 | C21: =IF(ISERROR(VLOOKUP($B$3,'Data Current Rates'!$A:$BE,MATCH(BI_R1_Typical!$A21,CurrentHeader,0),FALSE)),0,VLOOKUP($B$3,'Data Current Rates'!$A:$BE,MATCH(BI_R1_Typical!$A21,CurrentHeader,0),FALSE)) -> -0.14 | D21: -0.14 | H21: 0.14 | I21: 1 | J21: 0 | K21: 0
A22: Fixed ESM Rider | B22: 1 | C22: =IF(ISERROR(VLOOKUP($B$3,'Data Current Rates'!$A:$BE,MATCH(BI_R1_Typical!$A22,CurrentHeader,0),FALSE)),0,VLOOKUP($B$3,'Data Current Rates'!$A:$BE,MATCH(BI_R1_Typical!$A22,CurrentHeader,0),FALSE)) -> -0.85 | D22: -0.85 | H22: 0.85 | I22: 1 | J22: 0 | K22: 0
A23: Distribution Volumetric Charge | B23: =IF($B$9="kWh",$B$4,$B$5) -> 750 | C23: =IF(ISERROR(VLOOKUP($B$3,'Data Current Rates'!$A:$BE,MATCH(BI_R1_Typical!$A23,CurrentHeader,0),FALSE)),0,VLOOKUP($B$3,'Data Current Rates'!$A:$BE,MATCH(BI_R1_Typical!$A23,CurrentHeader,0),FALSE)) -> 0.0141 | D23: 10.575 | E23: =IF($B$9="kWh",$B$4,$B$5) -> 750 | F23: =VLOOKUP($B$3,'Data Proposed Rates'!$A:$BC,MATCH(BI_R1_Typical!$A23,ProposedHeader,0),FALSE) -> 0.01 | G23: 7.5 | H23: -3.075 | I23: -0.2907801418 | J23: 0.05780666635 | K23: 0.05745043247
A24: Base Rate Adjustment to Recover Past Tax Amounts VOL | B24: =IF($B$9="kWh",$B$4,$B$5) -> 750 | C24: =IF(ISERROR(VLOOKUP($B$3,'Data Current Rates'!$A:$BE,MATCH(BI_R1_Typical!$A24,CurrentHeader,0),FALSE)),0,VLOOKUP($B$3,'Data Current Rates'!$A:$BE,MATCH(BI_R1_Typical!$A24,CurrentHeader,0),FALSE)) -> 0 | D24: 0 | E24: =IF($B$9="kWh",$B$4,$B$5) -> 750 | F24: =VLOOKUP($B$3,'Data Proposed Rates'!$A:$BC,MATCH(BI_R1_Typical!$A24,ProposedHeader,0),FALSE) -> 0 | G24: 0 | H24: 0 | I24: N/A | J24: 0 | K24: 0
A25: Volumetric Deferral/Variance Account Rider (General) | B25: =IF($B$9="kWh",$B$4,$B$5) -> 750 | C25: =IF(ISERROR(VLOOKUP($B$3,'Data Current Rates'!$A:$BE,MATCH(BI_R1_Typical!$A25,CurrentHeader,0),FALSE)),0,VLOOKUP($B$3,'Data Current Rates'!$A:$BE,MATCH(BI_R1_Typical!$A25,CurrentHeader,0),FALSE)) -> -0.0008 | D25: -0.6 | H25: 0.6 | I25: 1 | J25: 0 | K25: 0
A26: Volumetric ESM Rider | B26: 750 | C26: =IF(ISERROR(VLOOKUP($B$3,'Data Current Rates'!$A:$BE,MATCH(BI_R1_Typical!$A26,CurrentHeader,0),FALSE)),0,VLOOKUP($B$3,'Data Current Rates'!$A:$BE,MATCH(BI_R1_Typical!$A26,CurrentHeader,0),FALSE)) -> 0 | D26: 0 | H26: 0 | I26: N/A | J26: 0 | K26: 0
A27: Fair Hydro Plan - Distribution Rate Protection Savings* | D27: =IF(AND(B3<>"R1",B3<>"R2"),0,IF(VLOOKUP($A27,'Data Pass Through'!$A:$D,2,FALSE)=0,0,IF(SUM(D19:D20,D23:D24)<VLOOKUP($A27,'Data Pass Through'!$A:$D,2,FALSE),0,VLOOKUP($A27,'Data Pass Through'!$A:$D,2,FALSE)-SUM(D19:D20,D23:D24)))) -> -24.315 | G27: =IF(AND(B3<>"R1",B3<>"R2"),0,IF(VLOOKUP($A27,'Data Pass Through'!$A:$D,2,FALSE)=0,0,IF(SUM(G19:G20,G23:G24)<VLOOKUP($A27,'Data Pass Through'!$A:$D,2,FALSE),0,VLOOKUP($A27,'Data Pass Through'!$A:$D,2,FALSE)-SUM(G19:G20,G23:G24)))) -> -28.26 | H27: -3.945 | I27: -0.1622455275 | J27: -0.2178155188 | K27: -0.2164732296
A28: Sub-Total: Distribution (excluding pass through) | D28: =SUM(INDIRECT("D19:D"&ROW()-1)) -> 35.27 | G28: =SUM(INDIRECT("g19:g"&ROW()-1)) -> 36.86 | H28: =G28-D28 -> 1.59 | I28: 0.04508080522 | J28: 0.2841004962 | K28: 0.2823497255
A29: Smart Metering Entity Charge | B29: 1 | C29: =VLOOKUP($A29,'Data Pass Through'!$A:$D,2,FALSE) -> 0.57 | D29: =B29*C29 -> 0.57 | E29: 1 | F29: =VLOOKUP($A29,'Data Pass Through'!$A:$D,3,FALSE) -> 0.57 | G29: =E29*F29 -> 0.57 | H29: 0 | I29: 0 | J29: 0.004393306643 | K29: 0.004366232868
A30: Line Losses on Cost of Power (based on two-tier RPP prices) | B30: =B8-B4 -> 57 | C30: =IF(B4>B7,C13,C12) -> 0.115 | D30: =B30*C30 -> 6.555 | E30: 57 | F30: =IF(B4>B7,F13,F12) -> 0.115 | G30: =E30*F30 -> 6.555 | H30: 0 | I30: 0 | J30: 0.05052302639 | K30: 0.05021167798
A31: Line Losses on Cost of Power (based on TOU prices) | B31: =B8-B4 -> 57 | C31: =VLOOKUP($B$3,'Data Billing Quantities'!$A:$O,MATCH(BI_R1_Typical!$A15,'Data Billing Quantities'!$4:$4,0),FALSE)*C15+VLOOKUP($B$3,'Data Billing Quantities'!$A:$O,MATCH(BI_R1_Typical!$A16,'Data Billing Quantities'!$4:$4,0),FALSE)*C16+VLOOKUP($B$3,'Data Billing Quantities'!$A:$O,MATCH(BI_R1_Typical!$A17,'Data Billing Quantities'!$4:$4,0),FALSE)*C17 -> 0.10342 | D31: =B31*C31 -> 5.89494 | E31: 57 | F31: =VLOOKUP($B$3,'Data Billing Quantities'!$A:$O,MATCH(BI_R1_Typical!$A15,'Data Billing Quantities'!$4:$4,0),FALSE)*F15+VLOOKUP($B$3,'Data Billing Quantities'!$A:$O,MATCH(BI_R1_Typical!$A16,'Data Billing Quantities'!$4:$4,0),FALSE)*F16+VLOOKUP($B$3,'Data Billing Quantities'!$A:$O,MATCH(BI_R1_Typical!$A17,'Data Billing Quantities'!$4:$4,0),FALSE)*F17 -> 0.10342 | G31: =E31*F31 -> 5.89494 | H31: 0 | I31: 0 | J31: 0.0454355773 | K31: 0.04515558032
A32: Sub-Total: Distribution (based on two-tier RPP prices) | D32: =SUM(D28,D29:D30) -> 42.395 | G32: =SUM(G28,G29:G30) -> 43.985 | H32: 1.59 | I32: 0.03750442269 | J32: 0.3390168293 | K32: 0.3369276363
A33: Sub-Total: Distribution (based on TOU prices) | D33: =SUM(D28,D29,D31) -> 41.73494 | G33: =SUM(G28,G29,G31) -> 43.32494 | H33: 1.59 | I33: 0.03809757484 | J33: 0.3339293802 | K33: 0.3318715386
A34: Retail Transmission Rate – Network Service Rate | B34: =B8 -> 807 | C34: =VLOOKUP($B$3,'Data Current Rates'!$A:$BE,MATCH(BI_R1_Typical!$A34,CurrentHeader,0),FALSE) -> 0.0082 | D34: =B34*C34 -> 6.6174 | E34: 807 | F34: =VLOOKUP($B$3,'Data Proposed Rates'!$A:$BC,MATCH(BI_R1_Typical!$A34,ProposedHeader,0),FALSE) -> 0.0103 | G34: =E34*F34 -> 8.3121 | H34: =G34-D34 -> 1.6947 | I34: 0.256097561 | J34: 0.06406597219 | K34: 0.0636711653
A35: Retail Transmission Rate – Line and Transformation Connection Service Rate | B35: =B8 -> 807 | C35: =VLOOKUP($B$3,'Data Current Rates'!$A:$BE,MATCH(BI_R1_Typical!$A35,CurrentHeader,0),FALSE) -> 0.0073 | D35: =B35*C35 -> 5.8911 | E35: 807 | F35: =VLOOKUP($B$3,'Data Proposed Rates'!$A:$BC,MATCH(BI_R1_Typical!$A35,ProposedHeader,0),FALSE) -> 0.0076 | G35: =E35*F35 -> 6.1332 | H35: =G35-D35 -> 0.2421 | I35: 0.04109589041 | J35: 0.04727197948 | K35: 0.04698066566
A36: Sub-Total: Retail Transmission | D36: =SUM(D34:D35) -> 12.5085 | G36: =SUM(G34:G35) -> 14.4453 | H36: =G36-D36 -> 1.9368 | I36: 0.1548387097 | J36: 0.1113379517 | K36: 0.110651831
A37: Sub-Total: Delivery (based on two-tier RPP prices) | D37: =D32+D36 -> 54.9035 | G37: =G32+G36 -> 58.4303 | H37: =G37-D37 -> 3.5268 | I37: 0.06423634195 | J37: 0.4503547809 | K37: 0.4475794673
A38: Sub-Total: Delivery (based on TOU prices) | D38: =D33+D36 -> 54.24344 | G38: =G33+G36 -> 57.77024 | H38: =G38-D38 -> 3.5268 | I38: 0.06501800033 | J38: 0.4452673318 | K38: 0.4425233696
A39: Wholesale Market Service Rate (WMS) - not including CBR | B39: =B8 -> 807 | C39: =VLOOKUP($A39,'Data Pass Through'!$A:$D,2,FALSE) -> 0.003 | D39: =B39*C39 -> 2.421 | E39: =$B$8 -> 807 | F39: =VLOOKUP($A39,'Data Pass Through'!$A:$D,3,FALSE) -> 0.003 | G39: =E39*F39 -> 2.421 | H39: 0 | I39: 0 | J39: 0.0186599919 | K39: 0.0185449996
A40: Capacity Based Recovery (CBR) - Applicable for Class B Customers | B40: =B8 -> 807 | C40: =VLOOKUP($A40,'Data Pass Through'!$A:$D,2,FALSE) -> 0.0004 | D40: =B40*C40 -> 0.3228 | E40: =$B$8 -> 807 | F40: =VLOOKUP($A40,'Data Pass Through'!$A:$D,3,FALSE) -> 0.0004 | G40: =E40*F40 -> 0.3228 | H40: 0 | I40: 0 | J40: 0.00248799892 | K40: 0.002472666614
A41: Rural Rate Protection Charge | B41: =B8 -> 807 | C41: =VLOOKUP($A41,'Data Pass Through'!$A:$D,2,FALSE) -> 0.0005 | D41: 0.4035 | E41: 807 | F41: =VLOOKUP($A41,'Data Pass Through'!$A:$D,3,FALSE) -> 0.0005 | G41: 0.4035 | H41: 0 | I41: 0 | J41: 0.00310999865 | K41: 0.003090833267
A42: Standard Supply Service – Administration Charge (if applicable) | B42: 1 | C42: =VLOOKUP($A42,'Data Pass Through'!$A:$D,2,FALSE) -> 0.25 | D42: =B42*C42 -> 0.25 | E42: 1 | F42: =VLOOKUP($A42,'Data Pass Through'!$A:$D,3,FALSE) -> 0.25 | G42: 0.25 | H42: 0 | I42: 0 | J42: 0.001926888878 | K42: 0.001915014416
A43: Sub-Total: Regulatory | D43: =SUM(D39:D42) -> 3.3973 | G43: =SUM(G39:G42) -> 3.3973 | H43: 0 | I43: 0 | J43: 0.02618487835 | K43: 0.0260235139
A44: Debt Retirement Charge (DRC) | B44: =B4 -> 750 | C44: =VLOOKUP($A44,'Data Pass Through'!$A:$D,2,FALSE) -> 0 | D44: =B44*C44 -> 0 | E44: 750 | F44: =VLOOKUP($A44,'Data Pass Through'!$A:$D,3,FALSE) -> 0 | G44: =E44*F44 -> 0 | H44: 0 | I44: N/A | J44: 0 | K44: 0
A45: Total Electricty Charge on Two-Tier RPP | D45: =SUM(D14,D28,D29,D30,D36,D43,D44) -> 134.3508 | G45: =SUM(G14,G28,G29,G30,G36,G43,G44) -> 137.8776 | H45: 3.5268 | I45: 0.02625068105 | J45: 1.062699256
A46: HST | C46: 0.13 | D46: =D45*C46 -> 17.465604 | F46: =C46 -> 0.13 | G46: =G45*F46 -> 17.924088 | H46: 0.458484 | I46: 0.02625068105 | J46: 0.1381509033
A47: Total Electricity Charge on Two-Tier RPP (including HST) | D47: =SUM(D45:D46) -> 151.816404 | G47: =SUM(G45:G46) -> 155.801688 | H47: 3.985284 | I47: 0.02625068105 | J47: 1.200850159
A48: Ontario Electricity Rebate (OER) | C48: ='Data Pass Through'!B20 -> -0.189 | D48: =D45*C48 -> -25.3923012 | F48: ='Data Pass Through'!C20 -> -0.189 | G48: =G45*F48 -> -26.0588664 | H48: -0.6665652 | I48: -0.02625068105 | J48: -0.2008501594
A49: Total Amount on Two-Tier RPP | D49: =SUM(D47:D48) -> 126.4241028 | G49: =SUM(G47:G48) -> 129.7428216 | H49: 3.3187188 | I49: 0.02625068105 | J49: 1
A50: Total Electricty Charge on TOU (before HST) | D50: =SUM(D18,D28,D29,D31,D36,D43,D44) -> 135.20574 | G50: =SUM(G18,G28,G29,G31,G36,G43,G44) -> 138.73254 | H50: 3.5268 | I50: 0.02608469137 | K50: =G50/$G$54 -> 1.062699256
A51: HST | C51: 0.13 | D51: =D50*C51 -> 17.5767462 | F51: =C51 -> 0.13 | G51: =G50*F51 -> 18.0352302 | H51: 0.458484 | I51: 0.02608469137 | K51: =G51/$G$54 -> 0.1381509033
A52: Total Electricity Charge on TOU (including HST) | D52: =SUM(D50:D51) -> 152.7824862 | G52: =SUM(G50:G51) -> 156.7677702 | H52: 3.985284 | I52: 0.02608469137 | K52: =G52/$G$54 -> 1.200850159
A53: Ontario Electricity Rebate (OER) | C53: ='Data Pass Through'!B20 -> -0.189 | D53: =D50*C53 -> -25.55388486 | F53: ='Data Pass Through'!C20 -> -0.189 | G53: =G50*F53 -> -26.22045006 | H53: -0.6665652 | I53: -0.02608469137 | K53: =G53/$G$54 -> -0.2008501594
A54: Total Amount on TOU | D54: =SUM(D52:D53) -> 127.2286013 | G54: =SUM(G52:G53) -> 130.5473201 | H54: 3.3187188 | I54: 0.02608469137 | K54: =G54/$G$54 -> 1
A55: * Distribution rate protection applies to R1 and R2 customers

Sheet BI_R1_Avg
A1: 2022 Bill Impacts (Average Consumption Level) - R1
A3: Rate Class | B3: =RIGHT(A1,LEN(A1)-FIND("- ",A1,1)-1) -> R1
A4: Monthly Consumption (kWh) | B4: =IF(COUNTIF(A1,"*Low*")>0,VLOOKUP(B3,'Data Billing Quantities'!$A:$Z,MATCH("Low kWh",'Data Billing Quantities'!4:4,0),FALSE),IF(COUNTIF(A1,"*Typical*")>0,VLOOKUP(B3,'Data Billing Quantities'!$A:$Z,MATCH("Typical kWh",'Data Billing Quantities'!4:4,0),FALSE),IF(COUNTIF(A1,"*Average*")>0,VLOOKUP(B3,'Data Billing Quantities'!$A:$Z,MATCH("Average kWh",'Data Billing Quantities'!4:4,0),FALSE),IF(COUNTIF(A1,"*High*")>0,VLOOKUP(B3,'Data Billing Quantities'!$A:$Z,MATCH("High kWh",'Data Billing Quantities'!4:4,0),FALSE),"error")))) -> 920
A5: Peak (kW) | B5: =IF(COUNTIF(A1,"*Low*")>0,VLOOKUP(B3,'Data Billing Quantities'!$A:$Z,MATCH("Low kW",'Data Billing Quantities'!4:4,0),FALSE),IF(COUNTIF(A1,"*Typical*")>0,VLOOKUP(B3,'Data Billing Quantities'!$A:$Z,MATCH("Typical kW",'Data Billing Quantities'!4:4,0),FALSE),IF(COUNTIF(A1,"*Average*")>0,VLOOKUP(B3,'Data Billing Quantities'!$A:$Z,MATCH("Average kW",'Data Billing Quantities'!4:4,0),FALSE),IF(COUNTIF(A1,"*High*")>0,VLOOKUP(B3,'Data Billing Quantities'!$A:$Z,MATCH("High kW",'Data Billing Quantities'!4:4,0),FALSE),"error")))) -> 0
A6: Loss factor | B6: =VLOOKUP(B3,'Data Billing Quantities'!A:D,MATCH(A6,'Data Billing Quantities'!4:4,0),FALSE) -> 1.076
A7: Commodity Threshold | B7: =VLOOKUP(B3,'Data Billing Quantities'!A:D,MATCH(A7,'Data Billing Quantities'!4:4,0),FALSE) -> 600
A8: Monthly Consumption (kWh) - Uplifted | B8: =B4*B6 -> 989.92
A9: Charge determinant | B9: =VLOOKUP(B3,'Data Billing Quantities'!A:D,MATCH(A9,'Data Billing Quantities'!4:4,0),FALSE) -> kWh
B11: Volume | C11: Current Rate ($) | D11: Current Charge ($) | E11: Volume | F11: Proposed Rate ($) | G11: Proposed Charge ($) | H11: Change ($) | I11: Change (%) | J11: % of Total Bill on RPP | K11: % of Total Bill on TOU
A12: Energy First Tier | B12: =IF(B4>B7,B7,B4) -> 600 | C12: =VLOOKUP($A12,'Data Pass Through'!$A:$D,2,FALSE) -> 0.098 | D12: =B12*C12 -> 58.8 | E12: =B12 -> 600 | F12: =VLOOKUP($A12,'Data Pass Through'!$A:$D,3,FALSE) -> 0.098 | G12: =E12*F12 -> 58.8 | H12: =G12-D12 -> 0 | I12: =IF(ISERROR(H12/ABS(D12)),"N/A",(H12/ABS(D12))) -> 0 | J12: =G12/$G$49 -> 0.3835869318
A13: Energy Second Tier | B13: =IF(B4>B7,(B4)-B7,0) -> 320 | C13: =VLOOKUP($A13,'Data Pass Through'!$A:$D,2,FALSE) -> 0.115 | D13: =B13*C13 -> 36.8 | E13: =B13 -> 320 | F13: =VLOOKUP($A13,'Data Pass Through'!$A:$D,3,FALSE) -> 0.115 | G13: =E13*F13 -> 36.8 | H13: 0 | I13: 0 | J13: =G13/$G$49 -> 0.2400680117
A14: Sub-Total: Energy (RPP Tiered) | D14: =SUM(D12:D13) -> 95.6 | G14: =SUM(G12:G13) -> 95.6 | H14: 0 | I14: 0 | J14: =G14/$G$49 -> 0.6236549436
A15: TOU-Off Peak | B15: =B$4*VLOOKUP($B$3,'Data Billing Quantities'!$A:$O,MATCH(BI_R1_Avg!$A15,'Data Billing Quantities'!$4:$4,0),FALSE) -> 588.8 | C15: =VLOOKUP($A15,'Data Pass Through'!$A:$D,2,FALSE) -> 0.082 | D15: =B15*C15 -> 48.2816 | E15: 588.8 | F15: =VLOOKUP($A15,'Data Pass Through'!$A:$D,3,FALSE) -> 0.082 | G15: =E15*F15 -> 48.2816 | H15: 0 | I15: 0 | K15: =G15/$G$54 -> 0.3174308608
A16: TOU-Mid Peak | B16: =B$4*VLOOKUP($B$3,'Data Billing Quantities'!$A:$O,MATCH(BI_R1_Avg!$A16,'Data Billing Quantities'!$4:$4,0),FALSE) -> 165.6 | C16: =VLOOKUP($A16,'Data Pass Through'!$A:$D,2,FALSE) -> 0.113 | D16: =B16*C16 -> 18.7128 | E16: 165.6 | F16: =VLOOKUP($A16,'Data Pass Through'!$A:$D,3,FALSE) -> 0.113 | G16: =E16*F16 -> 18.7128 | H16: 0 | I16: 0 | K16: 0.123028653
A17: TOU-On Peak | B17: =B$4*VLOOKUP($B$3,'Data Billing Quantities'!$A:$O,MATCH(BI_R1_Avg!$A17,'Data Billing Quantities'!$4:$4,0),FALSE) -> 165.6 | C17: =VLOOKUP($A17,'Data Pass Through'!$A:$D,2,FALSE) -> 0.17 | D17: =B17*C17 -> 28.152 | E17: 165.6 | F17: =VLOOKUP($A17,'Data Pass Through'!$A:$D,3,FALSE) -> 0.17 | G17: =E17*F17 -> 28.152 | H17: 0 | I17: 0 | K17: 0.185087354
A18: Sub-Total: Energy (RPP TOU) | D18: =SUM(D15:D17) -> 95.1464 | G18: =SUM(G15:G17) -> 95.1464 | H18: 0 | I18: 0 | J18: =G18/$G$49 -> 0.6206958444 | K18: 0.6255468678
A19: Service Charge | B19: 1 | C19: =IF(ISERROR(VLOOKUP($B$3,'Data Current Rates'!$A:$BE,MATCH(BI_R1_Avg!$A19,CurrentHeader,0),FALSE)),0,VLOOKUP($B$3,'Data Current Rates'!$A:$BE,MATCH(BI_R1_Avg!$A19,CurrentHeader,0),FALSE)) -> 49.04 | D19: =B19*C19 -> 49.04 | E19: 1 | F19: =VLOOKUP($B$3,'Data Proposed Rates'!$A:$BC,MATCH(BI_R1_Avg!$A19,ProposedHeader,0),FALSE) -> 56.06 | G19: =E19*F19 -> 56.06 | H19: 7.02 | I19: 0.1431484502 | J19: 0.3657123027 | K19: 0.3685705125
A20: Base Rate Adjustment to Recover Past Tax Amounts FIXED | B20: 1 | C20: =IF(ISERROR(VLOOKUP($B$3,'Data Current Rates'!$A:$BE,MATCH(BI_R1_Avg!$A20,CurrentHeader,0),FALSE)),0,VLOOKUP($B$3,'Data Current Rates'!$A:$BE,MATCH(BI_R1_Avg!$A20,CurrentHeader,0),FALSE)) -> 1.56 | D20: 1.56 | E20: 1 | F20: =VLOOKUP($B$3,'Data Proposed Rates'!$A:$BC,MATCH(BI_R1_Avg!$A20,ProposedHeader,0),FALSE) -> 1.56 | G20: 1.56 | H20: 0 | I20: 0 | J20: 0.01017679615 | K20: 0.01025633249
A21: Fixed Deferral/Variance Account Rider (General) | B21: 1 | C21: =IF(ISERROR(VLOOKUP($B$3,'Data Current Rates'!$A:$BE,MATCH(BI_R1_Avg!$A21,CurrentHeader,0),FALSE)),0,VLOOKUP($B$3,'Data Current Rates'!$A:$BE,MATCH(BI_R1_Avg!$A21,CurrentHeader,0),FALSE)) -> -0.14 | D21: -0.14 | H21: 0.14 | I21: 1 | J21: 0 | K21: 0
A22: Fixed ESM Rider | B22: 1 | C22: =IF(ISERROR(VLOOKUP($B$3,'Data Current Rates'!$A:$BE,MATCH(BI_R1_Avg!$A22,CurrentHeader,0),FALSE)),0,VLOOKUP($B$3,'Data Current Rates'!$A:$BE,MATCH(BI_R1_Avg!$A22,CurrentHeader,0),FALSE)) -> -0.85 | D22: -0.85 | H22: 0.85 | I22: 1 | J22: 0 | K22: 0
A23: Distribution Volumetric Charge | B23: =IF($B$9="kWh",$B$4,$B$5) -> 920 | C23: =IF(ISERROR(VLOOKUP($B$3,'Data Current Rates'!$A:$BE,MATCH(BI_R1_Avg!$A23,CurrentHeader,0),FALSE)),0,VLOOKUP($B$3,'Data Current Rates'!$A:$BE,MATCH(BI_R1_Avg!$A23,CurrentHeader,0),FALSE)) -> 0.0141 | D23: 12.972 | E23: =IF($B$9="kWh",$B$4,$B$5) -> 920 | F23: =VLOOKUP($B$3,'Data Proposed Rates'!$A:$BC,MATCH(BI_R1_Avg!$A23,ProposedHeader,0),FALSE) -> 0.01 | G23: 9.2 | H23: -3.772 | I23: -0.2907801418 | J23: 0.06001700294 | K23: 0.06048606341
A24: Base Rate Adjustment to Recover Past Tax Amounts VOL | B24: =IF($B$9="kWh",$B$4,$B$5) -> 920 | C24: =IF(ISERROR(VLOOKUP($B$3,'Data Current Rates'!$A:$BE,MATCH(BI_R1_Avg!$A24,CurrentHeader,0),FALSE)),0,VLOOKUP($B$3,'Data Current Rates'!$A:$BE,MATCH(BI_R1_Avg!$A24,CurrentHeader,0),FALSE)) -> 0 | D24: 0 | E24: =IF($B$9="kWh",$B$4,$B$5) -> 920 | F24: =VLOOKUP($B$3,'Data Proposed Rates'!$A:$BC,MATCH(BI_R1_Avg!$A24,ProposedHeader,0),FALSE) -> 0 | G24: 0 | H24: 0 | I24: N/A | J24: 0 | K24: 0
A25: Volumetric Deferral/Variance Account Rider (General) | B25: =IF($B$9="kWh",$B$4,$B$5) -> 920 | C25: =IF(ISERROR(VLOOKUP($B$3,'Data Current Rates'!$A:$BE,MATCH(BI_R1_Avg!$A25,CurrentHeader,0),FALSE)),0,VLOOKUP($B$3,'Data Current Rates'!$A:$BE,MATCH(BI_R1_Avg!$A25,CurrentHeader,0),FALSE)) -> -0.0008 | D25: -0.736 | H25: 0.736 | I25: 1 | J25: 0 | K25: 0
A26: Volumetric ESM Rider | B26: 920 | C26: =IF(ISERROR(VLOOKUP($B$3,'Data Current Rates'!$A:$BE,MATCH(BI_R1_Avg!$A26,CurrentHeader,0),FALSE)),0,VLOOKUP($B$3,'Data Current Rates'!$A:$BE,MATCH(BI_R1_Avg!$A26,CurrentHeader,0),FALSE)) -> 0 | D26: 0 | H26: 0 | I26: N/A | J26: 0 | K26: 0
A27: Fair Hydro Plan - Distribution Rate Protection Savings* | D27: =IF(AND(B3<>"R1",B3<>"R2"),0,IF(VLOOKUP($A27,'Data Pass Through'!$A:$D,2,FALSE)=0,0,IF(SUM(D19:D20,D23:D24)<VLOOKUP($A27,'Data Pass Through'!$A:$D,2,FALSE),0,VLOOKUP($A27,'Data Pass Through'!$A:$D,2,FALSE)-SUM(D19:D20,D23:D24)))) -> -26.712 | G27: =IF(AND(B3<>"R1",B3<>"R2"),0,IF(VLOOKUP($A27,'Data Pass Through'!$A:$D,2,FALSE)=0,0,IF(SUM(G19:G20,G23:G24)<VLOOKUP($A27,'Data Pass Through'!$A:$D,2,FALSE),0,VLOOKUP($A27,'Data Pass Through'!$A:$D,2,FALSE)-SUM(G19:G20,G23:G24)))) -> -29.96 | H27: -3.248 | I27: -0.1215932914 | J27: -0.1954466748 | K27: -0.1969741804
A28: Sub-Total: Distribution (excluding pass through) | D28: =SUM(INDIRECT("D19:D"&ROW()-1)) -> 35.134 | G28: =SUM(INDIRECT("g19:g"&ROW()-1)) -> 36.86 | H28: =G28-D28 -> 1.726 | I28: 0.04912620254 | J28: 0.240459427 | K28: 0.242338728
A29: Smart Metering Entity Charge | B29: 1 | C29: =VLOOKUP($A29,'Data Pass Through'!$A:$D,2,FALSE) -> 0.57 | D29: =B29*C29 -> 0.57 | E29: 1 | F29: =VLOOKUP($A29,'Data Pass Through'!$A:$D,3,FALSE) -> 0.57 | G29: =E29*F29 -> 0.57 | H29: 0 | I29: 0 | J29: 0.003718444747 | K29: 0.003747506103
A30: Line Losses on Cost of Power (based on two-tier RPP prices) | B30: =B8-B4 -> 69.92 | C30: =IF(B4>B7,C13,C12) -> 0.115 | D30: =B30*C30 -> 8.0408 | E30: 69.92 | F30: =IF(B4>B7,F13,F12) -> 0.115 | G30: =E30*F30 -> 8.0408 | H30: 0 | I30: 0 | J30: 0.05245486057 | K30: 0.05286481942
A31: Line Losses on Cost of Power (based on TOU prices) | B31: =B8-B4 -> 69.92 | C31: =VLOOKUP($B$3,'Data Billing Quantities'!$A:$O,MATCH(BI_R1_Avg!$A15,'Data Billing Quantities'!$4:$4,0),FALSE)*C15+VLOOKUP($B$3,'Data Billing Quantities'!$A:$O,MATCH(BI_R1_Avg!$A16,'Data Billing Quantities'!$4:$4,0),FALSE)*C16+VLOOKUP($B$3,'Data Billing Quantities'!$A:$O,MATCH(BI_R1_Avg!$A17,'Data Billing Quantities'!$4:$4,0),FALSE)*C17 -> 0.10342 | D31: =B31*C31 -> 7.2311264 | E31: 69.92 | F31: =VLOOKUP($B$3,'Data Billing Quantities'!$A:$O,MATCH(BI_R1_Avg!$A15,'Data Billing Quantities'!$4:$4,0),FALSE)*F15+VLOOKUP($B$3,'Data Billing Quantities'!$A:$O,MATCH(BI_R1_Avg!$A16,'Data Billing Quantities'!$4:$4,0),FALSE)*F16+VLOOKUP($B$3,'Data Billing Quantities'!$A:$O,MATCH(BI_R1_Avg!$A17,'Data Billing Quantities'!$4:$4,0),FALSE)*F17 -> 0.10342 | G31: =E31*F31 -> 7.2311264 | H31: 0 | I31: 0 | J31: 0.04717288417 | K31: 0.04754156195
A32: Sub-Total: Distribution (based on two-tier RPP prices) | D32: =SUM(D28,D29:D30) -> 43.7448 | G32: =SUM(G28,G29:G30) -> 45.4708 | H32: 1.726 | I32: 0.03945611821 | J32: 0.2966327323 | K32: 0.2989510535
A33: Sub-Total: Distribution (based on TOU prices) | D33: =SUM(D28,D29,D31) -> 42.9351264 | G33: =SUM(G28,G29,G31) -> 44.6611264 | H33: 1.726 | I33: 0.04020018443 | J33: 0.2913507559 | K33: 0.293627796
A34: Retail Transmission Rate – Network Service Rate | B34: =B8 -> 989.92 | C34: =VLOOKUP($B$3,'Data Current Rates'!$A:$BE,MATCH(BI_R1_Avg!$A34,CurrentHeader,0),FALSE) -> 0.0082 | D34: =B34*C34 -> 8.117344 | E34: 989.92 | F34: =VLOOKUP($B$3,'Data Proposed Rates'!$A:$BC,MATCH(BI_R1_Avg!$A34,ProposedHeader,0),FALSE) -> 0.0103 | G34: =E34*F34 -> 10.196176 | H34: =G34-D34 -> 2.078832 | I34: 0.256097561 | J34: 0.06651564401 | K34: 0.06703549436
A35: Retail Transmission Rate – Line and Transformation Connection Service Rate | B35: =B8 -> 989.92 | C35: =VLOOKUP($B$3,'Data Current Rates'!$A:$BE,MATCH(BI_R1_Avg!$A35,CurrentHeader,0),FALSE) -> 0.0073 | D35: =B35*C35 -> 7.226416 | E35: 989.92 | F35: =VLOOKUP($B$3,'Data Proposed Rates'!$A:$BC,MATCH(BI_R1_Avg!$A35,ProposedHeader,0),FALSE) -> 0.0076 | G35: =E35*F35 -> 7.523392 | H35: =G35-D35 -> 0.296976 | I35: 0.04109589041 | J35: 0.04907950432 | K35: 0.04946308322
A36: Sub-Total: Retail Transmission | D36: =SUM(D34:D35) -> 15.34376 | G36: =SUM(G34:G35) -> 17.719568 | H36: =G36-D36 -> 2.375808 | I36: 0.1548387097 | J36: 0.1155951483 | K36: 0.1164985776
A37: Sub-Total: Delivery (based on two-tier RPP prices) | D37: =D32+D36 -> 59.08856 | G37: =G32+G36 -> 63.190368 | H37: =G37-D37 -> 4.101808 | I37: 0.06941797194 | J37: 0.4122278806 | K37: 0.4154496311
A38: Sub-Total: Delivery (based on TOU prices) | D38: =D33+D36 -> 58.2788864 | G38: =G33+G36 -> 62.3806944 | H38: =G38-D38 -> 4.101808 | I38: 0.07038240182 | J38: 0.4069459042 | K38: 0.4101263736
A39: Wholesale Market Service Rate (WMS) - not including CBR | B39: =B8 -> 989.92 | C39: =VLOOKUP($A39,'Data Pass Through'!$A:$D,2,FALSE) -> 0.003 | D39: =B39*C39 -> 2.96976 | E39: =$B$8 -> 989.92 | F39: =VLOOKUP($A39,'Data Pass Through'!$A:$D,3,FALSE) -> 0.003 | G39: =E39*F39 -> 2.96976 | H39: 0 | I39: 0 | J39: 0.01937348855 | K39: 0.01952490127
A40: Capacity Based Recovery (CBR) - Applicable for Class B Customers | B40: =B8 -> 989.92 | C40: =VLOOKUP($A40,'Data Pass Through'!$A:$D,2,FALSE) -> 0.0004 | D40: =B40*C40 -> 0.395968 | E40: =$B$8 -> 989.92 | F40: =VLOOKUP($A40,'Data Pass Through'!$A:$D,3,FALSE) -> 0.0004 | G40: =E40*F40 -> 0.395968 | H40: 0 | I40: 0 | J40: 0.002583131806 | K40: 0.002603320169
A41: Rural Rate Protection Charge | B41: =B8 -> 989.92 | C41: =VLOOKUP($A41,'Data Pass Through'!$A:$D,2,FALSE) -> 0.0005 | D41: 0.49496 | E41: 989.92 | F41: =VLOOKUP($A41,'Data Pass Through'!$A:$D,3,FALSE) -> 0.0005 | G41: 0.49496 | H41: 0 | I41: 0 | J41: 0.003228914758 | K41: 0.003254150212
A42: Standard Supply Service – Administration Charge (if applicable) | B42: 1 | C42: =VLOOKUP($A42,'Data Pass Through'!$A:$D,2,FALSE) -> 0.25 | D42: =B42*C42 -> 0.25 | E42: 1 | F42: =VLOOKUP($A42,'Data Pass Through'!$A:$D,3,FALSE) -> 0.25 | G42: 0.25 | H42: 0 | I42: 0 | J42: 0.001630896819 | K42: 0.001643643028
A43: Sub-Total: Regulatory | D43: =SUM(D39:D42) -> 4.110688 | G43: =SUM(G39:G42) -> 4.110688 | H43: 0 | I43: 0 | J43: 0.02681643193 | K43: 0.02702601468
A44: Debt Retirement Charge (DRC) | B44: =B4 -> 920 | C44: =VLOOKUP($A44,'Data Pass Through'!$A:$D,2,FALSE) -> 0 | D44: =B44*C44 -> 0 | E44: 920 | F44: =VLOOKUP($A44,'Data Pass Through'!$A:$D,3,FALSE) -> 0 | G44: =E44*F44 -> 0 | H44: 0 | I44: N/A | J44: 0 | K44: 0
A45: Total Electricty Charge on Two-Tier RPP | D45: =SUM(D14,D28,D29,D30,D36,D43,D44) -> 158.799248 | G45: =SUM(G14,G28,G29,G30,G36,G43,G44) -> 162.901056 | H45: 4.101808 | I45: 0.02583014751 | J45: 1.062699256
A46: HST | C46: 0.13 | D46: =D45*C46 -> 20.64390224 | F46: =C46 -> 0.13 | G46: =G45*F46 -> 21.17713728 | H46: 0.53323504 | I46: 0.02583014751 | J46: 0.1381509033
A47: Total Electricity Charge on Two-Tier RPP (including HST) | D47: =SUM(D45:D46) -> 179.4431502 | G47: =SUM(G45:G46) -> 184.0781933 | H47: 4.63504304 | I47: 0.02583014751 | J47: 1.200850159
A48: Ontario Electricity Rebate (OER) | C48: ='Data Pass Through'!B20 -> -0.189 | D48: =D45*C48 -> -30.01305787 | F48: ='Data Pass Through'!C20 -> -0.189 | G48: =G45*F48 -> -30.78829958 | H48: -0.775241712 | I48: -0.02583014751 | J48: -0.2008501594
A49: Total Amount on Two-Tier RPP | D49: =SUM(D47:D48) -> 149.4300924 | G49: =SUM(G47:G48) -> 153.2898937 | H49: 3.859801328 | I49: 0.02583014751 | J49: 1
A50: Total Electricty Charge on TOU (before HST) | D50: =SUM(D18,D28,D29,D31,D36,D43,D44) -> 157.5359744 | G50: =SUM(G18,G28,G29,G31,G36,G43,G44) -> 161.6377824 | H50: 4.101808 | I50: 0.02603727825 | K50: =G50/$G$54 -> 1.062699256
A51: HST | C51: 0.13 | D51: =D50*C51 -> 20.47967667 | F51: =C51 -> 0.13 | G51: =G50*F51 -> 21.01291171 | H51: 0.53323504 | I51: 0.02603727825 | K51: =G51/$G$54 -> 0.1381509033
A52: Total Electricity Charge on TOU (including HST) | D52: =SUM(D50:D51) -> 178.0156511 | G52: =SUM(G50:G51) -> 182.6506941 | H52: 4.63504304 | I52: 0.02603727825 | K52: =G52/$G$54 -> 1.200850159
A53: Ontario Electricity Rebate (OER) | C53: ='Data Pass Through'!B20 -> -0.189 | D53: =D50*C53 -> -29.77429916 | F53: ='Data Pass Through'!C20 -> -0.189 | G53: =G50*F53 -> -30.54954087 | H53: -0.775241712 | I53: -0.02603727825 | K53: =G53/$G$54 -> -0.2008501594
A54: Total Amount on TOU | D54: =SUM(D52:D53) -> 148.2413519 | G54: =SUM(G52:G53) -> 152.1011532 | H54: 3.859801328 | I54: 0.02603727825 | K54: =G54/$G$54 -> 1
A55: * Distribution rate protection applies to R1 and R2 customers

Sheet BI_R1_High
A1: 2022 Bill Impacts (High Consumption Level) - R1
A3: Rate Class | B3: =RIGHT(A1,LEN(A1)-FIND("- ",A1,1)-1) -> R1
A4: Monthly Consumption (kWh) | B4: =IF(COUNTIF(A1,"*Low*")>0,VLOOKUP(B3,'Data Billing Quantities'!$A:$Z,MATCH("Low kWh",'Data Billing Quantities'!4:4,0),FALSE),IF(COUNTIF(A1,"*Typical*")>0,VLOOKUP(B3,'Data Billing Quantities'!$A:$Z,MATCH("Typical kWh",'Data Billing Quantities'!4:4,0),FALSE),IF(COUNTIF(A1,"*Average*")>0,VLOOKUP(B3,'Data Billing Quantities'!$A:$Z,MATCH("Average kWh",'Data Billing Quantities'!4:4,0),FALSE),IF(COUNTIF(A1,"*High*")>0,VLOOKUP(B3,'Data Billing Quantities'!$A:$Z,MATCH("High kWh",'Data Billing Quantities'!4:4,0),FALSE),"error")))) -> 1800
A5: Peak (kW) | B5: =IF(COUNTIF(A1,"*Low*")>0,VLOOKUP(B3,'Data Billing Quantities'!$A:$Z,MATCH("Low kW",'Data Billing Quantities'!4:4,0),FALSE),IF(COUNTIF(A1,"*Typical*")>0,VLOOKUP(B3,'Data Billing Quantities'!$A:$Z,MATCH("Typical kW",'Data Billing Quantities'!4:4,0),FALSE),IF(COUNTIF(A1,"*Average*")>0,VLOOKUP(B3,'Data Billing Quantities'!$A:$Z,MATCH("Average kW",'Data Billing Quantities'!4:4,0),FALSE),IF(COUNTIF(A1,"*High*")>0,VLOOKUP(B3,'Data Billing Quantities'!$A:$Z,MATCH("High kW",'Data Billing Quantities'!4:4,0),FALSE),"error")))) -> 0
A6: Loss factor | B6: =VLOOKUP(B3,'Data Billing Quantities'!A:D,MATCH(A6,'Data Billing Quantities'!4:4,0),FALSE) -> 1.076
A7: Commodity Threshold | B7: =VLOOKUP(B3,'Data Billing Quantities'!A:D,MATCH(A7,'Data Billing Quantities'!4:4,0),FALSE) -> 600
A8: Monthly Consumption (kWh) - Uplifted | B8: =B4*B6 -> 1936.8
A9: Charge determinant | B9: =VLOOKUP(B3,'Data Billing Quantities'!A:D,MATCH(A9,'Data Billing Quantities'!4:4,0),FALSE) -> kWh
B11: Volume | C11: Current Rate ($) | D11: Current Charge ($) | E11: Volume | F11: Proposed Rate ($) | G11: Proposed Charge ($) | H11: Change ($) | I11: Change (%) | J11: % of Total Bill on RPP | K11: % of Total Bill on TOU
A12: Energy First Tier | B12: =IF(B4>B7,B7,B4) -> 600 | C12: =VLOOKUP($A12,'Data Pass Through'!$A:$D,2,FALSE) -> 0.098 | D12: =B12*C12 -> 58.8 | E12: =B12 -> 600 | F12: =VLOOKUP($A12,'Data Pass Through'!$A:$D,3,FALSE) -> 0.098 | G12: =E12*F12 -> 58.8 | H12: =G12-D12 -> 0 | I12: =IF(ISERROR(H12/ABS(D12)),"N/A",(H12/ABS(D12))) -> 0 | J12: =G12/$G$49 -> 0.2136778383
A13: Energy Second Tier | B13: =IF(B4>B7,(B4)-B7,0) -> 1200 | C13: =VLOOKUP($A13,'Data Pass Through'!$A:$D,2,FALSE) -> 0.115 | D13: =B13*C13 -> 138 | E13: =B13 -> 1200 | F13: =VLOOKUP($A13,'Data Pass Through'!$A:$D,3,FALSE) -> 0.115 | G13: =E13*F13 -> 138 | H13: 0 | I13: 0 | J13: =G13/$G$49 -> 0.5014888043
A14: Sub-Total: Energy (RPP Tiered) | D14: =SUM(D12:D13) -> 196.8 | G14: =SUM(G12:G13) -> 196.8 | H14: 0 | I14: 0 | J14: =G14/$G$49 -> 0.7151666426
A15: TOU-Off Peak | B15: =B$4*VLOOKUP($B$3,'Data Billing Quantities'!$A:$O,MATCH(BI_R1_High!$A15,'Data Billing Quantities'!$4:$4,0),FALSE) -> 1152 | C15: =VLOOKUP($A15,'Data Pass Through'!$A:$D,2,FALSE) -> 0.082 | D15: =B15*C15 -> 94.464 | E15: 1152 | F15: =VLOOKUP($A15,'Data Pass Through'!$A:$D,3,FALSE) -> 0.082 | G15: =E15*F15 -> 94.464 | H15: 0 | I15: 0 | K15: =G15/$G$54 -> 0.3582606659
A16: TOU-Mid Peak | B16: =B$4*VLOOKUP($B$3,'Data Billing Quantities'!$A:$O,MATCH(BI_R1_High!$A16,'Data Billing Quantities'!$4:$4,0),FALSE) -> 324 | C16: =VLOOKUP($A16,'Data Pass Through'!$A:$D,2,FALSE) -> 0.113 | D16: =B16*C16 -> 36.612 | E16: 324 | F16: =VLOOKUP($A16,'Data Pass Through'!$A:$D,3,FALSE) -> 0.113 | G16: =E16*F16 -> 36.612 | H16: 0 | I16: 0 | K16: 0.1388533145
A17: TOU-On Peak | B17: =B$4*VLOOKUP($B$3,'Data Billing Quantities'!$A:$O,MATCH(BI_R1_High!$A17,'Data Billing Quantities'!$4:$4,0),FALSE) -> 324 | C17: =VLOOKUP($A17,'Data Pass Through'!$A:$D,2,FALSE) -> 0.17 | D17: =B17*C17 -> 55.08 | E17: 324 | F17: =VLOOKUP($A17,'Data Pass Through'!$A:$D,3,FALSE) -> 0.17 | G17: =E17*F17 -> 55.08 | H17: 0 | I17: 0 | K17: 0.2088943669
A18: Sub-Total: Energy (RPP TOU) | D18: =SUM(D15:D17) -> 186.156 | G18: =SUM(G15:G17) -> 186.156 | H18: 0 | I18: 0 | J18: =G18/$G$49 -> 0.6764865931 | K18: 0.7060083472
A19: Service Charge | B19: 1 | C19: =IF(ISERROR(VLOOKUP($B$3,'Data Current Rates'!$A:$BE,MATCH(BI_R1_High!$A19,CurrentHeader,0),FALSE)),0,VLOOKUP($B$3,'Data Current Rates'!$A:$BE,MATCH(BI_R1_High!$A19,CurrentHeader,0),FALSE)) -> 49.04 | D19: =B19*C19 -> 49.04 | E19: 1 | F19: =VLOOKUP($B$3,'Data Proposed Rates'!$A:$BC,MATCH(BI_R1_High!$A19,ProposedHeader,0),FALSE) -> 56.06 | G19: =E19*F19 -> 56.06 | H19: 7.02 | I19: 0.1431484502 | J19: 0.2037207418 | K19: 0.2126110786
A20: Base Rate Adjustment to Recover Past Tax Amounts FIXED | B20: 1 | C20: =IF(ISERROR(VLOOKUP($B$3,'Data Current Rates'!$A:$BE,MATCH(BI_R1_High!$A20,CurrentHeader,0),FALSE)),0,VLOOKUP($B$3,'Data Current Rates'!$A:$BE,MATCH(BI_R1_High!$A20,CurrentHeader,0),FALSE)) -> 1.56 | D20: 1.56 | E20: 1 | F20: =VLOOKUP($B$3,'Data Proposed Rates'!$A:$BC,MATCH(BI_R1_High!$A20,ProposedHeader,0),FALSE) -> 1.56 | G20: 1.56 | H20: 0 | I20: 0 | J20: 0.005669003874 | K20: 0.005916398191
A21: Fixed Deferral/Variance Account Rider (General) | B21: 1 | C21: =IF(ISERROR(VLOOKUP($B$3,'Data Current Rates'!$A:$BE,MATCH(BI_R1_High!$A21,CurrentHeader,0),FALSE)),0,VLOOKUP($B$3,'Data Current Rates'!$A:$BE,MATCH(BI_R1_High!$A21,CurrentHeader,0),FALSE)) -> -0.14 | D21: -0.14 | H21: 0.14 | I21: 1 | J21: 0 | K21: 0
A22: Fixed ESM Rider | B22: 1 | C22: =IF(ISERROR(VLOOKUP($B$3,'Data Current Rates'!$A:$BE,MATCH(BI_R1_High!$A22,CurrentHeader,0),FALSE)),0,VLOOKUP($B$3,'Data Current Rates'!$A:$BE,MATCH(BI_R1_High!$A22,CurrentHeader,0),FALSE)) -> -0.85 | D22: -0.85 | H22: 0.85 | I22: 1 | J22: 0 | K22: 0
A23: Distribution Volumetric Charge | B23: =IF($B$9="kWh",$B$4,$B$5) -> 1800 | C23: =IF(ISERROR(VLOOKUP($B$3,'Data Current Rates'!$A:$BE,MATCH(BI_R1_High!$A23,CurrentHeader,0),FALSE)),0,VLOOKUP($B$3,'Data Current Rates'!$A:$BE,MATCH(BI_R1_High!$A23,CurrentHeader,0),FALSE)) -> 0.0141 | D23: 25.38 | E23: =IF($B$9="kWh",$B$4,$B$5) -> 1800 | F23: =VLOOKUP($B$3,'Data Proposed Rates'!$A:$BC,MATCH(BI_R1_High!$A23,ProposedHeader,0),FALSE) -> 0.01 | G23: 18 | H23: -7.38 | I23: -0.2907801418 | J23: 0.06541158316 | K23: 0.06826613298
A24: Base Rate Adjustment to Recover Past Tax Amounts VOL | B24: =IF($B$9="kWh",$B$4,$B$5) -> 1800 | C24: =IF(ISERROR(VLOOKUP($B$3,'Data Current Rates'!$A:$BE,MATCH(BI_R1_High!$A24,CurrentHeader,0),FALSE)),0,VLOOKUP($B$3,'Data Current Rates'!$A:$BE,MATCH(BI_R1_High!$A24,CurrentHeader,0),FALSE)) -> 0 | D24: 0 | E24: =IF($B$9="kWh",$B$4,$B$5) -> 1800 | F24: =VLOOKUP($B$3,'Data Proposed Rates'!$A:$BC,MATCH(BI_R1_High!$A24,ProposedHeader,0),FALSE) -> 0 | G24: 0 | H24: 0 | I24: N/A | J24: 0 | K24: 0
A25: Volumetric Deferral/Variance Account Rider (General) | B25: =IF($B$9="kWh",$B$4,$B$5) -> 1800 | C25: =IF(ISERROR(VLOOKUP($B$3,'Data Current Rates'!$A:$BE,MATCH(BI_R1_High!$A25,CurrentHeader,0),FALSE)),0,VLOOKUP($B$3,'Data Current Rates'!$A:$BE,MATCH(BI_R1_High!$A25,CurrentHeader,0),FALSE)) -> -0.0008 | D25: -1.44 | H25: 1.44 | I25: 1 | J25: 0 | K25: 0
A26: Volumetric ESM Rider | B26: 1800 | C26: =IF(ISERROR(VLOOKUP($B$3,'Data Current Rates'!$A:$BE,MATCH(BI_R1_High!$A26,CurrentHeader,0),FALSE)),0,VLOOKUP($B$3,'Data Current Rates'!$A:$BE,MATCH(BI_R1_High!$A26,CurrentHeader,0),FALSE)) -> 0 | D26: 0 | H26: 0 | I26: N/A | J26: 0 | K26: 0
A27: Fair Hydro Plan - Distribution Rate Protection Savings* | D27: =IF(AND(B3<>"R1",B3<>"R2"),0,IF(VLOOKUP($A27,'Data Pass Through'!$A:$D,2,FALSE)=0,0,IF(SUM(D19:D20,D23:D24)<VLOOKUP($A27,'Data Pass Through'!$A:$D,2,FALSE),0,VLOOKUP($A27,'Data Pass Through'!$A:$D,2,FALSE)-SUM(D19:D20,D23:D24)))) -> -39.12 | G27: =IF(AND(B3<>"R1",B3<>"R2"),0,IF(VLOOKUP($A27,'Data Pass Through'!$A:$D,2,FALSE)=0,0,IF(SUM(G19:G20,G23:G24)<VLOOKUP($A27,'Data Pass Through'!$A:$D,2,FALSE),0,VLOOKUP($A27,'Data Pass Through'!$A:$D,2,FALSE)-SUM(G19:G20,G23:G24)))) -> -38.76 | H27: 0.36 | I27: 0.009202453988 | J27: -0.1408529424 | K27: -0.1469997397
A28: Sub-Total: Distribution (excluding pass through) | D28: =SUM(INDIRECT("D19:D"&ROW()-1)) -> 34.43 | G28: =SUM(INDIRECT("g19:g"&ROW()-1)) -> 36.86 | H28: =G28-D28 -> 2.43 | I28: 0.07057798432 | J28: 0.1339483864 | K28: 0.1397938701
A29: Smart Metering Entity Charge | B29: 1 | C29: =VLOOKUP($A29,'Data Pass Through'!$A:$D,2,FALSE) -> 0.57 | D29: =B29*C29 -> 0.57 | E29: 1 | F29: =VLOOKUP($A29,'Data Pass Through'!$A:$D,3,FALSE) -> 0.57 | G29: =E29*F29 -> 0.57 | H29: 0 | I29: 0 | J29: 0.0020713668 | K29: 0.002161760878
A30: Line Losses on Cost of Power (based on two-tier RPP prices) | B30: =B8-B4 -> 136.8 | C30: =IF(B4>B7,C13,C12) -> 0.115 | D30: =B30*C30 -> 15.732 | E30: 136.8 | F30: =IF(B4>B7,F13,F12) -> 0.115 | G30: =E30*F30 -> 15.732 | H30: 0 | I30: 0 | J30: 0.05716972369 | K30: 0.05966460022
A31: Line Losses on Cost of Power (based on TOU prices) | B31: =B8-B4 -> 136.8 | C31: =VLOOKUP($B$3,'Data Billing Quantities'!$A:$O,MATCH(BI_R1_High!$A15,'Data Billing Quantities'!$4:$4,0),FALSE)*C15+VLOOKUP($B$3,'Data Billing Quantities'!$A:$O,MATCH(BI_R1_High!$A16,'Data Billing Quantities'!$4:$4,0),FALSE)*C16+VLOOKUP($B$3,'Data Billing Quantities'!$A:$O,MATCH(BI_R1_High!$A17,'Data Billing Quantities'!$4:$4,0),FALSE)*C17 -> 0.10342 | D31: =B31*C31 -> 14.147856 | E31: 136.8 | F31: =VLOOKUP($B$3,'Data Billing Quantities'!$A:$O,MATCH(BI_R1_High!$A15,'Data Billing Quantities'!$4:$4,0),FALSE)*F15+VLOOKUP($B$3,'Data Billing Quantities'!$A:$O,MATCH(BI_R1_High!$A16,'Data Billing Quantities'!$4:$4,0),FALSE)*F16+VLOOKUP($B$3,'Data Billing Quantities'!$A:$O,MATCH(BI_R1_High!$A17,'Data Billing Quantities'!$4:$4,0),FALSE)*F17 -> 0.10342 | G31: =E31*F31 -> 14.147856 | H31: 0 | I31: 0 | J31: 0.05141298107 | K31: 0.05365663439
A32: Sub-Total: Distribution (based on two-tier RPP prices) | D32: =SUM(D28,D29:D30) -> 50.732 | G32: =SUM(G28,G29:G30) -> 53.162 | H32: 2.43 | I32: 0.04789876212 | J32: 0.1931894769 | K32: 0.2016202312
A33: Sub-Total: Distribution (based on TOU prices) | D33: =SUM(D28,D29,D31) -> 49.147856 | G33: =SUM(G28,G29,G31) -> 51.577856 | H33: 2.43 | I33: 0.04944264507 | J33: 0.1874327343 | K33: 0.1956122653
A34: Retail Transmission Rate – Network Service Rate | B34: =B8 -> 1936.8 | C34: =VLOOKUP($B$3,'Data Current Rates'!$A:$BE,MATCH(BI_R1_High!$A34,CurrentHeader,0),FALSE) -> 0.0082 | D34: =B34*C34 -> 15.88176 | E34: 1936.8 | F34: =VLOOKUP($B$3,'Data Proposed Rates'!$A:$BC,MATCH(BI_R1_High!$A34,ProposedHeader,0),FALSE) -> 0.0103 | G34: =E34*F34 -> 19.94904 | H34: =G34-D34 -> 4.06728 | I34: 0.256097561 | J34: 0.07249434939 | K34: 0.07565798985
A35: Retail Transmission Rate – Line and Transformation Connection Service Rate | B35: =B8 -> 1936.8 | C35: =VLOOKUP($B$3,'Data Current Rates'!$A:$BE,MATCH(BI_R1_High!$A35,CurrentHeader,0),FALSE) -> 0.0073 | D35: =B35*C35 -> 14.13864 | E35: 1936.8 | F35: =VLOOKUP($B$3,'Data Proposed Rates'!$A:$BC,MATCH(BI_R1_High!$A35,ProposedHeader,0),FALSE) -> 0.0076 | G35: =E35*F35 -> 14.71968 | H35: =G35-D35 -> 0.58104 | I35: 0.04109589041 | J35: 0.05349097625 | K35: 0.0558253129
A36: Sub-Total: Retail Transmission | D36: =SUM(D34:D35) -> 30.0204 | G36: =SUM(G34:G35) -> 34.66872 | H36: =G36-D36 -> 4.64832 | I36: 0.1548387097 | J36: 0.1259853256 | K36: 0.1314833028
A37: Sub-Total: Delivery (based on two-tier RPP prices) | D37: =D32+D36 -> 80.7524 | G37: =G32+G36 -> 87.83072 | H37: =G37-D37 -> 7.07832 | I37: 0.08765460841 | J37: 0.3191748025 | K37: 0.3331035339
A38: Sub-Total: Delivery (based on TOU prices) | D38: =D33+D36 -> 79.168256 | G38: =G33+G36 -> 86.246576 | H38: =G38-D38 -> 7.07832 | I38: 0.08940856295 | J38: 0.3134180599 | K38: 0.3270955681
A39: Wholesale Market Service Rate (WMS) - not including CBR | B39: =B8 -> 1936.8 | C39: =VLOOKUP($A39,'Data Pass Through'!$A:$D,2,FALSE) -> 0.003 | D39: =B39*C39 -> 5.8104 | E39: =$B$8 -> 1936.8 | F39: =VLOOKUP($A39,'Data Pass Through'!$A:$D,3,FALSE) -> 0.003 | G39: =E39*F39 -> 5.8104 | H39: 0 | I39: 0 | J39: 0.02111485905 | K39: 0.02203630772
A40: Capacity Based Recovery (CBR) - Applicable for Class B Customers | B40: =B8 -> 1936.8 | C40: =VLOOKUP($A40,'Data Pass Through'!$A:$D,2,FALSE) -> 0.0004 | D40: =B40*C40 -> 0.77472 | E40: =$B$8 -> 1936.8 | F40: =VLOOKUP($A40,'Data Pass Through'!$A:$D,3,FALSE) -> 0.0004 | G40: =E40*F40 -> 0.77472 | H40: 0 | I40: 0 | J40: 0.002815314539 | K40: 0.002938174363
A41: Rural Rate Protection Charge | B41: =B8 -> 1936.8 | C41: =VLOOKUP($A41,'Data Pass Through'!$A:$D,2,FALSE) -> 0.0005 | D41: 0.9684 | E41: 1936.8 | F41: =VLOOKUP($A41,'Data Pass Through'!$A:$D,3,FALSE) -> 0.0005 | G41: 0.9684 | H41: 0 | I41: 0 | J41: 0.003519143174 | K41: 0.003672717954
A42: Standard Supply Service – Administration Charge (if applicable) | B42: 1 | C42: =VLOOKUP($A42,'Data Pass Through'!$A:$D,2,FALSE) -> 0.25 | D42: =B42*C42 -> 0.25 | E42: 1 | F42: =VLOOKUP($A42,'Data Pass Through'!$A:$D,3,FALSE) -> 0.25 | G42: 0.25 | H42: 0 | I42: 0 | J42: 0.0009084942106 | K42: 0.0009481407358
A43: Sub-Total: Regulatory | D43: =SUM(D39:D42) -> 7.80352 | G43: =SUM(G39:G42) -> 7.80352 | H43: 0 | I43: 0 | J43: 0.02835781097 | K43: 0.02959534078
A44: Debt Retirement Charge (DRC) | B44: =B4 -> 1800 | C44: =VLOOKUP($A44,'Data Pass Through'!$A:$D,2,FALSE) -> 0 | D44: =B44*C44 -> 0 | E44: 1800 | F44: =VLOOKUP($A44,'Data Pass Through'!$A:$D,3,FALSE) -> 0 | G44: =E44*F44 -> 0 | H44: 0 | I44: N/A | J44: 0 | K44: 0
A45: Total Electricty Charge on Two-Tier RPP | D45: =SUM(D14,D28,D29,D30,D36,D43,D44) -> 285.35592 | G45: =SUM(G14,G28,G29,G30,G36,G43,G44) -> 292.43424 | H45: 7.07832 | I45: 0.02480523271 | J45: 1.062699256
A46: HST | C46: 0.13 | D46: =D45*C46 -> 37.0962696 | F46: =C46 -> 0.13 | G46: =G45*F46 -> 38.0164512 | H46: 0.9201816 | I46: 0.02480523271 | J46: 0.1381509033
A47: Total Electricity Charge on Two-Tier RPP (including HST) | D47: =SUM(D45:D46) -> 322.4521896 | G47: =SUM(G45:G46) -> 330.4506912 | H47: 7.9985016 | I47: 0.02480523271 | J47: 1.200850159
A48: Ontario Electricity Rebate (OER) | C48: ='Data Pass Through'!B20 -> -0.189 | D48: =D45*C48 -> -53.93226888 | F48: ='Data Pass Through'!C20 -> -0.189 | G48: =G45*F48 -> -55.27007136 | H48: -1.33780248 | I48: -0.02480523271 | J48: -0.2008501594
A49: Total Amount on Two-Tier RPP | D49: =SUM(D47:D48) -> 268.5199207 | G49: =SUM(G47:G48) -> 275.1806198 | H49: 6.66069912 | I49: 0.02480523271 | J49: 1
A50: Total Electricty Charge on TOU (before HST) | D50: =SUM(D18,D28,D29,D31,D36,D43,D44) -> 273.127776 | G50: =SUM(G18,G28,G29,G31,G36,G43,G44) -> 280.206096 | H50: 7.07832 | I50: 0.02591578236 | K50: =G50/$G$54 -> 1.062699256
A51: HST | C51: 0.13 | D51: =D50*C51 -> 35.50661088 | F51: =C51 -> 0.13 | G51: =G50*F51 -> 36.42679248 | H51: 0.9201816 | I51: 0.02591578236 | K51: =G51/$G$54 -> 0.1381509033
A52: Total Electricity Charge on TOU (including HST) | D52: =SUM(D50:D51) -> 308.6343869 | G52: =SUM(G50:G51) -> 316.6328885 | H52: 7.9985016 | I52: 0.02591578236 | K52: =G52/$G$54 -> 1.200850159
A53: Ontario Electricity Rebate (OER) | C53: ='Data Pass Through'!B20 -> -0.189 | D53: =D50*C53 -> -51.62114966 | F53: ='Data Pass Through'!C20 -> -0.189 | G53: =G50*F53 -> -52.95895214 | H53: -1.33780248 | I53: -0.02591578236 | K53: =G53/$G$54 -> -0.2008501594
A54: Total Amount on TOU | D54: =SUM(D52:D53) -> 257.0132372 | G54: =SUM(G52:G53) -> 263.6739363 | H54: 6.66069912 | I54: 0.02591578236 | K54: =G54/$G$54 -> 1
A55: * Distribution rate protection applies to R1 and R2 customers

Sheet BI_R2_Low
A1: 2022 Bill Impacts (Low Consumption Level) - R2
A3: Rate Class | B3: =RIGHT(A1,LEN(A1)-FIND("- ",A1,1)-1) -> R2
A4: Monthly Consumption (kWh) | B4: =IF(COUNTIF(A1,"*Low*")>0,VLOOKUP(B3,'Data Billing Quantities'!$A:$Z,MATCH("Low kWh",'Data Billing Quantities'!4:4,0),FALSE),IF(COUNTIF(A1,"*Typical*")>0,VLOOKUP(B3,'Data Billing Quantities'!$A:$Z,MATCH("Typical kWh",'Data Billing Quantities'!4:4,0),FALSE),IF(COUNTIF(A1,"*Average*")>0,VLOOKUP(B3,'Data Billing Quantities'!$A:$Z,MATCH("Average kWh",'Data Billing Quantities'!4:4,0),FALSE),IF(COUNTIF(A1,"*High*")>0,VLOOKUP(B3,'Data Billing Quantities'!$A:$Z,MATCH("High kWh",'Data Billing Quantities'!4:4,0),FALSE),"error")))) -> 450
A5: Peak (kW) | B5: =IF(COUNTIF(A1,"*Low*")>0,VLOOKUP(B3,'Data Billing Quantities'!$A:$Z,MATCH("Low kW",'Data Billing Quantities'!4:4,0),FALSE),IF(COUNTIF(A1,"*Typical*")>0,VLOOKUP(B3,'Data Billing Quantities'!$A:$Z,MATCH("Typical kW",'Data Billing Quantities'!4:4,0),FALSE),IF(COUNTIF(A1,"*Average*")>0,VLOOKUP(B3,'Data Billing Quantities'!$A:$Z,MATCH("Average kW",'Data Billing Quantities'!4:4,0),FALSE),IF(COUNTIF(A1,"*High*")>0,VLOOKUP(B3,'Data Billing Quantities'!$A:$Z,MATCH("High kW",'Data Billing Quantities'!4:4,0),FALSE),"error")))) -> 0
A6: Loss factor | B6: =VLOOKUP(B3,'Data Billing Quantities'!A:D,MATCH(A6,'Data Billing Quantities'!4:4,0),FALSE) -> 1.105
A7: Commodity Threshold | B7: =VLOOKUP(B3,'Data Billing Quantities'!A:D,MATCH(A7,'Data Billing Quantities'!4:4,0),FALSE) -> 600
A8: Monthly Consumption (kWh) - Uplifted | B8: =B4*B6 -> 497.25
A9: Charge determinant | B9: =VLOOKUP(B3,'Data Billing Quantities'!A:D,MATCH(A9,'Data Billing Quantities'!4:4,0),FALSE) -> kWh
B11: Volume | C11: Current Rate ($) | D11: Current Charge ($) | E11: Volume | F11: Proposed Rate ($) | G11: Proposed Charge ($) | H11: Change ($) | I11: Change (%) | J11: % of Total Bill on RPP | K11: % of Total Bill on TOU
A12: Energy First Tier | B12: =IF(B4>B7,B7,B4) -> 450 | C12: =VLOOKUP($A12,'Data Pass Through'!$A:$D,2,FALSE) -> 0.098 | D12: =B12*C12 -> 44.1 | E12: =B12 -> 450 | F12: =VLOOKUP($A12,'Data Pass Through'!$A:$D,3,FALSE) -> 0.098 | G12: =E12*F12 -> 44.1 | H12: =G12-D12 -> 0 | I12: =IF(ISERROR(H12/ABS(D12)),"N/A",(H12/ABS(D12))) -> 0 | J12: =G12/$G$49 -> 0.4846256945
A13: Energy Second Tier | B13: =IF(B4>B7,(B4)-B7,0) -> 0 | C13: =VLOOKUP($A13,'Data Pass Through'!$A:$D,2,FALSE) -> 0.115 | D13: =B13*C13 -> 0 | E13: =B13 -> 0 | F13: =VLOOKUP($A13,'Data Pass Through'!$A:$D,3,FALSE) -> 0.115 | G13: =E13*F13 -> 0 | H13: 0 | I13: N/A | J13: =G13/$G$49 -> 0
A14: Sub-Total: Energy (RPP Tiered) | D14: =SUM(D12:D13) -> 44.1 | G14: =SUM(G12:G13) -> 44.1 | H14: 0 | I14: 0 | J14: =G14/$G$49 -> 0.4846256945
A15: TOU-Off Peak | B15: =B$4*VLOOKUP($B$3,'Data Billing Quantities'!$A:$O,MATCH(BI_R2_Low!$A15,'Data Billing Quantities'!$4:$4,0),FALSE) -> 288 | C15: =VLOOKUP($A15,'Data Pass Through'!$A:$D,2,FALSE) -> 0.082 | D15: =B15*C15 -> 23.616 | E15: 288 | F15: =VLOOKUP($A15,'Data Pass Through'!$A:$D,3,FALSE) -> 0.082 | G15: =E15*F15 -> 23.616 | H15: 0 | I15: 0 | K15: =G15/$G$54 -> 0.2524853263
A16: TOU-Mid Peak | B16: =B$4*VLOOKUP($B$3,'Data Billing Quantities'!$A:$O,MATCH(BI_R2_Low!$A16,'Data Billing Quantities'!$4:$4,0),FALSE) -> 81 | C16: =VLOOKUP($A16,'Data Pass Through'!$A:$D,2,FALSE) -> 0.113 | D16: =B16*C16 -> 9.153 | E16: 81 | F16: =VLOOKUP($A16,'Data Pass Through'!$A:$D,3,FALSE) -> 0.113 | G16: =E16*F16 -> 9.153 | H16: 0 | I16: 0 | K16: 0.09785730826
A17: TOU-On Peak | B17: =B$4*VLOOKUP($B$3,'Data Billing Quantities'!$A:$O,MATCH(BI_R2_Low!$A17,'Data Billing Quantities'!$4:$4,0),FALSE) -> 81 | C17: =VLOOKUP($A17,'Data Pass Through'!$A:$D,2,FALSE) -> 0.17 | D17: =B17*C17 -> 13.77 | E17: 81 | F17: =VLOOKUP($A17,'Data Pass Through'!$A:$D,3,FALSE) -> 0.17 | G17: =E17*F17 -> 13.77 | H17: 0 | I17: 0 | K17: 0.1472189593
A18: Sub-Total: Energy (RPP TOU) | D18: =SUM(D15:D17) -> 46.539 | G18: =SUM(G15:G17) -> 46.539 | H18: 0 | I18: 0 | J18: =G18/$G$49 -> 0.5114284625 | K18: 0.4975615939
A19: Service Charge | B19: 1 | C19: =IF(ISERROR(VLOOKUP($B$3,'Data Current Rates'!$A:$BE,MATCH(BI_R2_Low!$A19,CurrentHeader,0),FALSE)),0,VLOOKUP($B$3,'Data Current Rates'!$A:$BE,MATCH(BI_R2_Low!$A19,CurrentHeader,0),FALSE)) -> 53.14 | D19: =B19*C19 -> 53.14 | E19: 1 | F19: =VLOOKUP($B$3,'Data Proposed Rates'!$A:$BC,MATCH(BI_R2_Low!$A19,ProposedHeader,0),FALSE) -> 68.03 | G19: =E19*F19 -> 68.03 | H19: 14.89 | I19: 0.2802032367 | J19: 0.7475983219 | K19: 0.7273279451
A20: Base Rate Adjustment to Recover Past Tax Amounts FIXED | B20: 1 | C20: =IF(ISERROR(VLOOKUP($B$3,'Data Current Rates'!$A:$BE,MATCH(BI_R2_Low!$A20,CurrentHeader,0),FALSE)),0,VLOOKUP($B$3,'Data Current Rates'!$A:$BE,MATCH(BI_R2_Low!$A20,CurrentHeader,0),FALSE)) -> 4.42 | D20: 4.42 | E20: 1 | F20: =VLOOKUP($B$3,'Data Proposed Rates'!$A:$BC,MATCH(BI_R2_Low!$A20,ProposedHeader,0),FALSE) -> 4.42 | G20: 4.42 | H20: 0 | I20: 0 | J20: 0.0485724619 | K20: 0.04725546843
A21: Fixed Deferral/Variance Account Rider (General) | B21: 1 | C21: =IF(ISERROR(VLOOKUP($B$3,'Data Current Rates'!$A:$BE,MATCH(BI_R2_Low!$A21,CurrentHeader,0),FALSE)),0,VLOOKUP($B$3,'Data Current Rates'!$A:$BE,MATCH(BI_R2_Low!$A21,CurrentHeader,0),FALSE)) -> -0.14 | D21: -0.14 | H21: 0.14 | I21: 1 | J21: 0 | K21: 0
A22: Fixed ESM Rider | B22: 1 | C22: =IF(ISERROR(VLOOKUP($B$3,'Data Current Rates'!$A:$BE,MATCH(BI_R2_Low!$A22,CurrentHeader,0),FALSE)),0,VLOOKUP($B$3,'Data Current Rates'!$A:$BE,MATCH(BI_R2_Low!$A22,CurrentHeader,0),FALSE)) -> -1.92 | D22: -1.92 | H22: 1.92 | I22: 1 | J22: 0 | K22: 0
A23: Distribution Volumetric Charge | B23: =IF($B$9="kWh",$B$4,$B$5) -> 450 | C23: =IF(ISERROR(VLOOKUP($B$3,'Data Current Rates'!$A:$BE,MATCH(BI_R2_Low!$A23,CurrentHeader,0),FALSE)),0,VLOOKUP($B$3,'Data Current Rates'!$A:$BE,MATCH(BI_R2_Low!$A23,CurrentHeader,0),FALSE)) -> 0.0227 | D23: 10.215 | E23: =IF($B$9="kWh",$B$4,$B$5) -> 450 | F23: =VLOOKUP($B$3,'Data Proposed Rates'!$A:$BC,MATCH(BI_R2_Low!$A23,ProposedHeader,0),FALSE) -> 0.016 | G23: 7.2 | H23: -3.015 | I23: -0.295154185 | J23: 0.07912256237 | K23: 0.07697723364
A24: Base Rate Adjustment to Recover Past Tax Amounts VOL | B24: =IF($B$9="kWh",$B$4,$B$5) -> 450 | C24: =IF(ISERROR(VLOOKUP($B$3,'Data Current Rates'!$A:$BE,MATCH(BI_R2_Low!$A24,CurrentHeader,0),FALSE)),0,VLOOKUP($B$3,'Data Current Rates'!$A:$BE,MATCH(BI_R2_Low!$A24,CurrentHeader,0),FALSE)) -> 0 | D24: 0 | E24: =IF($B$9="kWh",$B$4,$B$5) -> 450 | F24: =VLOOKUP($B$3,'Data Proposed Rates'!$A:$BC,MATCH(BI_R2_Low!$A24,ProposedHeader,0),FALSE) -> 0 | G24: 0 | H24: 0 | I24: N/A | J24: 0 | K24: 0
A25: Volumetric Deferral/Variance Account Rider (General) | B25: =IF($B$9="kWh",$B$4,$B$5) -> 450 | C25: =IF(ISERROR(VLOOKUP($B$3,'Data Current Rates'!$A:$BE,MATCH(BI_R2_Low!$A25,CurrentHeader,0),FALSE)),0,VLOOKUP($B$3,'Data Current Rates'!$A:$BE,MATCH(BI_R2_Low!$A25,CurrentHeader,0),FALSE)) -> -0.0011 | D25: -0.495 | H25: 0.495 | I25: 1 | J25: 0 | K25: 0
A26: Volumetric ESM Rider | B26: 450 | C26: =IF(ISERROR(VLOOKUP($B$3,'Data Current Rates'!$A:$BE,MATCH(BI_R2_Low!$A26,CurrentHeader,0),FALSE)),0,VLOOKUP($B$3,'Data Current Rates'!$A:$BE,MATCH(BI_R2_Low!$A26,CurrentHeader,0),FALSE)) -> 0 | D26: 0 | H26: 0 | I26: N/A | J26: 0 | K26: 0
A27: Fair Hydro Plan - Distribution Rate Protection Savings* | D27: =IF(AND(B3<>"R1",B3<>"R2"),0,IF(VLOOKUP($A27,'Data Pass Through'!$A:$D,2,FALSE)=0,0,IF(SUM(D19:D20,D23:D24)<VLOOKUP($A27,'Data Pass Through'!$A:$D,2,FALSE),0,VLOOKUP($A27,'Data Pass Through'!$A:$D,2,FALSE)-SUM(D19:D20,D23:D24)))) -> -30.915 | G27: =IF(AND(B3<>"R1",B3<>"R2"),0,IF(VLOOKUP($A27,'Data Pass Through'!$A:$D,2,FALSE)=0,0,IF(SUM(G19:G20,G23:G24)<VLOOKUP($A27,'Data Pass Through'!$A:$D,2,FALSE),0,VLOOKUP($A27,'Data Pass Through'!$A:$D,2,FALSE)-SUM(G19:G20,G23:G24)))) -> -42.79 | H27: -11.875 | I27: -0.3841177422 | J27: -0.4702297838 | K27: -0.457479976
A28: Sub-Total: Distribution (excluding pass through) | D28: =SUM(INDIRECT("D19:D"&ROW()-1)) -> 34.305 | G28: =SUM(INDIRECT("g19:g"&ROW()-1)) -> 36.86 | H28: =G28-D28 -> 2.555 | I28: 0.07447893893 | J28: 0.4050635623 | K28: 0.3940806711
A29: Smart Metering Entity Charge | B29: 1 | C29: =VLOOKUP($A29,'Data Pass Through'!$A:$D,2,FALSE) -> 0.57 | D29: =B29*C29 -> 0.57 | E29: 1 | F29: =VLOOKUP($A29,'Data Pass Through'!$A:$D,3,FALSE) -> 0.57 | G29: =E29*F29 -> 0.57 | H29: 0 | I29: 0 | J29: 0.006263869521 | K29: 0.006094030996
A30: Line Losses on Cost of Power (based on two-tier RPP prices) | B30: =B8-B4 -> 47.25 | C30: =IF(B4>B7,C13,C12) -> 0.098 | D30: =B30*C30 -> 4.6305 | E30: 47.25 | F30: =IF(B4>B7,F13,F12) -> 0.098 | G30: =E30*F30 -> 4.6305 | H30: 0 | I30: 0 | J30: 0.05088569792 | K30: 0.04950598338
A31: Line Losses on Cost of Power (based on TOU prices) | B31: =B8-B4 -> 47.25 | C31: =VLOOKUP($B$3,'Data Billing Quantities'!$A:$O,MATCH(BI_R2_Low!$A15,'Data Billing Quantities'!$4:$4,0),FALSE)*C15+VLOOKUP($B$3,'Data Billing Quantities'!$A:$O,MATCH(BI_R2_Low!$A16,'Data Billing Quantities'!$4:$4,0),FALSE)*C16+VLOOKUP($B$3,'Data Billing Quantities'!$A:$O,MATCH(BI_R2_Low!$A17,'Data Billing Quantities'!$4:$4,0),FALSE)*C17 -> 0.10342 | D31: =B31*C31 -> 4.886595 | E31: 47.25 | F31: =VLOOKUP($B$3,'Data Billing Quantities'!$A:$O,MATCH(BI_R2_Low!$A15,'Data Billing Quantities'!$4:$4,0),FALSE)*F15+VLOOKUP($B$3,'Data Billing Quantities'!$A:$O,MATCH(BI_R2_Low!$A16,'Data Billing Quantities'!$4:$4,0),FALSE)*F16+VLOOKUP($B$3,'Data Billing Quantities'!$A:$O,MATCH(BI_R2_Low!$A17,'Data Billing Quantities'!$4:$4,0),FALSE)*F17 -> 0.10342 | G31: =E31*F31 -> 4.886595 | H31: 0 | I31: 0 | J31: 0.05369998856 | K31: 0.05224396736
A32: Sub-Total: Distribution (based on two-tier RPP prices) | D32: =SUM(D28,D29:D30) -> 39.5055 | G32: =SUM(G28,G29:G30) -> 42.0605 | H32: 2.555 | I32: 0.06467453899 | J32: 0.4622131298 | K32: 0.4496806855
A33: Sub-Total: Distribution (based on TOU prices) | D33: =SUM(D28,D29,D31) -> 39.761595 | G33: =SUM(G28,G29,G31) -> 42.316595 | H33: 2.555 | I33: 0.06425798563 | J33: 0.4650274204 | K33: 0.4524186695
A34: Retail Transmission Rate – Network Service Rate | B34: =B8 -> 497.25 | C34: =VLOOKUP($B$3,'Data Current Rates'!$A:$BE,MATCH(BI_R2_Low!$A34,CurrentHeader,0),FALSE) -> 0.0077 | D34: =B34*C34 -> 3.828825 | E34: 497.25 | F34: =VLOOKUP($B$3,'Data Proposed Rates'!$A:$BC,MATCH(BI_R2_Low!$A34,ProposedHeader,0),FALSE) -> 0.0096 | G34: =E34*F34 -> 4.7736 | H34: =G34-D34 -> 0.944775 | I34: 0.2467532468 | J34: 0.05245825885 | K34: 0.0510359059
A35: Retail Transmission Rate – Line and Transformation Connection Service Rate | B35: =B8 -> 497.25 | C35: =VLOOKUP($B$3,'Data Current Rates'!$A:$BE,MATCH(BI_R2_Low!$A35,CurrentHeader,0),FALSE) -> 0.0068 | D35: =B35*C35 -> 3.3813 | E35: 497.25 | F35: =VLOOKUP($B$3,'Data Proposed Rates'!$A:$BC,MATCH(BI_R2_Low!$A35,ProposedHeader,0),FALSE) -> 0.0072 | G35: =E35*F35 -> 3.5802 | H35: =G35-D35 -> 0.1989 | I35: 0.05882352941 | J35: 0.03934369414 | K35: 0.03827692943
A36: Sub-Total: Retail Transmission | D36: =SUM(D34:D35) -> 7.210125 | G36: =SUM(G34:G35) -> 8.3538 | H36: =G36-D36 -> 1.143675 | I36: 0.1586206897 | J36: 0.09180195299 | K36: 0.08931283533
A37: Sub-Total: Delivery (based on two-tier RPP prices) | D37: =D32+D36 -> 46.715625 | G37: =G32+G36 -> 50.4143 | H37: =G37-D37 -> 3.698675 | I37: 0.07917425915 | J37: 0.5540150828 | K37: 0.5389935208
A38: Sub-Total: Delivery (based on TOU prices) | D38: =D33+D36 -> 46.97172 | G38: =G33+G36 -> 50.670395 | H38: =G38-D38 -> 3.698675 | I38: 0.07874259235 | J38: 0.5568293734 | K38: 0.5417315048
A39: Wholesale Market Service Rate (WMS) - not including CBR | B39: =B8 -> 497.25 | C39: =VLOOKUP($A39,'Data Pass Through'!$A:$D,2,FALSE) -> 0.003 | D39: =B39*C39 -> 1.49175 | E39: =$B$8 -> 497.25 | F39: =VLOOKUP($A39,'Data Pass Through'!$A:$D,3,FALSE) -> 0.003 | G39: =E39*F39 -> 1.49175 | H39: 0 | I39: 0 | J39: 0.01639320589 | K39: 0.01594872059
A40: Capacity Based Recovery (CBR) - Applicable for Class B Customers | B40: =B8 -> 497.25 | C40: =VLOOKUP($A40,'Data Pass Through'!$A:$D,2,FALSE) -> 0.0004 | D40: =B40*C40 -> 0.1989 | E40: =$B$8 -> 497.25 | F40: =VLOOKUP($A40,'Data Pass Through'!$A:$D,3,FALSE) -> 0.0004 | G40: =E40*F40 -> 0.1989 | H40: 0 | I40: 0 | J40: 0.002185760785 | K40: 0.002126496079
A41: Rural Rate Protection Charge | B41: =B8 -> 497.25 | C41: =VLOOKUP($A41,'Data Pass Through'!$A:$D,2,FALSE) -> 0.0005 | D41: 0.248625 | E41: 497.25 | F41: =VLOOKUP($A41,'Data Pass Through'!$A:$D,3,FALSE) -> 0.0005 | G41: 0.248625 | H41: 0 | I41: 0 | J41: 0.002732200982 | K41: 0.002658120099
A42: Standard Supply Service – Administration Charge (if applicable) | B42: 1 | C42: =VLOOKUP($A42,'Data Pass Through'!$A:$D,2,FALSE) -> 0.25 | D42: =B42*C42 -> 0.25 | E42: 1 | F42: =VLOOKUP($A42,'Data Pass Through'!$A:$D,3,FALSE) -> 0.25 | G42: 0.25 | H42: 0 | I42: 0 | J42: 0.002747311193 | K42: 0.002672820612
A43: Sub-Total: Regulatory | D43: =SUM(D39:D42) -> 2.189275 | G43: =SUM(G39:G42) -> 2.189275 | H43: 0 | I43: 0 | J43: 0.02405847885 | K43: 0.02340615739
A44: Debt Retirement Charge (DRC) | B44: =B4 -> 450 | C44: =VLOOKUP($A44,'Data Pass Through'!$A:$D,2,FALSE) -> 0 | D44: =B44*C44 -> 0 | E44: 450 | F44: =VLOOKUP($A44,'Data Pass Through'!$A:$D,3,FALSE) -> 0 | G44: =E44*F44 -> 0 | H44: 0 | I44: N/A | J44: 0 | K44: 0
A45: Total Electricty Charge on Two-Tier RPP | D45: =SUM(D14,D28,D29,D30,D36,D43,D44) -> 93.0049 | G45: =SUM(G14,G28,G29,G30,G36,G43,G44) -> 96.703575 | H45: 3.698675 | I45: 0.03976860359 | J45: 1.062699256
A46: HST | C46: 0.13 | D46: =D45*C46 -> 12.090637 | F46: =C46 -> 0.13 | G46: =G45*F46 -> 12.57146475 | H46: 0.48082775 | I46: 0.03976860359 | J46: 0.1381509033
A47: Total Electricity Charge on Two-Tier RPP (including HST) | D47: =SUM(D45:D46) -> 105.095537 | G47: =SUM(G45:G46) -> 109.2750397 | H47: 4.17950275 | I47: 0.03976860359 | J47: 1.200850159
A48: Ontario Electricity Rebate (OER) | C48: ='Data Pass Through'!B20 -> -0.189 | D48: =D45*C48 -> -17.5779261 | F48: ='Data Pass Through'!C20 -> -0.189 | G48: =G45*F48 -> -18.27697567 | H48: -0.699049575 | I48: -0.03976860359 | J48: -0.2008501594
A49: Total Amount on Two-Tier RPP | D49: =SUM(D47:D48) -> 87.5176109 | G49: =SUM(G47:G48) -> 90.99806407 | H49: 3.480453175 | I49: 0.03976860359 | J49: 1
A50: Total Electricty Charge on TOU (before HST) | D50: =SUM(D18,D28,D29,D31,D36,D43,D44) -> 95.699995 | G50: =SUM(G18,G28,G29,G31,G36,G43,G44) -> 99.39867 | H50: 3.698675 | I50: 0.03864864361 | K50: =G50/$G$54 -> 1.062699256
A51: HST | C51: 0.13 | D51: =D50*C51 -> 12.44099935 | F51: =C51 -> 0.13 | G51: =G50*F51 -> 12.9218271 | H51: 0.48082775 | I51: 0.03864864361 | K51: =G51/$G$54 -> 0.1381509033
A52: Total Electricity Charge on TOU (including HST) | D52: =SUM(D50:D51) -> 108.1409943 | G52: =SUM(G50:G51) -> 112.3204971 | H52: 4.17950275 | I52: 0.03864864361 | K52: =G52/$G$54 -> 1.200850159
A53: Ontario Electricity Rebate (OER) | C53: ='Data Pass Through'!B20 -> -0.189 | D53: =D50*C53 -> -18.08729905 | F53: ='Data Pass Through'!C20 -> -0.189 | G53: =G50*F53 -> -18.78634863 | H53: -0.699049575 | I53: -0.03864864361 | K53: =G53/$G$54 -> -0.2008501594
A54: Total Amount on TOU | D54: =SUM(D52:D53) -> 90.05369529 | G54: =SUM(G52:G53) -> 93.53414847 | H54: 3.480453175 | I54: 0.03864864361 | K54: =G54/$G$54 -> 1
A55: * Distribution rate protection applies to R1 and R2 customers

Sheet BI_R2_Typical
A1: 2022 Bill Impacts (Typical Consumption Level) - R2
A3: Rate Class | B3: =RIGHT(A1,LEN(A1)-FIND("- ",A1,1)-1) -> R2
A4: Monthly Consumption (kWh) | B4: =IF(COUNTIF(A1,"*Low*")>0,VLOOKUP(B3,'Data Billing Quantities'!$A:$Z,MATCH("Low kWh",'Data Billing Quantities'!4:4,0),FALSE),IF(COUNTIF(A1,"*Typical*")>0,VLOOKUP(B3,'Data Billing Quantities'!$A:$Z,MATCH("Typical kWh",'Data Billing Quantities'!4:4,0),FALSE),IF(COUNTIF(A1,"*Average*")>0,VLOOKUP(B3,'Data Billing Quantities'!$A:$Z,MATCH("Average kWh",'Data Billing Quantities'!4:4,0),FALSE),IF(COUNTIF(A1,"*High*")>0,VLOOKUP(B3,'Data Billing Quantities'!$A:$Z,MATCH("High kWh",'Data Billing Quantities'!4:4,0),FALSE),"error")))) -> 750
A5: Peak (kW) | B5: =IF(COUNTIF(A1,"*Low*")>0,VLOOKUP(B3,'Data Billing Quantities'!$A:$Z,MATCH("Low kW",'Data Billing Quantities'!4:4,0),FALSE),IF(COUNTIF(A1,"*Typical*")>0,VLOOKUP(B3,'Data Billing Quantities'!$A:$Z,MATCH("Typical kW",'Data Billing Quantities'!4:4,0),FALSE),IF(COUNTIF(A1,"*Average*")>0,VLOOKUP(B3,'Data Billing Quantities'!$A:$Z,MATCH("Average kW",'Data Billing Quantities'!4:4,0),FALSE),IF(COUNTIF(A1,"*High*")>0,VLOOKUP(B3,'Data Billing Quantities'!$A:$Z,MATCH("High kW",'Data Billing Quantities'!4:4,0),FALSE),"error")))) -> 0
A6: Loss factor | B6: =VLOOKUP(B3,'Data Billing Quantities'!A:D,MATCH(A6,'Data Billing Quantities'!4:4,0),FALSE) -> 1.105
A7: Commodity Threshold | B7: =VLOOKUP(B3,'Data Billing Quantities'!A:D,MATCH(A7,'Data Billing Quantities'!4:4,0),FALSE) -> 600
A8: Monthly Consumption (kWh) - Uplifted | B8: =B4*B6 -> 828.75
A9: Charge determinant | B9: =VLOOKUP(B3,'Data Billing Quantities'!A:D,MATCH(A9,'Data Billing Quantities'!4:4,0),FALSE) -> kWh
B11: Volume | C11: Current Rate ($) | D11: Current Charge ($) | E11: Volume | F11: Proposed Rate ($) | G11: Proposed Charge ($) | H11: Change ($) | I11: Change (%) | J11: % of Total Bill on RPP | K11: % of Total Bill on TOU
A12: Energy First Tier | B12: =IF(B4>B7,B7,B4) -> 600 | C12: =VLOOKUP($A12,'Data Pass Through'!$A:$D,2,FALSE) -> 0.098 | D12: =B12*C12 -> 58.8 | E12: =B12 -> 600 | F12: =VLOOKUP($A12,'Data Pass Through'!$A:$D,3,FALSE) -> 0.098 | G12: =E12*F12 -> 58.8 | H12: =G12-D12 -> 0 | I12: =IF(ISERROR(H12/ABS(D12)),"N/A",(H12/ABS(D12))) -> 0 | J12: =G12/$G$49 -> 0.4465206681
A13: Energy Second Tier | B13: =IF(B4>B7,(B4)-B7,0) -> 150 | C13: =VLOOKUP($A13,'Data Pass Through'!$A:$D,2,FALSE) -> 0.115 | D13: =B13*C13 -> 17.25 | E13: =B13 -> 150 | F13: =VLOOKUP($A13,'Data Pass Through'!$A:$D,3,FALSE) -> 0.115 | G13: =E13*F13 -> 17.25 | H13: 0 | I13: 0 | J13: =G13/$G$49 -> 0.1309945838
A14: Sub-Total: Energy (RPP Tiered) | D14: =SUM(D12:D13) -> 76.05 | G14: =SUM(G12:G13) -> 76.05 | H14: 0 | I14: 0 | J14: =G14/$G$49 -> 0.5775152518
A15: TOU-Off Peak | B15: =B$4*VLOOKUP($B$3,'Data Billing Quantities'!$A:$O,MATCH(BI_R2_Typical!$A15,'Data Billing Quantities'!$4:$4,0),FALSE) -> 480 | C15: =VLOOKUP($A15,'Data Pass Through'!$A:$D,2,FALSE) -> 0.082 | D15: =B15*C15 -> 39.36 | E15: 480 | F15: =VLOOKUP($A15,'Data Pass Through'!$A:$D,3,FALSE) -> 0.082 | G15: =E15*F15 -> 39.36 | H15: 0 | I15: 0 | K15: =G15/$G$54 -> 0.2976129098
A16: TOU-Mid Peak | B16: =B$4*VLOOKUP($B$3,'Data Billing Quantities'!$A:$O,MATCH(BI_R2_Typical!$A16,'Data Billing Quantities'!$4:$4,0),FALSE) -> 135 | C16: =VLOOKUP($A16,'Data Pass Through'!$A:$D,2,FALSE) -> 0.113 | D16: =B16*C16 -> 15.255 | E16: 135 | F16: =VLOOKUP($A16,'Data Pass Through'!$A:$D,3,FALSE) -> 0.113 | G16: =E16*F16 -> 15.255 | H16: 0 | I16: 0 | K16: 0.1153476865
A17: TOU-On Peak | B17: =B$4*VLOOKUP($B$3,'Data Billing Quantities'!$A:$O,MATCH(BI_R2_Typical!$A17,'Data Billing Quantities'!$4:$4,0),FALSE) -> 135 | C17: =VLOOKUP($A17,'Data Pass Through'!$A:$D,2,FALSE) -> 0.17 | D17: =B17*C17 -> 22.95 | E17: 135 | F17: =VLOOKUP($A17,'Data Pass Through'!$A:$D,3,FALSE) -> 0.17 | G17: =E17*F17 -> 22.95 | H17: 0 | I17: 0 | K17: 0.1735319177
A18: Sub-Total: Energy (RPP TOU) | D18: =SUM(D15:D17) -> 77.565 | G18: =SUM(G15:G17) -> 77.565 | H18: 0 | I18: 0 | J18: =G18/$G$49 -> 0.5890199936 | K18: 0.5864925139
A19: Service Charge | B19: 1 | C19: =IF(ISERROR(VLOOKUP($B$3,'Data Current Rates'!$A:$BE,MATCH(BI_R2_Typical!$A19,CurrentHeader,0),FALSE)),0,VLOOKUP($B$3,'Data Current Rates'!$A:$BE,MATCH(BI_R2_Typical!$A19,CurrentHeader,0),FALSE)) -> 53.14 | D19: =B19*C19 -> 53.14 | E19: 1 | F19: =VLOOKUP($B$3,'Data Proposed Rates'!$A:$BC,MATCH(BI_R2_Typical!$A19,ProposedHeader,0),FALSE) -> 68.03 | G19: =E19*F19 -> 68.03 | H19: 14.89 | I19: 0.2802032367 | J19: 0.5166122628 | K19: 0.5143954841
A20: Base Rate Adjustment to Recover Past Tax Amounts FIXED | B20: 1 | C20: =IF(ISERROR(VLOOKUP($B$3,'Data Current Rates'!$A:$BE,MATCH(BI_R2_Typical!$A20,CurrentHeader,0),FALSE)),0,VLOOKUP($B$3,'Data Current Rates'!$A:$BE,MATCH(BI_R2_Typical!$A20,CurrentHeader,0),FALSE)) -> 4.42 | D20: 4.42 | E20: 1 | F20: =VLOOKUP($B$3,'Data Proposed Rates'!$A:$BC,MATCH(BI_R2_Typical!$A20,ProposedHeader,0),FALSE) -> 4.42 | G20: 4.42 | H20: 0 | I20: 0 | J20: 0.033564989 | K20: 0.03342096192
A21: Fixed Deferral/Variance Account Rider (General) | B21: 1 | C21: =IF(ISERROR(VLOOKUP($B$3,'Data Current Rates'!$A:$BE,MATCH(BI_R2_Typical!$A21,CurrentHeader,0),FALSE)),0,VLOOKUP($B$3,'Data Current Rates'!$A:$BE,MATCH(BI_R2_Typical!$A21,CurrentHeader,0),FALSE)) -> -0.14 | D21: -0.14 | H21: 0.14 | I21: 1 | J21: 0 | K21: 0
A22: Fixed ESM Rider | B22: 1 | C22: =IF(ISERROR(VLOOKUP($B$3,'Data Current Rates'!$A:$BE,MATCH(BI_R2_Typical!$A22,CurrentHeader,0),FALSE)),0,VLOOKUP($B$3,'Data Current Rates'!$A:$BE,MATCH(BI_R2_Typical!$A22,CurrentHeader,0),FALSE)) -> -1.92 | D22: -1.92 | H22: 1.92 | I22: 1 | J22: 0 | K22: 0
A23: Distribution Volumetric Charge | B23: =IF($B$9="kWh",$B$4,$B$5) -> 750 | C23: =IF(ISERROR(VLOOKUP($B$3,'Data Current Rates'!$A:$BE,MATCH(BI_R2_Typical!$A23,CurrentHeader,0),FALSE)),0,VLOOKUP($B$3,'Data Current Rates'!$A:$BE,MATCH(BI_R2_Typical!$A23,CurrentHeader,0),FALSE)) -> 0.0227 | D23: 17.025 | E23: =IF($B$9="kWh",$B$4,$B$5) -> 750 | F23: =VLOOKUP($B$3,'Data Proposed Rates'!$A:$BC,MATCH(BI_R2_Typical!$A23,ProposedHeader,0),FALSE) -> 0.016 | G23: 12 | H23: -5.025 | I23: -0.295154185 | J23: 0.09112666696 | K23: 0.09073564323
A24: Base Rate Adjustment to Recover Past Tax Amounts VOL | B24: =IF($B$9="kWh",$B$4,$B$5) -> 750 | C24: =IF(ISERROR(VLOOKUP($B$3,'Data Current Rates'!$A:$BE,MATCH(BI_R2_Typical!$A24,CurrentHeader,0),FALSE)),0,VLOOKUP($B$3,'Data Current Rates'!$A:$BE,MATCH(BI_R2_Typical!$A24,CurrentHeader,0),FALSE)) -> 0 | D24: 0 | E24: =IF($B$9="kWh",$B$4,$B$5) -> 750 | F24: =VLOOKUP($B$3,'Data Proposed Rates'!$A:$BC,MATCH(BI_R2_Typical!$A24,ProposedHeader,0),FALSE) -> 0 | G24: 0 | H24: 0 | I24: N/A | J24: 0 | K24: 0
A25: Volumetric Deferral/Variance Account Rider (General) | B25: =IF($B$9="kWh",$B$4,$B$5) -> 750 | C25: =IF(ISERROR(VLOOKUP($B$3,'Data Current Rates'!$A:$BE,MATCH(BI_R2_Typical!$A25,CurrentHeader,0),FALSE)),0,VLOOKUP($B$3,'Data Current Rates'!$A:$BE,MATCH(BI_R2_Typical!$A25,CurrentHeader,0),FALSE)) -> -0.0011 | D25: -0.825 | H25: 0.825 | I25: 1 | J25: 0 | K25: 0
A26: Volumetric ESM Rider | B26: 750 | C26: =IF(ISERROR(VLOOKUP($B$3,'Data Current Rates'!$A:$BE,MATCH(BI_R2_Typical!$A26,CurrentHeader,0),FALSE)),0,VLOOKUP($B$3,'Data Current Rates'!$A:$BE,MATCH(BI_R2_Typical!$A26,CurrentHeader,0),FALSE)) -> 0 | D26: 0 | H26: 0 | I26: N/A | J26: 0 | K26: 0
A27: Fair Hydro Plan - Distribution Rate Protection Savings* | D27: =IF(AND(B3<>"R1",B3<>"R2"),0,IF(VLOOKUP($A27,'Data Pass Through'!$A:$D,2,FALSE)=0,0,IF(SUM(D19:D20,D23:D24)<VLOOKUP($A27,'Data Pass Through'!$A:$D,2,FALSE),0,VLOOKUP($A27,'Data Pass Through'!$A:$D,2,FALSE)-SUM(D19:D20,D23:D24)))) -> -37.725 | G27: =IF(AND(B3<>"R1",B3<>"R2"),0,IF(VLOOKUP($A27,'Data Pass Through'!$A:$D,2,FALSE)=0,0,IF(SUM(G19:G20,G23:G24)<VLOOKUP($A27,'Data Pass Through'!$A:$D,2,FALSE),0,VLOOKUP($A27,'Data Pass Through'!$A:$D,2,FALSE)-SUM(G19:G20,G23:G24)))) -> -47.59 | H27: -9.865 | I27: -0.2614976806 | J27: -0.3613931734 | K27: -0.3598424384
A28: Sub-Total: Distribution (excluding pass through) | D28: =SUM(INDIRECT("D19:D"&ROW()-1)) -> 33.975 | G28: =SUM(INDIRECT("g19:g"&ROW()-1)) -> 36.86 | H28: =G28-D28 -> 2.885 | I28: 0.08491537896 | J28: 0.2799107453 | K28: 0.2787096508
A29: Smart Metering Entity Charge | B29: 1 | C29: =VLOOKUP($A29,'Data Pass Through'!$A:$D,2,FALSE) -> 0.57 | D29: =B29*C29 -> 0.57 | E29: 1 | F29: =VLOOKUP($A29,'Data Pass Through'!$A:$D,3,FALSE) -> 0.57 | G29: =E29*F29 -> 0.57 | H29: 0 | I29: 0 | J29: 0.004328516681 | K29: 0.004309943053
A30: Line Losses on Cost of Power (based on two-tier RPP prices) | B30: =B8-B4 -> 78.75 | C30: =IF(B4>B7,C13,C12) -> 0.115 | D30: =B30*C30 -> 9.05625 | E30: 78.75 | F30: =IF(B4>B7,F13,F12) -> 0.115 | G30: =E30*F30 -> 9.05625 | H30: 0 | I30: 0 | J30: 0.06877215647 | K30: 0.06847705575
A31: Line Losses on Cost of Power (based on TOU prices) | B31: =B8-B4 -> 78.75 | C31: =VLOOKUP($B$3,'Data Billing Quantities'!$A:$O,MATCH(BI_R2_Typical!$A15,'Data Billing Quantities'!$4:$4,0),FALSE)*C15+VLOOKUP($B$3,'Data Billing Quantities'!$A:$O,MATCH(BI_R2_Typical!$A16,'Data Billing Quantities'!$4:$4,0),FALSE)*C16+VLOOKUP($B$3,'Data Billing Quantities'!$A:$O,MATCH(BI_R2_Typical!$A17,'Data Billing Quantities'!$4:$4,0),FALSE)*C17 -> 0.10342 | D31: =B31*C31 -> 8.144325 | E31: 78.75 | F31: =VLOOKUP($B$3,'Data Billing Quantities'!$A:$O,MATCH(BI_R2_Typical!$A15,'Data Billing Quantities'!$4:$4,0),FALSE)*F15+VLOOKUP($B$3,'Data Billing Quantities'!$A:$O,MATCH(BI_R2_Typical!$A16,'Data Billing Quantities'!$4:$4,0),FALSE)*F16+VLOOKUP($B$3,'Data Billing Quantities'!$A:$O,MATCH(BI_R2_Typical!$A17,'Data Billing Quantities'!$4:$4,0),FALSE)*F17 -> 0.10342 | G31: =E31*F31 -> 8.144325 | H31: 0 | I31: 0 | J31: 0.06184709932 | K31: 0.06158171396
A32: Sub-Total: Distribution (based on two-tier RPP prices) | D32: =SUM(D28,D29:D30) -> 43.60125 | G32: =SUM(G28,G29:G30) -> 46.48625 | H32: 2.885 | I32: 0.06616782776 | J32: 0.3530114185 | K32: 0.3514966496
A33: Sub-Total: Distribution (based on TOU prices) | D33: =SUM(D28,D29,D31) -> 42.689325 | G33: =SUM(G28,G29,G31) -> 45.574325 | H33: 2.885 | I33: 0.06758129813 | J33: 0.3460863613 | K33: 0.3446013078
A34: Retail Transmission Rate – Network Service Rate | B34: =B8 -> 828.75 | C34: =VLOOKUP($B$3,'Data Current Rates'!$A:$BE,MATCH(BI_R2_Typical!$A34,CurrentHeader,0),FALSE) -> 0.0077 | D34: =B34*C34 -> 6.381375 | E34: 828.75 | F34: =VLOOKUP($B$3,'Data Proposed Rates'!$A:$BC,MATCH(BI_R2_Typical!$A34,ProposedHeader,0),FALSE) -> 0.0096 | G34: =E34*F34 -> 7.956 | H34: =G34-D34 -> 1.574625 | I34: 0.2467532468 | J34: 0.06041698019 | K34: 0.06015773146
A35: Retail Transmission Rate – Line and Transformation Connection Service Rate | B35: =B8 -> 828.75 | C35: =VLOOKUP($B$3,'Data Current Rates'!$A:$BE,MATCH(BI_R2_Typical!$A35,CurrentHeader,0),FALSE) -> 0.0068 | D35: =B35*C35 -> 5.6355 | E35: 828.75 | F35: =VLOOKUP($B$3,'Data Proposed Rates'!$A:$BC,MATCH(BI_R2_Typical!$A35,ProposedHeader,0),FALSE) -> 0.0072 | G35: =E35*F35 -> 5.967 | H35: =G35-D35 -> 0.3315 | I35: 0.05882352941 | J35: 0.04531273515 | K35: 0.0451182986
A36: Sub-Total: Retail Transmission | D36: =SUM(D34:D35) -> 12.016875 | G36: =SUM(G34:G35) -> 13.923 | H36: =G36-D36 -> 1.906125 | I36: 0.1586206897 | J36: 0.1057297153 | K36: 0.1052760301
A37: Sub-Total: Delivery (based on two-tier RPP prices) | D37: =D32+D36 -> 55.618125 | G37: =G32+G36 -> 60.40925 | H37: =G37-D37 -> 4.791125 | I37: 0.08614323119 | J37: 0.4587411338 | K37: 0.4567726797
A38: Sub-Total: Delivery (based on TOU prices) | D38: =D33+D36 -> 54.7062 | G38: =G33+G36 -> 59.497325 | H38: =G38-D38 -> 4.791125 | I38: 0.08757919578 | J38: 0.4518160767 | K38: 0.4498773379
A39: Wholesale Market Service Rate (WMS) - not including CBR | B39: =B8 -> 828.75 | C39: =VLOOKUP($A39,'Data Pass Through'!$A:$D,2,FALSE) -> 0.003 | D39: =B39*C39 -> 2.48625 | E39: =$B$8 -> 828.75 | F39: =VLOOKUP($A39,'Data Pass Through'!$A:$D,3,FALSE) -> 0.003 | G39: =E39*F39 -> 2.48625 | H39: 0 | I39: 0 | J39: 0.01888030631 | K39: 0.01879929108
A40: Capacity Based Recovery (CBR) - Applicable for Class B Customers | B40: =B8 -> 828.75 | C40: =VLOOKUP($A40,'Data Pass Through'!$A:$D,2,FALSE) -> 0.0004 | D40: =B40*C40 -> 0.3315 | E40: =$B$8 -> 828.75 | F40: =VLOOKUP($A40,'Data Pass Through'!$A:$D,3,FALSE) -> 0.0004 | G40: =E40*F40 -> 0.3315 | H40: 0 | I40: 0 | J40: 0.002517374175 | K40: 0.002506572144
A41: Rural Rate Protection Charge | B41: =B8 -> 828.75 | C41: =VLOOKUP($A41,'Data Pass Through'!$A:$D,2,FALSE) -> 0.0005 | D41: 0.414375 | E41: 828.75 | F41: =VLOOKUP($A41,'Data Pass Through'!$A:$D,3,FALSE) -> 0.0005 | G41: 0.414375 | H41: 0 | I41: 0 | J41: 0.003146717718 | K41: 0.00313321518
A42: Standard Supply Service – Administration Charge (if applicable) | B42: 1 | C42: =VLOOKUP($A42,'Data Pass Through'!$A:$D,2,FALSE) -> 0.25 | D42: =B42*C42 -> 0.25 | E42: 1 | F42: =VLOOKUP($A42,'Data Pass Through'!$A:$D,3,FALSE) -> 0.25 | G42: 0.25 | H42: 0 | I42: 0 | J42: 0.001898472228 | K42: 0.001890325901
A43: Sub-Total: Regulatory | D43: =SUM(D39:D42) -> 3.482125 | G43: =SUM(G39:G42) -> 3.482125 | H43: 0 | I43: 0 | J43: 0.02644287043 | K43: 0.02632940431
A44: Debt Retirement Charge (DRC) | B44: =B4 -> 750 | C44: =VLOOKUP($A44,'Data Pass Through'!$A:$D,2,FALSE) -> 0 | D44: =B44*C44 -> 0 | E44: 750 | F44: =VLOOKUP($A44,'Data Pass Through'!$A:$D,3,FALSE) -> 0 | G44: =E44*F44 -> 0 | H44: 0 | I44: N/A | J44: 0 | K44: 0
A45: Total Electricty Charge on Two-Tier RPP | D45: =SUM(D14,D28,D29,D30,D36,D43,D44) -> 135.15025 | G45: =SUM(G14,G28,G29,G30,G36,G43,G44) -> 139.941375 | H45: 4.791125 | I45: 0.03545035988 | J45: 1.062699256
A46: HST | C46: 0.13 | D46: =D45*C46 -> 17.5695325 | F46: =C46 -> 0.13 | G46: =G45*F46 -> 18.19237875 | H46: 0.62284625 | I46: 0.03545035988 | J46: 0.1381509033
A47: Total Electricity Charge on Two-Tier RPP (including HST) | D47: =SUM(D45:D46) -> 152.7197825 | G47: =SUM(G45:G46) -> 158.1337537 | H47: 5.41397125 | I47: 0.03545035988 | J47: 1.200850159
A48: Ontario Electricity Rebate (OER) | C48: ='Data Pass Through'!B20 -> -0.189 | D48: =D45*C48 -> -25.54339725 | F48: ='Data Pass Through'!C20 -> -0.189 | G48: =G45*F48 -> -26.44891987 | H48: -0.905522625 | I48: -0.03545035988 | J48: -0.2008501594
A49: Total Amount on Two-Tier RPP | D49: =SUM(D47:D48) -> 127.1763853 | G49: =SUM(G47:G48) -> 131.6848339 | H49: 4.508448625 | I49: 0.03545035988 | J49: 1
A50: Total Electricty Charge on TOU (before HST) | D50: =SUM(D18,D28,D29,D31,D36,D43,D44) -> 135.753325 | G50: =SUM(G18,G28,G29,G31,G36,G43,G44) -> 140.54445 | H50: 4.791125 | I50: 0.03529287404 | K50: =G50/$G$54 -> 1.062699256
A51: HST | C51: 0.13 | D51: =D50*C51 -> 17.64793225 | F51: =C51 -> 0.13 | G51: =G50*F51 -> 18.2707785 | H51: 0.62284625 | I51: 0.03529287404 | K51: =G51/$G$54 -> 0.1381509033
A52: Total Electricity Charge on TOU (including HST) | D52: =SUM(D50:D51) -> 153.4012572 | G52: =SUM(G50:G51) -> 158.8152285 | H52: 5.41397125 | I52: 0.03529287404 | K52: =G52/$G$54 -> 1.200850159
A53: Ontario Electricity Rebate (OER) | C53: ='Data Pass Through'!B20 -> -0.189 | D53: =D50*C53 -> -25.65737842 | F53: ='Data Pass Through'!C20 -> -0.189 | G53: =G50*F53 -> -26.56290105 | H53: -0.905522625 | I53: -0.03529287404 | K53: =G53/$G$54 -> -0.2008501594
A54: Total Amount on TOU | D54: =SUM(D52:D53) -> 127.7438788 | G54: =SUM(G52:G53) -> 132.2523274 | H54: 4.508448625 | I54: 0.03529287404 | K54: =G54/$G$54 -> 1
A55: * Distribution rate protection applies to R1 and R2 customers

Sheet BI_R2_Avg
A1: 2022 Bill Impacts (Average Consumption Level) - R2
A3: Rate Class | B3: =RIGHT(A1,LEN(A1)-FIND("- ",A1,1)-1) -> R2
A4: Monthly Consumption (kWh) | B4: =IF(COUNTIF(A1,"*Low*")>0,VLOOKUP(B3,'Data Billing Quantities'!$A:$Z,MATCH("Low kWh",'Data Billing Quantities'!4:4,0),FALSE),IF(COUNTIF(A1,"*Typical*")>0,VLOOKUP(B3,'Data Billing Quantities'!$A:$Z,MATCH("Typical kWh",'Data Billing Quantities'!4:4,0),FALSE),IF(COUNTIF(A1,"*Average*")>0,VLOOKUP(B3,'Data Billing Quantities'!$A:$Z,MATCH("Average kWh",'Data Billing Quantities'!4:4,0),FALSE),IF(COUNTIF(A1,"*High*")>0,VLOOKUP(B3,'Data Billing Quantities'!$A:$Z,MATCH("High kWh",'Data Billing Quantities'!4:4,0),FALSE),"error")))) -> 1152
A5: Peak (kW) | B5: =IF(COUNTIF(A1,"*Low*")>0,VLOOKUP(B3,'Data Billing Quantities'!$A:$Z,MATCH("Low kW",'Data Billing Quantities'!4:4,0),FALSE),IF(COUNTIF(A1,"*Typical*")>0,VLOOKUP(B3,'Data Billing Quantities'!$A:$Z,MATCH("Typical kW",'Data Billing Quantities'!4:4,0),FALSE),IF(COUNTIF(A1,"*Average*")>0,VLOOKUP(B3,'Data Billing Quantities'!$A:$Z,MATCH("Average kW",'Data Billing Quantities'!4:4,0),FALSE),IF(COUNTIF(A1,"*High*")>0,VLOOKUP(B3,'Data Billing Quantities'!$A:$Z,MATCH("High kW",'Data Billing Quantities'!4:4,0),FALSE),"error")))) -> 0
A6: Loss factor | B6: =VLOOKUP(B3,'Data Billing Quantities'!A:D,MATCH(A6,'Data Billing Quantities'!4:4,0),FALSE) -> 1.105
A7: Commodity Threshold | B7: =VLOOKUP(B3,'Data Billing Quantities'!A:D,MATCH(A7,'Data Billing Quantities'!4:4,0),FALSE) -> 600
A8: Monthly Consumption (kWh) - Uplifted | B8: =B4*B6 -> 1272.96
A9: Charge determinant | B9: =VLOOKUP(B3,'Data Billing Quantities'!A:D,MATCH(A9,'Data Billing Quantities'!4:4,0),FALSE) -> kWh
B11: Volume | C11: Current Rate ($) | D11: Current Charge ($) | E11: Volume | F11: Proposed Rate ($) | G11: Proposed Charge ($) | H11: Change ($) | I11: Change (%) | J11: % of Total Bill on RPP | K11: % of Total Bill on TOU
A12: Energy First Tier | B12: =IF(B4>B7,B7,B4) -> 600 | C12: =VLOOKUP($A12,'Data Pass Through'!$A:$D,2,FALSE) -> 0.098 | D12: =B12*C12 -> 58.8 | E12: =B12 -> 600 | F12: =VLOOKUP($A12,'Data Pass Through'!$A:$D,3,FALSE) -> 0.098 | G12: =E12*F12 -> 58.8 | H12: =G12-D12 -> 0 | I12: =IF(ISERROR(H12/ABS(D12)),"N/A",(H12/ABS(D12))) -> 0 | J12: =G12/$G$49 -> 0.3120892345
A13: Energy Second Tier | B13: =IF(B4>B7,(B4)-B7,0) -> 552 | C13: =VLOOKUP($A13,'Data Pass Through'!$A:$D,2,FALSE) -> 0.115 | D13: =B13*C13 -> 63.48 | E13: =B13 -> 552 | F13: =VLOOKUP($A13,'Data Pass Through'!$A:$D,3,FALSE) -> 0.115 | G13: =E13*F13 -> 63.48 | H13: 0 | I13: 0 | J13: =G13/$G$49 -> 0.3369289899
A14: Sub-Total: Energy (RPP Tiered) | D14: =SUM(D12:D13) -> 122.28 | G14: =SUM(G12:G13) -> 122.28 | H14: 0 | I14: 0 | J14: =G14/$G$49 -> 0.6490182244
A15: TOU-Off Peak | B15: =B$4*VLOOKUP($B$3,'Data Billing Quantities'!$A:$O,MATCH(BI_R2_Avg!$A15,'Data Billing Quantities'!$4:$4,0),FALSE) -> 737.28 | C15: =VLOOKUP($A15,'Data Pass Through'!$A:$D,2,FALSE) -> 0.082 | D15: =B15*C15 -> 60.45696 | E15: 737.28 | F15: =VLOOKUP($A15,'Data Pass Through'!$A:$D,3,FALSE) -> 0.082 | G15: =E15*F15 -> 60.45696 | H15: 0 | I15: 0 | K15: =G15/$G$54 -> 0.3283300984
A16: TOU-Mid Peak | B16: =B$4*VLOOKUP($B$3,'Data Billing Quantities'!$A:$O,MATCH(BI_R2_Avg!$A16,'Data Billing Quantities'!$4:$4,0),FALSE) -> 207.36 | C16: =VLOOKUP($A16,'Data Pass Through'!$A:$D,2,FALSE) -> 0.113 | D16: =B16*C16 -> 23.43168 | E16: 207.36 | F16: =VLOOKUP($A16,'Data Pass Through'!$A:$D,3,FALSE) -> 0.113 | G16: =E16*F16 -> 23.43168 | H16: 0 | I16: 0 | K16: 0.1272529383
A17: TOU-On Peak | B17: =B$4*VLOOKUP($B$3,'Data Billing Quantities'!$A:$O,MATCH(BI_R2_Avg!$A17,'Data Billing Quantities'!$4:$4,0),FALSE) -> 207.36 | C17: =VLOOKUP($A17,'Data Pass Through'!$A:$D,2,FALSE) -> 0.17 | D17: =B17*C17 -> 35.2512 | E17: 207.36 | F17: =VLOOKUP($A17,'Data Pass Through'!$A:$D,3,FALSE) -> 0.17 | G17: =E17*F17 -> 35.2512 | H17: 0 | I17: 0 | K17: 0.1914424736
A18: Sub-Total: Energy (RPP TOU) | D18: =SUM(D15:D17) -> 119.13984 | G18: =SUM(G15:G17) -> 119.13984 | H18: 0 | I18: 0 | J18: =G18/$G$49 -> 0.6323513855 | K18: 0.6470255103
A19: Service Charge | B19: 1 | C19: =IF(ISERROR(VLOOKUP($B$3,'Data Current Rates'!$A:$BE,MATCH(BI_R2_Avg!$A19,CurrentHeader,0),FALSE)),0,VLOOKUP($B$3,'Data Current Rates'!$A:$BE,MATCH(BI_R2_Avg!$A19,CurrentHeader,0),FALSE)) -> 53.14 | D19: =B19*C19 -> 53.14 | E19: 1 | F19: =VLOOKUP($B$3,'Data Proposed Rates'!$A:$BC,MATCH(BI_R2_Avg!$A19,ProposedHeader,0),FALSE) -> 68.03 | G19: =E19*F19 -> 68.03 | H19: 14.89 | I19: 0.2802032367 | J19: 0.3610787521 | K19: 0.3694578192
A20: Base Rate Adjustment to Recover Past Tax Amounts FIXED | B20: 1 | C20: =IF(ISERROR(VLOOKUP($B$3,'Data Current Rates'!$A:$BE,MATCH(BI_R2_Avg!$A20,CurrentHeader,0),FALSE)),0,VLOOKUP($B$3,'Data Current Rates'!$A:$BE,MATCH(BI_R2_Avg!$A20,CurrentHeader,0),FALSE)) -> 4.42 | D20: 4.42 | E20: 1 | F20: =VLOOKUP($B$3,'Data Proposed Rates'!$A:$BC,MATCH(BI_R2_Avg!$A20,ProposedHeader,0),FALSE) -> 4.42 | G20: 4.42 | H20: 0 | I20: 0 | J20: 0.02345976899 | K20: 0.02400416817
A21: Fixed Deferral/Variance Account Rider (General) | B21: 1 | C21: =IF(ISERROR(VLOOKUP($B$3,'Data Current Rates'!$A:$BE,MATCH(BI_R2_Avg!$A21,CurrentHeader,0),FALSE)),0,VLOOKUP($B$3,'Data Current Rates'!$A:$BE,MATCH(BI_R2_Avg!$A21,CurrentHeader,0),FALSE)) -> -0.14 | D21: -0.14 | H21: 0.14 | I21: 1 | J21: 0 | K21: 0
A22: Fixed ESM Rider | B22: 1 | C22: =IF(ISERROR(VLOOKUP($B$3,'Data Current Rates'!$A:$BE,MATCH(BI_R2_Avg!$A22,CurrentHeader,0),FALSE)),0,VLOOKUP($B$3,'Data Current Rates'!$A:$BE,MATCH(BI_R2_Avg!$A22,CurrentHeader,0),FALSE)) -> -1.92 | D22: -1.92 | H22: 1.92 | I22: 1 | J22: 0 | K22: 0
A23: Distribution Volumetric Charge | B23: =IF($B$9="kWh",$B$4,$B$5) -> 1152 | C23: =IF(ISERROR(VLOOKUP($B$3,'Data Current Rates'!$A:$BE,MATCH(BI_R2_Avg!$A23,CurrentHeader,0),FALSE)),0,VLOOKUP($B$3,'Data Current Rates'!$A:$BE,MATCH(BI_R2_Avg!$A23,CurrentHeader,0),FALSE)) -> 0.0227 | D23: 26.1504 | E23: =IF($B$9="kWh",$B$4,$B$5) -> 1152 | F23: =VLOOKUP($B$3,'Data Proposed Rates'!$A:$BC,MATCH(BI_R2_Avg!$A23,ProposedHeader,0),FALSE) -> 0.016 | G23: 18.432 | H23: -7.7184 | I23: -0.295154185 | J23: 0.09783042127 | K23: 0.1001006398
A24: Base Rate Adjustment to Recover Past Tax Amounts VOL | B24: =IF($B$9="kWh",$B$4,$B$5) -> 1152 | C24: =IF(ISERROR(VLOOKUP($B$3,'Data Current Rates'!$A:$BE,MATCH(BI_R2_Avg!$A24,CurrentHeader,0),FALSE)),0,VLOOKUP($B$3,'Data Current Rates'!$A:$BE,MATCH(BI_R2_Avg!$A24,CurrentHeader,0),FALSE)) -> 0 | D24: 0 | E24: =IF($B$9="kWh",$B$4,$B$5) -> 1152 | F24: =VLOOKUP($B$3,'Data Proposed Rates'!$A:$BC,MATCH(BI_R2_Avg!$A24,ProposedHeader,0),FALSE) -> 0 | G24: 0 | H24: 0 | I24: N/A | J24: 0 | K24: 0
A25: Volumetric Deferral/Variance Account Rider (General) | B25: =IF($B$9="kWh",$B$4,$B$5) -> 1152 | C25: =IF(ISERROR(VLOOKUP($B$3,'Data Current Rates'!$A:$BE,MATCH(BI_R2_Avg!$A25,CurrentHeader,0),FALSE)),0,VLOOKUP($B$3,'Data Current Rates'!$A:$BE,MATCH(BI_R2_Avg!$A25,CurrentHeader,0),FALSE)) -> -0.0011 | D25: -1.2672 | H25: 1.2672 | I25: 1 | J25: 0 | K25: 0
A26: Volumetric ESM Rider | B26: 1152 | C26: =IF(ISERROR(VLOOKUP($B$3,'Data Current Rates'!$A:$BE,MATCH(BI_R2_Avg!$A26,CurrentHeader,0),FALSE)),0,VLOOKUP($B$3,'Data Current Rates'!$A:$BE,MATCH(BI_R2_Avg!$A26,CurrentHeader,0),FALSE)) -> 0 | D26: 0 | H26: 0 | I26: N/A | J26: 0 | K26: 0
A27: Fair Hydro Plan - Distribution Rate Protection Savings* | D27: =IF(AND(B3<>"R1",B3<>"R2"),0,IF(VLOOKUP($A27,'Data Pass Through'!$A:$D,2,FALSE)=0,0,IF(SUM(D19:D20,D23:D24)<VLOOKUP($A27,'Data Pass Through'!$A:$D,2,FALSE),0,VLOOKUP($A27,'Data Pass Through'!$A:$D,2,FALSE)-SUM(D19:D20,D23:D24)))) -> -46.8504 | G27: =IF(AND(B3<>"R1",B3<>"R2"),0,IF(VLOOKUP($A27,'Data Pass Through'!$A:$D,2,FALSE)=0,0,IF(SUM(G19:G20,G23:G24)<VLOOKUP($A27,'Data Pass Through'!$A:$D,2,FALSE),0,VLOOKUP($A27,'Data Pass Through'!$A:$D,2,FALSE)-SUM(G19:G20,G23:G24)))) -> -54.022 | H27: -7.1716 | I27: -0.1530744668 | J27: -0.2867293304 | K27: -0.2933830708
A28: Sub-Total: Distribution (excluding pass through) | D28: =SUM(INDIRECT("D19:D"&ROW()-1)) -> 33.5328 | G28: =SUM(INDIRECT("g19:g"&ROW()-1)) -> 36.86 | H28: =G28-D28 -> 3.3272 | I28: 0.09922225403 | J28: 0.195639612 | K28: 0.2001795563
A29: Smart Metering Entity Charge | B29: 1 | C29: =VLOOKUP($A29,'Data Pass Through'!$A:$D,2,FALSE) -> 0.57 | D29: =B29*C29 -> 0.57 | E29: 1 | F29: =VLOOKUP($A29,'Data Pass Through'!$A:$D,3,FALSE) -> 0.57 | G29: =E29*F29 -> 0.57 | H29: 0 | I29: 0 | J29: 0.003025354824 | K29: 0.003095560149
A30: Line Losses on Cost of Power (based on two-tier RPP prices) | B30: =B8-B4 -> 120.96 | C30: =IF(B4>B7,C13,C12) -> 0.115 | D30: =B30*C30 -> 13.9104 | E30: 120.96 | F30: =IF(B4>B7,F13,F12) -> 0.115 | G30: =E30*F30 -> 13.9104 | H30: 0 | I30: 0 | J30: 0.07383139605 | K30: 0.07554470157
A31: Line Losses on Cost of Power (based on TOU prices) | B31: =B8-B4 -> 120.96 | C31: =VLOOKUP($B$3,'Data Billing Quantities'!$A:$O,MATCH(BI_R2_Avg!$A15,'Data Billing Quantities'!$4:$4,0),FALSE)*C15+VLOOKUP($B$3,'Data Billing Quantities'!$A:$O,MATCH(BI_R2_Avg!$A16,'Data Billing Quantities'!$4:$4,0),FALSE)*C16+VLOOKUP($B$3,'Data Billing Quantities'!$A:$O,MATCH(BI_R2_Avg!$A17,'Data Billing Quantities'!$4:$4,0),FALSE)*C17 -> 0.10342 | D31: =B31*C31 -> 12.5096832 | E31: 120.96 | F31: =VLOOKUP($B$3,'Data Billing Quantities'!$A:$O,MATCH(BI_R2_Avg!$A15,'Data Billing Quantities'!$4:$4,0),FALSE)*F15+VLOOKUP($B$3,'Data Billing Quantities'!$A:$O,MATCH(BI_R2_Avg!$A16,'Data Billing Quantities'!$4:$4,0),FALSE)*F16+VLOOKUP($B$3,'Data Billing Quantities'!$A:$O,MATCH(BI_R2_Avg!$A17,'Data Billing Quantities'!$4:$4,0),FALSE)*F17 -> 0.10342 | G31: =E31*F31 -> 12.5096832 | H31: 0 | I31: 0 | J31: 0.06639689548 | K31: 0.06793767858
A32: Sub-Total: Distribution (based on two-tier RPP prices) | D32: =SUM(D28,D29:D30) -> 48.0132 | G32: =SUM(G28,G29:G30) -> 51.3404 | H32: 3.3272 | I32: 0.06929760982 | J32: 0.2724963629 | K32: 0.278819818
A33: Sub-Total: Distribution (based on TOU prices) | D33: =SUM(D28,D29,D31) -> 46.6124832 | G33: =SUM(G28,G29,G31) -> 49.9396832 | H33: 3.3272 | I33: 0.07138002036 | J33: 0.2650618623 | K33: 0.271212795
A34: Retail Transmission Rate – Network Service Rate | B34: =B8 -> 1272.96 | C34: =VLOOKUP($B$3,'Data Current Rates'!$A:$BE,MATCH(BI_R2_Avg!$A34,CurrentHeader,0),FALSE) -> 0.0077 | D34: =B34*C34 -> 9.801792 | E34: 1272.96 | F34: =VLOOKUP($B$3,'Data Proposed Rates'!$A:$BC,MATCH(BI_R2_Avg!$A34,ProposedHeader,0),FALSE) -> 0.0096 | G34: =E34*F34 -> 12.220416 | H34: =G34-D34 -> 2.418624 | I34: 0.2467532468 | J34: 0.0648615693 | K34: 0.06636672416
A35: Retail Transmission Rate – Line and Transformation Connection Service Rate | B35: =B8 -> 1272.96 | C35: =VLOOKUP($B$3,'Data Current Rates'!$A:$BE,MATCH(BI_R2_Avg!$A35,CurrentHeader,0),FALSE) -> 0.0068 | D35: =B35*C35 -> 8.656128 | E35: 1272.96 | F35: =VLOOKUP($B$3,'Data Proposed Rates'!$A:$BC,MATCH(BI_R2_Avg!$A35,ProposedHeader,0),FALSE) -> 0.0072 | G35: =E35*F35 -> 9.165312 | H35: =G35-D35 -> 0.509184 | I35: 0.05882352941 | J35: 0.04864617698 | K35: 0.04977504312
A36: Sub-Total: Retail Transmission | D36: =SUM(D34:D35) -> 18.45792 | G36: =SUM(G34:G35) -> 21.385728 | H36: =G36-D36 -> 2.927808 | I36: 0.1586206897 | J36: 0.1135077463 | K36: 0.1161417673
A37: Sub-Total: Delivery (based on two-tier RPP prices) | D37: =D32+D36 -> 66.47112 | G37: =G32+G36 -> 72.726128 | H37: =G37-D37 -> 6.255008 | I37: 0.09410113746 | J37: 0.3860041091 | K37: 0.3949615853
A38: Sub-Total: Delivery (based on TOU prices) | D38: =D33+D36 -> 65.0704032 | G38: =G33+G36 -> 71.3254112 | H38: =G38-D38 -> 6.255008 | I38: 0.09612677488 | J38: 0.3785696086 | K38: 0.3873545623
A39: Wholesale Market Service Rate (WMS) - not including CBR | B39: =B8 -> 1272.96 | C39: =VLOOKUP($A39,'Data Pass Through'!$A:$D,2,FALSE) -> 0.003 | D39: =B39*C39 -> 3.81888 | E39: =$B$8 -> 1272.96 | F39: =VLOOKUP($A39,'Data Pass Through'!$A:$D,3,FALSE) -> 0.003 | G39: =E39*F39 -> 3.81888 | H39: 0 | I39: 0 | J39: 0.02026924041 | K39: 0.0207396013
A40: Capacity Based Recovery (CBR) - Applicable for Class B Customers | B40: =B8 -> 1272.96 | C40: =VLOOKUP($A40,'Data Pass Through'!$A:$D,2,FALSE) -> 0.0004 | D40: =B40*C40 -> 0.509184 | E40: =$B$8 -> 1272.96 | F40: =VLOOKUP($A40,'Data Pass Through'!$A:$D,3,FALSE) -> 0.0004 | G40: =E40*F40 -> 0.509184 | H40: 0 | I40: 0 | J40: 0.002702565388 | K40: 0.002765280174
A41: Rural Rate Protection Charge | B41: =B8 -> 1272.96 | C41: =VLOOKUP($A41,'Data Pass Through'!$A:$D,2,FALSE) -> 0.0005 | D41: 0.63648 | E41: 1272.96 | F41: =VLOOKUP($A41,'Data Pass Through'!$A:$D,3,FALSE) -> 0.0005 | G41: 0.63648 | H41: 0 | I41: 0 | J41: 0.003378206734 | K41: 0.003456600217
A42: Standard Supply Service – Administration Charge (if applicable) | B42: 1 | C42: =VLOOKUP($A42,'Data Pass Through'!$A:$D,2,FALSE) -> 0.25 | D42: =B42*C42 -> 0.25 | E42: 1 | F42: =VLOOKUP($A42,'Data Pass Through'!$A:$D,3,FALSE) -> 0.25 | G42: 0.25 | H42: 0 | I42: 0 | J42: 0.001326910011 | K42: 0.00135770182
A43: Sub-Total: Regulatory | D43: =SUM(D39:D42) -> 5.214544 | G43: =SUM(G39:G42) -> 5.214544 | H43: 0 | I43: 0 | J43: 0.02767692254 | K43: 0.02831918351
A44: Debt Retirement Charge (DRC) | B44: =B4 -> 1152 | C44: =VLOOKUP($A44,'Data Pass Through'!$A:$D,2,FALSE) -> 0 | D44: =B44*C44 -> 0 | E44: 1152 | F44: =VLOOKUP($A44,'Data Pass Through'!$A:$D,3,FALSE) -> 0 | G44: =E44*F44 -> 0 | H44: 0 | I44: N/A | J44: 0 | K44: 0
A45: Total Electricty Charge on Two-Tier RPP | D45: =SUM(D14,D28,D29,D30,D36,D43,D44) -> 193.965664 | G45: =SUM(G14,G28,G29,G30,G36,G43,G44) -> 200.220672 | H45: 6.255008 | I45: 0.03224801684 | J45: 1.062699256
A46: HST | C46: 0.13 | D46: =D45*C46 -> 25.21553632 | F46: =C46 -> 0.13 | G46: =G45*F46 -> 26.02868736 | H46: 0.81315104 | I46: 0.03224801684 | J46: 0.1381509033
A47: Total Electricity Charge on Two-Tier RPP (including HST) | D47: =SUM(D45:D46) -> 219.1812003 | G47: =SUM(G45:G46) -> 226.2493594 | H47: 7.06815904 | I47: 0.03224801684 | J47: 1.200850159
A48: Ontario Electricity Rebate (OER) | C48: ='Data Pass Through'!B20 -> -0.189 | D48: =D45*C48 -> -36.6595105 | F48: ='Data Pass Through'!C20 -> -0.189 | G48: =G45*F48 -> -37.84170701 | H48: -1.182196512 | I48: -0.03224801684 | J48: -0.2008501594
A49: Total Amount on Two-Tier RPP | D49: =SUM(D47:D48) -> 182.5216898 | G49: =SUM(G47:G48) -> 188.4076524 | H49: 5.885962528 | I49: 0.03224801684 | J49: 1
A50: Total Electricty Charge on TOU (before HST) | D50: =SUM(D18,D28,D29,D31,D36,D43,D44) -> 189.4247872 | G50: =SUM(G18,G28,G29,G31,G36,G43,G44) -> 195.6797952 | H50: 6.255008 | I50: 0.03302106389 | K50: =G50/$G$54 -> 1.062699256
A51: HST | C51: 0.13 | D51: =D50*C51 -> 24.62522234 | F51: =C51 -> 0.13 | G51: =G50*F51 -> 25.43837338 | H51: 0.81315104 | I51: 0.03302106389 | K51: =G51/$G$54 -> 0.1381509033
A52: Total Electricity Charge on TOU (including HST) | D52: =SUM(D50:D51) -> 214.0500095 | G52: =SUM(G50:G51) -> 221.1181686 | H52: 7.06815904 | I52: 0.03302106389 | K52: =G52/$G$54 -> 1.200850159
A53: Ontario Electricity Rebate (OER) | C53: ='Data Pass Through'!B20 -> -0.189 | D53: =D50*C53 -> -35.80128478 | F53: ='Data Pass Through'!C20 -> -0.189 | G53: =G50*F53 -> -36.98348129 | H53: -1.182196512 | I53: -0.03302106389 | K53: =G53/$G$54 -> -0.2008501594
A54: Total Amount on TOU | D54: =SUM(D52:D53) -> 178.2487248 | G54: =SUM(G52:G53) -> 184.1346873 | H54: 5.885962528 | I54: 0.03302106389 | K54: =G54/$G$54 -> 1
A55: * Distribution rate protection applies to R1 and R2 customers

Sheet BI_R2_High
A1: 2022 Bill Impacts (High Consumption Level) - R2
A3: Rate Class | B3: =RIGHT(A1,LEN(A1)-FIND("- ",A1,1)-1) -> R2
A4: Monthly Consumption (kWh) | B4: =IF(COUNTIF(A1,"*Low*")>0,VLOOKUP(B3,'Data Billing Quantities'!$A:$Z,MATCH("Low kWh",'Data Billing Quantities'!4:4,0),FALSE),IF(COUNTIF(A1,"*Typical*")>0,VLOOKUP(B3,'Data Billing Quantities'!$A:$Z,MATCH("Typical kWh",'Data Billing Quantities'!4:4,0),FALSE),IF(COUNTIF(A1,"*Average*")>0,VLOOKUP(B3,'Data Billing Quantities'!$A:$Z,MATCH("Average kWh",'Data Billing Quantities'!4:4,0),FALSE),IF(COUNTIF(A1,"*High*")>0,VLOOKUP(B3,'Data Billing Quantities'!$A:$Z,MATCH("High kWh",'Data Billing Quantities'!4:4,0),FALSE),"error")))) -> 2300
A5: Peak (kW) | B5: =IF(COUNTIF(A1,"*Low*")>0,VLOOKUP(B3,'Data Billing Quantities'!$A:$Z,MATCH("Low kW",'Data Billing Quantities'!4:4,0),FALSE),IF(COUNTIF(A1,"*Typical*")>0,VLOOKUP(B3,'Data Billing Quantities'!$A:$Z,MATCH("Typical kW",'Data Billing Quantities'!4:4,0),FALSE),IF(COUNTIF(A1,"*Average*")>0,VLOOKUP(B3,'Data Billing Quantities'!$A:$Z,MATCH("Average kW",'Data Billing Quantities'!4:4,0),FALSE),IF(COUNTIF(A1,"*High*")>0,VLOOKUP(B3,'Data Billing Quantities'!$A:$Z,MATCH("High kW",'Data Billing Quantities'!4:4,0),FALSE),"error")))) -> 0
A6: Loss factor | B6: =VLOOKUP(B3,'Data Billing Quantities'!A:D,MATCH(A6,'Data Billing Quantities'!4:4,0),FALSE) -> 1.105
A7: Commodity Threshold | B7: =VLOOKUP(B3,'Data Billing Quantities'!A:D,MATCH(A7,'Data Billing Quantities'!4:4,0),FALSE) -> 600
A8: Monthly Consumption (kWh) - Uplifted | B8: =B4*B6 -> 2541.5
A9: Charge determinant | B9: =VLOOKUP(B3,'Data Billing Quantities'!A:D,MATCH(A9,'Data Billing Quantities'!4:4,0),FALSE) -> kWh
B11: Volume | C11: Current Rate ($) | D11: Current Charge ($) | E11: Volume | F11: Proposed Rate ($) | G11: Proposed Charge ($) | H11: Change ($) | I11: Change (%) | J11: % of Total Bill on RPP | K11: % of Total Bill on TOU
A12: Energy First Tier | B12: =IF(B4>B7,B7,B4) -> 600 | C12: =VLOOKUP($A12,'Data Pass Through'!$A:$D,2,FALSE) -> 0.098 | D12: =B12*C12 -> 58.8 | E12: =B12 -> 600 | F12: =VLOOKUP($A12,'Data Pass Through'!$A:$D,3,FALSE) -> 0.098 | G12: =E12*F12 -> 58.8 | H12: =G12-D12 -> 0 | I12: =IF(ISERROR(H12/ABS(D12)),"N/A",(H12/ABS(D12))) -> 0 | J12: =G12/$G$49 -> 0.1678119458
A13: Energy Second Tier | B13: =IF(B4>B7,(B4)-B7,0) -> 1700 | C13: =VLOOKUP($A13,'Data Pass Through'!$A:$D,2,FALSE) -> 0.115 | D13: =B13*C13 -> 195.5 | E13: =B13 -> 1700 | F13: =VLOOKUP($A13,'Data Pass Through'!$A:$D,3,FALSE) -> 0.115 | G13: =E13*F13 -> 195.5 | H13: 0 | I13: 0 | J13: =G13/$G$49 -> 0.5579461805
A14: Sub-Total: Energy (RPP Tiered) | D14: =SUM(D12:D13) -> 254.3 | G14: =SUM(G12:G13) -> 254.3 | H14: 0 | I14: 0 | J14: =G14/$G$49 -> 0.7257581263
A15: TOU-Off Peak | B15: =B$4*VLOOKUP($B$3,'Data Billing Quantities'!$A:$O,MATCH(BI_R2_High!$A15,'Data Billing Quantities'!$4:$4,0),FALSE) -> 1472 | C15: =VLOOKUP($A15,'Data Pass Through'!$A:$D,2,FALSE) -> 0.082 | D15: =B15*C15 -> 120.704 | E15: 1472 | F15: =VLOOKUP($A15,'Data Pass Through'!$A:$D,3,FALSE) -> 0.082 | G15: =E15*F15 -> 120.704 | H15: 0 | I15: 0 | K15: =G15/$G$54 -> 0.3632421347
A16: TOU-Mid Peak | B16: =B$4*VLOOKUP($B$3,'Data Billing Quantities'!$A:$O,MATCH(BI_R2_High!$A16,'Data Billing Quantities'!$4:$4,0),FALSE) -> 414 | C16: =VLOOKUP($A16,'Data Pass Through'!$A:$D,2,FALSE) -> 0.113 | D16: =B16*C16 -> 46.782 | E16: 414 | F16: =VLOOKUP($A16,'Data Pass Through'!$A:$D,3,FALSE) -> 0.113 | G16: =E16*F16 -> 46.782 | H16: 0 | I16: 0 | K16: 0.1407840133
A17: TOU-On Peak | B17: =B$4*VLOOKUP($B$3,'Data Billing Quantities'!$A:$O,MATCH(BI_R2_High!$A17,'Data Billing Quantities'!$4:$4,0),FALSE) -> 414 | C17: =VLOOKUP($A17,'Data Pass Through'!$A:$D,2,FALSE) -> 0.17 | D17: =B17*C17 -> 70.38 | E17: 414 | F17: =VLOOKUP($A17,'Data Pass Through'!$A:$D,3,FALSE) -> 0.17 | G17: =E17*F17 -> 70.38 | H17: 0 | I17: 0 | K17: 0.2117989581
A18: Sub-Total: Energy (RPP TOU) | D18: =SUM(D15:D17) -> 237.866 | G18: =SUM(G15:G17) -> 237.866 | H18: 0 | I18: 0 | J18: =G18/$G$49 -> 0.6788563998 | K18: 0.7158251062
A19: Service Charge | B19: 1 | C19: =IF(ISERROR(VLOOKUP($B$3,'Data Current Rates'!$A:$BE,MATCH(BI_R2_High!$A19,CurrentHeader,0),FALSE)),0,VLOOKUP($B$3,'Data Current Rates'!$A:$BE,MATCH(BI_R2_High!$A19,CurrentHeader,0),FALSE)) -> 53.14 | D19: =B19*C19 -> 53.14 | E19: 1 | F19: =VLOOKUP($B$3,'Data Proposed Rates'!$A:$BC,MATCH(BI_R2_High!$A19,ProposedHeader,0),FALSE) -> 68.03 | G19: =E19*F19 -> 68.03 | H19: 14.89 | I19: 0.2802032367 | J19: 0.194153855 | K19: 0.2047269554
A20: Base Rate Adjustment to Recover Past Tax Amounts FIXED | B20: 1 | C20: =IF(ISERROR(VLOOKUP($B$3,'Data Current Rates'!$A:$BE,MATCH(BI_R2_High!$A20,CurrentHeader,0),FALSE)),0,VLOOKUP($B$3,'Data Current Rates'!$A:$BE,MATCH(BI_R2_High!$A20,CurrentHeader,0),FALSE)) -> 4.42 | D20: 4.42 | E20: 1 | F20: =VLOOKUP($B$3,'Data Proposed Rates'!$A:$BC,MATCH(BI_R2_High!$A20,ProposedHeader,0),FALSE) -> 4.42 | G20: 4.42 | H20: 0 | I20: 0 | J20: 0.01261443538 | K20: 0.01330138384
A21: Fixed Deferral/Variance Account Rider (General) | B21: 1 | C21: =IF(ISERROR(VLOOKUP($B$3,'Data Current Rates'!$A:$BE,MATCH(BI_R2_High!$A21,CurrentHeader,0),FALSE)),0,VLOOKUP($B$3,'Data Current Rates'!$A:$BE,MATCH(BI_R2_High!$A21,CurrentHeader,0),FALSE)) -> -0.14 | D21: -0.14 | H21: 0.14 | I21: 1 | J21: 0 | K21: 0
A22: Fixed ESM Rider | B22: 1 | C22: =IF(ISERROR(VLOOKUP($B$3,'Data Current Rates'!$A:$BE,MATCH(BI_R2_High!$A22,CurrentHeader,0),FALSE)),0,VLOOKUP($B$3,'Data Current Rates'!$A:$BE,MATCH(BI_R2_High!$A22,CurrentHeader,0),FALSE)) -> -1.92 | D22: -1.92 | H22: 1.92 | I22: 1 | J22: 0 | K22: 0
A23: Distribution Volumetric Charge | B23: =IF($B$9="kWh",$B$4,$B$5) -> 2300 | C23: =IF(ISERROR(VLOOKUP($B$3,'Data Current Rates'!$A:$BE,MATCH(BI_R2_High!$A23,CurrentHeader,0),FALSE)),0,VLOOKUP($B$3,'Data Current Rates'!$A:$BE,MATCH(BI_R2_High!$A23,CurrentHeader,0),FALSE)) -> 0.0227 | D23: 52.21 | E23: =IF($B$9="kWh",$B$4,$B$5) -> 2300 | F23: =VLOOKUP($B$3,'Data Proposed Rates'!$A:$BC,MATCH(BI_R2_High!$A23,ProposedHeader,0),FALSE) -> 0.016 | G23: 36.8 | H23: -15.41 | I23: -0.295154185 | J23: 0.1050251634 | K23: 0.1107445533
A24: Base Rate Adjustment to Recover Past Tax Amounts VOL | B24: =IF($B$9="kWh",$B$4,$B$5) -> 2300 | C24: =IF(ISERROR(VLOOKUP($B$3,'Data Current Rates'!$A:$BE,MATCH(BI_R2_High!$A24,CurrentHeader,0),FALSE)),0,VLOOKUP($B$3,'Data Current Rates'!$A:$BE,MATCH(BI_R2_High!$A24,CurrentHeader,0),FALSE)) -> 0 | D24: 0 | E24: =IF($B$9="kWh",$B$4,$B$5) -> 2300 | F24: =VLOOKUP($B$3,'Data Proposed Rates'!$A:$BC,MATCH(BI_R2_High!$A24,ProposedHeader,0),FALSE) -> 0 | G24: 0 | H24: 0 | I24: N/A | J24: 0 | K24: 0
A25: Volumetric Deferral/Variance Account Rider (General) | B25: =IF($B$9="kWh",$B$4,$B$5) -> 2300 | C25: =IF(ISERROR(VLOOKUP($B$3,'Data Current Rates'!$A:$BE,MATCH(BI_R2_High!$A25,CurrentHeader,0),FALSE)),0,VLOOKUP($B$3,'Data Current Rates'!$A:$BE,MATCH(BI_R2_High!$A25,CurrentHeader,0),FALSE)) -> -0.0011 | D25: -2.53 | H25: 2.53 | I25: 1 | J25: 0 | K25: 0
A26: Volumetric ESM Rider | B26: 2300 | C26: =IF(ISERROR(VLOOKUP($B$3,'Data Current Rates'!$A:$BE,MATCH(BI_R2_High!$A26,CurrentHeader,0),FALSE)),0,VLOOKUP($B$3,'Data Current Rates'!$A:$BE,MATCH(BI_R2_High!$A26,CurrentHeader,0),FALSE)) -> 0 | D26: 0 | H26: 0 | I26: N/A | J26: 0 | K26: 0
A27: Fair Hydro Plan - Distribution Rate Protection Savings* | D27: =IF(AND(B3<>"R1",B3<>"R2"),0,IF(VLOOKUP($A27,'Data Pass Through'!$A:$D,2,FALSE)=0,0,IF(SUM(D19:D20,D23:D24)<VLOOKUP($A27,'Data Pass Through'!$A:$D,2,FALSE),0,VLOOKUP($A27,'Data Pass Through'!$A:$D,2,FALSE)-SUM(D19:D20,D23:D24)))) -> -72.91 | G27: =IF(AND(B3<>"R1",B3<>"R2"),0,IF(VLOOKUP($A27,'Data Pass Through'!$A:$D,2,FALSE)=0,0,IF(SUM(G19:G20,G23:G24)<VLOOKUP($A27,'Data Pass Through'!$A:$D,2,FALSE),0,VLOOKUP($A27,'Data Pass Through'!$A:$D,2,FALSE)-SUM(G19:G20,G23:G24)))) -> -72.39 | H27: 0.52 | I27: 0.007132080647 | J27: -0.2065970537 | K27: -0.2178477775
A28: Sub-Total: Distribution (excluding pass through) | D28: =SUM(INDIRECT("D19:D"&ROW()-1)) -> 32.27 | G28: =SUM(INDIRECT("g19:g"&ROW()-1)) -> 36.86 | H28: =G28-D28 -> 4.59 | I28: 0.1422373722 | J28: 0.1051964001 | K28: 0.110925115
A29: Smart Metering Entity Charge | B29: 1 | C29: =VLOOKUP($A29,'Data Pass Through'!$A:$D,2,FALSE) -> 0.57 | D29: =B29*C29 -> 0.57 | E29: 1 | F29: =VLOOKUP($A29,'Data Pass Through'!$A:$D,3,FALSE) -> 0.57 | G29: =E29*F29 -> 0.57 | H29: 0 | I29: 0 | J29: 0.001626748455 | K29: 0.00171533683
A30: Line Losses on Cost of Power (based on two-tier RPP prices) | B30: =B8-B4 -> 241.5 | C30: =IF(B4>B7,C13,C12) -> 0.115 | D30: =B30*C30 -> 27.7725 | E30: 241.5 | F30: =IF(B4>B7,F13,F12) -> 0.115 | G30: =E30*F30 -> 27.7725 | H30: 0 | I30: 0 | J30: 0.07926117799 | K30: 0.08357753004
A31: Line Losses on Cost of Power (based on TOU prices) | B31: =B8-B4 -> 241.5 | C31: =VLOOKUP($B$3,'Data Billing Quantities'!$A:$O,MATCH(BI_R2_High!$A15,'Data Billing Quantities'!$4:$4,0),FALSE)*C15+VLOOKUP($B$3,'Data Billing Quantities'!$A:$O,MATCH(BI_R2_High!$A16,'Data Billing Quantities'!$4:$4,0),FALSE)*C16+VLOOKUP($B$3,'Data Billing Quantities'!$A:$O,MATCH(BI_R2_High!$A17,'Data Billing Quantities'!$4:$4,0),FALSE)*C17 -> 0.10342 | D31: =B31*C31 -> 24.97593 | E31: 241.5 | F31: =VLOOKUP($B$3,'Data Billing Quantities'!$A:$O,MATCH(BI_R2_High!$A15,'Data Billing Quantities'!$4:$4,0),FALSE)*F15+VLOOKUP($B$3,'Data Billing Quantities'!$A:$O,MATCH(BI_R2_High!$A16,'Data Billing Quantities'!$4:$4,0),FALSE)*F16+VLOOKUP($B$3,'Data Billing Quantities'!$A:$O,MATCH(BI_R2_High!$A17,'Data Billing Quantities'!$4:$4,0),FALSE)*F17 -> 0.10342 | G31: =E31*F31 -> 24.97593 | H31: 0 | I31: 0 | J31: 0.07127992198 | K31: 0.07516163615
A32: Sub-Total: Distribution (based on two-tier RPP prices) | D32: =SUM(D28,D29:D30) -> 60.6125 | G32: =SUM(G28,G29:G30) -> 65.2025 | H32: 4.59 | I32: 0.07572695401 | J32: 0.1860843265 | K32: 0.1962179819
A33: Sub-Total: Distribution (based on TOU prices) | D33: =SUM(D28,D29,D31) -> 57.81593 | G33: =SUM(G28,G29,G31) -> 62.40593 | H33: 4.59 | I33: 0.07938988441 | J33: 0.1781030705 | K33: 0.187802088
A34: Retail Transmission Rate – Network Service Rate | B34: =B8 -> 2541.5 | C34: =VLOOKUP($B$3,'Data Current Rates'!$A:$BE,MATCH(BI_R2_High!$A34,CurrentHeader,0),FALSE) -> 0.0077 | D34: =B34*C34 -> 19.56955 | E34: 2541.5 | F34: =VLOOKUP($B$3,'Data Proposed Rates'!$A:$BC,MATCH(BI_R2_High!$A34,ProposedHeader,0),FALSE) -> 0.0096 | G34: =E34*F34 -> 24.3984 | H34: =G34-D34 -> 4.82885 | I34: 0.2467532468 | J34: 0.06963168332 | K34: 0.07342363882
A35: Retail Transmission Rate – Line and Transformation Connection Service Rate | B35: =B8 -> 2541.5 | C35: =VLOOKUP($B$3,'Data Current Rates'!$A:$BE,MATCH(BI_R2_High!$A35,CurrentHeader,0),FALSE) -> 0.0068 | D35: =B35*C35 -> 17.2822 | E35: 2541.5 | F35: =VLOOKUP($B$3,'Data Proposed Rates'!$A:$BC,MATCH(BI_R2_High!$A35,ProposedHeader,0),FALSE) -> 0.0072 | G35: =E35*F35 -> 18.2988 | H35: =G35-D35 -> 1.0166 | I35: 0.05882352941 | J35: 0.05222376249 | K35: 0.05506772911
A36: Sub-Total: Retail Transmission | D36: =SUM(D34:D35) -> 36.85175 | G36: =SUM(G34:G35) -> 42.6972 | H36: =G36-D36 -> 5.84545 | I36: 0.1586206897 | J36: 0.1218554458 | K36: 0.1284913679
A37: Sub-Total: Delivery (based on two-tier RPP prices) | D37: =D32+D36 -> 97.46425 | G37: =G32+G36 -> 107.8997 | H37: =G37-D37 -> 10.43545 | I37: 0.1070695152 | J37: 0.3079397723 | K37: 0.3247093498
A38: Sub-Total: Delivery (based on TOU prices) | D38: =D33+D36 -> 94.66768 | G38: =G33+G36 -> 105.10313 | H38: =G38-D38 -> 10.43545 | I38: 0.1102324468 | J38: 0.2999585163 | K38: 0.3162934559
A39: Wholesale Market Service Rate (WMS) - not including CBR | B39: =B8 -> 2541.5 | C39: =VLOOKUP($A39,'Data Pass Through'!$A:$D,2,FALSE) -> 0.003 | D39: =B39*C39 -> 7.6245 | E39: =$B$8 -> 2541.5 | F39: =VLOOKUP($A39,'Data Pass Through'!$A:$D,3,FALSE) -> 0.003 | G39: =E39*F39 -> 7.6245 | H39: 0 | I39: 0 | J39: 0.02175990104 | K39: 0.02294488713
A40: Capacity Based Recovery (CBR) - Applicable for Class B Customers | B40: =B8 -> 2541.5 | C40: =VLOOKUP($A40,'Data Pass Through'!$A:$D,2,FALSE) -> 0.0004 | D40: =B40*C40 -> 1.0166 | E40: =$B$8 -> 2541.5 | F40: =VLOOKUP($A40,'Data Pass Through'!$A:$D,3,FALSE) -> 0.0004 | G40: =E40*F40 -> 1.0166 | H40: 0 | I40: 0 | J40: 0.002901320138 | K40: 0.003059318284
A41: Rural Rate Protection Charge | B41: =B8 -> 2541.5 | C41: =VLOOKUP($A41,'Data Pass Through'!$A:$D,2,FALSE) -> 0.0005 | D41: 1.27075 | E41: 2541.5 | F41: =VLOOKUP($A41,'Data Pass Through'!$A:$D,3,FALSE) -> 0.0005 | G41: 1.27075 | H41: 0 | I41: 0 | J41: 0.003626650173 | K41: 0.003824147855
A42: Standard Supply Service – Administration Charge (if applicable) | B42: 1 | C42: =VLOOKUP($A42,'Data Pass Through'!$A:$D,2,FALSE) -> 0.25 | D42: =B42*C42 -> 0.25 | E42: 1 | F42: =VLOOKUP($A42,'Data Pass Through'!$A:$D,3,FALSE) -> 0.25 | G42: 0.25 | H42: 0 | I42: 0 | J42: 0.0007134861643 | K42: 0.0007523407151
A43: Sub-Total: Regulatory | D43: =SUM(D39:D42) -> 10.16185 | G43: =SUM(G39:G42) -> 10.16185 | H43: 0 | I43: 0 | J43: 0.02900135751 | K43: 0.03058069398
A44: Debt Retirement Charge (DRC) | B44: =B4 -> 2300 | C44: =VLOOKUP($A44,'Data Pass Through'!$A:$D,2,FALSE) -> 0 | D44: =B44*C44 -> 0 | E44: 2300 | F44: =VLOOKUP($A44,'Data Pass Through'!$A:$D,3,FALSE) -> 0 | G44: =E44*F44 -> 0 | H44: 0 | I44: N/A | J44: 0 | K44: 0
A45: Total Electricty Charge on Two-Tier RPP | D45: =SUM(D14,D28,D29,D30,D36,D43,D44) -> 361.9261 | G45: =SUM(G14,G28,G29,G30,G36,G43,G44) -> 372.36155 | H45: 10.43545 | I45: 0.02883309604 | J45: 1.062699256
A46: HST | C46: 0.13 | D46: =D45*C46 -> 47.050393 | F46: =C46 -> 0.13 | G46: =G45*F46 -> 48.4070015 | H46: 1.3566085 | I46: 0.02883309604 | J46: 0.1381509033
A47: Total Electricity Charge on Two-Tier RPP (including HST) | D47: =SUM(D45:D46) -> 408.976493 | G47: =SUM(G45:G46) -> 420.7685515 | H47: 11.7920585 | I47: 0.02883309604 | J47: 1.200850159
A48: Ontario Electricity Rebate (OER) | C48: ='Data Pass Through'!B20 -> -0.189 | D48: =D45*C48 -> -68.4040329 | F48: ='Data Pass Through'!C20 -> -0.189 | G48: =G45*F48 -> -70.37633295 | H48: -1.97230005 | I48: -0.02883309604 | J48: -0.2008501594
A49: Total Amount on Two-Tier RPP | D49: =SUM(D47:D48) -> 340.5724601 | G49: =SUM(G47:G48) -> 350.3922186 | H49: 9.81975845 | I49: 0.02883309604 | J49: 1
A50: Total Electricty Charge on TOU (before HST) | D50: =SUM(D18,D28,D29,D31,D36,D43,D44) -> 342.69553 | G50: =SUM(G18,G28,G29,G31,G36,G43,G44) -> 353.13098 | H50: 10.43545 | I50: 0.03045108292 | K50: =G50/$G$54 -> 1.062699256
A51: HST | C51: 0.13 | D51: =D50*C51 -> 44.5504189 | F51: =C51 -> 0.13 | G51: =G50*F51 -> 45.9070274 | H51: 1.3566085 | I51: 0.03045108292 | K51: =G51/$G$54 -> 0.1381509033
A52: Total Electricity Charge on TOU (including HST) | D52: =SUM(D50:D51) -> 387.2459489 | G52: =SUM(G50:G51) -> 399.0380074 | H52: 11.7920585 | I52: 0.03045108292 | K52: =G52/$G$54 -> 1.200850159
A53: Ontario Electricity Rebate (OER) | C53: ='Data Pass Through'!B20 -> -0.189 | D53: =D50*C53 -> -64.76945517 | F53: ='Data Pass Through'!C20 -> -0.189 | G53: =G50*F53 -> -66.74175522 | H53: -1.97230005 | I53: -0.03045108292 | K53: =G53/$G$54 -> -0.2008501594
A54: Total Amount on TOU | D54: =SUM(D52:D53) -> 322.4764937 | G54: =SUM(G52:G53) -> 332.2962522 | H54: 9.81975845 | I54: 0.03045108292 | K54: =G54/$G$54 -> 1
A55: * Distribution rate protection applies to R1 and R2 customers

Sheet BI_Seas_Low
A1: 2022 Bill Impacts (Low Consumption Level) - Seasonal
A3: Rate Class | B3: =RIGHT(A1,LEN(A1)-FIND("- ",A1,1)-1) -> Seasonal
A4: Monthly Consumption (kWh) | B4: =IF(COUNTIF(A1,"*Low*")>0,VLOOKUP(B3,'Data Billing Quantities'!$A:$Z,MATCH("Low kWh",'Data Billing Quantities'!4:4,0),FALSE),IF(COUNTIF(A1,"*Typical*")>0,VLOOKUP(B3,'Data Billing Quantities'!$A:$Z,MATCH("Typical kWh",'Data Billing Quantities'!4:4,0),FALSE),IF(COUNTIF(A1,"*Average*")>0,VLOOKUP(B3,'Data Billing Quantities'!$A:$Z,MATCH("Average kWh",'Data Billing Quantities'!4:4,0),FALSE),IF(COUNTIF(A1,"*High*")>0,VLOOKUP(B3,'Data Billing Quantities'!$A:$Z,MATCH("High kWh",'Data Billing Quantities'!4:4,0),FALSE),"error")))) -> 50
A5: Peak (kW) | B5: =IF(COUNTIF(A1,"*Low*")>0,VLOOKUP(B3,'Data Billing Quantities'!$A:$Z,MATCH("Low kW",'Data Billing Quantities'!4:4,0),FALSE),IF(COUNTIF(A1,"*Typical*")>0,VLOOKUP(B3,'Data Billing Quantities'!$A:$Z,MATCH("Typical kW",'Data Billing Quantities'!4:4,0),FALSE),IF(COUNTIF(A1,"*Average*")>0,VLOOKUP(B3,'Data Billing Quantities'!$A:$Z,MATCH("Average kW",'Data Billing Quantities'!4:4,0),FALSE),IF(COUNTIF(A1,"*High*")>0,VLOOKUP(B3,'Data Billing Quantities'!$A:$Z,MATCH("High kW",'Data Billing Quantities'!4:4,0),FALSE),"error")))) -> 0
A6: Loss factor | B6: =VLOOKUP(B3,'Data Billing Quantities'!A:D,MATCH(A6,'Data Billing Quantities'!4:4,0),FALSE) -> 1.104
A7: Commodity Threshold | B7: =VLOOKUP(B3,'Data Billing Quantities'!A:D,MATCH(A7,'Data Billing Quantities'!4:4,0),FALSE) -> 600
A8: Monthly Consumption (kWh) - Uplifted | B8: =B4*B6 -> 55.2
A9: Charge determinant | B9: =VLOOKUP(B3,'Data Billing Quantities'!A:D,MATCH(A9,'Data Billing Quantities'!4:4,0),FALSE) -> kWh
B11: Volume | C11: Current Rate ($) | D11: Current Charge ($) | E11: Volume | F11: Proposed Rate ($) | G11: Proposed Charge ($) | H11: Change ($) | I11: Change (%) | J11: % of Total Bill on RPP | K11: % of Total Bill on TOU
A12: Energy First Tier | B12: =IF(B4>B7,B7,B4) -> 50 | C12: =VLOOKUP($A12,'Data Pass Through'!$A:$D,2,FALSE) -> 0.098 | D12: =B12*C12 -> 4.9 | E12: =B12 -> 50 | F12: =VLOOKUP($A12,'Data Pass Through'!$A:$D,3,FALSE) -> 0.098 | G12: =E12*F12 -> 4.9 | H12: =G12-D12 -> 0 | I12: =IF(ISERROR(H12/ABS(D12)),"N/A",(H12/ABS(D12))) -> 0 | J12: =G12/$G$49 -> 0.07544487439
A13: Energy Second Tier | B13: =IF(B4>B7,(B4)-B7,0) -> 0 | C13: =VLOOKUP($A13,'Data Pass Through'!$A:$D,2,FALSE) -> 0.115 | D13: =B13*C13 -> 0 | E13: =B13 -> 0 | F13: =VLOOKUP($A13,'Data Pass Through'!$A:$D,3,FALSE) -> 0.115 | G13: =E13*F13 -> 0 | H13: 0 | I13: N/A | J13: =G13/$G$49 -> 0
A14: Sub-Total: Energy (RPP Tiered) | D14: =SUM(D12:D13) -> 4.9 | G14: =SUM(G12:G13) -> 4.9 | H14: 0 | I14: 0 | J14: =G14/$G$49 -> 0.07544487439
A15: TOU-Off Peak | B15: =B$4*VLOOKUP($B$3,'Data Billing Quantities'!$A:$O,MATCH(BI_Seas_Low!$A15,'Data Billing Quantities'!$4:$4,0),FALSE) -> 32 | C15: =VLOOKUP($A15,'Data Pass Through'!$A:$D,2,FALSE) -> 0.082 | D15: =B15*C15 -> 2.624 | E15: 32 | F15: =VLOOKUP($A15,'Data Pass Through'!$A:$D,3,FALSE) -> 0.082 | G15: =E15*F15 -> 2.624 | H15: 0 | I15: 0 | K15: =G15/$G$54 -> 0.04022712651
A16: TOU-Mid Peak | B16: =B$4*VLOOKUP($B$3,'Data Billing Quantities'!$A:$O,MATCH(BI_Seas_Low!$A16,'Data Billing Quantities'!$4:$4,0),FALSE) -> 9 | C16: =VLOOKUP($A16,'Data Pass Through'!$A:$D,2,FALSE) -> 0.113 | D16: =B16*C16 -> 1.017 | E16: 9 | F16: =VLOOKUP($A16,'Data Pass Through'!$A:$D,3,FALSE) -> 0.113 | G16: =E16*F16 -> 1.017 | H16: 0 | I16: 0 | K16: 0.01559107762
A17: TOU-On Peak | B17: =B$4*VLOOKUP($B$3,'Data Billing Quantities'!$A:$O,MATCH(BI_Seas_Low!$A17,'Data Billing Quantities'!$4:$4,0),FALSE) -> 9 | C17: =VLOOKUP($A17,'Data Pass Through'!$A:$D,2,FALSE) -> 0.17 | D17: =B17*C17 -> 1.53 | E17: 9 | F17: =VLOOKUP($A17,'Data Pass Through'!$A:$D,3,FALSE) -> 0.17 | G17: =E17*F17 -> 1.53 | H17: 0 | I17: 0 | K17: 0.02345560349
A18: Sub-Total: Energy (RPP TOU) | D18: =SUM(D15:D17) -> 5.171 | G18: =SUM(G15:G17) -> 5.171 | H18: 0 | I18: 0 | J18: =G18/$G$49 -> 0.07961743785 | K18: 0.07927380762
A19: Service Charge | B19: 1 | C19: =IF(ISERROR(VLOOKUP($B$3,'Data Current Rates'!$A:$BE,MATCH(BI_Seas_Low!$A19,CurrentHeader,0),FALSE)),0,VLOOKUP($B$3,'Data Current Rates'!$A:$BE,MATCH(BI_Seas_Low!$A19,CurrentHeader,0),FALSE)) -> 50.72 | D19: =B19*C19 -> 50.72 | E19: 1 | F19: =VLOOKUP($B$3,'Data Proposed Rates'!$A:$BC,MATCH(BI_Seas_Low!$A19,ProposedHeader,0),FALSE) -> 58.43 | G19: =E19*F19 -> 58.43 | H19: 7.71 | I19: 0.152011041 | J19: 0.8996416348 | K19: 0.895758766
A20: Base Rate Adjustment to Recover Past Tax Amounts FIXED | B20: 1 | C20: =IF(ISERROR(VLOOKUP($B$3,'Data Current Rates'!$A:$BE,MATCH(BI_Seas_Low!$A20,CurrentHeader,0),FALSE)),0,VLOOKUP($B$3,'Data Current Rates'!$A:$BE,MATCH(BI_Seas_Low!$A20,CurrentHeader,0),FALSE)) -> 1.79 | D20: 1.79 | E20: 1 | F20: =VLOOKUP($B$3,'Data Proposed Rates'!$A:$BC,MATCH(BI_Seas_Low!$A20,ProposedHeader,0),FALSE) -> 1.79 | G20: 1.79 | H20: 0 | I20: 0 | J20: 0.02756047452 | K20: 0.02744152304
A21: Fixed Deferral/Variance Account Rider (General) | B21: 1 | C21: =IF(ISERROR(VLOOKUP($B$3,'Data Current Rates'!$A:$BE,MATCH(BI_Seas_Low!$A21,CurrentHeader,0),FALSE)),0,VLOOKUP($B$3,'Data Current Rates'!$A:$BE,MATCH(BI_Seas_Low!$A21,CurrentHeader,0),FALSE)) -> -0.14 | D21: -0.14 | H21: 0.14 | I21: 1 | J21: 0 | K21: 0
A22: Fixed ESM Rider | B22: 1 | C22: =IF(ISERROR(VLOOKUP($B$3,'Data Current Rates'!$A:$BE,MATCH(BI_Seas_Low!$A22,CurrentHeader,0),FALSE)),0,VLOOKUP($B$3,'Data Current Rates'!$A:$BE,MATCH(BI_Seas_Low!$A22,CurrentHeader,0),FALSE)) -> -0.9 | D22: -0.9 | H22: 0.9 | I22: 1 | J22: 0 | K22: 0
A23: Distribution Volumetric Charge | B23: =IF($B$9="kWh",$B$4,$B$5) -> 50 | C23: =IF(ISERROR(VLOOKUP($B$3,'Data Current Rates'!$A:$BE,MATCH(BI_Seas_Low!$A23,CurrentHeader,0),FALSE)),0,VLOOKUP($B$3,'Data Current Rates'!$A:$BE,MATCH(BI_Seas_Low!$A23,CurrentHeader,0),FALSE)) -> 0.0441 | D23: 2.205 | E23: =IF($B$9="kWh",$B$4,$B$5) -> 50 | F23: =VLOOKUP($B$3,'Data Proposed Rates'!$A:$BC,MATCH(BI_Seas_Low!$A23,ProposedHeader,0),FALSE) -> 0.0311 | G23: 1.555 | H23: -0.65 | I23: -0.2947845805 | J23: 0.02394219993 | K23: 0.02383886499
A24: Base Rate Adjustment to Recover Past Tax Amounts VOL | B24: =IF($B$9="kWh",$B$4,$B$5) -> 50 | C24: =IF(ISERROR(VLOOKUP($B$3,'Data Current Rates'!$A:$BE,MATCH(BI_Seas_Low!$A24,CurrentHeader,0),FALSE)),0,VLOOKUP($B$3,'Data Current Rates'!$A:$BE,MATCH(BI_Seas_Low!$A24,CurrentHeader,0),FALSE)) -> 0 | D24: 0 | E24: =IF($B$9="kWh",$B$4,$B$5) -> 50 | F24: =VLOOKUP($B$3,'Data Proposed Rates'!$A:$BC,MATCH(BI_Seas_Low!$A24,ProposedHeader,0),FALSE) -> 0 | G24: 0 | H24: 0 | I24: N/A | J24: 0 | K24: 0
A25: Volumetric Deferral/Variance Account Rider (General) | B25: =IF($B$9="kWh",$B$4,$B$5) -> 50 | C25: =IF(ISERROR(VLOOKUP($B$3,'Data Current Rates'!$A:$BE,MATCH(BI_Seas_Low!$A25,CurrentHeader,0),FALSE)),0,VLOOKUP($B$3,'Data Current Rates'!$A:$BE,MATCH(BI_Seas_Low!$A25,CurrentHeader,0),FALSE)) -> -0.0023 | D25: -0.115 | H25: 0.115 | I25: 1 | J25: 0 | K25: 0
A26: Volumetric ESM Rider | B26: 50 | C26: =IF(ISERROR(VLOOKUP($B$3,'Data Current Rates'!$A:$BE,MATCH(BI_Seas_Low!$A26,CurrentHeader,0),FALSE)),0,VLOOKUP($B$3,'Data Current Rates'!$A:$BE,MATCH(BI_Seas_Low!$A26,CurrentHeader,0),FALSE)) -> 0 | D26: 0 | H26: 0 | I26: N/A | J26: 0 | K26: 0
A27: Fair Hydro Plan - Distribution Rate Protection Savings* | D27: =IF(AND(B3<>"R1",B3<>"R2"),0,IF(VLOOKUP($A27,'Data Pass Through'!$A:$D,2,FALSE)=0,0,IF(SUM(D19:D20,D23:D24)<VLOOKUP($A27,'Data Pass Through'!$A:$D,2,FALSE),0,VLOOKUP($A27,'Data Pass Through'!$A:$D,2,FALSE)-SUM(D19:D20,D23:D24)))) -> 0 | G27: =IF(AND(B3<>"R1",B3<>"R2"),0,IF(VLOOKUP($A27,'Data Pass Through'!$A:$D,2,FALSE)=0,0,IF(SUM(G19:G20,G23:G24)<VLOOKUP($A27,'Data Pass Through'!$A:$D,2,FALSE),0,VLOOKUP($A27,'Data Pass Through'!$A:$D,2,FALSE)-SUM(G19:G20,G23:G24)))) -> 0 | H27: 0 | I27: N/A | J27: 0 | K27: 0
A28: Sub-Total: Distribution (excluding pass through) | D28: =SUM(INDIRECT("D19:D"&ROW()-1)) -> 53.56 | G28: =SUM(INDIRECT("g19:g"&ROW()-1)) -> 61.775 | H28: =G28-D28 -> 8.215 | I28: 0.1533793876 | J28: 0.9511443093 | K28: 0.9470391541
A29: Smart Metering Entity Charge | B29: 1 | C29: =VLOOKUP($A29,'Data Pass Through'!$A:$D,2,FALSE) -> 0.57 | D29: =B29*C29 -> 0.57 | E29: 1 | F29: =VLOOKUP($A29,'Data Pass Through'!$A:$D,3,FALSE) -> 0.57 | G29: =E29*F29 -> 0.57 | H29: 0 | I29: 0 | J29: 0.00877624049 | K29: 0.008738362085
A30: Line Losses on Cost of Power (based on two-tier RPP prices) | B30: =B8-B4 -> 5.2 | C30: =IF(B4>B7,C13,C12) -> 0.098 | D30: =B30*C30 -> 0.5096 | E30: 5.2 | F30: =IF(B4>B7,F13,F12) -> 0.098 | G30: =E30*F30 -> 0.5096 | H30: 0 | I30: 0 | J30: 0.007846266937 | K30: 0.007812402313
A31: Line Losses on Cost of Power (based on TOU prices) | B31: =B8-B4 -> 5.2 | C31: =VLOOKUP($B$3,'Data Billing Quantities'!$A:$O,MATCH(BI_Seas_Low!$A15,'Data Billing Quantities'!$4:$4,0),FALSE)*C15+VLOOKUP($B$3,'Data Billing Quantities'!$A:$O,MATCH(BI_Seas_Low!$A16,'Data Billing Quantities'!$4:$4,0),FALSE)*C16+VLOOKUP($B$3,'Data Billing Quantities'!$A:$O,MATCH(BI_Seas_Low!$A17,'Data Billing Quantities'!$4:$4,0),FALSE)*C17 -> 0.10342 | D31: =B31*C31 -> 0.537784 | E31: 5.2 | F31: =VLOOKUP($B$3,'Data Billing Quantities'!$A:$O,MATCH(BI_Seas_Low!$A15,'Data Billing Quantities'!$4:$4,0),FALSE)*F15+VLOOKUP($B$3,'Data Billing Quantities'!$A:$O,MATCH(BI_Seas_Low!$A16,'Data Billing Quantities'!$4:$4,0),FALSE)*F16+VLOOKUP($B$3,'Data Billing Quantities'!$A:$O,MATCH(BI_Seas_Low!$A17,'Data Billing Quantities'!$4:$4,0),FALSE)*F17 -> 0.10342 | G31: =E31*F31 -> 0.537784 | H31: 0 | I31: 0 | J31: 0.008280213536 | K31: 0.008244475992
A32: Sub-Total: Distribution (based on two-tier RPP prices) | D32: =SUM(D28,D29:D30) -> 54.6396 | G32: =SUM(G28,G29:G30) -> 62.8546 | H32: 8.215 | I32: 0.1503488313 | J32: 0.9677668167 | K32: 0.9635899185
A33: Sub-Total: Distribution (based on TOU prices) | D33: =SUM(D28,D29,D31) -> 54.667784 | G33: =SUM(G28,G29,G31) -> 62.882784 | H33: 8.215 | I33: 0.1502713188 | J33: 0.9682007633 | K33: 0.9640219921
A34: Retail Transmission Rate – Network Service Rate | B34: =B8 -> 55.2 | C34: =VLOOKUP($B$3,'Data Current Rates'!$A:$BE,MATCH(BI_Seas_Low!$A34,CurrentHeader,0),FALSE) -> 0.0064 | D34: =B34*C34 -> 0.35328 | E34: 55.2 | F34: =VLOOKUP($B$3,'Data Proposed Rates'!$A:$BC,MATCH(BI_Seas_Low!$A34,ProposedHeader,0),FALSE) -> 0.0081 | G34: =E34*F34 -> 0.44712 | H34: =G34-D34 -> 0.09384 | I34: 0.265625 | J34: 0.006884267803 | K34: 0.006854555185
A35: Retail Transmission Rate – Line and Transformation Connection Service Rate | B35: =B8 -> 55.2 | C35: =VLOOKUP($B$3,'Data Current Rates'!$A:$BE,MATCH(BI_Seas_Low!$A35,CurrentHeader,0),FALSE) -> 0.0061 | D35: =B35*C35 -> 0.33672 | E35: 55.2 | F35: =VLOOKUP($B$3,'Data Proposed Rates'!$A:$BC,MATCH(BI_Seas_Low!$A35,ProposedHeader,0),FALSE) -> 0.0064 | G35: =E35*F35 -> 0.35328 | H35: =G35-D35 -> 0.01656 | I35: 0.04918032787 | J35: 0.005439421474 | K35: 0.005415944838
A36: Sub-Total: Retail Transmission | D36: =SUM(D34:D35) -> 0.69 | G36: =SUM(G34:G35) -> 0.8004 | H36: =G36-D36 -> 0.1104 | I36: 0.16 | J36: 0.01232368928 | K36: 0.01227050002
A37: Sub-Total: Delivery (based on two-tier RPP prices) | D37: =D32+D36 -> 55.3296 | G37: =G32+G36 -> 63.655 | H37: =G37-D37 -> 8.3254 | I37: 0.1504691883 | J37: 0.980090506 | K37: 0.9758604185
A38: Sub-Total: Delivery (based on TOU prices) | D38: =D33+D36 -> 55.357784 | G38: =G33+G36 -> 63.683184 | H38: =G38-D38 -> 8.3254 | I38: 0.1503925807 | J38: 0.9805244526 | K38: 0.9762924922
A39: Wholesale Market Service Rate (WMS) - not including CBR | B39: =B8 -> 55.2 | C39: =VLOOKUP($A39,'Data Pass Through'!$A:$D,2,FALSE) -> 0.003 | D39: =B39*C39 -> 0.1656 | E39: =$B$8 -> 55.2 | F39: =VLOOKUP($A39,'Data Pass Through'!$A:$D,3,FALSE) -> 0.003 | G39: =E39*F39 -> 0.1656 | H39: 0 | I39: 0 | J39: 0.002549728816 | K39: 0.002538724143
A40: Capacity Based Recovery (CBR) - Applicable for Class B Customers | B40: =B8 -> 55.2 | C40: =VLOOKUP($A40,'Data Pass Through'!$A:$D,2,FALSE) -> 0.0004 | D40: =B40*C40 -> 0.02208 | E40: =$B$8 -> 55.2 | F40: =VLOOKUP($A40,'Data Pass Through'!$A:$D,3,FALSE) -> 0.0004 | G40: =E40*F40 -> 0.02208 | H40: 0 | I40: 0 | J40: 0.0003399638421 | K40: 0.0003384965524
A41: Rural Rate Protection Charge | B41: =B8 -> 55.2 | C41: =VLOOKUP($A41,'Data Pass Through'!$A:$D,2,FALSE) -> 0.0005 | D41: 0.0276 | E41: 55.2 | F41: =VLOOKUP($A41,'Data Pass Through'!$A:$D,3,FALSE) -> 0.0005 | G41: 0.0276 | H41: 0 | I41: 0 | J41: 0.0004249548027 | K41: 0.0004231206904
A42: Standard Supply Service – Administration Charge (if applicable) | B42: 1 | C42: =VLOOKUP($A42,'Data Pass Through'!$A:$D,2,FALSE) -> 0.25 | D42: =B42*C42 -> 0.25 | E42: 1 | F42: =VLOOKUP($A42,'Data Pass Through'!$A:$D,3,FALSE) -> 0.25 | G42: 0.25 | H42: 0 | I42: 0 | J42: 0.003849228285 | K42: 0.00383261495
A43: Sub-Total: Regulatory | D43: =SUM(D39:D42) -> 0.46528 | G43: =SUM(G39:G42) -> 0.46528 | H43: 0 | I43: 0 | J43: 0.007163875746 | K43: 0.007132956335
A44: Debt Retirement Charge (DRC) | B44: =B4 -> 50 | C44: =VLOOKUP($A44,'Data Pass Through'!$A:$D,2,FALSE) -> 0 | D44: =B44*C44 -> 0 | E44: 50 | F44: =VLOOKUP($A44,'Data Pass Through'!$A:$D,3,FALSE) -> 0 | G44: =E44*F44 -> 0 | H44: 0 | I44: N/A | J44: 0 | K44: 0
A45: Total Electricty Charge on Two-Tier RPP | D45: =SUM(D14,D28,D29,D30,D36,D43,D44) -> 60.69488 | G45: =SUM(G14,G28,G29,G30,G36,G43,G44) -> 69.02028 | H45: 8.3254 | I45: 0.1371680774 | J45: 1.062699256
A46: HST | C46: 0.13 | D46: =D45*C46 -> 7.8903344 | F46: =C46 -> 0.13 | G46: =G45*F46 -> 8.9726364 | H46: 1.082302 | I46: 0.1371680774 | J46: 0.1381509033
A47: Total Electricity Charge on Two-Tier RPP (including HST) | D47: =SUM(D45:D46) -> 68.5852144 | G47: =SUM(G45:G46) -> 77.9929164 | H47: 9.407702 | I47: 0.1371680774 | J47: 1.200850159
A48: Ontario Electricity Rebate (OER) | C48: ='Data Pass Through'!B20 -> -0.189 | D48: =D45*C48 -> -11.47133232 | F48: ='Data Pass Through'!C20 -> -0.189 | G48: =G45*F48 -> -13.04483292 | H48: -1.5735006 | I48: -0.1371680774 | J48: -0.2008501594
A49: Total Amount on Two-Tier RPP | D49: =SUM(D47:D48) -> 57.11388208 | G49: =SUM(G47:G48) -> 64.94808348 | H49: 7.8342014 | I49: 0.1371680774 | J49: 1
A50: Total Electricty Charge on TOU (before HST) | D50: =SUM(D18,D28,D29,D31,D36,D43,D44) -> 60.994064 | G50: =SUM(G18,G28,G29,G31,G36,G43,G44) -> 69.319464 | H50: 8.3254 | I50: 0.1364952498 | K50: =G50/$G$54 -> 1.062699256
A51: HST | C51: 0.13 | D51: =D50*C51 -> 7.92922832 | F51: =C51 -> 0.13 | G51: =G50*F51 -> 9.01153032 | H51: 1.082302 | I51: 0.1364952498 | K51: =G51/$G$54 -> 0.1381509033
A52: Total Electricity Charge on TOU (including HST) | D52: =SUM(D50:D51) -> 68.92329232 | G52: =SUM(G50:G51) -> 78.33099432 | H52: 9.407702 | I52: 0.1364952498 | K52: =G52/$G$54 -> 1.200850159
A53: Ontario Electricity Rebate (OER) | C53: ='Data Pass Through'!B20 -> -0.189 | D53: =D50*C53 -> -11.5278781 | F53: ='Data Pass Through'!C20 -> -0.189 | G53: =G50*F53 -> -13.1013787 | H53: -1.5735006 | I53: -0.1364952498 | K53: =G53/$G$54 -> -0.2008501594
A54: Total Amount on TOU | D54: =SUM(D52:D53) -> 57.39541422 | G54: =SUM(G52:G53) -> 65.22961562 | H54: 7.8342014 | I54: 0.1364952498 | K54: =G54/$G$54 -> 1
A55: * Distribution rate protection applies to R1 and R2 customers

Sheet BI_Seas_Avg
A1: 2022 Bill Impacts (Average Consumption Level) - Seasonal
A3: Rate Class | B3: =RIGHT(A1,LEN(A1)-FIND("- ",A1,1)-1) -> Seasonal
A4: Monthly Consumption (kWh) | B4: =IF(COUNTIF(A1,"*Low*")>0,VLOOKUP(B3,'Data Billing Quantities'!$A:$Z,MATCH("Low kWh",'Data Billing Quantities'!4:4,0),FALSE),IF(COUNTIF(A1,"*Typical*")>0,VLOOKUP(B3,'Data Billing Quantities'!$A:$Z,MATCH("Typical kWh",'Data Billing Quantities'!4:4,0),FALSE),IF(COUNTIF(A1,"*Average*")>0,VLOOKUP(B3,'Data Billing Quantities'!$A:$Z,MATCH("Average kWh",'Data Billing Quantities'!4:4,0),FALSE),IF(COUNTIF(A1,"*High*")>0,VLOOKUP(B3,'Data Billing Quantities'!$A:$Z,MATCH("High kWh",'Data Billing Quantities'!4:4,0),FALSE),"error")))) -> 352
A5: Peak (kW) | B5: =IF(COUNTIF(A1,"*Low*")>0,VLOOKUP(B3,'Data Billing Quantities'!$A:$Z,MATCH("Low kW",'Data Billing Quantities'!4:4,0),FALSE),IF(COUNTIF(A1,"*Typical*")>0,VLOOKUP(B3,'Data Billing Quantities'!$A:$Z,MATCH("Typical kW",'Data Billing Quantities'!4:4,0),FALSE),IF(COUNTIF(A1,"*Average*")>0,VLOOKUP(B3,'Data Billing Quantities'!$A:$Z,MATCH("Average kW",'Data Billing Quantities'!4:4,0),FALSE),IF(COUNTIF(A1,"*High*")>0,VLOOKUP(B3,'Data Billing Quantities'!$A:$Z,MATCH("High kW",'Data Billing Quantities'!4:4,0),FALSE),"error")))) -> 0
A6: Loss factor | B6: =VLOOKUP(B3,'Data Billing Quantities'!A:D,MATCH(A6,'Data Billing Quantities'!4:4,0),FALSE) -> 1.104
A7: Commodity Threshold | B7: =VLOOKUP(B3,'Data Billing Quantities'!A:D,MATCH(A7,'Data Billing Quantities'!4:4,0),FALSE) -> 600
A8: Monthly Consumption (kWh) - Uplifted | B8: =B4*B6 -> 388.608
